Workbook

Sheet Projects
A1: JACTS FY 2017 - 2020 Transportation Improvement Program
A2: 2016-12-20
A3: Required Fields | Z3: Optional Fields | AE3: ='MDOT FTA Detail'!B1 -> E-File v. 5.1 (01.15.15)
A4: Fiscal Year | B4: County | C4: Respon-sible Agency | D4: Project Name | E4: Limits | F4: Length | G4: Primary Work Type | H4: Project Description | I4: Phase | J4: Advance Construct | K4: Federal Cost ($1000s) | L4: Federal Fund Source | M4: State Cost ($1000s) | N4: State Fund Source | O4: Local Cost ($1000s) | P4: Local Fund Source | Q4: Total Phase Cost ($1000s) | R4: MDOT Job No. | S4: Local ID No. | T4: MPO/ Rural Action Date | U4: Amend-ment Type | V4: Air Quality | W4: Comments | X4: Total Project Cost ($1000s) | Y4: x | Z4: Local Priority | AA4: EJ | AB4: Federal Approval Date | AC4: Capped Federal Cost ($1000s) | AD4: Date Obligated | AE4: Amount Obligated ($1000s) | AF4: Let Date | AG4: MPO
A5: 2017 | B5: Jackson | C5: City of Jackson | D5: I-94 BL | E5: Louis Glick & Washington | F5: 0.905 | G5: Reconstruct | H5: Work associated with the two-way conversion for Louis Glick and Washington in the city of Jackson. This job number will cover all work outside the limits of JN 113565. | I5: CON | O5: 2640000 | P5: CITY | Q5: 2640000 | R5: 128046 | T5: 2016-07-14 | X5: 13074059 | AB5: 2016-10-01
A6: 2017 | B6: JACKSON | C6: City of Jackson | D6: Kibby Rd | E6: CL to West Ave | F6: 0.6 | G6: Reconstruct | H6: Reconstruct pavement on south side of boulevard and remove north side, roundabout at Kibby and Denton for 740' west of Kibby and install non-motorized path from County pat at City limits to County path at Denton | I6: CON | K6: 929000 | L6: STUL | O6: 232000 | P6: CITY | Q6: 1161000 | R6: 130219 | T6: 2016-10-13 | U6: Scope | W6: Scope change 10/13/16, no change in funding amounts | X6: 1161000 | AB6: 2016-10-01
A7: 2017 | B7: JACKSON | C7: JATA | D7: Bus Replacement | E7: Urbanized Area | G7: Transit vehicle additions/replacements | H7: Replace 2 full-size buses | I7: T-Cap | K7: 640000 | L7: 5339 | M7: 160000 | N7: CTF | Q7: 800000 | T7: 2016-07-14 | X7: 800000 | AB7: 2016-10-01
A8: 2017 | B8: JACKSON | C8: JATA | D8: Transit Operating | E8: County-wide | G8: Transit operations | H8: Transit operating funds | I8: T-Ops | K8: 1213000 | L8: 5307 | M8: 1596000 | N8: CTF | O8: 1797000 | P8: TRAL | Q8: 4606000 | T8: 2016-07-14 | X8: 4605000 | AB8: 2016-10-01
A9: 2017 | B9: JACKSON | C9: JATA | D9: Transit Operating | E9: County-wide | G9: Transit operations | H9: Transit operating funds | I9: T-Ops | K9: 99000 | L9: 5311 | M9: 247000 | N9: CTF | O9: 349000 | P9: TRAL | Q9: 695000 | T9: 2016-07-14 | X9: 696000 | AB9: 2016-10-01
A10: 2017 | B10: JACKSON | C10: JCDOT | D10: Ann Arbor Rd Non-Motorized Pathway | E10: Hackett St to Ponderosa Dr | F10: 2 | G10: Roadside facility | H10: Construction of a non-motorized path | I10: CON | K10: 501345 | L10: TA | O10: 301345 | P10: CNTY | Q10: 802690 | T10: 2016-11-10 | U10: Add | W10: TA and SR2S grant for federal funding | X10: 802690 | AB10: 2016-12-20
A11: 2017 | B11: JACKSON | C11: JCDOT | D11: Berry Rd and Rives Eaton Rd | E11: Rives Eaton to Lansing and Perine to Berry | F11: 3 | G11: Restore & rehabilitate | H11: Preventative Maintenance | I11: CON | K11: 120000 | L11: STL | M11: 30000 | N11: EDD | Q11: 150000 | R11: 130217 | T11: 2016-07-14 | W11: Old JN 127207 | X11: 150000 | AB11: 2016-10-01
A12: 2017 | B12: JACKSON | C12: JCDOT | D12: Coats Rd | E12: Moscow Rd to 1000' east of Moscow Rd | F12: 0.19 | G12: Reconstruct | H12: Widen and reconstruct | I12: CON | M12: 269471 | N12: EDA | O12: 89823 | P12: CNTY | Q12: 359294 | T12: 2016-11-10 | U12: Add | W12: State and local funds only | X12: 359294 | AB12: 2016-12-20
A13: 2017 | B13: JACKSON | C13: JCDOT | D13: E Michigan Ave | E13: Under NS RR Bridge | F13: 0.04 | G13: Resurface | H13: Resurface | I13: CON | K13: 80000 | L13: STL | M13: 20000 | N13: EDD | Q13: 100000 | R13: 130216 | T13: 2016-07-14 | X13: 100000 | AB13: 2016-10-01
A14: 2017 | B14: Jackson | C14: JCDOT | D14: Rives Junction Rd | E14: Rives Junction Road from M-50 northerly | G14: Roadside facility | H14: Construction of a non-motorized path | I14: CON | K14: 222224 | L14: HSIP | O14: 55556 | P14: CNTY | Q14: 277780 | R14: 130917 | T14: 2016-07-14 | X14: 277780 | AB14: 2016-10-01
A15: 2017 | B15: JACKSON | C15: JCDOT | D15: Robinson Rd | E15: Spring Arbor to Kibby | F15: 1.2 | G15: Resurface | H15: Cold mill, paving fabric, resurface | I15: CON | K15: 374708 | L15: STUL | O15: 93768 | P15: CNTY | Q15: 468476 | R15: 130218 | T15: 2016-07-14 | W15: Old JN 122077 | X15: 469000 | AB15: 2016-10-01
A16: 2017 | B16: Jackson | C16: JCDOT | D16: Springport Rd | E16: Airport Road at Springport Road | G16: Traffic ops/safety | H16: Install countdown pedestrian signals and ADA ramps | I16: CON | K16: 80960 | L16: HSIP | O16: 20240 | P16: CNTY | Q16: 101200 | R16: 130916 | T16: 2016-07-14 | X16: 101200 | AB16: 2016-10-01
A17: 2017 | B17: JACKSON | C17: JCDOT | D17: W Michigan Ave | E17: W Parma Village Limit to Glasgow Rd | F17: 4.839 | G17: Restore & rehabilitate | H17: Preventative Maintenance | I17: CON | K17: 517753 | L17: STL | M17: 138000 | N17: EDD | Q17: 655753 | R17: 130215 | T17: 2016-07-14 | X17: 655753 | AB17: 2016-10-01
A18: 2017 | B18: JACKSON | C18: MDOT | D18: I-94 | E18: I-94 at Elm Rd | F18: 1.5 | G18: Reconstruct | H18: Reconstruct Interchange | I18: SUB | K18: 452487 | L18: IM | M18: 50276 | N18: M | Q18: 502763 | R18: 129153 | T18: 2016-07-14 | W18: NOT GPA | X18: 19799116 | AB18: 2016-10-01
A19: 2017 | B19: JACKSON | C19: MDOT | D19: I-94 | E19: I-94 at Elm Rd | F19: 1.5 | G19: Reconstruct | H19: Reconstruct Interchange | I19: PE | K19: 1325147 | L19: IM | M19: 147238 | N19: M | Q19: 1472385 | R19: 129153 | T19: 2016-07-14 | W19: NOT GPA | X19: 19799116 | AB19: 2016-10-01
A20: 2017 | B20: JACKSON | C20: MDOT | D20: I-94 BL | E20: Brown to Louis Glick | F20: 1.7 | G20: Reconstruct | H20: Reconstruct | I20: CON | K20: 6985163 | L20: NH | M20: 1339301 | N20: M | O20: 544847 | P20: CITY | Q20: 8869311 | R20: 113565 | T20: 2016-07-14 | X20: 10434059 | AB20: 2016-10-01
A21: 2017 | B21: JACKSON | C21: MDOT | D21: I-94BL | E21: Cooper St to Dwight St | F21: 1.2 | G21: Resurface | H21: HMA Cold Milling and Single Course Overlay | I21: CON | K21: 989841 | L21: NH | M21: 219495 | N21: M | Q21: 1209336 | R21: 127495 | T21: 2016-07-14 | W21: GPA | X21: 1299336 | AB21: 2016-10-01
A22: 2017 | B22: JACKSON | C22: MDOT | D22: M-106 | E22: Bunkerhill Rd to 1300 ft west of Sayers Rd | F22: 1.9 | G22: Resurface | H22: Single Course Mill and Resurface | I22: CON | K22: 435993 | L22: ST | M22: 96680 | N22: M | Q22: 532673 | R22: 129162 | T22: 2016-07-14 | W22: GPA | X22: 547892 | AB22: 2016-10-01
A23: 2017 | B23: JACKSON | C23: MDOT | D23: M-50 | E23: Pope Church Rd to Ingham/Jackson CL | F23: 6.1 | G23: Resurface | H23: Micro-Surface, Warranty | I23: CON | K23: 670743 | L23: ST | M23: 148735 | N23: M | Q23: 819478 | R23: 129991 | T23: 2016-07-14 | X23: 834478 | AB23: 2016-10-01
A24: 2017 | B24: JACKSON | C24: MDOT | D24: M-50 | E24: Rives Junction to Pope Church Rd | F24: 6 | G24: Resurface | H24: Micro-Surface, Warranty | I24: CON | K24: 611148 | L24: ST | M24: 135520 | N24: M | Q24: 746668 | R24: 129151 | T24: 2016-07-14 | W24: GPA | X24: 760890 | AB24: 2016-10-01
A25: 2017 | B25: JACKSON | C25: MDOT | D25: M-50/US-127BR | E25: North St to Boardman Rd | F25: 0.77 | G25: Restore & rehabilitate | H25: Longitudinal Joint Repair | I25: CON | K25: 282000 | L25: ST | M25: 62532 | N25: M | Q25: 344532 | R25: 129189 | T25: 2016-07-14 | W25: NOT GPA | X25: 370000 | AB25: 2016-10-01
A26: 2017 | B26: JACKSON | C26: MDOT | D26: M-60 | E26: Chapel Rd to Emerson Rd | F26: 1.6 | G26: Resurface | H26: Resurface/Widening with CLTL | I26: CON | K26: 7585332 | L26: ST | M26: 1682025 | N26: M | Q26: 9267357 | R26: 120277 | T26: 2016-07-14 | W26: NOT GPA | X26: 10481078 | AB26: 2016-10-01
A27: 2017 | B27: JACKSON | C27: MDOT | D27: M-60 | E27: Emerson Road to Renfrew Road | F27: 2.53 | G27: Resurface | H27: HMA cold milling and 2 course overlay HMA resurfacing with minor drainage improvements, guardrail upgrade, intersection improvements, and signal modernization | I27: ROW | K27: 163700 | L27: ST | M27: 36300 | N27: M | Q27: 200000 | R27: 120275 | T27: 2016-10-13 | U27: Add | W27: Move from FY16 to FY17 | X27: 4505666 | AB27: 2016-12-20
A28: 2017 | B28: JACKSON | C28: MDOT | D28: M-60 | E28: Chapel Road to Emerson Road | F28: 1.57 | G28: Restore & rehabilitate | H28: Rehabilitation and intermittent reconstruction including widening for center left-turn lane between Chapel Road and Dearing Road; drainage improvements, sidewalk upgrades and possible non-motorized work | I28: ROW | K28: 368325 | L28: ST | M28: 81675 | N28: M | Q28: 450000 | R28: 120277 | T28: 2016-10-13 | U28: Add | W28: Move from FY16 to FY17 | X28: 10231078 | AB28: 2016-12-20
A29: 2017 | B29: JACKSON | C29: MDOT | D29: M-99 | E29: Railroad St. to Jackson county line | F29: 4.4 | G29: Resurface | H29: Single Course Micro Surface | I29: CON | K29: 737883 | L29: ST | M29: 163624 | N29: M | Q29: 901507 | R29: 129213 | T29: 2016-07-14 | X29: 919000 | AB29: 2016-10-01
A30: 2018 | B30: JACKSON | C30: City of Jackson | D30: Fourth St | E30: Audubon to Horton | F30: 0.98 | G30: Resurface | H30: Single course mill and resurface, reconstruct roundabout at Hickory | I30: CON | K30: 782000 | L30: STUL | O30: 195200 | P30: CITY | Q30: 977200 | R30: 130214 | T30: 2016-07-14 | X30: 977000 | AB30: 2016-10-01
A31: 2018 | B31: JACKSON | C31: City of Jackson | D31: Ganson Signal | E31: at Steward | G31: Traffic ops/safety | H31: Reconstruct signal | I31: CON | K31: 85000 | L31: STUL | O31: 21250 | P31: CITY | Q31: 106250 | R31: 130527 | T31: 2016-07-14 | X31: 106250 | AB31: 2016-10-01
A32: 2018 | B32: JACKSON | C32: JATA | D32: Facility Upgrades | E32: Area-wide | G32: Transit facility | H32: Replace HVAC in non-admin areas of main base | I32: T-Cap | K32: 100000 | L32: 5339 | M32: 25000 | N32: CTF | Q32: 125000 | T32: 2016-07-14 | X32: 125000 | AB32: 2016-10-01
A33: 2018 | B33: JACKSON | C33: JATA | D33: Transit | E33: Countywide, Jackson Area Transit Authority | G33: Transit vehicle additions/replacements | H33: 2 Small Buses | I33: EPE | K33: 100000 | L33: STL | O33: 25000 | P33: TRAL | Q33: 125000 | R33: 119274 | T33: 2016-07-14 | X33: 125000 | AB33: 2016-10-01
A34: 2018 | B34: JACKSON | C34: JATA | D34: Transit Operating | E34: County-wide | G34: Transit operations | H34: Transit operating funds | I34: T-Ops | K34: 1249000 | L34: 5307 | M34: 1643000 | N34: CTF | O34: 1851000 | P34: TRAL | Q34: 4743000 | T34: 2016-07-14 | X34: 4743000 | AB34: 2016-10-01
A35: 2018 | B35: JACKSON | C35: JATA | D35: Transit Operating | E35: County-wide | G35: Transit operations | H35: Transit operating funds | I35: T-Ops | K35: 102000 | L35: 5311 | M35: 254000 | N35: CTF | O35: 360000 | P35: TRAL | Q35: 716000 | T35: 2016-07-14 | X35: 716000 | AB35: 2016-10-01
A36: 2018 | B36: JACKSON | C36: JCDOT | D36: Norvell Rd (Ph. 1) | E36: E Michigan Ave to Phal Rd | F36: 2.4 | G36: Resurface | H36: Cold Mill and Resurface | I36: CON | K36: 501723 | L36: STL | O36: 125430 | P36: CNTY | Q36: 627153 | R36: 130212 | T36: 2016-07-14 | W36: Old JN 129618 | X36: 627153 | AB36: 2016-10-01
A37: 2018 | B37: JACKSON | C37: JCDOT | D37: W. Michigan Ave. | E37: M-60 to Glasgow | F37: 1.15 | G37: Resurface | H37: Cold mill and resurface | I37: CON | K37: 320000 | L37: STUL | O37: 80000 | P37: CNTY | Q37: 400000 | R37: 130213 | T37: 2016-07-14 | X37: 400000 | AB37: 2016-10-01
A38: 2018 | B38: JACKSON | C38: MDOT | D38: I-94 | E38: I-94 over Conrail and THE Grand River | F38: 0.4 | G38: Bridge replacement | H38: Realign and Replace Structure | I38: CON | K38: 18159138 | L38: IM | M38: 2017682 | N38: M | Q38: 20176820 | R38: 115861 | T38: 2016-07-14 | W38: NOT GPA | X38: 22169770 | AB38: 2016-10-01
A39: 2018 | B39: JACKSON | C39: MDOT | D39: I-94 | E39: M-106 NB and SB (Cooper St) over I-94 | F39: 0.2 | G39: Bridge replacement | H39: Bridge Replacement and Associated Road Work | I39: CON | K39: 12669481 | L39: IM | M39: 1407720 | N39: M | Q39: 14077201 | R39: 115862 | T39: 2016-07-14 | W39: NOT GPA | X39: 17765416 | AB39: 2016-10-01
A40: 2018 | B40: JACKSON | C40: MDOT | D40: I-94 | E40: M-60 to Sargent | F40: 8.9 | G40: Reconstruct | H40: Reconstruct/Rehab | I40: CON | K40: 36948320 | L40: IM | M40: 4105369 | N40: M | Q40: 41053689 | R40: 120273 | T40: 2016-07-14 | W40: NOT GPA | X40: 46053689 | AB40: 2016-10-01
A41: 2018 | B41: JACKSON | C41: MDOT | D41: M-106 | E41: Ganson to Porter St. | F41: 0.916 | G41: Resurface | H41: Single Course Mill and Resurface | I41: CON | K41: 547557 | L41: NH | M41: 121419 | N41: M | Q41: 668976 | R41: 129154 | T41: 2016-07-14 | W41: GPA | X41: 749501 | AB41: 2016-10-01
A42: 2018 | B42: JACKSON | C42: Village of Brooklyn | D42: Marshall St | E42: Village Limits to Brooklyn Rd | F42: 0.49 | G42: Resurface | H42: Resurface | I42: CON | K42: 116000 | L42: STL | M42: 100000 | N42: EDD | O42: 54000 | P42: VLG | Q42: 270000 | R42: 129896 | T42: 2016-07-14 | W42: Old JN 129621 | X42: 270000 | AB42: 2016-10-01
A43: 2019 | B43: JACKSON | C43: City of Jackson | D43: Francis St | E43: Morrell to Mason | F43: 0.203 | G43: Reconstruct | H43: Reconstruct | I43: CON | K43: 587000 | L43: STUL | O43: 146750 | P43: CITY | Q43: 733750 | R43: 130211 | T43: 2016-07-14 | X43: 733750 | AB43: 2016-10-01
A44: 2019 | B44: JACKSON | C44: JATA | D44: Facility Upgrades | E44: Area-wide | G44: Transit facility | H44: Administrative office rehabilitation and upgrade | I44: T-Cap | K44: 113000 | L44: 5339 | M44: 28000 | N44: CTF | Q44: 141000 | T44: 2016-07-14 | X44: 141000 | AB44: 2016-10-01
A45: 2019 | B45: JACKSON | C45: JATA | D45: Transit Operating | E45: County-wide | G45: Transit operations | H45: Transit operating funds | I45: T-Ops | K45: 1286000 | L45: 5307 | M45: 1693000 | N45: CTF | O45: 1906000 | P45: TRAL | Q45: 4885000 | T45: 2016-07-14 | X45: 4885000 | AB45: 2016-10-01
A46: 2019 | B46: JACKSON | C46: JATA | D46: Transit Operating | E46: County-wide | G46: Transit operations | H46: Transit operating funds | I46: T-Ops | K46: 105000 | L46: 5311 | M46: 262000 | N46: CTF | O46: 371000 | P46: TRAL | Q46: 738000 | T46: 2016-07-14 | X46: 738000 | AB46: 2016-10-01
A47: 2019 | B47: JACKSON | C47: JCDOT | D47: Laurence Ave | E47: RR to Wildwood | F47: 0.24 | G47: Resurface | H47: Cold mill and resurface | I47: CON | K47: 200000 | L47: STUL | O47: 50000 | P47: CNTY | Q47: 250000 | R47: 130210 | T47: 2016-07-14 | X47: 250000 | AB47: 2016-10-01
A48: 2019 | B48: JACKSON | C48: JCDOT | D48: Laurence Ave | E48: Wildwood to Argyle | F48: 0.508 | G48: Resurface | H48: Cold mill and resurface | I48: CON | K48: 400000 | L48: STUL | O48: 100000 | P48: CNTY | Q48: 500000 | R48: 130209 | T48: 2016-07-14 | X48: 500000 | AB48: 2016-10-01
A49: 2019 | B49: JACKSON | C49: JCDOT | D49: W Michigan Ave | E49: West Parma VL to M-99 | F49: 5.6 | G49: Restore & rehabilitate | H49: Preventative Maintenance | I49: CON | K49: 501753 | L49: STL | M49: 208693 | N49: EDD | Q49: 710446 | R49: 130207 | T49: 2016-07-14 | W49: Old JN 129628 | X49: 710446 | AB49: 2016-10-01
A50: 2019 | B50: JACKSON | C50: Village of Springport | D50: W Main St | E50: M-99/Mechanic St to Village Limits | F50: 0.5 | G50: Resurface | H50: Resurface | I50: CON | K50: 216000 | L50: STL | O50: 54000 | P50: CNTY | Q50: 270000 | R50: 130208 | T50: 2016-07-14 | W50: Old JN 129627 | X50: 270000 | AB50: 2016-10-01
A51: 2020 | B51: JACKSON | C51: City of Jackson | D51: Greenwood/ Wilkins | E51: Morrell to Jackson | F51: 0.186 | G51: Reconstruct | H51: Reconstruct | I51: CON | K51: 587000 | L51: STUL | O51: 146000 | P51: CITY | Q51: 733000 | R51: 130206 | T51: 2016-07-14 | X51: 733000 | AB51: 2016-10-01
A52: 2020 | B52: JACKSON | C52: JATA | D52: Facility Upgrades | E52: Area-wide | G52: Transit facility | H52: Replace paint booth in shop | I52: T-Cap | K52: 113000 | L52: 5339 | M52: 28000 | N52: CTF | Q52: 141000 | T52: 2016-07-14 | X52: 141000 | AB52: 2016-10-01
A53: 2020 | B53: JACKSON | C53: JATA | D53: Transit | E53: Countywide, Jackson Area Transit Authority | G53: Transit vehicle additions/replacements | H53: 2 Small Buses | I53: EPE | K53: 100000 | L53: STL | O53: 25000 | P53: TRAL | Q53: 125000 | R53: 129636 | T53: 2016-07-14 | X53: 125000 | AB53: 2016-10-01
A54: 2020 | B54: JACKSON | C54: JATA | D54: Transit Operating | E54: County-wide | G54: Transit operations | H54: Transit operating funds | I54: T-Ops | K54: 1325000 | L54: 5307 | M54: 1744000 | N54: CTF | O54: 1963000 | P54: TRAL | Q54: 5032000 | T54: 2016-07-14 | X54: 5032000 | AB54: 2016-10-01
A55: 2020 | B55: JACKSON | C55: JATA | D55: Transit Operating | E55: County-wide | G55: Transit operations | H55: Transit operating funds | I55: T-Ops | K55: 108000 | L55: 5311 | M55: 270000 | N55: CTF | O55: 382000 | P55: TRAL | Q55: 760000 | T55: 2016-07-14 | X55: 760000 | AB55: 2016-10-01
A56: 2020 | B56: JACKSON | C56: JCDOT | D56: Norvell Rd (Ph. 2) | E56: Phal Rd to Raby Rd | F56: 2.2 | G56: Resurface | H56: Mill and Resurface | I56: CON | K56: 589150 | L56: STL | O56: 147287 | P56: CNTY | Q56: 736437 | R56: 129619 | T56: 2016-07-14 | X56: 736437 | AB56: 2016-10-01
A57: 2020 | B57: JACKSON | C57: JCDOT | D57: O'Neill Dr | E57: Airport to Dead end | F57: 0.423 | G57: Resurface | H57: Cold mill and resurface | I57: CON | K57: 280000 | L57: STUL | O57: 70000 | P57: CNTY | Q57: 350000 | R57: 130203 | T57: 2016-07-14 | X57: 350000 | AB57: 2016-10-01
A58: 2020 | B58: JACKSON | C58: JCDOT | D58: Springport Rd | E58: County Farm to Rives Junction | F58: 0.863 | G58: Resurface | H58: Cold mill and resurface | I58: CON | K58: 320000 | L58: STUL | O58: 80000 | P58: CNTY | Q58: 400000 | R58: 130205 | T58: 2016-07-14 | X58: 400000 | AB58: 2016-10-01
A59: 2020 | B59: JACKSON | C59: MDOT | D59: I-94 | E59: I-94 at Elm Rd | F59: 1.5 | G59: Reconstruct | H59: Reconstruct Interchange | I59: ROW | K59: 90000 | L59: IM | M59: 10000 | N59: M | Q59: 100000 | R59: 129153 | T59: 2016-07-14 | W59: NOT GPA | X59: 19799116 | AB59: 2016-10-01
A60: 2020 | B60: JACKSON | C60: MDOT | D60: M-60 | E60: EB and WB over I-94 | F60: 0.27 | G60: Bridge replacement | H60: Replacement | I60: CON | K60: 12858366 | L60: IM | M60: 1428707 | N60: M | Q60: 14287073 | R60: 127537 | T60: 2016-07-14 | W60: NOT GPA | X60: 15811892 | AB60: 2016-10-01
A61: 2020 | B61: JACKSON | C61: Village of Brooklyn | D61: S King/Tiffany/ Cement City | E61: Chicago St to Village Limit | F61: 0.5 | G61: Reconstruct | H61: Reconstruction | I61: CON | K61: 28603 | L61: STL | M61: 147397 | N61: EDD | O61: 44000 | P61: VLG | Q61: 220000 | R61: 129637 | T61: 2016-07-14 | X61: 220000 | AB61: 2016-10-01

Sheet FY 2017
B1: FY 2017
A2: Highway Program | B2: Estimated Federal Commitments | C2: Estimated Non-Federal Commitments | D2: Total Proposed Commitments
A3: MDOT AC & M Program | C3: =D3 -> 0 | D3: =SUM('MDOT FTA Detail'!F135:F169)+'MDOT FTA Detail'!F171 -> 0
A4: MDOT FA Program | B4: =SUM('MDOT FTA Detail'!D6:D109) -> 20607762 | C4: =D4-B4 -> 4708248 | D4: =SUM('MDOT FTA Detail'!F6:F109) -> 25316010
A5: Sub-Total MDOT | B5: =B4 -> 20607762 | C5: =C3+C4 -> 4708248 | D5: =D3+D4 -> 25316010
A6: Local STP | B6: =SUM('Local Detail'!D78,'Local Detail'!D79,'Local Detail'!D82:D97,'Local Detail'!D72:D73,'Local Detail'!D53:D54,'Local Detail'!D24) -> 2021461 | C6: =D6-B6 -> 513768 | D6: =SUM('Local Detail'!F78,'Local Detail'!F79,'Local Detail'!F82:F97,'Local Detail'!F72:F73,'Local Detail'!F53:F54,'Local Detail'!F24) -> 2535229
A7: Local Bridge | B7: =SUM('Local Detail'!D6:D9,'Local Detail'!D13:D16,'Local Detail'!D102,'Local Detail'!D11:D11,'Local Detail'!D43) -> 0 | C7: 0 | D7: =SUM('Local Detail'!F6:F9,'Local Detail'!F13:F16,'Local Detail'!F102,'Local Detail'!F11:F11,'Local Detail'!F43) -> 0
A8: Local CMAQ | B8: =SUM('Local Detail'!D20:D23) -> 0 | C8: 0 | D8: =SUM('Local Detail'!F20:F23) -> 0
A9: Local Safety | B9: =SUM('Local Detail'!D46,'Local Detail'!D48,'Local Detail'!D80:D81) -> 303184 | C9: 75796 | D9: =SUM('Local Detail'!F46,'Local Detail'!F48,'Local Detail'!F80:F81) -> 378980
A10: Local Equity Bonus (TEDF) | B10: =SUM('Local Detail'!D31:D38) -> 0 | C10: 0 | D10: =SUM('Local Detail'!F31:F38) -> 0
A11: Local Other FHWA | B11: =SUM('Local Detail'!D10,'Local Detail'!D12,'Local Detail'!D17:D19,'Local Detail'!D25:D30,'Local Detail'!D39:D42,'Local Detail'!D44:D45,'Local Detail'!D47,'Local Detail'!D49:D52,'Local Detail'!D55:D71,'Local Detail'!D103:D109,'Local Detail'!D98:D101,'Local Detail'!D74:D77) -> 501345 | C11: 301345 | D11: =SUM('Local Detail'!F10,'Local Detail'!F12,'Local Detail'!F17:F19,'Local Detail'!F25:F30,'Local Detail'!F39:F42,'Local Detail'!F44:F45,'Local Detail'!F47,'Local Detail'!F49:F52,'Local Detail'!F55:F71,'Local Detail'!F103:F109,'Local Detail'!F98:F101,'Local Detail'!F74:F77) -> 802690
A12: Local AC Starts | C12: =D12 -> 0 | D12: ='Local Detail'!F147 -> 0
A13: Local Non-Federal | C13: =D13 -> 2999294 | D13: =SUM('Local Detail'!F111:F145) -> 2999294
A14: Sub-Total Local | B14: =SUM(B6:B11) -> 2825990 | C14: =SUM(C6:C13) -> 3890203 | D14: =SUM(D6:D13) -> 6716193
A15: Total Highway | B15: =B14+B5 -> 23433752 | C15: =C14+C5 -> 8598451 | D15: =D14+D5 -> 32032203
A18: Transit Fund Source | B18: Estimated Federal Commitments | C18: Estimated Non-Federal Commitments | D18: Total Proposed Commitments
A19: CTF - Comprehensive Transit Fund | B19: ='MDOT FTA Detail'!D110 -> 0 | C19: =IF(B19>0,D19-B19,'MDOT FTA Detail'!E134+'Local Detail'!E110) -> 0 | D19: ='Local Detail'!F110+'MDOT FTA Detail'!F134+'MDOT FTA Detail'!F110 -> 0
A20: Section 3038 - Over the Road Bus Program | B20: ='MDOT FTA Detail'!D111 -> 0 | C20: =D20-B20 -> 0 | D20: ='MDOT FTA Detail'!F111 -> 0
A21: Section 3045 - National Fuel Cell Technology Development Program | B21: ='MDOT FTA Detail'!D112 -> 0 | C21: =D21-B21 -> 0 | D21: ='MDOT FTA Detail'!F112 -> 0
A22: Section 5303 - Metropolitan Transportation Planning | B22: ='MDOT FTA Detail'!D113 -> 0 | C22: 0 | D22: ='MDOT FTA Detail'!F113 -> 0
A23: Section 5304 - Statewide Transportation Planning | B23: ='MDOT FTA Detail'!D114 -> 0 | C23: 0 | D23: ='MDOT FTA Detail'!F114 -> 0
A24: Section 5305 - Metropolitan and Statewide Planning | B24: ='MDOT FTA Detail'!D115 -> 0 | C24: 0 | D24: ='MDOT FTA Detail'!F115 -> 0
A25: Section 5307 - UZA Formula | B25: ='MDOT FTA Detail'!D116 -> 1213000 | C25: 3393000 | D25: ='MDOT FTA Detail'!F116 -> 4606000
A26: Section 5308 - Clean Fuels Program | B26: ='MDOT FTA Detail'!D117 -> 0 | C26: 0 | D26: ='MDOT FTA Detail'!F117 -> 0
A27: Section 5309 - Fixed Guideway Capital Investment Grant | B27: ='MDOT FTA Detail'!D118 -> 0 | C27: 0 | D27: ='MDOT FTA Detail'!F118 -> 0
A28: Section 5310 - Enhanced Mobility of Seniors and Individuals with Disabilities | B28: ='MDOT FTA Detail'!D119 -> 0 | C28: 0 | D28: ='MDOT FTA Detail'!F119 -> 0
A29: Section 5311 - Non-UZA | B29: ='MDOT FTA Detail'!D120 -> 99000 | C29: 596000 | D29: ='MDOT FTA Detail'!F120 -> 695000
A30: Section 5312 - Research, Development, Demonstration, and Deployment | B30: ='MDOT FTA Detail'!D121 -> 0 | C30: =D30-B30 -> 0 | D30: ='MDOT FTA Detail'!F121 -> 0
A31: Section 5313 - Transit Cooperative Research Program | B31: ='MDOT FTA Detail'!D122 -> 0 | C31: 0 | D31: ='MDOT FTA Detail'!F122 -> 0
A32: Section 5314 - Technical Assistance and Standards | B32: ='MDOT FTA Detail'!D123 -> 0 | C32: 0 | D32: ='MDOT FTA Detail'!F123 -> 0
A33: Section 5316 - Transit - Section 5316 - Job Access/Reverse Commute | B33: ='MDOT FTA Detail'!D124 -> 0 | C33: 0 | D33: ='MDOT FTA Detail'!F124 -> 0
A34: Section 5317 - Transit - Section 5317 - New Freedom Initiative | B34: ='MDOT FTA Detail'!D125 -> 0 | C34: 0 | D34: ='MDOT FTA Detail'!F125 -> 0
A35: Section 5320 - Alternative Transportation in Parks and Public Lands | B35: ='MDOT FTA Detail'!D126 -> 0 | C35: 0 | D35: ='MDOT FTA Detail'!F126 -> 0
A36: Section 5322 - Human Resources and Training | B36: ='MDOT FTA Detail'!D127 -> 0 | C36: =D36-B36 -> 0 | D36: ='MDOT FTA Detail'!F127 -> 0
A37: Section 5324 - Emergency Relief | B37: ='MDOT FTA Detail'!D128 -> 0 | C37: =D37-B37 -> 0 | D37: ='MDOT FTA Detail'!F128 -> 0
A38: Section 5326 - Asset Management Provisions | B38: ='MDOT FTA Detail'!D129 -> 0 | C38: =D38-B38 -> 0 | D38: ='MDOT FTA Detail'!F129 -> 0
A39: Section 5329 - Safety | B39: ='MDOT FTA Detail'!D130 -> 0 | C39: =D39-B39 -> 0 | D39: ='MDOT FTA Detail'!F130 -> 0
A40: Section 5337 - State of Good Repair Grants | B40: ='MDOT FTA Detail'!D131 -> 0 | C40: =D40-B40 -> 0 | D40: ='MDOT FTA Detail'!F131 -> 0
A41: Section 5339 - Bus and Bus Facilities | B41: ='MDOT FTA Detail'!D132 -> 640000 | C41: 160000 | D41: ='MDOT FTA Detail'!F132 -> 800000
A42: Section 5505 - University Transportation Centers Program | B42: ='MDOT FTA Detail'!D133 -> 0 | C42: 0 | D42: ='MDOT FTA Detail'!F133 -> 0
A43: Total Transit | B43: =SUM(B19:B42) -> 1952000 | C43: =SUM(C19:C42) -> 4149000 | D43: =SUM(D19:D42) -> 6101000
A44: Grand Total | B44: =B43+B15 -> 25385752 | C44: =C43+C15 -> 12747451 | D44: =D43+D15 -> 38133203

Sheet FY 2018
B1: FY 2018
A2: Highway Program | B2: Estimated Federal Commitments | C2: Estimated Non-Federal Commitments | D2: Total Proposed Commitments
A3: MDOT AC & M Program | C3: =D3 -> 0 | D3: =SUM('MDOT FTA Detail'!I135:I169)+'MDOT FTA Detail'!I171 -> 0
A4: MDOT FA Program | B4: =SUM('MDOT FTA Detail'!G6:G109) -> 68324496 | C4: =D4-B4 -> 7652190 | D4: =SUM('MDOT FTA Detail'!I6:I109) -> 75976686
A5: Sub-Total MDOT | B5: =B4 -> 68324496 | C5: =C3+C4 -> 7652190 | D5: =D3+D4 -> 75976686
A6: Local STP | B6: =SUM('Local Detail'!G78,'Local Detail'!G79,'Local Detail'!G82:G97,'Local Detail'!G72:G73,'Local Detail'!G53:G54,'Local Detail'!G24) -> 1904723 | C6: =D6-B6 -> 600880 | D6: =SUM('Local Detail'!I78,'Local Detail'!I79,'Local Detail'!I82:I97,'Local Detail'!I72:I73,'Local Detail'!I53:I54,'Local Detail'!I24) -> 2505603
A7: Local Bridge | B7: =SUM('Local Detail'!G6:G9,'Local Detail'!G13:G16,'Local Detail'!G102,'Local Detail'!G11:G11,'Local Detail'!G43) -> 0 | C7: 0 | D7: =SUM('Local Detail'!I6:I9,'Local Detail'!I13:I16,'Local Detail'!I102,'Local Detail'!I11:I11,'Local Detail'!I43) -> 0
A8: Local CMAQ | B8: =SUM('Local Detail'!G20:G23) -> 0 | C8: 0 | D8: =SUM('Local Detail'!I20:I23) -> 0
A9: Local Safety | B9: =SUM('Local Detail'!G46,'Local Detail'!G48,'Local Detail'!G80:G81) -> 0 | C9: 0 | D9: =SUM('Local Detail'!I46,'Local Detail'!I48,'Local Detail'!I80:I81) -> 0
A10: Local Equity Bonus (TEDF) | B10: =SUM('Local Detail'!G31:G38) -> 0 | C10: 0 | D10: =SUM('Local Detail'!I31:I38) -> 0
A11: Local Other FHWA | B11: =SUM('Local Detail'!G10,'Local Detail'!G12,'Local Detail'!G17:G19,'Local Detail'!G25:G30,'Local Detail'!G39:G42,'Local Detail'!G44:G45,'Local Detail'!G47,'Local Detail'!G49:G52,'Local Detail'!G55:G71,'Local Detail'!G103:G109,'Local Detail'!G98:G101,'Local Detail'!G74:G77) -> 0 | C11: 0 | D11: =SUM('Local Detail'!I10,'Local Detail'!I12,'Local Detail'!I17:I19,'Local Detail'!I25:I30,'Local Detail'!I39:I42,'Local Detail'!I44:I45,'Local Detail'!I47,'Local Detail'!I49:I52,'Local Detail'!I55:I71,'Local Detail'!I103:I109,'Local Detail'!I98:I101,'Local Detail'!I74:I77) -> 0
A12: Local AC Starts | C12: =D12 -> 0 | D12: ='Local Detail'!I147 -> 0
A13: Local Non-Federal | C13: =D13 -> 0 | D13: =SUM('Local Detail'!I111:I145) -> 0
A14: Sub-Total Local | B14: =SUM(B6:B11) -> 1904723 | C14: =SUM(C6:C13) -> 600880 | D14: =SUM(D6:D13) -> 2505603
A15: Total Highway | B15: =B14+B5 -> 70229219 | C15: =C14+C5 -> 8253070 | D15: =D14+D5 -> 78482289
A18: Transit Fund Source | B18: Estimated Federal Commitments | C18: Estimated Non-Federal Commitments | D18: Total Proposed Commitments
A19: CTF - Comprehensive Transit Fund | B19: ='MDOT FTA Detail'!G110 -> 0 | C19: =IF(B19>0,D19-B19,'MDOT FTA Detail'!H134+'Local Detail'!H110) -> 0 | D19: ='MDOT FTA Detail'!I110+'MDOT FTA Detail'!I134+'Local Detail'!I110 -> 0
A20: Section 3038 - Over the Road Bus Program | B20: ='MDOT FTA Detail'!G111 -> 0 | C20: =D20-B20 -> 0 | D20: ='MDOT FTA Detail'!I111 -> 0
A21: Section 3045 - National Fuel Cell Technology Development Program | B21: ='MDOT FTA Detail'!G112 -> 0 | C21: =D21-B21 -> 0 | D21: ='MDOT FTA Detail'!I112 -> 0
A22: Section 5303 - Metropolitan Transportation Planning | B22: ='MDOT FTA Detail'!G113 -> 0 | C22: 0 | D22: ='MDOT FTA Detail'!I113 -> 0
A23: Section 5304 - Statewide Transportation Planning | B23: ='MDOT FTA Detail'!G114 -> 0 | C23: 0 | D23: ='MDOT FTA Detail'!I114 -> 0
A24: Section 5305 - Metropolitan and Statewide Planning | B24: ='MDOT FTA Detail'!G115 -> 0 | C24: 0 | D24: ='MDOT FTA Detail'!I115 -> 0
A25: Section 5307 - UZA Formula | B25: ='MDOT FTA Detail'!G116 -> 1249000 | C25: 3494000 | D25: ='MDOT FTA Detail'!I116 -> 4743000
A26: Section 5308 - Clean Fuels Program | B26: ='MDOT FTA Detail'!G117 -> 0 | C26: 0 | D26: ='MDOT FTA Detail'!I117 -> 0
A27: Section 5309 - Fixed Guideway Capital Investment Grant | B27: ='MDOT FTA Detail'!G118 -> 0 | C27: 0 | D27: ='MDOT FTA Detail'!I118 -> 0
A28: Section 5310 - Enhanced Mobility of Seniors and Individuals with Disabilities | B28: ='MDOT FTA Detail'!G119 -> 0 | C28: 0 | D28: ='MDOT FTA Detail'!I119 -> 0
A29: Section 5311 - Non-UZA | B29: ='MDOT FTA Detail'!G120 -> 102000 | C29: 614000 | D29: ='MDOT FTA Detail'!I120 -> 716000
A30: Section 5312 - Research, Development, Demonstration, and Deployment | B30: ='MDOT FTA Detail'!G121 -> 0 | C30: =D30-B30 -> 0 | D30: ='MDOT FTA Detail'!I121 -> 0
A31: Section 5313 - Transit Cooperative Research Program | B31: ='MDOT FTA Detail'!G122 -> 0 | C31: 0 | D31: ='MDOT FTA Detail'!I122 -> 0
A32: Section 5314 - Technical Assistance and Standards | B32: ='MDOT FTA Detail'!G123 -> 0 | C32: 0 | D32: ='MDOT FTA Detail'!I123 -> 0
A33: Section 5316 - Transit - Section 5316 - Job Access/Reverse Commute | B33: ='MDOT FTA Detail'!G124 -> 0 | C33: 0 | D33: ='MDOT FTA Detail'!I124 -> 0
A34: Section 5317 - Transit - Section 5317 - New Freedom Initiative | B34: ='MDOT FTA Detail'!G125 -> 0 | C34: 0 | D34: ='MDOT FTA Detail'!I125 -> 0
A35: Section 5320 - Alternative Transportation in Parks and Public Lands | B35: ='MDOT FTA Detail'!G126 -> 0 | C35: 0 | D35: ='MDOT FTA Detail'!I126 -> 0
A36: Section 5322 - Human Resources and Training | B36: ='MDOT FTA Detail'!G127 -> 0 | C36: =D36-B36 -> 0 | D36: ='MDOT FTA Detail'!I127 -> 0
A37: Section 5324 - Emergency Relief | B37: ='MDOT FTA Detail'!G128 -> 0 | C37: =D37-B37 -> 0 | D37: ='MDOT FTA Detail'!I128 -> 0
A38: Section 5326 - Asset Management Provisions | B38: ='MDOT FTA Detail'!G129 -> 0 | C38: =D38-B38 -> 0 | D38: ='MDOT FTA Detail'!I129 -> 0
A39: Section 5329 - Safety | B39: ='MDOT FTA Detail'!G130 -> 0 | C39: =D39-B39 -> 0 | D39: ='MDOT FTA Detail'!I130 -> 0
A40: Section 5337 - State of Good Repair Grants | B40: ='MDOT FTA Detail'!G131 -> 0 | C40: =D40-B40 -> 0 | D40: ='MDOT FTA Detail'!I131 -> 0
A41: Section 5339 - Bus and Bus Facilities | B41: ='MDOT FTA Detail'!G132 -> 100000 | C41: 25000 | D41: ='MDOT FTA Detail'!I132 -> 125000
A42: Section 5505 - University Transportation Centers Program | B42: ='MDOT FTA Detail'!G133 -> 0 | C42: 0 | D42: ='MDOT FTA Detail'!I133 -> 0
A43: Total Transit | B43: =SUM(B19:B42) -> 1451000 | C43: =SUM(C19:C42) -> 4133000 | D43: =SUM(D19:D42) -> 5584000
A44: Grand Total | B44: =B43+B15 -> 71680219 | C44: =C43+C15 -> 12386070 | D44: =D43+D15 -> 84066289

Sheet FY 2019
B1: FY 2019
A2: Highway Program | B2: Estimated Federal Commitments | C2: Estimated Non-Federal Commitments | D2: Total Proposed Commitments
A3: MDOT AC & M Program | C3: =D3 -> 0 | D3: =SUM('MDOT FTA Detail'!L135:L169)+'MDOT FTA Detail'!L171 -> 0
A4: MDOT FA Program | B4: =SUM('MDOT FTA Detail'!J6:J109) -> 0 | C4: =D4-B4 -> 0 | D4: =SUM('MDOT FTA Detail'!L6:L109) -> 0
A5: Sub-Total MDOT | B5: =B4 -> 0 | C5: =C3+C4 -> 0 | D5: =D3+D4 -> 0
A6: Local STP | B6: =SUM('Local Detail'!J78,'Local Detail'!J79,'Local Detail'!J82:J97,'Local Detail'!J72:J73,'Local Detail'!J53:J54,'Local Detail'!J24) -> 1904753 | C6: =D6-B6 -> 559443 | D6: =SUM('Local Detail'!L78,'Local Detail'!L79,'Local Detail'!L82:L97,'Local Detail'!L72:L73,'Local Detail'!L53:L54,'Local Detail'!L24) -> 2464196
A7: Local Bridge | B7: =SUM('Local Detail'!J6:J9,'Local Detail'!J13:J16,'Local Detail'!J102,'Local Detail'!J11:J11,'Local Detail'!J43) -> 0 | C7: 0 | D7: =SUM('Local Detail'!L6:L9,'Local Detail'!L13:L16,'Local Detail'!L102,'Local Detail'!L11:L11,'Local Detail'!L43) -> 0
A8: Local CMAQ | B8: =SUM('Local Detail'!J20:J23) -> 0 | C8: 0 | D8: =SUM('Local Detail'!L20:L23) -> 0
A9: Local Safety | B9: =SUM('Local Detail'!J46,'Local Detail'!J48,'Local Detail'!J80:J81) -> 0 | C9: 0 | D9: =SUM('Local Detail'!L46,'Local Detail'!L48,'Local Detail'!L80:L81) -> 0
A10: Local Equity Bonus (TEDF) | B10: =SUM('Local Detail'!J31:J38) -> 0 | C10: 0 | D10: =SUM('Local Detail'!L31:L38) -> 0
A11: Local Other FHWA | B11: =SUM('Local Detail'!J10,'Local Detail'!J12,'Local Detail'!J17:J19,'Local Detail'!J25:J30,'Local Detail'!J39:J42,'Local Detail'!J44:J45,'Local Detail'!J47,'Local Detail'!J49:J52,'Local Detail'!J55:J71,'Local Detail'!J103:J109,'Local Detail'!J98:J101,'Local Detail'!J74:J77) -> 0 | C11: 0 | D11: =SUM('Local Detail'!L10,'Local Detail'!L12,'Local Detail'!L17:L19,'Local Detail'!L25:L30,'Local Detail'!L39:L42,'Local Detail'!L44:L45,'Local Detail'!L47,'Local Detail'!L49:L52,'Local Detail'!L55:L71,'Local Detail'!L103:L109,'Local Detail'!L98:L101,'Local Detail'!L74:L77) -> 0
A12: Local AC Starts | C12: =D12 -> 0 | D12: ='Local Detail'!L147 -> 0
A13: Local Non-Federal | C13: =D13 -> 0 | D13: =SUM('Local Detail'!L111:L145) -> 0
A14: Sub-Total Local | B14: =SUM(B6:B11) -> 1904753 | C14: =SUM(C6:C13) -> 559443 | D14: =SUM(D6:D13) -> 2464196
A15: Total Highway | B15: =B14+B5 -> 1904753 | C15: =C14+C5 -> 559443 | D15: =D14+D5 -> 2464196
A18: Transit Fund Source | B18: Estimated Federal Commitments | C18: Estimated Non-Federal Commitments | D18: Total Proposed Commitments
A19: CTF - Comprehensive Transit Fund | B19: ='MDOT FTA Detail'!J110 -> 0 | C19: =IF(B19>0,D19-B19,'MDOT FTA Detail'!K134+'Local Detail'!K110) -> 0 | D19: ='MDOT FTA Detail'!L110+'MDOT FTA Detail'!L134+'Local Detail'!L110 -> 0
A20: Section 3038 - Over the Road Bus Program | B20: ='MDOT FTA Detail'!J111 -> 0 | C20: =D20-B20 -> 0 | D20: ='MDOT FTA Detail'!L111 -> 0
A21: Section 3045 - National Fuel Cell Technology Development Program | B21: ='MDOT FTA Detail'!J112 -> 0 | C21: =D21-B21 -> 0 | D21: ='MDOT FTA Detail'!L112 -> 0
A22: Section 5303 - Metropolitan Transportation Planning | B22: ='MDOT FTA Detail'!J113 -> 0 | C22: 0 | D22: ='MDOT FTA Detail'!L113 -> 0
A23: Section 5304 - Statewide Transportation Planning | B23: ='MDOT FTA Detail'!J114 -> 0 | C23: 0 | D23: ='MDOT FTA Detail'!L114 -> 0
A24: Section 5305 - Metropolitan and Statewide Planning | B24: ='MDOT FTA Detail'!J115 -> 0 | C24: 0 | D24: ='MDOT FTA Detail'!L115 -> 0
A25: Section 5307 - UZA Formula | B25: ='MDOT FTA Detail'!J116 -> 1286000 | C25: 3599000 | D25: ='MDOT FTA Detail'!L116 -> 4885000
A26: Section 5308 - Clean Fuels Program | B26: ='MDOT FTA Detail'!J117 -> 0 | C26: 0 | D26: ='MDOT FTA Detail'!L117 -> 0
A27: Section 5309 - Fixed Guideway Capital Investment Grant | B27: ='MDOT FTA Detail'!J118 -> 0 | C27: 0 | D27: ='MDOT FTA Detail'!L118 -> 0
A28: Section 5310 - Enhanced Mobility of Seniors and Individuals with Disabilities | B28: ='MDOT FTA Detail'!J119 -> 0 | C28: 0 | D28: ='MDOT FTA Detail'!L119 -> 0
A29: Section 5311 - Non-UZA | B29: ='MDOT FTA Detail'!J120 -> 105000 | C29: 633000 | D29: ='MDOT FTA Detail'!L120 -> 738000
A30: Section 5312 - Research, Development, Demonstration, and Deployment | B30: ='MDOT FTA Detail'!J121 -> 0 | C30: =D30-B30 -> 0 | D30: ='MDOT FTA Detail'!L121 -> 0
A31: Section 5313 - Transit Cooperative Research Program | B31: ='MDOT FTA Detail'!J122 -> 0 | C31: 0 | D31: ='MDOT FTA Detail'!L122 -> 0
A32: Section 5314 - Technical Assistance and Standards | B32: ='MDOT FTA Detail'!J123 -> 0 | C32: 0 | D32: ='MDOT FTA Detail'!L123 -> 0
A33: Section 5316 - Transit - Section 5316 - Job Access/Reverse Commute | B33: ='MDOT FTA Detail'!J124 -> 0 | C33: 0 | D33: ='MDOT FTA Detail'!L124 -> 0
A34: Section 5317 - Transit - Section 5317 - New Freedom Initiative | B34: ='MDOT FTA Detail'!J125 -> 0 | C34: 0 | D34: ='MDOT FTA Detail'!L125 -> 0
A35: Section 5320 - Alternative Transportation in Parks and Public Lands | B35: ='MDOT FTA Detail'!J126 -> 0 | C35: 0 | D35: ='MDOT FTA Detail'!L126 -> 0
A36: Section 5322 - Human Resources and Training | B36: ='MDOT FTA Detail'!J127 -> 0 | C36: =D36-B36 -> 0 | D36: ='MDOT FTA Detail'!L127 -> 0
A37: Section 5324 - Emergency Relief | B37: ='MDOT FTA Detail'!J128 -> 0 | C37: =D37-B37 -> 0 | D37: ='MDOT FTA Detail'!L128 -> 0
A38: Section 5326 - Asset Management Provisions | B38: ='MDOT FTA Detail'!J129 -> 0 | C38: =D38-B38 -> 0 | D38: ='MDOT FTA Detail'!L129 -> 0
A39: Section 5329 - Safety | B39: ='MDOT FTA Detail'!J130 -> 0 | C39: =D39-B39 -> 0 | D39: ='MDOT FTA Detail'!L130 -> 0
A40: Section 5337 - State of Good Repair Grants | B40: ='MDOT FTA Detail'!J131 -> 0 | C40: =D40-B40 -> 0 | D40: ='MDOT FTA Detail'!L131 -> 0
A41: Section 5339 - Bus and Bus Facilities | B41: ='MDOT FTA Detail'!J132 -> 113000 | C41: 28000 | D41: ='MDOT FTA Detail'!L132 -> 141000
A42: Section 5505 - University Transportation Centers Program | B42: ='MDOT FTA Detail'!J133 -> 0 | C42: 0 | D42: ='MDOT FTA Detail'!L133 -> 0
A43: Total Transit | B43: =SUM(B19:B42) -> 1504000 | C43: =SUM(C19:C42) -> 4260000 | D43: =SUM(D19:D42) -> 5764000
A44: Grand Total | B44: =B43+B15 -> 3408753 | C44: =C43+C15 -> 4819443 | D44: =D43+D15 -> 8228196

Sheet FY 2020
B1: FY 2020
A2: Highway Program | B2: Estimated Federal Commitments | C2: Estimated Non-Federal Commitments | D2: Total Proposed Commitments
A3: MDOT AC & M Program | C3: =D3 -> 0 | D3: =SUM('MDOT FTA Detail'!O135:O169)+'MDOT FTA Detail'!O171 -> 0
A4: MDOT FA Program | B4: =SUM('MDOT FTA Detail'!M6:M109) -> 12948366 | C4: =D4-B4 -> 1438707 | D4: =SUM('MDOT FTA Detail'!O6:O109) -> 14387073
A5: Sub-Total MDOT | B5: =B3+B4 -> 12948366 | C5: =D5-B5 -> 1438707 | D5: =D3+D4 -> 14387073
A6: Local STP | B6: =SUM('Local Detail'!M78,'Local Detail'!M79,'Local Detail'!M82:M97,'Local Detail'!M72:M73,'Local Detail'!M53:M54,'Local Detail'!M24) -> 1904753 | C6: 659684 | D6: =SUM('Local Detail'!O78,'Local Detail'!O79,'Local Detail'!O82:O97,'Local Detail'!O72:O73,'Local Detail'!O53:O54,'Local Detail'!O24) -> 2564437
A7: Local Bridge | B7: =SUM('Local Detail'!M6:M9,'Local Detail'!M13:M16,'Local Detail'!M102,'Local Detail'!M11:M11,'Local Detail'!M43) -> 0 | C7: 0 | D7: =SUM('Local Detail'!O6:O9,'Local Detail'!O13:O16,'Local Detail'!O102,'Local Detail'!O11:O11,'Local Detail'!O43) -> 0
A8: Local CMAQ | B8: =SUM('Local Detail'!M20:M23) -> 0 | C8: 0 | D8: =SUM('Local Detail'!O20:O23) -> 0
A9: Local Safety | B9: =SUM('Local Detail'!M46,'Local Detail'!M48,'Local Detail'!M80:M81) -> 0 | C9: 0 | D9: =SUM('Local Detail'!O46,'Local Detail'!O48,'Local Detail'!O80:O81) -> 0
A10: Local Equity Bonus (TEDF) | B10: =SUM('Local Detail'!M31:M38) -> 0 | C10: 0 | D10: =SUM('Local Detail'!O31:O38) -> 0
A11: Local Other FHWA | B11: =SUM('Local Detail'!M10,'Local Detail'!M12,'Local Detail'!M17:M19,'Local Detail'!M25:M30,'Local Detail'!M39:M42,'Local Detail'!M44:M45,'Local Detail'!M47,'Local Detail'!M49:M52,'Local Detail'!M55:M71,'Local Detail'!M103:M109,'Local Detail'!M98:M101,'Local Detail'!M74:M77) -> 0 | C11: 0 | D11: =SUM('Local Detail'!O10,'Local Detail'!O12,'Local Detail'!O17:O19,'Local Detail'!O25:O30,'Local Detail'!O39:O42,'Local Detail'!O44:O45,'Local Detail'!O47,'Local Detail'!O49:O52,'Local Detail'!O55:O71,'Local Detail'!O103:O109,'Local Detail'!O98:O101,'Local Detail'!O74:O77) -> 0
A12: Local AC Starts | C12: =D12 -> 0 | D12: ='Local Detail'!O147 -> 0
A13: Local Non-Federal | C13: =D13 -> 0 | D13: =SUM('Local Detail'!O111:O145) -> 0
A14: Sub-Total Local | B14: =SUM(B6:B11) -> 1904753 | C14: =SUM(C6:C13) -> 659684 | D14: =SUM(D6:D13) -> 2564437
A15: Total Highway | B15: =B14+B5 -> 14853119 | C15: =C14+C5 -> 2098391 | D15: =D14+D5 -> 16951510
A18: Transit Fund Source | B18: Estimated Federal Commitments | C18: Estimated Non-Federal Commitments | D18: Total Proposed Commitments
A19: CTF - Comprehensive Transit Fund | B19: ='MDOT FTA Detail'!M110 -> 0 | C19: =IF(B19>0,D19-B19,'MDOT FTA Detail'!N134+'Local Detail'!N110) -> 0 | D19: ='MDOT FTA Detail'!O110+'MDOT FTA Detail'!O134+'Local Detail'!O110 -> 0
A20: Section 3038 - Over the Road Bus Program | B20: ='MDOT FTA Detail'!M111 -> 0 | C20: =D20-B20 -> 0 | D20: ='MDOT FTA Detail'!O111 -> 0
A21: Section 3045 - National Fuel Cell Technology Development Program | B21: ='MDOT FTA Detail'!M112 -> 0 | C21: =D21-B21 -> 0 | D21: ='MDOT FTA Detail'!O112 -> 0
A22: Section 5303 - Metropolitan Transportation Planning | B22: ='MDOT FTA Detail'!M113 -> 0 | C22: 0 | D22: ='MDOT FTA Detail'!O113 -> 0
A23: Section 5304 - Statewide Transportation Planning | B23: ='MDOT FTA Detail'!M114 -> 0 | C23: 0 | D23: ='MDOT FTA Detail'!O114 -> 0
A24: Section 5305 - Metropolitan and Statewide Planning | B24: ='MDOT FTA Detail'!M115 -> 0 | C24: 0 | D24: ='MDOT FTA Detail'!O115 -> 0
A25: Section 5307 - UZA Formula | B25: ='MDOT FTA Detail'!M116 -> 1325000 | C25: 3707000 | D25: ='MDOT FTA Detail'!O116 -> 5032000
A26: Section 5308 - Clean Fuels Program | B26: ='MDOT FTA Detail'!M117 -> 0 | C26: 0 | D26: ='MDOT FTA Detail'!O117 -> 0
A27: Section 5309 - Fixed Guideway Capital Investment Grant | B27: ='MDOT FTA Detail'!M118 -> 0 | C27: 0 | D27: ='MDOT FTA Detail'!O118 -> 0
A28: Section 5310 - Enhanced Mobility of Seniors and Individuals with Disabilities | B28: ='MDOT FTA Detail'!M119 -> 0 | C28: 0 | D28: ='MDOT FTA Detail'!O119 -> 0
A29: Section 5311 - Non-UZA | B29: ='MDOT FTA Detail'!M120 -> 108000 | C29: 652000 | D29: ='MDOT FTA Detail'!O120 -> 760000
A30: Section 5312 - Research, Development, Demonstration, and Deployment | B30: ='MDOT FTA Detail'!M121 -> 0 | C30: =D30-B30 -> 0 | D30: ='MDOT FTA Detail'!O121 -> 0
A31: Section 5313 - Transit Cooperative Research Program | B31: ='MDOT FTA Detail'!M122 -> 0 | C31: 0 | D31: ='MDOT FTA Detail'!O122 -> 0
A32: Section 5314 - Technical Assistance and Standards | B32: ='MDOT FTA Detail'!M123 -> 0 | C32: 0 | D32: ='MDOT FTA Detail'!O123 -> 0
A33: Section 5316 - Transit - Section 5316 - Job Access/Reverse Commute | B33: ='MDOT FTA Detail'!M124 -> 0 | C33: 0 | D33: ='MDOT FTA Detail'!O124 -> 0
A34: Section 5317 - Transit - Section 5317 - New Freedom Initiative | B34: ='MDOT FTA Detail'!M125 -> 0 | C34: 0 | D34: ='MDOT FTA Detail'!O125 -> 0
A35: Section 5320 - Alternative Transportation in Parks and Public Lands | B35: ='MDOT FTA Detail'!M126 -> 0 | C35: 0 | D35: ='MDOT FTA Detail'!O126 -> 0
A36: Section 5322 - Human Resources and Training | B36: ='MDOT FTA Detail'!M127 -> 0 | C36: =D36-B36 -> 0 | D36: ='MDOT FTA Detail'!O127 -> 0
A37: Section 5324 - Emergency Relief | B37: ='MDOT FTA Detail'!M128 -> 0 | C37: =D37-B37 -> 0 | D37: ='MDOT FTA Detail'!O128 -> 0
A38: Section 5326 - Asset Management Provisions | B38: ='MDOT FTA Detail'!M129 -> 0 | C38: =D38-B38 -> 0 | D38: ='MDOT FTA Detail'!O129 -> 0
A39: Section 5329 - Safety | B39: ='MDOT FTA Detail'!M130 -> 0 | C39: =D39-B39 -> 0 | D39: ='MDOT FTA Detail'!O130 -> 0
A40: Section 5337 - State of Good Repair Grants | B40: ='MDOT FTA Detail'!M131 -> 0 | C40: =D40-B40 -> 0 | D40: ='MDOT FTA Detail'!O131 -> 0
A41: Section 5339 - Bus and Bus Facilities | B41: ='MDOT FTA Detail'!M132 -> 113000 | C41: 28000 | D41: ='MDOT FTA Detail'!O132 -> 141000
A42: Section 5505 - University Transportation Centers Program | B42: ='MDOT FTA Detail'!M133 -> 0 | C42: 0 | D42: ='MDOT FTA Detail'!O133 -> 0
A43: Total Transit | B43: =SUM(B19:B42) -> 1546000 | C43: =SUM(C19:C42) -> 4387000 | D43: =SUM(D19:D42) -> 5933000
A44: Grand Total | B44: =B43+B15 -> 16399119 | C44: =C43+C15 -> 6485391 | D44: =D43+D15 -> 22884510

Sheet Constraint
A1: 2013-06-03 | B1: 2017 | F1: 2018 | J1: 2019 | N1: 2020
A2: Highway Program | B2: Estimated Federal Revenue | C2: Estimated Non-Federal Revenue | D2: Estimated Total Revenue | E2: Total Proposed Commitments | F2: Estimated Federal Revenue | G2: Estimated Non-Federal Revenue | H2: Estimated Total Revenue | I2: Total Proposed Commitments | J2: Estimated Federal Revenue | K2: Estimated Non-Federal Revenue | L2: Estimated Total Revenue | M2: Total Proposed Commitments | N2: Estimated Federal Revenue | O2: Estimated Non-Federal Revenue | P2: Estimated Total Revenue | Q2: Total Proposed Commitments
A3: MDOT AC & M Program | C3: 0 | D3: =C3 -> 0 | E3: ='FY 2017'!D3 -> 0 | G3: 0 | H3: =G3 -> 0 | I3: ='FY 2018'!D3 -> 0 | K3: 0 | L3: =K3 -> 0 | M3: ='FY 2019'!D3 -> 0 | O3: 0 | P3: 0 | Q3: ='FY 2020'!D3 -> 0
A4: MDOT FA Program | B4: 20607762 | C4: 4708248 | D4: =B4+C4 -> 25316010 | E4: ='FY 2017'!D4 -> 25316010 | F4: 68324496 | G4: 7652190 | H4: =F4+G4 -> 75976686 | I4: ='FY 2018'!D4 -> 75976686 | J4: 0 | K4: 0 | L4: =J4+K4 -> 0 | M4: ='FY 2019'!D4 -> 0 | N4: 12948366 | O4: 1438707 | P4: 14387073 | Q4: ='FY 2020'!D4 -> 14387073
A5: Sub-Total MDOT | B5: =SUM(B3:B4) -> 20607762 | C5: =SUM(C3:C4) -> 4708248 | D5: =D3+D4 -> 25316010 | E5: ='FY 2017'!D5 -> 25316010 | F5: =SUM(F4) -> 68324496 | G5: =SUM(G3:G4) -> 7652190 | H5: =H3+H4 -> 75976686 | I5: ='FY 2018'!D5 -> 75976686 | J5: =SUM(J4) -> 0 | K5: =SUM(K3:K4) -> 0 | L5: =L3+L4 -> 0 | M5: ='FY 2019'!D5 -> 0 | N5: =SUM(N4) -> 12948366 | O5: =SUM(O3:O4) -> 1438707 | P5: =P3+P4 -> 14387073 | Q5: ='FY 2020'!D5 -> 14387073
A6: Local STP | B6: 2021461 | C6: 513768 | D6: =B6+C6 -> 2535229 | E6: ='FY 2017'!D6 -> 2535229 | F6: 1904723 | G6: 600880 | H6: 2505603 | I6: ='FY 2018'!D6 -> 2505603 | J6: 1904753 | K6: 559443 | L6: 2464196 | M6: ='FY 2019'!D6 -> 2464196 | N6: 1904753 | O6: 659684 | P6: 2564437 | Q6: ='FY 2020'!D6 -> 2564437
A7: Local Bridge | B7: 0 | C7: 0 | D7: =B7+C7 -> 0 | E7: ='FY 2017'!D7 -> 0 | F7: 0 | G7: 0 | H7: 0 | I7: ='FY 2018'!D7 -> 0 | J7: 0 | K7: 0 | L7: 0 | M7: ='FY 2019'!D7 -> 0 | N7: 0 | O7: 0 | P7: 0 | Q7: ='FY 2020'!D7 -> 0
A8: Local CMAQ | B8: 0 | C8: 0 | D8: 0 | E8: ='FY 2017'!D8 -> 0 | F8: 0 | G8: 0 | H8: 0 | I8: ='FY 2018'!D8 -> 0 | J8: 0 | K8: 0 | L8: 0 | M8: ='FY 2019'!D8 -> 0 | N8: 0 | O8: 0 | P8: 0 | Q8: ='FY 2020'!D8 -> 0
A9: Local Safety | B9: 303184 | C9: 75796 | D9: 378980 | E9: ='FY 2017'!D9 -> 378980 | F9: 0 | G9: 0 | H9: 0 | I9: ='FY 2018'!D9 -> 0 | J9: 0 | K9: 0 | L9: 0 | M9: ='FY 2019'!D9 -> 0 | N9: 0 | O9: 0 | P9: 0 | Q9: ='FY 2020'!D9 -> 0
A10: Local Equity Bonus (TEDF) | B10: 0 | C10: 0 | D10: 0 | E10: ='FY 2017'!D10 -> 0 | F10: 0 | G10: 0 | H10: 0 | I10: ='FY 2018'!D10 -> 0 | J10: 0 | K10: 0 | L10: 0 | M10: ='FY 2019'!D10 -> 0 | N10: 0 | O10: 0 | P10: 0 | Q10: ='FY 2020'!D10 -> 0
A11: Local Other FHWA | B11: 501345 | C11: 301345 | D11: 802690 | E11: ='FY 2017'!D11 -> 802690 | F11: 0 | G11: 0 | H11: 0 | I11: ='FY 2018'!D11 -> 0 | J11: 0 | K11: 0 | L11: 0 | M11: ='FY 2019'!D11 -> 0 | N11: 0 | O11: 0 | P11: 0 | Q11: ='FY 2020'!D11 -> 0
A12: Local AC Starts | C12: 0 | D12: 0 | E12: ='FY 2017'!D12 -> 0 | G12: 0 | H12: 0 | I12: ='FY 2018'!D12 -> 0 | K12: 0 | L12: 0 | M12: ='FY 2019'!D12 -> 0 | O12: 0 | P12: 0 | Q12: ='FY 2020'!D12 -> 0
A13: Local Non-Federal | C13: 2999294 | D13: 2999294 | E13: ='FY 2017'!D13 -> 2999294 | G13: 0 | H13: 0 | I13: ='FY 2018'!D13 -> 0 | K13: 0 | L13: 0 | M13: ='FY 2019'!D13 -> 0 | O13: 0 | P13: 0 | Q13: ='FY 2020'!D13 -> 0
A14: Sub-Total Local | B14: =SUM(B6:B11) -> 2825990 | C14: =SUM(C6:C13) -> 3890203 | D14: =SUM(D6:D13) -> 6716193 | E14: ='FY 2017'!D14 -> 6716193 | F14: =SUM(F6:F11) -> 1904723 | G14: =SUM(G6:G13) -> 600880 | H14: =SUM(H6:H13) -> 2505603 | I14: ='FY 2018'!D14 -> 2505603 | J14: =SUM(J6:J11) -> 1904753 | K14: =SUM(K6:K13) -> 559443 | L14: =SUM(L6:L13) -> 2464196 | M14: ='FY 2019'!D14 -> 2464196 | N14: =SUM(N6:N11) -> 1904753 | O14: =SUM(O6:O13) -> 659684 | P14: =SUM(P6:P13) -> 2564437 | Q14: ='FY 2020'!D14 -> 2564437
A15: Total Highway | B15: =B14+B5 -> 23433752 | C15: =C14+C5 -> 8598451 | D15: =D14+D5 -> 32032203 | E15: ='FY 2017'!D15 -> 32032203 | F15: =F14+F5 -> 70229219 | G15: =G14+G5 -> 8253070 | H15: =H14+H5 -> 78482289 | I15: ='FY 2018'!D15 -> 78482289 | J15: =J14+J5 -> 1904753 | K15: =K14+K5 -> 559443 | L15: =L14+L5 -> 2464196 | M15: ='FY 2019'!D15 -> 2464196 | N15: =N14+N5 -> 14853119 | O15: =O14+O5 -> 2098391 | P15: =P14+P5 -> 16951510 | Q15: ='FY 2020'!D15 -> 16951510
A18: Transit Fund Source | B18: Estimated Federal Revenue | C18: Estimated Non-Federal Revenue | D18: Estimated Total Revenue | E18: Total Proposed Commitments | F18: Estimated Federal Revenue | G18: Estimated Non-Federal Revenue | H18: Estimated Total Revenue | I18: Total Proposed Commitments | J18: Estimated Federal Revenue | K18: Estimated Non-Federal Revenue | L18: Estimated Total Revenue | M18: Total Proposed Commitments | N18: Estimated Federal Revenue | O18: Estimated Non-Federal Revenue | P18: Estimated Total Revenue | Q18: Total Proposed Commitments
A19: CTF - Comprehensive Transit Fund | B19: 0 | C19: 0 | D19: =B19+C19 -> 0 | E19: ='FY 2017'!D19 -> 0 | F19: 0 | G19: 0 | H19: =F19+G19 -> 0 | I19: ='FY 2018'!D19 -> 0 | J19: 0 | K19: 0 | L19: 0 | M19: ='FY 2019'!D19 -> 0 | N19: 0 | O19: 0 | P19: 0 | Q19: ='FY 2020'!D19 -> 0
A20: Section 3038 - Over the Road Bus Program | B20: 0 | C20: 0 | D20: =B20+C20 -> 0 | E20: ='FY 2017'!D20 -> 0 | F20: 0 | G20: 0 | H20: =F20+G20 -> 0 | I20: ='FY 2018'!D20 -> 0 | J20: 0 | K20: 0 | L20: 0 | M20: ='FY 2019'!D20 -> 0 | N20: 0 | O20: 0 | P20: 0 | Q20: ='FY 2020'!D20 -> 0
A21: Section 3045 - National Fuel Cell Technology Development Program | B21: 0 | C21: 0 | D21: =B21+C21 -> 0 | E21: ='FY 2017'!D21 -> 0 | F21: 0 | G21: 0 | H21: =F21+G21 -> 0 | I21: ='FY 2018'!D21 -> 0 | J21: 0 | K21: 0 | L21: 0 | M21: ='FY 2019'!D21 -> 0 | N21: 0 | O21: 0 | P21: 0 | Q21: ='FY 2020'!D21 -> 0
A22: Section 5303 - Metropolitan Transportation Planning | B22: 0 | C22: 0 | D22: 0 | E22: ='FY 2017'!D22 -> 0 | F22: 0 | G22: 0 | H22: 0 | I22: ='FY 2018'!D22 -> 0 | J22: 0 | K22: 0 | L22: 0 | M22: ='FY 2019'!D22 -> 0 | N22: 0 | O22: 0 | P22: 0 | Q22: ='FY 2020'!D22 -> 0
A23: Section 5304 - Statewide Transportation Planning | B23: 0 | C23: 0 | D23: 0 | E23: ='FY 2017'!D23 -> 0 | F23: 0 | G23: 0 | H23: 0 | I23: ='FY 2018'!D23 -> 0 | J23: 0 | K23: 0 | L23: 0 | M23: ='FY 2019'!D23 -> 0 | N23: 0 | O23: 0 | P23: 0 | Q23: ='FY 2020'!D23 -> 0
A24: Section 5305 - Metropolitan and Statewide Planning | B24: 0 | C24: 0 | D24: 0 | E24: ='FY 2017'!D24 -> 0 | F24: 0 | G24: 0 | H24: 0 | I24: ='FY 2018'!D24 -> 0 | J24: 0 | K24: 0 | L24: 0 | M24: ='FY 2019'!D24 -> 0 | N24: 0 | O24: 0 | P24: 0 | Q24: ='FY 2020'!D24 -> 0
A25: Section 5307 - UZA Formula | B25: 1213000 | C25: 3393000 | D25: 4606000 | E25: ='FY 2017'!D25 -> 4606000 | F25: 1249000 | G25: 3494000 | H25: 4743000 | I25: ='FY 2018'!D25 -> 4743000 | J25: 1286000 | K25: 3599000 | L25: 4885000 | M25: ='FY 2019'!D25 -> 4885000 | N25: 1325000 | O25: 3707000 | P25: 5032000 | Q25: ='FY 2020'!D25 -> 5032000
A26: Section 5308 - Clean Fuels Program | B26: 0 | C26: 0 | D26: 0 | E26: ='FY 2017'!D26 -> 0 | F26: 0 | G26: 0 | H26: 0 | I26: ='FY 2018'!D26 -> 0 | J26: 0 | K26: 0 | L26: 0 | M26: ='FY 2019'!D26 -> 0 | N26: 0 | O26: 0 | P26: 0 | Q26: ='FY 2020'!D26 -> 0
A27: Section 5309 - Capital Bus and Capital New Starts | B27: 0 | C27: 0 | D27: 0 | E27: ='FY 2017'!D27 -> 0 | F27: 0 | G27: 0 | H27: 0 | I27: ='FY 2018'!D27 -> 0 | J27: 0 | K27: 0 | L27: 0 | M27: ='FY 2019'!D27 -> 0 | N27: 0 | O27: 0 | P27: 0 | Q27: ='FY 2020'!D27 -> 0
A28: Section 5310 - Elderly & Disabled | B28: 0 | C28: 0 | D28: 0 | E28: ='FY 2017'!D28 -> 0 | F28: 0 | G28: 0 | H28: 0 | I28: ='FY 2018'!D28 -> 0 | J28: 0 | K28: 0 | L28: 0 | M28: ='FY 2019'!D28 -> 0 | N28: 0 | O28: 0 | P28: 0 | Q28: ='FY 2020'!D28 -> 0
A29: Section 5311 - Non-UZA | B29: 99000 | C29: 596000 | D29: 695000 | E29: ='FY 2017'!D29 -> 695000 | F29: 102000 | G29: 614000 | H29: 716000 | I29: ='FY 2018'!D29 -> 716000 | J29: 105000 | K29: 633000 | L29: 738000 | M29: ='FY 2019'!D29 -> 738000 | N29: 108000 | O29: 652000 | P29: 760000 | Q29: ='FY 2020'!D29 -> 760000
A30: Section 5312 - Research, Development, Demonstration, and Deployment | B30: 0 | C30: 0 | D30: =B30+C30 -> 0 | E30: ='FY 2017'!D30 -> 0 | F30: 0 | G30: 0 | H30: =F30+G30 -> 0 | I30: ='FY 2018'!D30 -> 0 | J30: 0 | K30: 0 | L30: 0 | M30: ='FY 2019'!D30 -> 0 | N30: 0 | O30: 0 | P30: 0 | Q30: ='FY 2020'!D30 -> 0
A31: Section 5313 - Transit Cooperative Research Program | B31: 0 | C31: 0 | D31: 0 | E31: ='FY 2017'!D31 -> 0 | F31: 0 | G31: 0 | H31: 0 | I31: ='FY 2018'!D31 -> 0 | J31: 0 | K31: 0 | L31: 0 | M31: ='FY 2019'!D31 -> 0 | N31: 0 | O31: 0 | P31: 0 | Q31: ='FY 2020'!D31 -> 0
A32: Section 5314 - National Research and Technology Program | B32: 0 | C32: 0 | D32: 0 | E32: ='FY 2017'!D32 -> 0 | F32: 0 | G32: 0 | H32: 0 | I32: ='FY 2018'!D32 -> 0 | J32: 0 | K32: 0 | L32: 0 | M32: ='FY 2019'!D32 -> 0 | N32: 0 | O32: 0 | P32: 0 | Q32: ='FY 2020'!D32 -> 0
A33: Section 5316 - Job Access/Reverse Commute | B33: 0 | C33: 0 | D33: 0 | E33: ='FY 2017'!D33 -> 0 | F33: 0 | G33: 0 | H33: 0 | I33: ='FY 2018'!D33 -> 0 | J33: 0 | K33: 0 | L33: 0 | M33: ='FY 2019'!D33 -> 0 | N33: 0 | O33: 0 | P33: 0 | Q33: ='FY 2020'!D33 -> 0
A34: Section 5317 - New Freedom Initiative | B34: 0 | C34: 0 | D34: 0 | E34: ='FY 2017'!D34 -> 0 | F34: 0 | G34: 0 | H34: 0 | I34: ='FY 2018'!D34 -> 0 | J34: 0 | K34: 0 | L34: 0 | M34: ='FY 2019'!D34 -> 0 | N34: 0 | O34: 0 | P34: 0 | Q34: ='FY 2020'!D34 -> 0
A35: Section 5320 - Alternative Transportation in Parks and Public Lands | B35: 0 | C35: 0 | D35: 0 | E35: ='FY 2017'!D35 -> 0 | F35: 0 | G35: 0 | H35: 0 | I35: ='FY 2018'!D35 -> 0 | J35: 0 | K35: 0 | L35: 0 | M35: ='FY 2019'!D35 -> 0 | N35: 0 | O35: 0 | P35: 0 | Q35: ='FY 2020'!D35 -> 0
A36: Section 5322 - Human Resources and Training | B36: 0 | C36: 0 | D36: =B36+C36 -> 0 | E36: ='FY 2017'!D36 -> 0 | F36: 0 | G36: 0 | H36: =F36+G36 -> 0 | I36: ='FY 2018'!D36 -> 0 | J36: 0 | K36: 0 | L36: 0 | M36: ='FY 2019'!D36 -> 0 | N36: 0 | O36: 0 | P36: 0 | Q36: ='FY 2020'!D36 -> 0
A37: Section 5324 - Emergency Relief | B37: 0 | C37: 0 | D37: =B37+C37 -> 0 | E37: ='FY 2017'!D37 -> 0 | F37: 0 | G37: 0 | H37: =F37+G37 -> 0 | I37: ='FY 2018'!D37 -> 0 | J37: 0 | K37: 0 | L37: 0 | M37: ='FY 2019'!D37 -> 0 | N37: 0 | O37: 0 | P37: 0 | Q37: ='FY 2020'!D37 -> 0
A38: Section 5326 - Asset Management Provisions | B38: 0 | C38: 0 | D38: =B38+C38 -> 0 | E38: ='FY 2017'!D38 -> 0 | F38: 0 | G38: 0 | H38: =F38+G38 -> 0 | I38: ='FY 2018'!D38 -> 0 | J38: 0 | K38: 0 | L38: 0 | M38: ='FY 2019'!D38 -> 0 | N38: 0 | O38: 0 | P38: 0 | Q38: ='FY 2020'!D38 -> 0
A39: Section 5329 - Safety | B39: 0 | C39: 0 | D39: =B39+C39 -> 0 | E39: ='FY 2017'!D39 -> 0 | F39: 0 | G39: 0 | H39: =F39+G39 -> 0 | I39: ='FY 2018'!D39 -> 0 | J39: 0 | K39: 0 | L39: 0 | M39: ='FY 2019'!D39 -> 0 | N39: 0 | O39: 0 | P39: 0 | Q39: ='FY 2020'!D39 -> 0
A40: Section 5337 - State of Good Repair Grants | B40: 0 | C40: 0 | D40: =B40+C40 -> 0 | E40: ='FY 2017'!D40 -> 0 | F40: 0 | G40: 0 | H40: =F40+G40 -> 0 | I40: ='FY 2018'!D40 -> 0 | J40: 0 | K40: 0 | L40: 0 | M40: ='FY 2019'!D40 -> 0 | N40: 0 | O40: 0 | P40: 0 | Q40: ='FY 2020'!D40 -> 0
A41: Section 5339 - Bus and Bus Facilities | B41: 640000 | C41: 160000 | D41: 800000 | E41: ='FY 2017'!D41 -> 800000 | F41: 100000 | G41: 25000 | H41: 125000 | I41: ='FY 2018'!D41 -> 125000 | J41: 113000 | K41: 28000 | L41: 141000 | M41: ='FY 2019'!D41 -> 141000 | N41: 113000 | O41: 28000 | P41: 141000 | Q41: ='FY 2020'!D41 -> 141000
A42: Section 5505 - University Transportation Centers Program | B42: 0 | C42: 0 | D42: 0 | E42: ='FY 2017'!D42 -> 0 | F42: 0 | G42: 0 | H42: 0 | I42: ='FY 2018'!D42 -> 0 | J42: 0 | K42: 0 | L42: 0 | M42: ='FY 2019'!D42 -> 0 | N42: 0 | O42: 0 | P42: 0 | Q42: ='FY 2020'!D42 -> 0
A43: Total Transit | B43: =SUM(B19:B42) -> 1952000 | C43: =SUM(C19:C42) -> 4149000 | D43: =SUM(D19:D42) -> 6101000 | E43: ='FY 2017'!D43 -> 6101000 | F43: =SUM(F19:F42) -> 1451000 | G43: =SUM(G19:G42) -> 4133000 | H43: =SUM(H19:H42) -> 5584000 | I43: ='FY 2018'!D43 -> 5584000 | J43: =SUM(J19:J42) -> 1504000 | K43: =SUM(K19:K42) -> 4260000 | L43: =SUM(L19:L42) -> 5764000 | M43: ='FY 2019'!D43 -> 5764000 | N43: =SUM(N19:N42) -> 1546000 | O43: =SUM(O19:O42) -> 4387000 | P43: =SUM(P19:P42) -> 5933000 | Q43: ='FY 2020'!D43 -> 5933000
A44: Grand Total | B44: =B43+B15 -> 25385752 | C44: =C43+C15 -> 12747451 | D44: =D43+D15 -> 38133203 | E44: ='FY 2017'!D44 -> 38133203 | F44: =F43+F15 -> 71680219 | G44: =G43+G15 -> 12386070 | H44: =H43+H15 -> 84066289 | I44: ='FY 2018'!D44 -> 84066289 | J44: =J43+J15 -> 3408753 | K44: =K43+K15 -> 4819443 | L44: =L43+L15 -> 8228196 | M44: ='FY 2019'!D44 -> 8228196 | N44: =N43+N15 -> 16399119 | O44: =O43+O15 -> 6485391 | P44: =P43+P15 -> 22884510 | Q44: ='FY 2020'!D44 -> 22884510

Sheet FHWA GPA
A1: GPA Projects
A3: Required Fields | Z3: Optional Fields
A4: Fiscal Year | B4: County | C4: Respon-sible Agency | D4: Project Name | E4: Limits | F4: Length | G4: Primary Work Type | H4: Project Description | I4: Phase | J4: Advance Construct | K4: Federal Cost ($1000s) | L4: Federal Fund Source | M4: State Cost ($1000s) | N4: State Fund Source | O4: Local Cost ($1000s) | P4: Local Fund Source | Q4: Total Cost ($1000s) | R4: MDOT Job No. | S4: Local ID No. | T4: MPO/ Rural Approval Date | U4: Amend-ment Type | V4: Air Quality | W4: Comments | X4: Total Project Cost ($1000s) | Y4: x | Z4: Local Priority | AA4: EJ | AB4: Federal Approval Date | AC4: Capped Federal Cost ($1000s) | AD4: Date Obligated | AE4: Amount Obligated ($1000s) | AF4: Let Date | AG4: GPA

Sheet FTA GPA
A1: GPA Projects
A3: Required Fields | Z3: Optional Fields
A4: Fiscal Year | B4: County | C4: Respon-sible Agency | D4: Project Name | E4: Limits | F4: Length | G4: Primary Work Type | H4: Project Description | I4: Phase | J4: Advance Construct | K4: Federal Cost ($1000s) | L4: Federal Fund Source | M4: State Cost ($1000s) | N4: State Fund Source | O4: Local Cost ($1000s) | P4: Local Fund Source | Q4: Total Cost ($1000s) | R4: MDOT Job No. | S4: Local ID No. | T4: MPO/ Rural Approval Date | U4: Amend-ment Type | V4: Air Quality | W4: Comments | X4: Total Project Cost ($1000s) | Y4: x | Z4: Local Priority | AA4: EJ | AB4: Federal Approval Date | AC4: Capped Federal Cost ($1000s) | AD4: Date Obligated | AE4: Amount Obligated ($1000s) | AF4: Let Date

Sheet FTA Candidate Projects
A1: GPA Projects
A3: Required Fields | Z3: Optional Fields
A4: Fiscal Year | B4: County | C4: Respon-sible Agency | D4: Project Name | E4: Limits | F4: Length | G4: Primary Work Type | H4: Project Description | I4: Phase | J4: Advance Construct | K4: Federal Cost ($1000s) | L4: Federal Fund Source | M4: State Cost ($1000s) | N4: State Fund Source | O4: Local Cost ($1000s) | P4: Local Fund Source | Q4: Total Cost ($1000s) | R4: MDOT Job No. | S4: Local ID No. | T4: MPO/ Rural Approval Date | U4: Amend-ment Type | V4: Air Quality | W4: Comments | X4: Total Project Cost ($1000s) | Y4: x | Z4: Local Priority | AA4: EJ | AB4: Federal Approval Date | AC4: Capped Federal Cost ($1000s) | AD4: Date Obligated | AE4: Amount Obligated ($1000s) | AF4: Let Date

Sheet Illustrative
A1: Illustrative Projects
A3: Required Fields | Z3: Optional Fields
A4: Fiscal Year | B4: County | C4: Respon-sible Agency | D4: Project Name | E4: Limits | F4: Length | G4: Primary Work Type | H4: Project Description | I4: Phase | J4: Advance Construct | K4: Federal Cost ($1000s) | L4: Federal Fund Source | M4: State Cost ($1000s) | N4: State Fund Source | O4: Local Cost ($1000s) | P4: Local Fund Source | Q4: Total Cost ($1000s) | R4: MDOT Job No. | S4: Local ID No. | T4: MPO/ Rural Approval Date | U4: Amend-ment Type | V4: Air Quality | W4: Comments | X4: Total Project Cost ($1000s) | Y4: x | Z4: Local Priority | AA4: EJ | AB4: Federal Approval Date | AC4: Capped Federal Cost ($1000s) | AD4: Date Obligated | AE4: Amount Obligated ($1000s) | AF4: Let Date

Sheet NonFHWA_NonFTA
A1: Non FHWA/FTA Projects FY 2014 - 2017 (Optional)
A2: 2013-01-02
A3: Required Fields | Z3: Optional Fields
A4: Fiscal Year | B4: County | C4: Respon-sible Agency | D4: Project Name | E4: Limits | F4: Length | G4: Primary Work Type | H4: Project Description | I4: Phase | J4: Advance Construct | K4: Federal Cost ($1000s) | L4: Federal Fund Source | M4: State Cost ($1000s) | N4: State Fund Source | O4: Local Cost ($1000s) | P4: Local Fund Source | Q4: Total Cost ($1000s) | R4: MDOT Job No. | S4: Local ID No. | T4: MPO/ Rural Approval Date | U4: Amend-ment Type | V4: Air Quality | W4: Comments | X4: Total Project Cost ($1000s) | Y4: x | Z4: Local Priority | AA4: EJ | AB4: Federal Approval Date | AC4: Capped Federal Cost ($1000s) | AD4: Date Obligated | AE4: Amount Obligated ($1000s) | AF4: Let Date

Sheet MDOT FTA Detail
B1: E-File v. 5.1 (01.15.15)
D3: 2017 | G3: 2018 | J3: 2019 | M3: 2020
A4: Fund | B4: Fund Sources | C4: MDOT | D4: Proposed Federal Commitments | E4: Proposed Non-Federal Commitments | F4: Total Proposed Commitments | G4: Proposed Federal Commitments | H4: Proposed Non-Federal Commitments | I4: Total Proposed Commitments | J4: Proposed Federal Commitments | K4: Proposed Non-Federal Commitments | L4: Total Proposed Commitments | M4: Proposed Federal Commitments | N4: Proposed Non-Federal Commitments | O4: Total Proposed Commitments
A6: BHI | B6: Bridge Rehabilitation - Prior 1991 - Interstate | C6: MDOT FA | D6: =SUMPRODUCT((Projects!$A$5:$A$2410='MDOT FTA Detail'!$D$3)*(Projects!$C$5:$C$2410='MDOT FTA Detail'!$C$4)*(Projects!$L$5:$L$2410='MDOT FTA Detail'!$A6)*(Projects!$J$5:$J$2410<>'MDOT FTA Detail'!$A$171)*(Projects!$K$5:K$2410)) -> 0 | E6: =F6-D6 -> 0 | F6: =SUMPRODUCT((Projects!$A$5:$A$2410='MDOT FTA Detail'!$D$3)*(Projects!$C$5:$C$2410='MDOT FTA Detail'!$C$4)*(Projects!$L$5:$L$2410='MDOT FTA Detail'!$A6)*(Projects!$J$5:$J$2410<>'MDOT FTA Detail'!$A$171)*(Projects!$Q$5:Q$2410)) -> 0 | G6: =SUMPRODUCT((Projects!$A$5:$A$2410='MDOT FTA Detail'!$G$3)*(Projects!$C$5:$C$2410='MDOT FTA Detail'!$C$4)*(Projects!$L$5:$L$2410='MDOT FTA Detail'!$A6)*(Projects!$J$5:$J$2410<>'MDOT FTA Detail'!$A$171)*(Projects!$K$5:K$2410)) -> 0 | H6: =I6-G6 -> 0 | I6: =SUMPRODUCT((Projects!$A$5:$A$2410='MDOT FTA Detail'!$G$3)*(Projects!$C$5:$C$2410='MDOT FTA Detail'!$C$4)*(Projects!$L$5:$L$2410='MDOT FTA Detail'!$A6)*(Projects!$J$5:$J$2410<>'MDOT FTA Detail'!$A$171)*(Projects!$Q$5:Q$2410)) -> 0 | J6: =SUMPRODUCT((Projects!$A$5:$A$2410='MDOT FTA Detail'!$J$3)*(Projects!$C$5:$C$2410='MDOT FTA Detail'!$C$4)*(Projects!$L$5:$L$2410='MDOT FTA Detail'!$A6)*(Projects!$J$5:$J$2410<>'MDOT FTA Detail'!$A$171)*(Projects!$K$5:$K$2410)) -> 0 | K6: =L6-J6 -> 0 | L6: =SUMPRODUCT((Projects!$A$5:$A$2410='MDOT FTA Detail'!$J$3)*(Projects!$C$5:$C$2410='MDOT FTA Detail'!$C$4)*(Projects!$L$5:$L$2410='MDOT FTA Detail'!$A6)*(Projects!$J$5:$J$2410<>'MDOT FTA Detail'!$A$171)*(Projects!$Q$5:$Q$2410)) -> 0 | M6: =SUMPRODUCT((Projects!$A$5:$A$2410='MDOT FTA Detail'!$M$3)*(Projects!$C$5:$C$2410='MDOT FTA Detail'!$C$4)*(Projects!$L$5:$L$2410='MDOT FTA Detail'!$A6)*(Projects!$J$5:$J$2410<>'MDOT FTA Detail'!$A$171)*(Projects!$K$5:$K$2410)) -> 0 | N6: =O6-M6 -> 0 | O6: =SUMPRODUCT((Projects!$A$5:$A$2410='MDOT FTA Detail'!$M$3)*(Projects!$C$5:$C$2410='MDOT FTA Detail'!$C$4)*(Projects!$L$5:$L$2410='MDOT FTA Detail'!$A6)*(Projects!$J$5:$J$2410<>'MDOT FTA Detail'!$A$171)*(Projects!$Q$5:$Q$2410)) -> 0
A7: BHN | B7: Bridge Rehabilitation - National Highway System (NHS) | C7: MDOT FA | D7: =SUMPRODUCT((Projects!$A$5:$A$2410='MDOT FTA Detail'!$D$3)*(Projects!$C$5:$C$2410='MDOT FTA Detail'!$C$4)*(Projects!$L$5:$L$2410='MDOT FTA Detail'!$A7)*(Projects!$J$5:$J$2410<>'MDOT FTA Detail'!$A$171)*(Projects!$K$5:K$2410)) -> 0 | E7: 0 | F7: =SUMPRODUCT((Projects!$A$5:$A$2410='MDOT FTA Detail'!$D$3)*(Projects!$C$5:$C$2410='MDOT FTA Detail'!$C$4)*(Projects!$L$5:$L$2410='MDOT FTA Detail'!$A7)*(Projects!$J$5:$J$2410<>'MDOT FTA Detail'!$A$171)*(Projects!$Q$5:Q$2410)) -> 0 | G7: =SUMPRODUCT((Projects!$A$5:$A$2410='MDOT FTA Detail'!$G$3)*(Projects!$C$5:$C$2410='MDOT FTA Detail'!$C$4)*(Projects!$L$5:$L$2410='MDOT FTA Detail'!$A7)*(Projects!$J$5:$J$2410<>'MDOT FTA Detail'!$A$171)*(Projects!$K$5:K$2410)) -> 0 | H7: 0 | I7: =SUMPRODUCT((Projects!$A$5:$A$2410='MDOT FTA Detail'!$G$3)*(Projects!$C$5:$C$2410='MDOT FTA Detail'!$C$4)*(Projects!$L$5:$L$2410='MDOT FTA Detail'!$A7)*(Projects!$J$5:$J$2410<>'MDOT FTA Detail'!$A$171)*(Projects!$Q$5:Q$2410)) -> 0 | J7: =SUMPRODUCT((Projects!$A$5:$A$2410='MDOT FTA Detail'!$J$3)*(Projects!$C$5:$C$2410='MDOT FTA Detail'!$C$4)*(Projects!$L$5:$L$2410='MDOT FTA Detail'!$A7)*(Projects!$J$5:$J$2410<>'MDOT FTA Detail'!$A$171)*(Projects!$K$5:$K$2410)) -> 0 | K7: 0 | L7: =SUMPRODUCT((Projects!$A$5:$A$2410='MDOT FTA Detail'!$J$3)*(Projects!$C$5:$C$2410='MDOT FTA Detail'!$C$4)*(Projects!$L$5:$L$2410='MDOT FTA Detail'!$A7)*(Projects!$J$5:$J$2410<>'MDOT FTA Detail'!$A$171)*(Projects!$Q$5:$Q$2410)) -> 0 | M7: =SUMPRODUCT((Projects!$A$5:$A$2410='MDOT FTA Detail'!$M$3)*(Projects!$C$5:$C$2410='MDOT FTA Detail'!$C$4)*(Projects!$L$5:$L$2410='MDOT FTA Detail'!$A7)*(Projects!$J$5:$J$2410<>'MDOT FTA Detail'!$A$171)*(Projects!$K$5:$K$2410)) -> 0 | N7: 0 | O7: =SUMPRODUCT((Projects!$A$5:$A$2410='MDOT FTA Detail'!$M$3)*(Projects!$C$5:$C$2410='MDOT FTA Detail'!$C$4)*(Projects!$L$5:$L$2410='MDOT FTA Detail'!$A7)*(Projects!$J$5:$J$2410<>'MDOT FTA Detail'!$A$171)*(Projects!$Q$5:$Q$2410)) -> 0
A8: BHO | B8: Bridge Rehabilitation - Not Classified, Off System | C8: MDOT FA | D8: =SUMPRODUCT((Projects!$A$5:$A$2410='MDOT FTA Detail'!$D$3)*(Projects!$C$5:$C$2410='MDOT FTA Detail'!$C$4)*(Projects!$L$5:$L$2410='MDOT FTA Detail'!$A8)*(Projects!$J$5:$J$2410<>'MDOT FTA Detail'!$A$171)*(Projects!$K$5:K$2410)) -> 0 | E8: 0 | F8: =SUMPRODUCT((Projects!$A$5:$A$2410='MDOT FTA Detail'!$D$3)*(Projects!$C$5:$C$2410='MDOT FTA Detail'!$C$4)*(Projects!$L$5:$L$2410='MDOT FTA Detail'!$A8)*(Projects!$J$5:$J$2410<>'MDOT FTA Detail'!$A$171)*(Projects!$Q$5:Q$2410)) -> 0 | G8: =SUMPRODUCT((Projects!$A$5:$A$2410='MDOT FTA Detail'!$G$3)*(Projects!$C$5:$C$2410='MDOT FTA Detail'!$C$4)*(Projects!$L$5:$L$2410='MDOT FTA Detail'!$A8)*(Projects!$J$5:$J$2410<>'MDOT FTA Detail'!$A$171)*(Projects!$K$5:K$2410)) -> 0 | H8: 0 | I8: =SUMPRODUCT((Projects!$A$5:$A$2410='MDOT FTA Detail'!$G$3)*(Projects!$C$5:$C$2410='MDOT FTA Detail'!$C$4)*(Projects!$L$5:$L$2410='MDOT FTA Detail'!$A8)*(Projects!$J$5:$J$2410<>'MDOT FTA Detail'!$A$171)*(Projects!$Q$5:Q$2410)) -> 0 | J8: =SUMPRODUCT((Projects!$A$5:$A$2410='MDOT FTA Detail'!$J$3)*(Projects!$C$5:$C$2410='MDOT FTA Detail'!$C$4)*(Projects!$L$5:$L$2410='MDOT FTA Detail'!$A8)*(Projects!$J$5:$J$2410<>'MDOT FTA Detail'!$A$171)*(Projects!$K$5:$K$2410)) -> 0 | K8: 0 | L8: =SUMPRODUCT((Projects!$A$5:$A$2410='MDOT FTA Detail'!$J$3)*(Projects!$C$5:$C$2410='MDOT FTA Detail'!$C$4)*(Projects!$L$5:$L$2410='MDOT FTA Detail'!$A8)*(Projects!$J$5:$J$2410<>'MDOT FTA Detail'!$A$171)*(Projects!$Q$5:$Q$2410)) -> 0 | M8: =SUMPRODUCT((Projects!$A$5:$A$2410='MDOT FTA Detail'!$M$3)*(Projects!$C$5:$C$2410='MDOT FTA Detail'!$C$4)*(Projects!$L$5:$L$2410='MDOT FTA Detail'!$A8)*(Projects!$J$5:$J$2410<>'MDOT FTA Detail'!$A$171)*(Projects!$K$5:$K$2410)) -> 0 | N8: 0 | O8: =SUMPRODUCT((Projects!$A$5:$A$2410='MDOT FTA Detail'!$M$3)*(Projects!$C$5:$C$2410='MDOT FTA Detail'!$C$4)*(Projects!$L$5:$L$2410='MDOT FTA Detail'!$A8)*(Projects!$J$5:$J$2410<>'MDOT FTA Detail'!$A$171)*(Projects!$Q$5:$Q$2410)) -> 0
A9: BHT | B9: Bridge Rehabilitation - Surface Transportation Program (STP) | C9: MDOT FA | D9: =SUMPRODUCT((Projects!$A$5:$A$2410='MDOT FTA Detail'!$D$3)*(Projects!$C$5:$C$2410='MDOT FTA Detail'!$C$4)*(Projects!$L$5:$L$2410='MDOT FTA Detail'!$A9)*(Projects!$J$5:$J$2410<>'MDOT FTA Detail'!$A$171)*(Projects!$K$5:K$2410)) -> 0 | E9: 0 | F9: =SUMPRODUCT((Projects!$A$5:$A$2410='MDOT FTA Detail'!$D$3)*(Projects!$C$5:$C$2410='MDOT FTA Detail'!$C$4)*(Projects!$L$5:$L$2410='MDOT FTA Detail'!$A9)*(Projects!$J$5:$J$2410<>'MDOT FTA Detail'!$A$171)*(Projects!$Q$5:Q$2410)) -> 0 | G9: =SUMPRODUCT((Projects!$A$5:$A$2410='MDOT FTA Detail'!$G$3)*(Projects!$C$5:$C$2410='MDOT FTA Detail'!$C$4)*(Projects!$L$5:$L$2410='MDOT FTA Detail'!$A9)*(Projects!$J$5:$J$2410<>'MDOT FTA Detail'!$A$171)*(Projects!$K$5:K$2410)) -> 0 | H9: 0 | I9: =SUMPRODUCT((Projects!$A$5:$A$2410='MDOT FTA Detail'!$G$3)*(Projects!$C$5:$C$2410='MDOT FTA Detail'!$C$4)*(Projects!$L$5:$L$2410='MDOT FTA Detail'!$A9)*(Projects!$J$5:$J$2410<>'MDOT FTA Detail'!$A$171)*(Projects!$Q$5:Q$2410)) -> 0 | J9: =SUMPRODUCT((Projects!$A$5:$A$2410='MDOT FTA Detail'!$J$3)*(Projects!$C$5:$C$2410='MDOT FTA Detail'!$C$4)*(Projects!$L$5:$L$2410='MDOT FTA Detail'!$A9)*(Projects!$J$5:$J$2410<>'MDOT FTA Detail'!$A$171)*(Projects!$K$5:$K$2410)) -> 0 | K9: 0 | L9: =SUMPRODUCT((Projects!$A$5:$A$2410='MDOT FTA Detail'!$J$3)*(Projects!$C$5:$C$2410='MDOT FTA Detail'!$C$4)*(Projects!$L$5:$L$2410='MDOT FTA Detail'!$A9)*(Projects!$J$5:$J$2410<>'MDOT FTA Detail'!$A$171)*(Projects!$Q$5:$Q$2410)) -> 0 | M9: =SUMPRODUCT((Projects!$A$5:$A$2410='MDOT FTA Detail'!$M$3)*(Projects!$C$5:$C$2410='MDOT FTA Detail'!$C$4)*(Projects!$L$5:$L$2410='MDOT FTA Detail'!$A9)*(Projects!$J$5:$J$2410<>'MDOT FTA Detail'!$A$171)*(Projects!$K$5:$K$2410)) -> 0 | N9: 0 | O9: =SUMPRODUCT((Projects!$A$5:$A$2410='MDOT FTA Detail'!$M$3)*(Projects!$C$5:$C$2410='MDOT FTA Detail'!$C$4)*(Projects!$L$5:$L$2410='MDOT FTA Detail'!$A9)*(Projects!$J$5:$J$2410<>'MDOT FTA Detail'!$A$171)*(Projects!$Q$5:$Q$2410)) -> 0
A10: BI08 | B10: Build Michigan FY08 | C10: MDOT FA | D10: =SUMPRODUCT((Projects!$A$5:$A$2410='MDOT FTA Detail'!$D$3)*(Projects!$C$5:$C$2410='MDOT FTA Detail'!$C$4)*(Projects!$L$5:$L$2410='MDOT FTA Detail'!$A10)*(Projects!$J$5:$J$2410<>'MDOT FTA Detail'!$A$171)*(Projects!$K$5:K$2410)) -> 0 | E10: 0 | F10: =SUMPRODUCT((Projects!$A$5:$A$2410='MDOT FTA Detail'!$D$3)*(Projects!$C$5:$C$2410='MDOT FTA Detail'!$C$4)*(Projects!$L$5:$L$2410='MDOT FTA Detail'!$A10)*(Projects!$J$5:$J$2410<>'MDOT FTA Detail'!$A$171)*(Projects!$Q$5:Q$2410)) -> 0 | G10: =SUMPRODUCT((Projects!$A$5:$A$2410='MDOT FTA Detail'!$G$3)*(Projects!$C$5:$C$2410='MDOT FTA Detail'!$C$4)*(Projects!$L$5:$L$2410='MDOT FTA Detail'!$A10)*(Projects!$J$5:$J$2410<>'MDOT FTA Detail'!$A$171)*(Projects!$K$5:K$2410)) -> 0 | H10: 0 | I10: =SUMPRODUCT((Projects!$A$5:$A$2410='MDOT FTA Detail'!$G$3)*(Projects!$C$5:$C$2410='MDOT FTA Detail'!$C$4)*(Projects!$L$5:$L$2410='MDOT FTA Detail'!$A10)*(Projects!$J$5:$J$2410<>'MDOT FTA Detail'!$A$171)*(Projects!$Q$5:Q$2410)) -> 0 | J10: =SUMPRODUCT((Projects!$A$5:$A$2410='MDOT FTA Detail'!$J$3)*(Projects!$C$5:$C$2410='MDOT FTA Detail'!$C$4)*(Projects!$L$5:$L$2410='MDOT FTA Detail'!$A10)*(Projects!$J$5:$J$2410<>'MDOT FTA Detail'!$A$171)*(Projects!$K$5:$K$2410)) -> 0 | K10: 0 | L10: =SUMPRODUCT((Projects!$A$5:$A$2410='MDOT FTA Detail'!$J$3)*(Projects!$C$5:$C$2410='MDOT FTA Detail'!$C$4)*(Projects!$L$5:$L$2410='MDOT FTA Detail'!$A10)*(Projects!$J$5:$J$2410<>'MDOT FTA Detail'!$A$171)*(Projects!$Q$5:$Q$2410)) -> 0 | M10: =SUMPRODUCT((Projects!$A$5:$A$2410='MDOT FTA Detail'!$M$3)*(Projects!$C$5:$C$2410='MDOT FTA Detail'!$C$4)*(Projects!$L$5:$L$2410='MDOT FTA Detail'!$A10)*(Projects!$J$5:$J$2410<>'MDOT FTA Detail'!$A$171)*(Projects!$K$5:$K$2410)) -> 0 | N10: 0 | O10: =SUMPRODUCT((Projects!$A$5:$A$2410='MDOT FTA Detail'!$M$3)*(Projects!$C$5:$C$2410='MDOT FTA Detail'!$C$4)*(Projects!$L$5:$L$2410='MDOT FTA Detail'!$A10)*(Projects!$J$5:$J$2410<>'MDOT FTA Detail'!$A$171)*(Projects!$Q$5:$Q$2410)) -> 0
A11: BO | B11: Bridge Not Classified Off System | C11: MDOT FA | D11: =SUMPRODUCT((Projects!$A$5:$A$2410='MDOT FTA Detail'!$D$3)*(Projects!$C$5:$C$2410='MDOT FTA Detail'!$C$4)*(Projects!$L$5:$L$2410='MDOT FTA Detail'!$A11)*(Projects!$J$5:$J$2410<>'MDOT FTA Detail'!$A$171)*(Projects!$K$5:K$2410)) -> 0 | E11: =F11-D11 -> 0 | F11: =SUMPRODUCT((Projects!$A$5:$A$2410='MDOT FTA Detail'!$D$3)*(Projects!$C$5:$C$2410='MDOT FTA Detail'!$C$4)*(Projects!$L$5:$L$2410='MDOT FTA Detail'!$A11)*(Projects!$J$5:$J$2410<>'MDOT FTA Detail'!$A$171)*(Projects!$Q$5:Q$2410)) -> 0 | G11: =SUMPRODUCT((Projects!$A$5:$A$2410='MDOT FTA Detail'!$G$3)*(Projects!$C$5:$C$2410='MDOT FTA Detail'!$C$4)*(Projects!$L$5:$L$2410='MDOT FTA Detail'!$A11)*(Projects!$J$5:$J$2410<>'MDOT FTA Detail'!$A$171)*(Projects!$K$5:K$2410)) -> 0 | H11: =I11-G11 -> 0 | I11: =SUMPRODUCT((Projects!$A$5:$A$2410='MDOT FTA Detail'!$G$3)*(Projects!$C$5:$C$2410='MDOT FTA Detail'!$C$4)*(Projects!$L$5:$L$2410='MDOT FTA Detail'!$A11)*(Projects!$J$5:$J$2410<>'MDOT FTA Detail'!$A$171)*(Projects!$Q$5:Q$2410)) -> 0 | J11: =SUMPRODUCT((Projects!$A$5:$A$2410='MDOT FTA Detail'!$J$3)*(Projects!$C$5:$C$2410='MDOT FTA Detail'!$C$4)*(Projects!$L$5:$L$2410='MDOT FTA Detail'!$A11)*(Projects!$J$5:$J$2410<>'MDOT FTA Detail'!$A$171)*(Projects!$K$5:$K$2410)) -> 0 | K11: =L11-J11 -> 0 | L11: =SUMPRODUCT((Projects!$A$5:$A$2410='MDOT FTA Detail'!$J$3)*(Projects!$C$5:$C$2410='MDOT FTA Detail'!$C$4)*(Projects!$L$5:$L$2410='MDOT FTA Detail'!$A11)*(Projects!$J$5:$J$2410<>'MDOT FTA Detail'!$A$171)*(Projects!$Q$5:$Q$2410)) -> 0 | M11: =SUMPRODUCT((Projects!$A$5:$A$2410='MDOT FTA Detail'!$M$3)*(Projects!$C$5:$C$2410='MDOT FTA Detail'!$C$4)*(Projects!$L$5:$L$2410='MDOT FTA Detail'!$A11)*(Projects!$J$5:$J$2410<>'MDOT FTA Detail'!$A$171)*(Projects!$K$5:$K$2410)) -> 0 | N11: =O11-M11 -> 0 | O11: =SUMPRODUCT((Projects!$A$5:$A$2410='MDOT FTA Detail'!$M$3)*(Projects!$C$5:$C$2410='MDOT FTA Detail'!$C$4)*(Projects!$L$5:$L$2410='MDOT FTA Detail'!$A11)*(Projects!$J$5:$J$2410<>'MDOT FTA Detail'!$A$171)*(Projects!$Q$5:$Q$2410)) -> 0
A12: BOWD | B12: Business Opportunity & Workforce Development Center | C12: MDOT FA | D12: =SUMPRODUCT((Projects!$A$5:$A$2410='MDOT FTA Detail'!$D$3)*(Projects!$C$5:$C$2410='MDOT FTA Detail'!$C$4)*(Projects!$L$5:$L$2410='MDOT FTA Detail'!$A12)*(Projects!$J$5:$J$2410<>'MDOT FTA Detail'!$A$171)*(Projects!$K$5:K$2410)) -> 0 | E12: 0 | F12: =SUMPRODUCT((Projects!$A$5:$A$2410='MDOT FTA Detail'!$D$3)*(Projects!$C$5:$C$2410='MDOT FTA Detail'!$C$4)*(Projects!$L$5:$L$2410='MDOT FTA Detail'!$A12)*(Projects!$J$5:$J$2410<>'MDOT FTA Detail'!$A$171)*(Projects!$Q$5:Q$2410)) -> 0 | G12: =SUMPRODUCT((Projects!$A$5:$A$2410='MDOT FTA Detail'!$G$3)*(Projects!$C$5:$C$2410='MDOT FTA Detail'!$C$4)*(Projects!$L$5:$L$2410='MDOT FTA Detail'!$A12)*(Projects!$J$5:$J$2410<>'MDOT FTA Detail'!$A$171)*(Projects!$K$5:K$2410)) -> 0 | H12: 0 | I12: =SUMPRODUCT((Projects!$A$5:$A$2410='MDOT FTA Detail'!$G$3)*(Projects!$C$5:$C$2410='MDOT FTA Detail'!$C$4)*(Projects!$L$5:$L$2410='MDOT FTA Detail'!$A12)*(Projects!$J$5:$J$2410<>'MDOT FTA Detail'!$A$171)*(Projects!$Q$5:Q$2410)) -> 0 | J12: =SUMPRODUCT((Projects!$A$5:$A$2410='MDOT FTA Detail'!$J$3)*(Projects!$C$5:$C$2410='MDOT FTA Detail'!$C$4)*(Projects!$L$5:$L$2410='MDOT FTA Detail'!$A12)*(Projects!$J$5:$J$2410<>'MDOT FTA Detail'!$A$171)*(Projects!$K$5:$K$2410)) -> 0 | K12: 0 | L12: =SUMPRODUCT((Projects!$A$5:$A$2410='MDOT FTA Detail'!$J$3)*(Projects!$C$5:$C$2410='MDOT FTA Detail'!$C$4)*(Projects!$L$5:$L$2410='MDOT FTA Detail'!$A12)*(Projects!$J$5:$J$2410<>'MDOT FTA Detail'!$A$171)*(Projects!$Q$5:$Q$2410)) -> 0 | M12: =SUMPRODUCT((Projects!$A$5:$A$2410='MDOT FTA Detail'!$M$3)*(Projects!$C$5:$C$2410='MDOT FTA Detail'!$C$4)*(Projects!$L$5:$L$2410='MDOT FTA Detail'!$A12)*(Projects!$J$5:$J$2410<>'MDOT FTA Detail'!$A$171)*(Projects!$K$5:$K$2410)) -> 0 | N12: 0 | O12: =SUMPRODUCT((Projects!$A$5:$A$2410='MDOT FTA Detail'!$M$3)*(Projects!$C$5:$C$2410='MDOT FTA Detail'!$C$4)*(Projects!$L$5:$L$2410='MDOT FTA Detail'!$A12)*(Projects!$J$5:$J$2410<>'MDOT FTA Detail'!$A$171)*(Projects!$Q$5:$Q$2410)) -> 0
A13: BRI | B13: Bridge Replacement - Pre 1991 Interstate | C13: MDOT FA | D13: =SUMPRODUCT((Projects!$A$5:$A$2410='MDOT FTA Detail'!$D$3)*(Projects!$C$5:$C$2410='MDOT FTA Detail'!$C$4)*(Projects!$L$5:$L$2410='MDOT FTA Detail'!$A13)*(Projects!$J$5:$J$2410<>'MDOT FTA Detail'!$A$171)*(Projects!$K$5:K$2410)) -> 0 | E13: 0 | F13: =SUMPRODUCT((Projects!$A$5:$A$2410='MDOT FTA Detail'!$D$3)*(Projects!$C$5:$C$2410='MDOT FTA Detail'!$C$4)*(Projects!$L$5:$L$2410='MDOT FTA Detail'!$A13)*(Projects!$J$5:$J$2410<>'MDOT FTA Detail'!$A$171)*(Projects!$Q$5:Q$2410)) -> 0 | G13: =SUMPRODUCT((Projects!$A$5:$A$2410='MDOT FTA Detail'!$G$3)*(Projects!$C$5:$C$2410='MDOT FTA Detail'!$C$4)*(Projects!$L$5:$L$2410='MDOT FTA Detail'!$A13)*(Projects!$J$5:$J$2410<>'MDOT FTA Detail'!$A$171)*(Projects!$K$5:K$2410)) -> 0 | H13: 0 | I13: =SUMPRODUCT((Projects!$A$5:$A$2410='MDOT FTA Detail'!$G$3)*(Projects!$C$5:$C$2410='MDOT FTA Detail'!$C$4)*(Projects!$L$5:$L$2410='MDOT FTA Detail'!$A13)*(Projects!$J$5:$J$2410<>'MDOT FTA Detail'!$A$171)*(Projects!$Q$5:Q$2410)) -> 0 | J13: =SUMPRODUCT((Projects!$A$5:$A$2410='MDOT FTA Detail'!$J$3)*(Projects!$C$5:$C$2410='MDOT FTA Detail'!$C$4)*(Projects!$L$5:$L$2410='MDOT FTA Detail'!$A13)*(Projects!$J$5:$J$2410<>'MDOT FTA Detail'!$A$171)*(Projects!$K$5:$K$2410)) -> 0 | K13: 0 | L13: =SUMPRODUCT((Projects!$A$5:$A$2410='MDOT FTA Detail'!$J$3)*(Projects!$C$5:$C$2410='MDOT FTA Detail'!$C$4)*(Projects!$L$5:$L$2410='MDOT FTA Detail'!$A13)*(Projects!$J$5:$J$2410<>'MDOT FTA Detail'!$A$171)*(Projects!$Q$5:$Q$2410)) -> 0 | M13: =SUMPRODUCT((Projects!$A$5:$A$2410='MDOT FTA Detail'!$M$3)*(Projects!$C$5:$C$2410='MDOT FTA Detail'!$C$4)*(Projects!$L$5:$L$2410='MDOT FTA Detail'!$A13)*(Projects!$J$5:$J$2410<>'MDOT FTA Detail'!$A$171)*(Projects!$K$5:$K$2410)) -> 0 | N13: 0 | O13: =SUMPRODUCT((Projects!$A$5:$A$2410='MDOT FTA Detail'!$M$3)*(Projects!$C$5:$C$2410='MDOT FTA Detail'!$C$4)*(Projects!$L$5:$L$2410='MDOT FTA Detail'!$A13)*(Projects!$J$5:$J$2410<>'MDOT FTA Detail'!$A$171)*(Projects!$Q$5:$Q$2410)) -> 0
A14: BRN | B14: Bridge Replacement - National Highway System (NHS) | C14: MDOT FA | D14: =SUMPRODUCT((Projects!$A$5:$A$2410='MDOT FTA Detail'!$D$3)*(Projects!$C$5:$C$2410='MDOT FTA Detail'!$C$4)*(Projects!$L$5:$L$2410='MDOT FTA Detail'!$A14)*(Projects!$J$5:$J$2410<>'MDOT FTA Detail'!$A$171)*(Projects!$K$5:K$2410)) -> 0 | E14: 0 | F14: =SUMPRODUCT((Projects!$A$5:$A$2410='MDOT FTA Detail'!$D$3)*(Projects!$C$5:$C$2410='MDOT FTA Detail'!$C$4)*(Projects!$L$5:$L$2410='MDOT FTA Detail'!$A14)*(Projects!$J$5:$J$2410<>'MDOT FTA Detail'!$A$171)*(Projects!$Q$5:Q$2410)) -> 0 | G14: =SUMPRODUCT((Projects!$A$5:$A$2410='MDOT FTA Detail'!$G$3)*(Projects!$C$5:$C$2410='MDOT FTA Detail'!$C$4)*(Projects!$L$5:$L$2410='MDOT FTA Detail'!$A14)*(Projects!$J$5:$J$2410<>'MDOT FTA Detail'!$A$171)*(Projects!$K$5:K$2410)) -> 0 | H14: 0 | I14: =SUMPRODUCT((Projects!$A$5:$A$2410='MDOT FTA Detail'!$G$3)*(Projects!$C$5:$C$2410='MDOT FTA Detail'!$C$4)*(Projects!$L$5:$L$2410='MDOT FTA Detail'!$A14)*(Projects!$J$5:$J$2410<>'MDOT FTA Detail'!$A$171)*(Projects!$Q$5:Q$2410)) -> 0 | J14: =SUMPRODUCT((Projects!$A$5:$A$2410='MDOT FTA Detail'!$J$3)*(Projects!$C$5:$C$2410='MDOT FTA Detail'!$C$4)*(Projects!$L$5:$L$2410='MDOT FTA Detail'!$A14)*(Projects!$J$5:$J$2410<>'MDOT FTA Detail'!$A$171)*(Projects!$K$5:$K$2410)) -> 0 | K14: 0 | L14: =SUMPRODUCT((Projects!$A$5:$A$2410='MDOT FTA Detail'!$J$3)*(Projects!$C$5:$C$2410='MDOT FTA Detail'!$C$4)*(Projects!$L$5:$L$2410='MDOT FTA Detail'!$A14)*(Projects!$J$5:$J$2410<>'MDOT FTA Detail'!$A$171)*(Projects!$Q$5:$Q$2410)) -> 0 | M14: =SUMPRODUCT((Projects!$A$5:$A$2410='MDOT FTA Detail'!$M$3)*(Projects!$C$5:$C$2410='MDOT FTA Detail'!$C$4)*(Projects!$L$5:$L$2410='MDOT FTA Detail'!$A14)*(Projects!$J$5:$J$2410<>'MDOT FTA Detail'!$A$171)*(Projects!$K$5:$K$2410)) -> 0 | N14: 0 | O14: =SUMPRODUCT((Projects!$A$5:$A$2410='MDOT FTA Detail'!$M$3)*(Projects!$C$5:$C$2410='MDOT FTA Detail'!$C$4)*(Projects!$L$5:$L$2410='MDOT FTA Detail'!$A14)*(Projects!$J$5:$J$2410<>'MDOT FTA Detail'!$A$171)*(Projects!$Q$5:$Q$2410)) -> 0
A15: BRO | B15: Bridge Replacement - Not Classified, Off System | C15: MDOT FA | D15: =SUMPRODUCT((Projects!$A$5:$A$2410='MDOT FTA Detail'!$D$3)*(Projects!$C$5:$C$2410='MDOT FTA Detail'!$C$4)*(Projects!$L$5:$L$2410='MDOT FTA Detail'!$A15)*(Projects!$J$5:$J$2410<>'MDOT FTA Detail'!$A$171)*(Projects!$K$5:K$2410)) -> 0 | E15: 0 | F15: =SUMPRODUCT((Projects!$A$5:$A$2410='MDOT FTA Detail'!$D$3)*(Projects!$C$5:$C$2410='MDOT FTA Detail'!$C$4)*(Projects!$L$5:$L$2410='MDOT FTA Detail'!$A15)*(Projects!$J$5:$J$2410<>'MDOT FTA Detail'!$A$171)*(Projects!$Q$5:Q$2410)) -> 0 | G15: =SUMPRODUCT((Projects!$A$5:$A$2410='MDOT FTA Detail'!$G$3)*(Projects!$C$5:$C$2410='MDOT FTA Detail'!$C$4)*(Projects!$L$5:$L$2410='MDOT FTA Detail'!$A15)*(Projects!$J$5:$J$2410<>'MDOT FTA Detail'!$A$171)*(Projects!$K$5:K$2410)) -> 0 | H15: 0 | I15: =SUMPRODUCT((Projects!$A$5:$A$2410='MDOT FTA Detail'!$G$3)*(Projects!$C$5:$C$2410='MDOT FTA Detail'!$C$4)*(Projects!$L$5:$L$2410='MDOT FTA Detail'!$A15)*(Projects!$J$5:$J$2410<>'MDOT FTA Detail'!$A$171)*(Projects!$Q$5:Q$2410)) -> 0 | J15: =SUMPRODUCT((Projects!$A$5:$A$2410='MDOT FTA Detail'!$J$3)*(Projects!$C$5:$C$2410='MDOT FTA Detail'!$C$4)*(Projects!$L$5:$L$2410='MDOT FTA Detail'!$A15)*(Projects!$J$5:$J$2410<>'MDOT FTA Detail'!$A$171)*(Projects!$K$5:$K$2410)) -> 0 | K15: 0 | L15: =SUMPRODUCT((Projects!$A$5:$A$2410='MDOT FTA Detail'!$J$3)*(Projects!$C$5:$C$2410='MDOT FTA Detail'!$C$4)*(Projects!$L$5:$L$2410='MDOT FTA Detail'!$A15)*(Projects!$J$5:$J$2410<>'MDOT FTA Detail'!$A$171)*(Projects!$Q$5:$Q$2410)) -> 0 | M15: =SUMPRODUCT((Projects!$A$5:$A$2410='MDOT FTA Detail'!$M$3)*(Projects!$C$5:$C$2410='MDOT FTA Detail'!$C$4)*(Projects!$L$5:$L$2410='MDOT FTA Detail'!$A15)*(Projects!$J$5:$J$2410<>'MDOT FTA Detail'!$A$171)*(Projects!$K$5:$K$2410)) -> 0 | N15: 0 | O15: =SUMPRODUCT((Projects!$A$5:$A$2410='MDOT FTA Detail'!$M$3)*(Projects!$C$5:$C$2410='MDOT FTA Detail'!$C$4)*(Projects!$L$5:$L$2410='MDOT FTA Detail'!$A15)*(Projects!$J$5:$J$2410<>'MDOT FTA Detail'!$A$171)*(Projects!$Q$5:$Q$2410)) -> 0
A16: BRT | B16: Bridge Replacement - Surface Transportation Program (STP) | C16: MDOT FA | D16: =SUMPRODUCT((Projects!$A$5:$A$2410='MDOT FTA Detail'!$D$3)*(Projects!$C$5:$C$2410='MDOT FTA Detail'!$C$4)*(Projects!$L$5:$L$2410='MDOT FTA Detail'!$A16)*(Projects!$J$5:$J$2410<>'MDOT FTA Detail'!$A$171)*(Projects!$K$5:K$2410)) -> 0 | E16: 0 | F16: =SUMPRODUCT((Projects!$A$5:$A$2410='MDOT FTA Detail'!$D$3)*(Projects!$C$5:$C$2410='MDOT FTA Detail'!$C$4)*(Projects!$L$5:$L$2410='MDOT FTA Detail'!$A16)*(Projects!$J$5:$J$2410<>'MDOT FTA Detail'!$A$171)*(Projects!$Q$5:Q$2410)) -> 0 | G16: =SUMPRODUCT((Projects!$A$5:$A$2410='MDOT FTA Detail'!$G$3)*(Projects!$C$5:$C$2410='MDOT FTA Detail'!$C$4)*(Projects!$L$5:$L$2410='MDOT FTA Detail'!$A16)*(Projects!$J$5:$J$2410<>'MDOT FTA Detail'!$A$171)*(Projects!$K$5:K$2410)) -> 0 | H16: 0 | I16: =SUMPRODUCT((Projects!$A$5:$A$2410='MDOT FTA Detail'!$G$3)*(Projects!$C$5:$C$2410='MDOT FTA Detail'!$C$4)*(Projects!$L$5:$L$2410='MDOT FTA Detail'!$A16)*(Projects!$J$5:$J$2410<>'MDOT FTA Detail'!$A$171)*(Projects!$Q$5:Q$2410)) -> 0 | J16: =SUMPRODUCT((Projects!$A$5:$A$2410='MDOT FTA Detail'!$J$3)*(Projects!$C$5:$C$2410='MDOT FTA Detail'!$C$4)*(Projects!$L$5:$L$2410='MDOT FTA Detail'!$A16)*(Projects!$J$5:$J$2410<>'MDOT FTA Detail'!$A$171)*(Projects!$K$5:$K$2410)) -> 0 | K16: 0 | L16: =SUMPRODUCT((Projects!$A$5:$A$2410='MDOT FTA Detail'!$J$3)*(Projects!$C$5:$C$2410='MDOT FTA Detail'!$C$4)*(Projects!$L$5:$L$2410='MDOT FTA Detail'!$A16)*(Projects!$J$5:$J$2410<>'MDOT FTA Detail'!$A$171)*(Projects!$Q$5:$Q$2410)) -> 0 | M16: =SUMPRODUCT((Projects!$A$5:$A$2410='MDOT FTA Detail'!$M$3)*(Projects!$C$5:$C$2410='MDOT FTA Detail'!$C$4)*(Projects!$L$5:$L$2410='MDOT FTA Detail'!$A16)*(Projects!$J$5:$J$2410<>'MDOT FTA Detail'!$A$171)*(Projects!$K$5:$K$2410)) -> 0 | N16: 0 | O16: =SUMPRODUCT((Projects!$A$5:$A$2410='MDOT FTA Detail'!$M$3)*(Projects!$C$5:$C$2410='MDOT FTA Detail'!$C$4)*(Projects!$L$5:$L$2410='MDOT FTA Detail'!$A16)*(Projects!$J$5:$J$2410<>'MDOT FTA Detail'!$A$171)*(Projects!$Q$5:$Q$2410)) -> 0
A17: CANX | B17: Canadian Bridge Funds | C17: MDOT FA | D17: =SUMPRODUCT((Projects!$A$5:$A$2410='MDOT FTA Detail'!$D$3)*(Projects!$C$5:$C$2410='MDOT FTA Detail'!$C$4)*(Projects!$L$5:$L$2410='MDOT FTA Detail'!$A17)*(Projects!$J$5:$J$2410<>'MDOT FTA Detail'!$A$171)*(Projects!$K$5:K$2410)) -> 0 | E17: 0 | F17: =SUMPRODUCT((Projects!$A$5:$A$2410='MDOT FTA Detail'!$D$3)*(Projects!$C$5:$C$2410='MDOT FTA Detail'!$C$4)*(Projects!$L$5:$L$2410='MDOT FTA Detail'!$A17)*(Projects!$J$5:$J$2410<>'MDOT FTA Detail'!$A$171)*(Projects!$Q$5:Q$2410)) -> 0 | G17: =SUMPRODUCT((Projects!$A$5:$A$2410='MDOT FTA Detail'!$G$3)*(Projects!$C$5:$C$2410='MDOT FTA Detail'!$C$4)*(Projects!$L$5:$L$2410='MDOT FTA Detail'!$A17)*(Projects!$J$5:$J$2410<>'MDOT FTA Detail'!$A$171)*(Projects!$K$5:K$2410)) -> 0 | H17: 0 | I17: =SUMPRODUCT((Projects!$A$5:$A$2410='MDOT FTA Detail'!$G$3)*(Projects!$C$5:$C$2410='MDOT FTA Detail'!$C$4)*(Projects!$L$5:$L$2410='MDOT FTA Detail'!$A17)*(Projects!$J$5:$J$2410<>'MDOT FTA Detail'!$A$171)*(Projects!$Q$5:Q$2410)) -> 0 | J17: =SUMPRODUCT((Projects!$A$5:$A$2410='MDOT FTA Detail'!$J$3)*(Projects!$C$5:$C$2410='MDOT FTA Detail'!$C$4)*(Projects!$L$5:$L$2410='MDOT FTA Detail'!$A17)*(Projects!$J$5:$J$2410<>'MDOT FTA Detail'!$A$171)*(Projects!$K$5:$K$2410)) -> 0 | K17: 0 | L17: =SUMPRODUCT((Projects!$A$5:$A$2410='MDOT FTA Detail'!$J$3)*(Projects!$C$5:$C$2410='MDOT FTA Detail'!$C$4)*(Projects!$L$5:$L$2410='MDOT FTA Detail'!$A17)*(Projects!$J$5:$J$2410<>'MDOT FTA Detail'!$A$171)*(Projects!$Q$5:$Q$2410)) -> 0 | M17: =SUMPRODUCT((Projects!$A$5:$A$2410='MDOT FTA Detail'!$M$3)*(Projects!$C$5:$C$2410='MDOT FTA Detail'!$C$4)*(Projects!$L$5:$L$2410='MDOT FTA Detail'!$A17)*(Projects!$J$5:$J$2410<>'MDOT FTA Detail'!$A$171)*(Projects!$K$5:$K$2410)) -> 0 | N17: 0 | O17: =SUMPRODUCT((Projects!$A$5:$A$2410='MDOT FTA Detail'!$M$3)*(Projects!$C$5:$C$2410='MDOT FTA Detail'!$C$4)*(Projects!$L$5:$L$2410='MDOT FTA Detail'!$A17)*(Projects!$J$5:$J$2410<>'MDOT FTA Detail'!$A$171)*(Projects!$Q$5:$Q$2410)) -> 0
A18: CBCD | B18: Corridor & Border Crossing Discretionary | C18: MDOT FA | D18: =SUMPRODUCT((Projects!$A$5:$A$2410='MDOT FTA Detail'!$D$3)*(Projects!$C$5:$C$2410='MDOT FTA Detail'!$C$4)*(Projects!$L$5:$L$2410='MDOT FTA Detail'!$A18)*(Projects!$J$5:$J$2410<>'MDOT FTA Detail'!$A$171)*(Projects!$K$5:K$2410)) -> 0 | E18: 0 | F18: =SUMPRODUCT((Projects!$A$5:$A$2410='MDOT FTA Detail'!$D$3)*(Projects!$C$5:$C$2410='MDOT FTA Detail'!$C$4)*(Projects!$L$5:$L$2410='MDOT FTA Detail'!$A18)*(Projects!$J$5:$J$2410<>'MDOT FTA Detail'!$A$171)*(Projects!$Q$5:Q$2410)) -> 0 | G18: =SUMPRODUCT((Projects!$A$5:$A$2410='MDOT FTA Detail'!$G$3)*(Projects!$C$5:$C$2410='MDOT FTA Detail'!$C$4)*(Projects!$L$5:$L$2410='MDOT FTA Detail'!$A18)*(Projects!$J$5:$J$2410<>'MDOT FTA Detail'!$A$171)*(Projects!$K$5:K$2410)) -> 0 | H18: 0 | I18: =SUMPRODUCT((Projects!$A$5:$A$2410='MDOT FTA Detail'!$G$3)*(Projects!$C$5:$C$2410='MDOT FTA Detail'!$C$4)*(Projects!$L$5:$L$2410='MDOT FTA Detail'!$A18)*(Projects!$J$5:$J$2410<>'MDOT FTA Detail'!$A$171)*(Projects!$Q$5:Q$2410)) -> 0 | J18: =SUMPRODUCT((Projects!$A$5:$A$2410='MDOT FTA Detail'!$J$3)*(Projects!$C$5:$C$2410='MDOT FTA Detail'!$C$4)*(Projects!$L$5:$L$2410='MDOT FTA Detail'!$A18)*(Projects!$J$5:$J$2410<>'MDOT FTA Detail'!$A$171)*(Projects!$K$5:$K$2410)) -> 0 | K18: 0 | L18: =SUMPRODUCT((Projects!$A$5:$A$2410='MDOT FTA Detail'!$J$3)*(Projects!$C$5:$C$2410='MDOT FTA Detail'!$C$4)*(Projects!$L$5:$L$2410='MDOT FTA Detail'!$A18)*(Projects!$J$5:$J$2410<>'MDOT FTA Detail'!$A$171)*(Projects!$Q$5:$Q$2410)) -> 0 | M18: =SUMPRODUCT((Projects!$A$5:$A$2410='MDOT FTA Detail'!$M$3)*(Projects!$C$5:$C$2410='MDOT FTA Detail'!$C$4)*(Projects!$L$5:$L$2410='MDOT FTA Detail'!$A18)*(Projects!$J$5:$J$2410<>'MDOT FTA Detail'!$A$171)*(Projects!$K$5:$K$2410)) -> 0 | N18: 0 | O18: =SUMPRODUCT((Projects!$A$5:$A$2410='MDOT FTA Detail'!$M$3)*(Projects!$C$5:$C$2410='MDOT FTA Detail'!$C$4)*(Projects!$L$5:$L$2410='MDOT FTA Detail'!$A18)*(Projects!$J$5:$J$2410<>'MDOT FTA Detail'!$A$171)*(Projects!$Q$5:$Q$2410)) -> 0
A19: CBIP | B19: Coordinated Border Infrastructure Program - SAFETEA-LU | C19: MDOT FA | D19: =SUMPRODUCT((Projects!$A$5:$A$2410='MDOT FTA Detail'!$D$3)*(Projects!$C$5:$C$2410='MDOT FTA Detail'!$C$4)*(Projects!$L$5:$L$2410='MDOT FTA Detail'!$A19)*(Projects!$J$5:$J$2410<>'MDOT FTA Detail'!$A$171)*(Projects!$K$5:K$2410)) -> 0 | E19: 0 | F19: =SUMPRODUCT((Projects!$A$5:$A$2410='MDOT FTA Detail'!$D$3)*(Projects!$C$5:$C$2410='MDOT FTA Detail'!$C$4)*(Projects!$L$5:$L$2410='MDOT FTA Detail'!$A19)*(Projects!$J$5:$J$2410<>'MDOT FTA Detail'!$A$171)*(Projects!$Q$5:Q$2410)) -> 0 | G19: =SUMPRODUCT((Projects!$A$5:$A$2410='MDOT FTA Detail'!$G$3)*(Projects!$C$5:$C$2410='MDOT FTA Detail'!$C$4)*(Projects!$L$5:$L$2410='MDOT FTA Detail'!$A19)*(Projects!$J$5:$J$2410<>'MDOT FTA Detail'!$A$171)*(Projects!$K$5:K$2410)) -> 0 | H19: 0 | I19: =SUMPRODUCT((Projects!$A$5:$A$2410='MDOT FTA Detail'!$G$3)*(Projects!$C$5:$C$2410='MDOT FTA Detail'!$C$4)*(Projects!$L$5:$L$2410='MDOT FTA Detail'!$A19)*(Projects!$J$5:$J$2410<>'MDOT FTA Detail'!$A$171)*(Projects!$Q$5:Q$2410)) -> 0 | J19: =SUMPRODUCT((Projects!$A$5:$A$2410='MDOT FTA Detail'!$J$3)*(Projects!$C$5:$C$2410='MDOT FTA Detail'!$C$4)*(Projects!$L$5:$L$2410='MDOT FTA Detail'!$A19)*(Projects!$J$5:$J$2410<>'MDOT FTA Detail'!$A$171)*(Projects!$K$5:$K$2410)) -> 0 | K19: 0 | L19: =SUMPRODUCT((Projects!$A$5:$A$2410='MDOT FTA Detail'!$J$3)*(Projects!$C$5:$C$2410='MDOT FTA Detail'!$C$4)*(Projects!$L$5:$L$2410='MDOT FTA Detail'!$A19)*(Projects!$J$5:$J$2410<>'MDOT FTA Detail'!$A$171)*(Projects!$Q$5:$Q$2410)) -> 0 | M19: =SUMPRODUCT((Projects!$A$5:$A$2410='MDOT FTA Detail'!$M$3)*(Projects!$C$5:$C$2410='MDOT FTA Detail'!$C$4)*(Projects!$L$5:$L$2410='MDOT FTA Detail'!$A19)*(Projects!$J$5:$J$2410<>'MDOT FTA Detail'!$A$171)*(Projects!$K$5:$K$2410)) -> 0 | N19: 0 | O19: =SUMPRODUCT((Projects!$A$5:$A$2410='MDOT FTA Detail'!$M$3)*(Projects!$C$5:$C$2410='MDOT FTA Detail'!$C$4)*(Projects!$L$5:$L$2410='MDOT FTA Detail'!$A19)*(Projects!$J$5:$J$2410<>'MDOT FTA Detail'!$A$171)*(Projects!$Q$5:$Q$2410)) -> 0
A20: CM | B20: Congestion Mitigation & Air Quality | C20: MDOT FA | D20: =SUMPRODUCT((Projects!$A$5:$A$2410='MDOT FTA Detail'!$D$3)*(Projects!$C$5:$C$2410='MDOT FTA Detail'!$C$4)*(Projects!$L$5:$L$2410='MDOT FTA Detail'!$A20)*(Projects!$J$5:$J$2410<>'MDOT FTA Detail'!$A$171)*(Projects!$K$5:K$2410)) -> 0 | E20: 0 | F20: =SUMPRODUCT((Projects!$A$5:$A$2410='MDOT FTA Detail'!$D$3)*(Projects!$C$5:$C$2410='MDOT FTA Detail'!$C$4)*(Projects!$L$5:$L$2410='MDOT FTA Detail'!$A20)*(Projects!$J$5:$J$2410<>'MDOT FTA Detail'!$A$171)*(Projects!$Q$5:Q$2410)) -> 0 | G20: =SUMPRODUCT((Projects!$A$5:$A$2410='MDOT FTA Detail'!$G$3)*(Projects!$C$5:$C$2410='MDOT FTA Detail'!$C$4)*(Projects!$L$5:$L$2410='MDOT FTA Detail'!$A20)*(Projects!$J$5:$J$2410<>'MDOT FTA Detail'!$A$171)*(Projects!$K$5:K$2410)) -> 0 | H20: 0 | I20: =SUMPRODUCT((Projects!$A$5:$A$2410='MDOT FTA Detail'!$G$3)*(Projects!$C$5:$C$2410='MDOT FTA Detail'!$C$4)*(Projects!$L$5:$L$2410='MDOT FTA Detail'!$A20)*(Projects!$J$5:$J$2410<>'MDOT FTA Detail'!$A$171)*(Projects!$Q$5:Q$2410)) -> 0 | J20: =SUMPRODUCT((Projects!$A$5:$A$2410='MDOT FTA Detail'!$J$3)*(Projects!$C$5:$C$2410='MDOT FTA Detail'!$C$4)*(Projects!$L$5:$L$2410='MDOT FTA Detail'!$A20)*(Projects!$J$5:$J$2410<>'MDOT FTA Detail'!$A$171)*(Projects!$K$5:$K$2410)) -> 0 | K20: 0 | L20: =SUMPRODUCT((Projects!$A$5:$A$2410='MDOT FTA Detail'!$J$3)*(Projects!$C$5:$C$2410='MDOT FTA Detail'!$C$4)*(Projects!$L$5:$L$2410='MDOT FTA Detail'!$A20)*(Projects!$J$5:$J$2410<>'MDOT FTA Detail'!$A$171)*(Projects!$Q$5:$Q$2410)) -> 0 | M20: =SUMPRODUCT((Projects!$A$5:$A$2410='MDOT FTA Detail'!$M$3)*(Projects!$C$5:$C$2410='MDOT FTA Detail'!$C$4)*(Projects!$L$5:$L$2410='MDOT FTA Detail'!$A20)*(Projects!$J$5:$J$2410<>'MDOT FTA Detail'!$A$171)*(Projects!$K$5:$K$2410)) -> 0 | N20: 0 | O20: =SUMPRODUCT((Projects!$A$5:$A$2410='MDOT FTA Detail'!$M$3)*(Projects!$C$5:$C$2410='MDOT FTA Detail'!$C$4)*(Projects!$L$5:$L$2410='MDOT FTA Detail'!$A20)*(Projects!$J$5:$J$2410<>'MDOT FTA Detail'!$A$171)*(Projects!$Q$5:$Q$2410)) -> 0
A21: CMG | B21: Congestion Mitigation & Air Quality - 100% Federal | C21: MDOT FA | D21: =SUMPRODUCT((Projects!$A$5:$A$2410='MDOT FTA Detail'!$D$3)*(Projects!$C$5:$C$2410='MDOT FTA Detail'!$C$4)*(Projects!$L$5:$L$2410='MDOT FTA Detail'!$A21)*(Projects!$J$5:$J$2410<>'MDOT FTA Detail'!$A$171)*(Projects!$K$5:K$2410)) -> 0 | E21: 0 | F21: =SUMPRODUCT((Projects!$A$5:$A$2410='MDOT FTA Detail'!$D$3)*(Projects!$C$5:$C$2410='MDOT FTA Detail'!$C$4)*(Projects!$L$5:$L$2410='MDOT FTA Detail'!$A21)*(Projects!$J$5:$J$2410<>'MDOT FTA Detail'!$A$171)*(Projects!$Q$5:Q$2410)) -> 0 | G21: =SUMPRODUCT((Projects!$A$5:$A$2410='MDOT FTA Detail'!$G$3)*(Projects!$C$5:$C$2410='MDOT FTA Detail'!$C$4)*(Projects!$L$5:$L$2410='MDOT FTA Detail'!$A21)*(Projects!$J$5:$J$2410<>'MDOT FTA Detail'!$A$171)*(Projects!$K$5:K$2410)) -> 0 | H21: 0 | I21: =SUMPRODUCT((Projects!$A$5:$A$2410='MDOT FTA Detail'!$G$3)*(Projects!$C$5:$C$2410='MDOT FTA Detail'!$C$4)*(Projects!$L$5:$L$2410='MDOT FTA Detail'!$A21)*(Projects!$J$5:$J$2410<>'MDOT FTA Detail'!$A$171)*(Projects!$Q$5:Q$2410)) -> 0 | J21: =SUMPRODUCT((Projects!$A$5:$A$2410='MDOT FTA Detail'!$J$3)*(Projects!$C$5:$C$2410='MDOT FTA Detail'!$C$4)*(Projects!$L$5:$L$2410='MDOT FTA Detail'!$A21)*(Projects!$J$5:$J$2410<>'MDOT FTA Detail'!$A$171)*(Projects!$K$5:$K$2410)) -> 0 | K21: 0 | L21: =SUMPRODUCT((Projects!$A$5:$A$2410='MDOT FTA Detail'!$J$3)*(Projects!$C$5:$C$2410='MDOT FTA Detail'!$C$4)*(Projects!$L$5:$L$2410='MDOT FTA Detail'!$A21)*(Projects!$J$5:$J$2410<>'MDOT FTA Detail'!$A$171)*(Projects!$Q$5:$Q$2410)) -> 0 | M21: =SUMPRODUCT((Projects!$A$5:$A$2410='MDOT FTA Detail'!$M$3)*(Projects!$C$5:$C$2410='MDOT FTA Detail'!$C$4)*(Projects!$L$5:$L$2410='MDOT FTA Detail'!$A21)*(Projects!$J$5:$J$2410<>'MDOT FTA Detail'!$A$171)*(Projects!$K$5:$K$2410)) -> 0 | N21: 0 | O21: =SUMPRODUCT((Projects!$A$5:$A$2410='MDOT FTA Detail'!$M$3)*(Projects!$C$5:$C$2410='MDOT FTA Detail'!$C$4)*(Projects!$L$5:$L$2410='MDOT FTA Detail'!$A21)*(Projects!$J$5:$J$2410<>'MDOT FTA Detail'!$A$171)*(Projects!$Q$5:$Q$2410)) -> 0
A22: CPM | B22: Congestion Mititagion & Air Quality for PM 2.5 Emissions | C22: MDOT FA | D22: =SUMPRODUCT((Projects!$A$5:$A$2410='MDOT FTA Detail'!$D$3)*(Projects!$C$5:$C$2410='MDOT FTA Detail'!$C$4)*(Projects!$L$5:$L$2410='MDOT FTA Detail'!$A22)*(Projects!$J$5:$J$2410<>'MDOT FTA Detail'!$A$171)*(Projects!$K$5:K$2410)) -> 0 | E22: =F22-D22 -> 0 | F22: =SUMPRODUCT((Projects!$A$5:$A$2410='MDOT FTA Detail'!$D$3)*(Projects!$C$5:$C$2410='MDOT FTA Detail'!$C$4)*(Projects!$L$5:$L$2410='MDOT FTA Detail'!$A22)*(Projects!$J$5:$J$2410<>'MDOT FTA Detail'!$A$171)*(Projects!$Q$5:Q$2410)) -> 0 | G22: =SUMPRODUCT((Projects!$A$5:$A$2410='MDOT FTA Detail'!$G$3)*(Projects!$C$5:$C$2410='MDOT FTA Detail'!$C$4)*(Projects!$L$5:$L$2410='MDOT FTA Detail'!$A22)*(Projects!$J$5:$J$2410<>'MDOT FTA Detail'!$A$171)*(Projects!$K$5:K$2410)) -> 0 | H22: =I22-G22 -> 0 | I22: =SUMPRODUCT((Projects!$A$5:$A$2410='MDOT FTA Detail'!$G$3)*(Projects!$C$5:$C$2410='MDOT FTA Detail'!$C$4)*(Projects!$L$5:$L$2410='MDOT FTA Detail'!$A22)*(Projects!$J$5:$J$2410<>'MDOT FTA Detail'!$A$171)*(Projects!$Q$5:Q$2410)) -> 0 | J22: =SUMPRODUCT((Projects!$A$5:$A$2410='MDOT FTA Detail'!$J$3)*(Projects!$C$5:$C$2410='MDOT FTA Detail'!$C$4)*(Projects!$L$5:$L$2410='MDOT FTA Detail'!$A22)*(Projects!$J$5:$J$2410<>'MDOT FTA Detail'!$A$171)*(Projects!$K$5:$K$2410)) -> 0 | K22: =L22-J22 -> 0 | L22: =SUMPRODUCT((Projects!$A$5:$A$2410='MDOT FTA Detail'!$J$3)*(Projects!$C$5:$C$2410='MDOT FTA Detail'!$C$4)*(Projects!$L$5:$L$2410='MDOT FTA Detail'!$A22)*(Projects!$J$5:$J$2410<>'MDOT FTA Detail'!$A$171)*(Projects!$Q$5:$Q$2410)) -> 0 | M22: =SUMPRODUCT((Projects!$A$5:$A$2410='MDOT FTA Detail'!$M$3)*(Projects!$C$5:$C$2410='MDOT FTA Detail'!$C$4)*(Projects!$L$5:$L$2410='MDOT FTA Detail'!$A22)*(Projects!$J$5:$J$2410<>'MDOT FTA Detail'!$A$171)*(Projects!$K$5:$K$2410)) -> 0 | N22: =O22-M22 -> 0 | O22: =SUMPRODUCT((Projects!$A$5:$A$2410='MDOT FTA Detail'!$M$3)*(Projects!$C$5:$C$2410='MDOT FTA Detail'!$C$4)*(Projects!$L$5:$L$2410='MDOT FTA Detail'!$A22)*(Projects!$J$5:$J$2410<>'MDOT FTA Detail'!$A$171)*(Projects!$Q$5:$Q$2410)) -> 0
A23: CPMG | B23: Congestion Mititagion & Air Quality for PM 2.5 Emissions - 100% Federal | C23: MDOT FA | D23: =SUMPRODUCT((Projects!$A$5:$A$2410='MDOT FTA Detail'!$D$3)*(Projects!$C$5:$C$2410='MDOT FTA Detail'!$C$4)*(Projects!$L$5:$L$2410='MDOT FTA Detail'!$A23)*(Projects!$J$5:$J$2410<>'MDOT FTA Detail'!$A$171)*(Projects!$K$5:K$2410)) -> 0 | E23: 0 | F23: =SUMPRODUCT((Projects!$A$5:$A$2410='MDOT FTA Detail'!$D$3)*(Projects!$C$5:$C$2410='MDOT FTA Detail'!$C$4)*(Projects!$L$5:$L$2410='MDOT FTA Detail'!$A23)*(Projects!$J$5:$J$2410<>'MDOT FTA Detail'!$A$171)*(Projects!$Q$5:Q$2410)) -> 0 | G23: =SUMPRODUCT((Projects!$A$5:$A$2410='MDOT FTA Detail'!$G$3)*(Projects!$C$5:$C$2410='MDOT FTA Detail'!$C$4)*(Projects!$L$5:$L$2410='MDOT FTA Detail'!$A23)*(Projects!$J$5:$J$2410<>'MDOT FTA Detail'!$A$171)*(Projects!$K$5:K$2410)) -> 0 | H23: 0 | I23: =SUMPRODUCT((Projects!$A$5:$A$2410='MDOT FTA Detail'!$G$3)*(Projects!$C$5:$C$2410='MDOT FTA Detail'!$C$4)*(Projects!$L$5:$L$2410='MDOT FTA Detail'!$A23)*(Projects!$J$5:$J$2410<>'MDOT FTA Detail'!$A$171)*(Projects!$Q$5:Q$2410)) -> 0 | J23: =SUMPRODUCT((Projects!$A$5:$A$2410='MDOT FTA Detail'!$J$3)*(Projects!$C$5:$C$2410='MDOT FTA Detail'!$C$4)*(Projects!$L$5:$L$2410='MDOT FTA Detail'!$A23)*(Projects!$J$5:$J$2410<>'MDOT FTA Detail'!$A$171)*(Projects!$K$5:$K$2410)) -> 0 | K23: 0 | L23: =SUMPRODUCT((Projects!$A$5:$A$2410='MDOT FTA Detail'!$J$3)*(Projects!$C$5:$C$2410='MDOT FTA Detail'!$C$4)*(Projects!$L$5:$L$2410='MDOT FTA Detail'!$A23)*(Projects!$J$5:$J$2410<>'MDOT FTA Detail'!$A$171)*(Projects!$Q$5:$Q$2410)) -> 0 | M23: =SUMPRODUCT((Projects!$A$5:$A$2410='MDOT FTA Detail'!$M$3)*(Projects!$C$5:$C$2410='MDOT FTA Detail'!$C$4)*(Projects!$L$5:$L$2410='MDOT FTA Detail'!$A23)*(Projects!$J$5:$J$2410<>'MDOT FTA Detail'!$A$171)*(Projects!$K$5:$K$2410)) -> 0 | N23: 0 | O23: =SUMPRODUCT((Projects!$A$5:$A$2410='MDOT FTA Detail'!$M$3)*(Projects!$C$5:$C$2410='MDOT FTA Detail'!$C$4)*(Projects!$L$5:$L$2410='MDOT FTA Detail'!$A23)*(Projects!$J$5:$J$2410<>'MDOT FTA Detail'!$A$171)*(Projects!$Q$5:$Q$2410)) -> 0
A24: D129 | B24: Demonstration for Surface Transportation - Section 129 | C24: MDOT FA | D24: =SUMPRODUCT((Projects!$A$5:$A$2410='MDOT FTA Detail'!$D$3)*(Projects!$C$5:$C$2410='MDOT FTA Detail'!$C$4)*(Projects!$L$5:$L$2410='MDOT FTA Detail'!$A24)*(Projects!$J$5:$J$2410<>'MDOT FTA Detail'!$A$171)*(Projects!$K$5:K$2410)) -> 0 | E24: =F24-D24 -> 0 | F24: =SUMPRODUCT((Projects!$A$5:$A$2410='MDOT FTA Detail'!$D$3)*(Projects!$C$5:$C$2410='MDOT FTA Detail'!$C$4)*(Projects!$L$5:$L$2410='MDOT FTA Detail'!$A24)*(Projects!$J$5:$J$2410<>'MDOT FTA Detail'!$A$171)*(Projects!$Q$5:Q$2410)) -> 0 | G24: =SUMPRODUCT((Projects!$A$5:$A$2410='MDOT FTA Detail'!$G$3)*(Projects!$C$5:$C$2410='MDOT FTA Detail'!$C$4)*(Projects!$L$5:$L$2410='MDOT FTA Detail'!$A24)*(Projects!$J$5:$J$2410<>'MDOT FTA Detail'!$A$171)*(Projects!$K$5:K$2410)) -> 0 | H24: =I24-G24 -> 0 | I24: =SUMPRODUCT((Projects!$A$5:$A$2410='MDOT FTA Detail'!$G$3)*(Projects!$C$5:$C$2410='MDOT FTA Detail'!$C$4)*(Projects!$L$5:$L$2410='MDOT FTA Detail'!$A24)*(Projects!$J$5:$J$2410<>'MDOT FTA Detail'!$A$171)*(Projects!$Q$5:Q$2410)) -> 0 | J24: =SUMPRODUCT((Projects!$A$5:$A$2410='MDOT FTA Detail'!$J$3)*(Projects!$C$5:$C$2410='MDOT FTA Detail'!$C$4)*(Projects!$L$5:$L$2410='MDOT FTA Detail'!$A24)*(Projects!$J$5:$J$2410<>'MDOT FTA Detail'!$A$171)*(Projects!$K$5:$K$2410)) -> 0 | K24: =L24-J24 -> 0 | L24: =SUMPRODUCT((Projects!$A$5:$A$2410='MDOT FTA Detail'!$J$3)*(Projects!$C$5:$C$2410='MDOT FTA Detail'!$C$4)*(Projects!$L$5:$L$2410='MDOT FTA Detail'!$A24)*(Projects!$J$5:$J$2410<>'MDOT FTA Detail'!$A$171)*(Projects!$Q$5:$Q$2410)) -> 0 | M24: =SUMPRODUCT((Projects!$A$5:$A$2410='MDOT FTA Detail'!$M$3)*(Projects!$C$5:$C$2410='MDOT FTA Detail'!$C$4)*(Projects!$L$5:$L$2410='MDOT FTA Detail'!$A24)*(Projects!$J$5:$J$2410<>'MDOT FTA Detail'!$A$171)*(Projects!$K$5:$K$2410)) -> 0 | N24: =O24-M24 -> 0 | O24: =SUMPRODUCT((Projects!$A$5:$A$2410='MDOT FTA Detail'!$M$3)*(Projects!$C$5:$C$2410='MDOT FTA Detail'!$C$4)*(Projects!$L$5:$L$2410='MDOT FTA Detail'!$A24)*(Projects!$J$5:$J$2410<>'MDOT FTA Detail'!$A$171)*(Projects!$Q$5:$Q$2410)) -> 0
A25: DIG | B25: ISTEA Demonstration 100% Federal on Interstate | C25: MDOT FA | D25: =SUMPRODUCT((Projects!$A$5:$A$2410='MDOT FTA Detail'!$D$3)*(Projects!$C$5:$C$2410='MDOT FTA Detail'!$C$4)*(Projects!$L$5:$L$2410='MDOT FTA Detail'!$A25)*(Projects!$J$5:$J$2410<>'MDOT FTA Detail'!$A$171)*(Projects!$K$5:K$2410)) -> 0 | E25: 0 | F25: =SUMPRODUCT((Projects!$A$5:$A$2410='MDOT FTA Detail'!$D$3)*(Projects!$C$5:$C$2410='MDOT FTA Detail'!$C$4)*(Projects!$L$5:$L$2410='MDOT FTA Detail'!$A25)*(Projects!$J$5:$J$2410<>'MDOT FTA Detail'!$A$171)*(Projects!$Q$5:Q$2410)) -> 0 | G25: =SUMPRODUCT((Projects!$A$5:$A$2410='MDOT FTA Detail'!$G$3)*(Projects!$C$5:$C$2410='MDOT FTA Detail'!$C$4)*(Projects!$L$5:$L$2410='MDOT FTA Detail'!$A25)*(Projects!$J$5:$J$2410<>'MDOT FTA Detail'!$A$171)*(Projects!$K$5:K$2410)) -> 0 | H25: 0 | I25: =SUMPRODUCT((Projects!$A$5:$A$2410='MDOT FTA Detail'!$G$3)*(Projects!$C$5:$C$2410='MDOT FTA Detail'!$C$4)*(Projects!$L$5:$L$2410='MDOT FTA Detail'!$A25)*(Projects!$J$5:$J$2410<>'MDOT FTA Detail'!$A$171)*(Projects!$Q$5:Q$2410)) -> 0 | J25: =SUMPRODUCT((Projects!$A$5:$A$2410='MDOT FTA Detail'!$J$3)*(Projects!$C$5:$C$2410='MDOT FTA Detail'!$C$4)*(Projects!$L$5:$L$2410='MDOT FTA Detail'!$A25)*(Projects!$J$5:$J$2410<>'MDOT FTA Detail'!$A$171)*(Projects!$K$5:$K$2410)) -> 0 | K25: 0 | L25: =SUMPRODUCT((Projects!$A$5:$A$2410='MDOT FTA Detail'!$J$3)*(Projects!$C$5:$C$2410='MDOT FTA Detail'!$C$4)*(Projects!$L$5:$L$2410='MDOT FTA Detail'!$A25)*(Projects!$J$5:$J$2410<>'MDOT FTA Detail'!$A$171)*(Projects!$Q$5:$Q$2410)) -> 0 | M25: =SUMPRODUCT((Projects!$A$5:$A$2410='MDOT FTA Detail'!$M$3)*(Projects!$C$5:$C$2410='MDOT FTA Detail'!$C$4)*(Projects!$L$5:$L$2410='MDOT FTA Detail'!$A25)*(Projects!$J$5:$J$2410<>'MDOT FTA Detail'!$A$171)*(Projects!$K$5:$K$2410)) -> 0 | N25: 0 | O25: =SUMPRODUCT((Projects!$A$5:$A$2410='MDOT FTA Detail'!$M$3)*(Projects!$C$5:$C$2410='MDOT FTA Detail'!$C$4)*(Projects!$L$5:$L$2410='MDOT FTA Detail'!$A25)*(Projects!$J$5:$J$2410<>'MDOT FTA Detail'!$A$171)*(Projects!$Q$5:$Q$2410)) -> 0
A26: DOG | B26: ISTEA Demonstration 100% Federal Not Classified | C26: MDOT FA | D26: =SUMPRODUCT((Projects!$A$5:$A$2410='MDOT FTA Detail'!$D$3)*(Projects!$C$5:$C$2410='MDOT FTA Detail'!$C$4)*(Projects!$L$5:$L$2410='MDOT FTA Detail'!$A26)*(Projects!$J$5:$J$2410<>'MDOT FTA Detail'!$A$171)*(Projects!$K$5:K$2410)) -> 0 | E26: 0 | F26: =SUMPRODUCT((Projects!$A$5:$A$2410='MDOT FTA Detail'!$D$3)*(Projects!$C$5:$C$2410='MDOT FTA Detail'!$C$4)*(Projects!$L$5:$L$2410='MDOT FTA Detail'!$A26)*(Projects!$J$5:$J$2410<>'MDOT FTA Detail'!$A$171)*(Projects!$Q$5:Q$2410)) -> 0 | G26: =SUMPRODUCT((Projects!$A$5:$A$2410='MDOT FTA Detail'!$G$3)*(Projects!$C$5:$C$2410='MDOT FTA Detail'!$C$4)*(Projects!$L$5:$L$2410='MDOT FTA Detail'!$A26)*(Projects!$J$5:$J$2410<>'MDOT FTA Detail'!$A$171)*(Projects!$K$5:K$2410)) -> 0 | H26: 0 | I26: =SUMPRODUCT((Projects!$A$5:$A$2410='MDOT FTA Detail'!$G$3)*(Projects!$C$5:$C$2410='MDOT FTA Detail'!$C$4)*(Projects!$L$5:$L$2410='MDOT FTA Detail'!$A26)*(Projects!$J$5:$J$2410<>'MDOT FTA Detail'!$A$171)*(Projects!$Q$5:Q$2410)) -> 0 | J26: =SUMPRODUCT((Projects!$A$5:$A$2410='MDOT FTA Detail'!$J$3)*(Projects!$C$5:$C$2410='MDOT FTA Detail'!$C$4)*(Projects!$L$5:$L$2410='MDOT FTA Detail'!$A26)*(Projects!$J$5:$J$2410<>'MDOT FTA Detail'!$A$171)*(Projects!$K$5:$K$2410)) -> 0 | K26: 0 | L26: =SUMPRODUCT((Projects!$A$5:$A$2410='MDOT FTA Detail'!$J$3)*(Projects!$C$5:$C$2410='MDOT FTA Detail'!$C$4)*(Projects!$L$5:$L$2410='MDOT FTA Detail'!$A26)*(Projects!$J$5:$J$2410<>'MDOT FTA Detail'!$A$171)*(Projects!$Q$5:$Q$2410)) -> 0 | M26: =SUMPRODUCT((Projects!$A$5:$A$2410='MDOT FTA Detail'!$M$3)*(Projects!$C$5:$C$2410='MDOT FTA Detail'!$C$4)*(Projects!$L$5:$L$2410='MDOT FTA Detail'!$A26)*(Projects!$J$5:$J$2410<>'MDOT FTA Detail'!$A$171)*(Projects!$K$5:$K$2410)) -> 0 | N26: 0 | O26: =SUMPRODUCT((Projects!$A$5:$A$2410='MDOT FTA Detail'!$M$3)*(Projects!$C$5:$C$2410='MDOT FTA Detail'!$C$4)*(Projects!$L$5:$L$2410='MDOT FTA Detail'!$A26)*(Projects!$J$5:$J$2410<>'MDOT FTA Detail'!$A$171)*(Projects!$Q$5:$Q$2410)) -> 0
A27: DPN | B27: ISTEA Demonstration 80% Federal on NHS | C27: MDOT FA | D27: =SUMPRODUCT((Projects!$A$5:$A$2410='MDOT FTA Detail'!$D$3)*(Projects!$C$5:$C$2410='MDOT FTA Detail'!$C$4)*(Projects!$L$5:$L$2410='MDOT FTA Detail'!$A27)*(Projects!$J$5:$J$2410<>'MDOT FTA Detail'!$A$171)*(Projects!$K$5:K$2410)) -> 0 | E27: 0 | F27: =SUMPRODUCT((Projects!$A$5:$A$2410='MDOT FTA Detail'!$D$3)*(Projects!$C$5:$C$2410='MDOT FTA Detail'!$C$4)*(Projects!$L$5:$L$2410='MDOT FTA Detail'!$A27)*(Projects!$J$5:$J$2410<>'MDOT FTA Detail'!$A$171)*(Projects!$Q$5:Q$2410)) -> 0 | G27: =SUMPRODUCT((Projects!$A$5:$A$2410='MDOT FTA Detail'!$G$3)*(Projects!$C$5:$C$2410='MDOT FTA Detail'!$C$4)*(Projects!$L$5:$L$2410='MDOT FTA Detail'!$A27)*(Projects!$J$5:$J$2410<>'MDOT FTA Detail'!$A$171)*(Projects!$K$5:K$2410)) -> 0 | H27: 0 | I27: =SUMPRODUCT((Projects!$A$5:$A$2410='MDOT FTA Detail'!$G$3)*(Projects!$C$5:$C$2410='MDOT FTA Detail'!$C$4)*(Projects!$L$5:$L$2410='MDOT FTA Detail'!$A27)*(Projects!$J$5:$J$2410<>'MDOT FTA Detail'!$A$171)*(Projects!$Q$5:Q$2410)) -> 0 | J27: =SUMPRODUCT((Projects!$A$5:$A$2410='MDOT FTA Detail'!$J$3)*(Projects!$C$5:$C$2410='MDOT FTA Detail'!$C$4)*(Projects!$L$5:$L$2410='MDOT FTA Detail'!$A27)*(Projects!$J$5:$J$2410<>'MDOT FTA Detail'!$A$171)*(Projects!$K$5:$K$2410)) -> 0 | K27: 0 | L27: =SUMPRODUCT((Projects!$A$5:$A$2410='MDOT FTA Detail'!$J$3)*(Projects!$C$5:$C$2410='MDOT FTA Detail'!$C$4)*(Projects!$L$5:$L$2410='MDOT FTA Detail'!$A27)*(Projects!$J$5:$J$2410<>'MDOT FTA Detail'!$A$171)*(Projects!$Q$5:$Q$2410)) -> 0 | M27: =SUMPRODUCT((Projects!$A$5:$A$2410='MDOT FTA Detail'!$M$3)*(Projects!$C$5:$C$2410='MDOT FTA Detail'!$C$4)*(Projects!$L$5:$L$2410='MDOT FTA Detail'!$A27)*(Projects!$J$5:$J$2410<>'MDOT FTA Detail'!$A$171)*(Projects!$K$5:$K$2410)) -> 0 | N27: 0 | O27: =SUMPRODUCT((Projects!$A$5:$A$2410='MDOT FTA Detail'!$M$3)*(Projects!$C$5:$C$2410='MDOT FTA Detail'!$C$4)*(Projects!$L$5:$L$2410='MDOT FTA Detail'!$A27)*(Projects!$J$5:$J$2410<>'MDOT FTA Detail'!$A$171)*(Projects!$Q$5:$Q$2410)) -> 0
A28: DPO | B28: ISTEA Demonstration 80% Federal Not Classified | C28: MDOT FA | D28: =SUMPRODUCT((Projects!$A$5:$A$2410='MDOT FTA Detail'!$D$3)*(Projects!$C$5:$C$2410='MDOT FTA Detail'!$C$4)*(Projects!$L$5:$L$2410='MDOT FTA Detail'!$A28)*(Projects!$J$5:$J$2410<>'MDOT FTA Detail'!$A$171)*(Projects!$K$5:K$2410)) -> 0 | E28: 0 | F28: =SUMPRODUCT((Projects!$A$5:$A$2410='MDOT FTA Detail'!$D$3)*(Projects!$C$5:$C$2410='MDOT FTA Detail'!$C$4)*(Projects!$L$5:$L$2410='MDOT FTA Detail'!$A28)*(Projects!$J$5:$J$2410<>'MDOT FTA Detail'!$A$171)*(Projects!$Q$5:Q$2410)) -> 0 | G28: =SUMPRODUCT((Projects!$A$5:$A$2410='MDOT FTA Detail'!$G$3)*(Projects!$C$5:$C$2410='MDOT FTA Detail'!$C$4)*(Projects!$L$5:$L$2410='MDOT FTA Detail'!$A28)*(Projects!$J$5:$J$2410<>'MDOT FTA Detail'!$A$171)*(Projects!$K$5:K$2410)) -> 0 | H28: 0 | I28: =SUMPRODUCT((Projects!$A$5:$A$2410='MDOT FTA Detail'!$G$3)*(Projects!$C$5:$C$2410='MDOT FTA Detail'!$C$4)*(Projects!$L$5:$L$2410='MDOT FTA Detail'!$A28)*(Projects!$J$5:$J$2410<>'MDOT FTA Detail'!$A$171)*(Projects!$Q$5:Q$2410)) -> 0 | J28: =SUMPRODUCT((Projects!$A$5:$A$2410='MDOT FTA Detail'!$J$3)*(Projects!$C$5:$C$2410='MDOT FTA Detail'!$C$4)*(Projects!$L$5:$L$2410='MDOT FTA Detail'!$A28)*(Projects!$J$5:$J$2410<>'MDOT FTA Detail'!$A$171)*(Projects!$K$5:$K$2410)) -> 0 | K28: 0 | L28: =SUMPRODUCT((Projects!$A$5:$A$2410='MDOT FTA Detail'!$J$3)*(Projects!$C$5:$C$2410='MDOT FTA Detail'!$C$4)*(Projects!$L$5:$L$2410='MDOT FTA Detail'!$A28)*(Projects!$J$5:$J$2410<>'MDOT FTA Detail'!$A$171)*(Projects!$Q$5:$Q$2410)) -> 0 | M28: =SUMPRODUCT((Projects!$A$5:$A$2410='MDOT FTA Detail'!$M$3)*(Projects!$C$5:$C$2410='MDOT FTA Detail'!$C$4)*(Projects!$L$5:$L$2410='MDOT FTA Detail'!$A28)*(Projects!$J$5:$J$2410<>'MDOT FTA Detail'!$A$171)*(Projects!$K$5:$K$2410)) -> 0 | N28: 0 | O28: =SUMPRODUCT((Projects!$A$5:$A$2410='MDOT FTA Detail'!$M$3)*(Projects!$C$5:$C$2410='MDOT FTA Detail'!$C$4)*(Projects!$L$5:$L$2410='MDOT FTA Detail'!$A28)*(Projects!$J$5:$J$2410<>'MDOT FTA Detail'!$A$171)*(Projects!$Q$5:$Q$2410)) -> 0
A29: DPS | B29: ISTEA Demonstration 80% Federal on STP | C29: MDOT FA | D29: =SUMPRODUCT((Projects!$A$5:$A$2410='MDOT FTA Detail'!$D$3)*(Projects!$C$5:$C$2410='MDOT FTA Detail'!$C$4)*(Projects!$L$5:$L$2410='MDOT FTA Detail'!$A29)*(Projects!$J$5:$J$2410<>'MDOT FTA Detail'!$A$171)*(Projects!$K$5:K$2410)) -> 0 | E29: 0 | F29: =SUMPRODUCT((Projects!$A$5:$A$2410='MDOT FTA Detail'!$D$3)*(Projects!$C$5:$C$2410='MDOT FTA Detail'!$C$4)*(Projects!$L$5:$L$2410='MDOT FTA Detail'!$A29)*(Projects!$J$5:$J$2410<>'MDOT FTA Detail'!$A$171)*(Projects!$Q$5:Q$2410)) -> 0 | G29: =SUMPRODUCT((Projects!$A$5:$A$2410='MDOT FTA Detail'!$G$3)*(Projects!$C$5:$C$2410='MDOT FTA Detail'!$C$4)*(Projects!$L$5:$L$2410='MDOT FTA Detail'!$A29)*(Projects!$J$5:$J$2410<>'MDOT FTA Detail'!$A$171)*(Projects!$K$5:K$2410)) -> 0 | H29: 0 | I29: =SUMPRODUCT((Projects!$A$5:$A$2410='MDOT FTA Detail'!$G$3)*(Projects!$C$5:$C$2410='MDOT FTA Detail'!$C$4)*(Projects!$L$5:$L$2410='MDOT FTA Detail'!$A29)*(Projects!$J$5:$J$2410<>'MDOT FTA Detail'!$A$171)*(Projects!$Q$5:Q$2410)) -> 0 | J29: =SUMPRODUCT((Projects!$A$5:$A$2410='MDOT FTA Detail'!$J$3)*(Projects!$C$5:$C$2410='MDOT FTA Detail'!$C$4)*(Projects!$L$5:$L$2410='MDOT FTA Detail'!$A29)*(Projects!$J$5:$J$2410<>'MDOT FTA Detail'!$A$171)*(Projects!$K$5:$K$2410)) -> 0 | K29: 0 | L29: =SUMPRODUCT((Projects!$A$5:$A$2410='MDOT FTA Detail'!$J$3)*(Projects!$C$5:$C$2410='MDOT FTA Detail'!$C$4)*(Projects!$L$5:$L$2410='MDOT FTA Detail'!$A29)*(Projects!$J$5:$J$2410<>'MDOT FTA Detail'!$A$171)*(Projects!$Q$5:$Q$2410)) -> 0 | M29: =SUMPRODUCT((Projects!$A$5:$A$2410='MDOT FTA Detail'!$M$3)*(Projects!$C$5:$C$2410='MDOT FTA Detail'!$C$4)*(Projects!$L$5:$L$2410='MDOT FTA Detail'!$A29)*(Projects!$J$5:$J$2410<>'MDOT FTA Detail'!$A$171)*(Projects!$K$5:$K$2410)) -> 0 | N29: 0 | O29: =SUMPRODUCT((Projects!$A$5:$A$2410='MDOT FTA Detail'!$M$3)*(Projects!$C$5:$C$2410='MDOT FTA Detail'!$C$4)*(Projects!$L$5:$L$2410='MDOT FTA Detail'!$A29)*(Projects!$J$5:$J$2410<>'MDOT FTA Detail'!$A$171)*(Projects!$Q$5:$Q$2410)) -> 0
A30: DPSA | B30: Demonstration Project Section 112 Division A | C30: MDOT FA | D30: =SUMPRODUCT((Projects!$A$5:$A$2410='MDOT FTA Detail'!$D$3)*(Projects!$C$5:$C$2410='MDOT FTA Detail'!$C$4)*(Projects!$L$5:$L$2410='MDOT FTA Detail'!$A30)*(Projects!$J$5:$J$2410<>'MDOT FTA Detail'!$A$171)*(Projects!$K$5:K$2410)) -> 0 | E30: 0 | F30: =SUMPRODUCT((Projects!$A$5:$A$2410='MDOT FTA Detail'!$D$3)*(Projects!$C$5:$C$2410='MDOT FTA Detail'!$C$4)*(Projects!$L$5:$L$2410='MDOT FTA Detail'!$A30)*(Projects!$J$5:$J$2410<>'MDOT FTA Detail'!$A$171)*(Projects!$Q$5:Q$2410)) -> 0 | G30: =SUMPRODUCT((Projects!$A$5:$A$2410='MDOT FTA Detail'!$G$3)*(Projects!$C$5:$C$2410='MDOT FTA Detail'!$C$4)*(Projects!$L$5:$L$2410='MDOT FTA Detail'!$A30)*(Projects!$J$5:$J$2410<>'MDOT FTA Detail'!$A$171)*(Projects!$K$5:K$2410)) -> 0 | H30: 0 | I30: =SUMPRODUCT((Projects!$A$5:$A$2410='MDOT FTA Detail'!$G$3)*(Projects!$C$5:$C$2410='MDOT FTA Detail'!$C$4)*(Projects!$L$5:$L$2410='MDOT FTA Detail'!$A30)*(Projects!$J$5:$J$2410<>'MDOT FTA Detail'!$A$171)*(Projects!$Q$5:Q$2410)) -> 0 | J30: =SUMPRODUCT((Projects!$A$5:$A$2410='MDOT FTA Detail'!$J$3)*(Projects!$C$5:$C$2410='MDOT FTA Detail'!$C$4)*(Projects!$L$5:$L$2410='MDOT FTA Detail'!$A30)*(Projects!$J$5:$J$2410<>'MDOT FTA Detail'!$A$171)*(Projects!$K$5:$K$2410)) -> 0 | K30: 0 | L30: =SUMPRODUCT((Projects!$A$5:$A$2410='MDOT FTA Detail'!$J$3)*(Projects!$C$5:$C$2410='MDOT FTA Detail'!$C$4)*(Projects!$L$5:$L$2410='MDOT FTA Detail'!$A30)*(Projects!$J$5:$J$2410<>'MDOT FTA Detail'!$A$171)*(Projects!$Q$5:$Q$2410)) -> 0 | M30: =SUMPRODUCT((Projects!$A$5:$A$2410='MDOT FTA Detail'!$M$3)*(Projects!$C$5:$C$2410='MDOT FTA Detail'!$C$4)*(Projects!$L$5:$L$2410='MDOT FTA Detail'!$A30)*(Projects!$J$5:$J$2410<>'MDOT FTA Detail'!$A$171)*(Projects!$K$5:$K$2410)) -> 0 | N30: 0 | O30: =SUMPRODUCT((Projects!$A$5:$A$2410='MDOT FTA Detail'!$M$3)*(Projects!$C$5:$C$2410='MDOT FTA Detail'!$C$4)*(Projects!$L$5:$L$2410='MDOT FTA Detail'!$A30)*(Projects!$J$5:$J$2410<>'MDOT FTA Detail'!$A$171)*(Projects!$Q$5:$Q$2410)) -> 0
A31: DST | B31: Donor Bonus Surface Transportation | C31: MDOT FA | D31: =SUMPRODUCT((Projects!$A$5:$A$2410='MDOT FTA Detail'!$D$3)*(Projects!$C$5:$C$2410='MDOT FTA Detail'!$C$4)*(Projects!$L$5:$L$2410='MDOT FTA Detail'!$A31)*(Projects!$J$5:$J$2410<>'MDOT FTA Detail'!$A$171)*(Projects!$K$5:K$2410)) -> 0 | E31: 0 | F31: =SUMPRODUCT((Projects!$A$5:$A$2410='MDOT FTA Detail'!$D$3)*(Projects!$C$5:$C$2410='MDOT FTA Detail'!$C$4)*(Projects!$L$5:$L$2410='MDOT FTA Detail'!$A31)*(Projects!$J$5:$J$2410<>'MDOT FTA Detail'!$A$171)*(Projects!$Q$5:Q$2410)) -> 0 | G31: =SUMPRODUCT((Projects!$A$5:$A$2410='MDOT FTA Detail'!$G$3)*(Projects!$C$5:$C$2410='MDOT FTA Detail'!$C$4)*(Projects!$L$5:$L$2410='MDOT FTA Detail'!$A31)*(Projects!$J$5:$J$2410<>'MDOT FTA Detail'!$A$171)*(Projects!$K$5:K$2410)) -> 0 | H31: 0 | I31: =SUMPRODUCT((Projects!$A$5:$A$2410='MDOT FTA Detail'!$G$3)*(Projects!$C$5:$C$2410='MDOT FTA Detail'!$C$4)*(Projects!$L$5:$L$2410='MDOT FTA Detail'!$A31)*(Projects!$J$5:$J$2410<>'MDOT FTA Detail'!$A$171)*(Projects!$Q$5:Q$2410)) -> 0 | J31: =SUMPRODUCT((Projects!$A$5:$A$2410='MDOT FTA Detail'!$J$3)*(Projects!$C$5:$C$2410='MDOT FTA Detail'!$C$4)*(Projects!$L$5:$L$2410='MDOT FTA Detail'!$A31)*(Projects!$J$5:$J$2410<>'MDOT FTA Detail'!$A$171)*(Projects!$K$5:$K$2410)) -> 0 | K31: 0 | L31: =SUMPRODUCT((Projects!$A$5:$A$2410='MDOT FTA Detail'!$J$3)*(Projects!$C$5:$C$2410='MDOT FTA Detail'!$C$4)*(Projects!$L$5:$L$2410='MDOT FTA Detail'!$A31)*(Projects!$J$5:$J$2410<>'MDOT FTA Detail'!$A$171)*(Projects!$Q$5:$Q$2410)) -> 0 | M31: =SUMPRODUCT((Projects!$A$5:$A$2410='MDOT FTA Detail'!$M$3)*(Projects!$C$5:$C$2410='MDOT FTA Detail'!$C$4)*(Projects!$L$5:$L$2410='MDOT FTA Detail'!$A31)*(Projects!$J$5:$J$2410<>'MDOT FTA Detail'!$A$171)*(Projects!$K$5:$K$2410)) -> 0 | N31: 0 | O31: =SUMPRODUCT((Projects!$A$5:$A$2410='MDOT FTA Detail'!$M$3)*(Projects!$C$5:$C$2410='MDOT FTA Detail'!$C$4)*(Projects!$L$5:$L$2410='MDOT FTA Detail'!$A31)*(Projects!$J$5:$J$2410<>'MDOT FTA Detail'!$A$171)*(Projects!$Q$5:$Q$2410)) -> 0
A32: DSTU | B32: Donor Bonus Surface Transportation - (Urban > 2499,000) | C32: MDOT FA | D32: =SUMPRODUCT((Projects!$A$5:$A$2410='MDOT FTA Detail'!$D$3)*(Projects!$C$5:$C$2410='MDOT FTA Detail'!$C$4)*(Projects!$L$5:$L$2410='MDOT FTA Detail'!$A32)*(Projects!$J$5:$J$2410<>'MDOT FTA Detail'!$A$171)*(Projects!$K$5:K$2410)) -> 0 | E32: 0 | F32: =SUMPRODUCT((Projects!$A$5:$A$2410='MDOT FTA Detail'!$D$3)*(Projects!$C$5:$C$2410='MDOT FTA Detail'!$C$4)*(Projects!$L$5:$L$2410='MDOT FTA Detail'!$A32)*(Projects!$J$5:$J$2410<>'MDOT FTA Detail'!$A$171)*(Projects!$Q$5:Q$2410)) -> 0 | G32: =SUMPRODUCT((Projects!$A$5:$A$2410='MDOT FTA Detail'!$G$3)*(Projects!$C$5:$C$2410='MDOT FTA Detail'!$C$4)*(Projects!$L$5:$L$2410='MDOT FTA Detail'!$A32)*(Projects!$J$5:$J$2410<>'MDOT FTA Detail'!$A$171)*(Projects!$K$5:K$2410)) -> 0 | H32: 0 | I32: =SUMPRODUCT((Projects!$A$5:$A$2410='MDOT FTA Detail'!$G$3)*(Projects!$C$5:$C$2410='MDOT FTA Detail'!$C$4)*(Projects!$L$5:$L$2410='MDOT FTA Detail'!$A32)*(Projects!$J$5:$J$2410<>'MDOT FTA Detail'!$A$171)*(Projects!$Q$5:Q$2410)) -> 0 | J32: =SUMPRODUCT((Projects!$A$5:$A$2410='MDOT FTA Detail'!$J$3)*(Projects!$C$5:$C$2410='MDOT FTA Detail'!$C$4)*(Projects!$L$5:$L$2410='MDOT FTA Detail'!$A32)*(Projects!$J$5:$J$2410<>'MDOT FTA Detail'!$A$171)*(Projects!$K$5:$K$2410)) -> 0 | K32: 0 | L32: =SUMPRODUCT((Projects!$A$5:$A$2410='MDOT FTA Detail'!$J$3)*(Projects!$C$5:$C$2410='MDOT FTA Detail'!$C$4)*(Projects!$L$5:$L$2410='MDOT FTA Detail'!$A32)*(Projects!$J$5:$J$2410<>'MDOT FTA Detail'!$A$171)*(Projects!$Q$5:$Q$2410)) -> 0 | M32: =SUMPRODUCT((Projects!$A$5:$A$2410='MDOT FTA Detail'!$M$3)*(Projects!$C$5:$C$2410='MDOT FTA Detail'!$C$4)*(Projects!$L$5:$L$2410='MDOT FTA Detail'!$A32)*(Projects!$J$5:$J$2410<>'MDOT FTA Detail'!$A$171)*(Projects!$K$5:$K$2410)) -> 0 | N32: 0 | O32: =SUMPRODUCT((Projects!$A$5:$A$2410='MDOT FTA Detail'!$M$3)*(Projects!$C$5:$C$2410='MDOT FTA Detail'!$C$4)*(Projects!$L$5:$L$2410='MDOT FTA Detail'!$A32)*(Projects!$J$5:$J$2410<>'MDOT FTA Detail'!$A$171)*(Projects!$Q$5:$Q$2410)) -> 0
A33: DSTT | B33: Donor Bonus Surface Transportation - Rural - Trunkline | C33: MDOT FA | D33: =SUMPRODUCT((Projects!$A$5:$A$2410='MDOT FTA Detail'!$D$3)*(Projects!$C$5:$C$2410='MDOT FTA Detail'!$C$4)*(Projects!$L$5:$L$2410='MDOT FTA Detail'!$A33)*(Projects!$J$5:$J$2410<>'MDOT FTA Detail'!$A$171)*(Projects!$K$5:K$2410)) -> 0 | E33: 0 | F33: =SUMPRODUCT((Projects!$A$5:$A$2410='MDOT FTA Detail'!$D$3)*(Projects!$C$5:$C$2410='MDOT FTA Detail'!$C$4)*(Projects!$L$5:$L$2410='MDOT FTA Detail'!$A33)*(Projects!$J$5:$J$2410<>'MDOT FTA Detail'!$A$171)*(Projects!$Q$5:Q$2410)) -> 0 | G33: =SUMPRODUCT((Projects!$A$5:$A$2410='MDOT FTA Detail'!$G$3)*(Projects!$C$5:$C$2410='MDOT FTA Detail'!$C$4)*(Projects!$L$5:$L$2410='MDOT FTA Detail'!$A33)*(Projects!$J$5:$J$2410<>'MDOT FTA Detail'!$A$171)*(Projects!$K$5:K$2410)) -> 0 | H33: 0 | I33: =SUMPRODUCT((Projects!$A$5:$A$2410='MDOT FTA Detail'!$G$3)*(Projects!$C$5:$C$2410='MDOT FTA Detail'!$C$4)*(Projects!$L$5:$L$2410='MDOT FTA Detail'!$A33)*(Projects!$J$5:$J$2410<>'MDOT FTA Detail'!$A$171)*(Projects!$Q$5:Q$2410)) -> 0 | J33: =SUMPRODUCT((Projects!$A$5:$A$2410='MDOT FTA Detail'!$J$3)*(Projects!$C$5:$C$2410='MDOT FTA Detail'!$C$4)*(Projects!$L$5:$L$2410='MDOT FTA Detail'!$A33)*(Projects!$J$5:$J$2410<>'MDOT FTA Detail'!$A$171)*(Projects!$K$5:$K$2410)) -> 0 | K33: 0 | L33: =SUMPRODUCT((Projects!$A$5:$A$2410='MDOT FTA Detail'!$J$3)*(Projects!$C$5:$C$2410='MDOT FTA Detail'!$C$4)*(Projects!$L$5:$L$2410='MDOT FTA Detail'!$A33)*(Projects!$J$5:$J$2410<>'MDOT FTA Detail'!$A$171)*(Projects!$Q$5:$Q$2410)) -> 0 | M33: =SUMPRODUCT((Projects!$A$5:$A$2410='MDOT FTA Detail'!$M$3)*(Projects!$C$5:$C$2410='MDOT FTA Detail'!$C$4)*(Projects!$L$5:$L$2410='MDOT FTA Detail'!$A33)*(Projects!$J$5:$J$2410<>'MDOT FTA Detail'!$A$171)*(Projects!$K$5:$K$2410)) -> 0 | N33: 0 | O33: =SUMPRODUCT((Projects!$A$5:$A$2410='MDOT FTA Detail'!$M$3)*(Projects!$C$5:$C$2410='MDOT FTA Detail'!$C$4)*(Projects!$L$5:$L$2410='MDOT FTA Detail'!$A33)*(Projects!$J$5:$J$2410<>'MDOT FTA Detail'!$A$171)*(Projects!$Q$5:$Q$2410)) -> 0
A34: EBSL | B34: Equity Bonus - SAFETEA-LU | C34: MDOT FA | D34: =SUMPRODUCT((Projects!$A$5:$A$2410='MDOT FTA Detail'!$D$3)*(Projects!$C$5:$C$2410='MDOT FTA Detail'!$C$4)*(Projects!$L$5:$L$2410='MDOT FTA Detail'!$A34)*(Projects!$J$5:$J$2410<>'MDOT FTA Detail'!$A$171)*(Projects!$K$5:K$2410)) -> 0 | E34: 0 | F34: =SUMPRODUCT((Projects!$A$5:$A$2410='MDOT FTA Detail'!$D$3)*(Projects!$C$5:$C$2410='MDOT FTA Detail'!$C$4)*(Projects!$L$5:$L$2410='MDOT FTA Detail'!$A34)*(Projects!$J$5:$J$2410<>'MDOT FTA Detail'!$A$171)*(Projects!$Q$5:Q$2410)) -> 0 | G34: =SUMPRODUCT((Projects!$A$5:$A$2410='MDOT FTA Detail'!$G$3)*(Projects!$C$5:$C$2410='MDOT FTA Detail'!$C$4)*(Projects!$L$5:$L$2410='MDOT FTA Detail'!$A34)*(Projects!$J$5:$J$2410<>'MDOT FTA Detail'!$A$171)*(Projects!$K$5:K$2410)) -> 0 | H34: 0 | I34: =SUMPRODUCT((Projects!$A$5:$A$2410='MDOT FTA Detail'!$G$3)*(Projects!$C$5:$C$2410='MDOT FTA Detail'!$C$4)*(Projects!$L$5:$L$2410='MDOT FTA Detail'!$A34)*(Projects!$J$5:$J$2410<>'MDOT FTA Detail'!$A$171)*(Projects!$Q$5:Q$2410)) -> 0 | J34: =SUMPRODUCT((Projects!$A$5:$A$2410='MDOT FTA Detail'!$J$3)*(Projects!$C$5:$C$2410='MDOT FTA Detail'!$C$4)*(Projects!$L$5:$L$2410='MDOT FTA Detail'!$A34)*(Projects!$J$5:$J$2410<>'MDOT FTA Detail'!$A$171)*(Projects!$K$5:$K$2410)) -> 0 | K34: 0 | L34: =SUMPRODUCT((Projects!$A$5:$A$2410='MDOT FTA Detail'!$J$3)*(Projects!$C$5:$C$2410='MDOT FTA Detail'!$C$4)*(Projects!$L$5:$L$2410='MDOT FTA Detail'!$A34)*(Projects!$J$5:$J$2410<>'MDOT FTA Detail'!$A$171)*(Projects!$Q$5:$Q$2410)) -> 0 | M34: =SUMPRODUCT((Projects!$A$5:$A$2410='MDOT FTA Detail'!$M$3)*(Projects!$C$5:$C$2410='MDOT FTA Detail'!$C$4)*(Projects!$L$5:$L$2410='MDOT FTA Detail'!$A34)*(Projects!$J$5:$J$2410<>'MDOT FTA Detail'!$A$171)*(Projects!$K$5:$K$2410)) -> 0 | N34: 0 | O34: =SUMPRODUCT((Projects!$A$5:$A$2410='MDOT FTA Detail'!$M$3)*(Projects!$C$5:$C$2410='MDOT FTA Detail'!$C$4)*(Projects!$L$5:$L$2410='MDOT FTA Detail'!$A34)*(Projects!$J$5:$J$2410<>'MDOT FTA Detail'!$A$171)*(Projects!$Q$5:$Q$2410)) -> 0
A35: EDAF | B35: Economic Development - Category A with Federal Aid | C35: MDOT FA | D35: =SUMPRODUCT((Projects!$A$5:$A$2410='MDOT FTA Detail'!$D$3)*(Projects!$C$5:$C$2410='MDOT FTA Detail'!$C$4)*(Projects!$L$5:$L$2410='MDOT FTA Detail'!$A35)*(Projects!$J$5:$J$2410<>'MDOT FTA Detail'!$A$171)*(Projects!$K$5:K$2410)) -> 0 | E35: 0 | F35: =SUMPRODUCT((Projects!$A$5:$A$2410='MDOT FTA Detail'!$D$3)*(Projects!$C$5:$C$2410='MDOT FTA Detail'!$C$4)*(Projects!$L$5:$L$2410='MDOT FTA Detail'!$A35)*(Projects!$J$5:$J$2410<>'MDOT FTA Detail'!$A$171)*(Projects!$Q$5:Q$2410)) -> 0 | G35: =SUMPRODUCT((Projects!$A$5:$A$2410='MDOT FTA Detail'!$G$3)*(Projects!$C$5:$C$2410='MDOT FTA Detail'!$C$4)*(Projects!$L$5:$L$2410='MDOT FTA Detail'!$A35)*(Projects!$J$5:$J$2410<>'MDOT FTA Detail'!$A$171)*(Projects!$K$5:K$2410)) -> 0 | H35: 0 | I35: =SUMPRODUCT((Projects!$A$5:$A$2410='MDOT FTA Detail'!$G$3)*(Projects!$C$5:$C$2410='MDOT FTA Detail'!$C$4)*(Projects!$L$5:$L$2410='MDOT FTA Detail'!$A35)*(Projects!$J$5:$J$2410<>'MDOT FTA Detail'!$A$171)*(Projects!$Q$5:Q$2410)) -> 0 | J35: =SUMPRODUCT((Projects!$A$5:$A$2410='MDOT FTA Detail'!$J$3)*(Projects!$C$5:$C$2410='MDOT FTA Detail'!$C$4)*(Projects!$L$5:$L$2410='MDOT FTA Detail'!$A35)*(Projects!$J$5:$J$2410<>'MDOT FTA Detail'!$A$171)*(Projects!$K$5:$K$2410)) -> 0 | K35: 0 | L35: =SUMPRODUCT((Projects!$A$5:$A$2410='MDOT FTA Detail'!$J$3)*(Projects!$C$5:$C$2410='MDOT FTA Detail'!$C$4)*(Projects!$L$5:$L$2410='MDOT FTA Detail'!$A35)*(Projects!$J$5:$J$2410<>'MDOT FTA Detail'!$A$171)*(Projects!$Q$5:$Q$2410)) -> 0 | M35: =SUMPRODUCT((Projects!$A$5:$A$2410='MDOT FTA Detail'!$M$3)*(Projects!$C$5:$C$2410='MDOT FTA Detail'!$C$4)*(Projects!$L$5:$L$2410='MDOT FTA Detail'!$A35)*(Projects!$J$5:$J$2410<>'MDOT FTA Detail'!$A$171)*(Projects!$K$5:$K$2410)) -> 0 | N35: 0 | O35: =SUMPRODUCT((Projects!$A$5:$A$2410='MDOT FTA Detail'!$M$3)*(Projects!$C$5:$C$2410='MDOT FTA Detail'!$C$4)*(Projects!$L$5:$L$2410='MDOT FTA Detail'!$A35)*(Projects!$J$5:$J$2410<>'MDOT FTA Detail'!$A$171)*(Projects!$Q$5:$Q$2410)) -> 0
A36: EDCF | B36: Economic Development - Category C with Federal Aid | C36: MDOT FA | D36: =SUMPRODUCT((Projects!$A$5:$A$2410='MDOT FTA Detail'!$D$3)*(Projects!$C$5:$C$2410='MDOT FTA Detail'!$C$4)*(Projects!$L$5:$L$2410='MDOT FTA Detail'!$A36)*(Projects!$J$5:$J$2410<>'MDOT FTA Detail'!$A$171)*(Projects!$K$5:K$2410)) -> 0 | E36: 0 | F36: =SUMPRODUCT((Projects!$A$5:$A$2410='MDOT FTA Detail'!$D$3)*(Projects!$C$5:$C$2410='MDOT FTA Detail'!$C$4)*(Projects!$L$5:$L$2410='MDOT FTA Detail'!$A36)*(Projects!$J$5:$J$2410<>'MDOT FTA Detail'!$A$171)*(Projects!$Q$5:Q$2410)) -> 0 | G36: =SUMPRODUCT((Projects!$A$5:$A$2410='MDOT FTA Detail'!$G$3)*(Projects!$C$5:$C$2410='MDOT FTA Detail'!$C$4)*(Projects!$L$5:$L$2410='MDOT FTA Detail'!$A36)*(Projects!$J$5:$J$2410<>'MDOT FTA Detail'!$A$171)*(Projects!$K$5:K$2410)) -> 0 | H36: 0 | I36: =SUMPRODUCT((Projects!$A$5:$A$2410='MDOT FTA Detail'!$G$3)*(Projects!$C$5:$C$2410='MDOT FTA Detail'!$C$4)*(Projects!$L$5:$L$2410='MDOT FTA Detail'!$A36)*(Projects!$J$5:$J$2410<>'MDOT FTA Detail'!$A$171)*(Projects!$Q$5:Q$2410)) -> 0 | J36: =SUMPRODUCT((Projects!$A$5:$A$2410='MDOT FTA Detail'!$J$3)*(Projects!$C$5:$C$2410='MDOT FTA Detail'!$C$4)*(Projects!$L$5:$L$2410='MDOT FTA Detail'!$A36)*(Projects!$J$5:$J$2410<>'MDOT FTA Detail'!$A$171)*(Projects!$K$5:$K$2410)) -> 0 | K36: 0 | L36: =SUMPRODUCT((Projects!$A$5:$A$2410='MDOT FTA Detail'!$J$3)*(Projects!$C$5:$C$2410='MDOT FTA Detail'!$C$4)*(Projects!$L$5:$L$2410='MDOT FTA Detail'!$A36)*(Projects!$J$5:$J$2410<>'MDOT FTA Detail'!$A$171)*(Projects!$Q$5:$Q$2410)) -> 0 | M36: =SUMPRODUCT((Projects!$A$5:$A$2410='MDOT FTA Detail'!$M$3)*(Projects!$C$5:$C$2410='MDOT FTA Detail'!$C$4)*(Projects!$L$5:$L$2410='MDOT FTA Detail'!$A36)*(Projects!$J$5:$J$2410<>'MDOT FTA Detail'!$A$171)*(Projects!$K$5:$K$2410)) -> 0 | N36: 0 | O36: =SUMPRODUCT((Projects!$A$5:$A$2410='MDOT FTA Detail'!$M$3)*(Projects!$C$5:$C$2410='MDOT FTA Detail'!$C$4)*(Projects!$L$5:$L$2410='MDOT FTA Detail'!$A36)*(Projects!$J$5:$J$2410<>'MDOT FTA Detail'!$A$171)*(Projects!$Q$5:$Q$2410)) -> 0
A37: EDDF | B37: Economic Development - Category D with Federal Aid | C37: MDOT FA | D37: =SUMPRODUCT((Projects!$A$5:$A$2410='MDOT FTA Detail'!$D$3)*(Projects!$C$5:$C$2410='MDOT FTA Detail'!$C$4)*(Projects!$L$5:$L$2410='MDOT FTA Detail'!$A37)*(Projects!$J$5:$J$2410<>'MDOT FTA Detail'!$A$171)*(Projects!$K$5:K$2410)) -> 0 | E37: 0 | F37: =SUMPRODUCT((Projects!$A$5:$A$2410='MDOT FTA Detail'!$D$3)*(Projects!$C$5:$C$2410='MDOT FTA Detail'!$C$4)*(Projects!$L$5:$L$2410='MDOT FTA Detail'!$A37)*(Projects!$J$5:$J$2410<>'MDOT FTA Detail'!$A$171)*(Projects!$Q$5:Q$2410)) -> 0 | G37: =SUMPRODUCT((Projects!$A$5:$A$2410='MDOT FTA Detail'!$G$3)*(Projects!$C$5:$C$2410='MDOT FTA Detail'!$C$4)*(Projects!$L$5:$L$2410='MDOT FTA Detail'!$A37)*(Projects!$J$5:$J$2410<>'MDOT FTA Detail'!$A$171)*(Projects!$K$5:K$2410)) -> 0 | H37: 0 | I37: =SUMPRODUCT((Projects!$A$5:$A$2410='MDOT FTA Detail'!$G$3)*(Projects!$C$5:$C$2410='MDOT FTA Detail'!$C$4)*(Projects!$L$5:$L$2410='MDOT FTA Detail'!$A37)*(Projects!$J$5:$J$2410<>'MDOT FTA Detail'!$A$171)*(Projects!$Q$5:Q$2410)) -> 0 | J37: =SUMPRODUCT((Projects!$A$5:$A$2410='MDOT FTA Detail'!$J$3)*(Projects!$C$5:$C$2410='MDOT FTA Detail'!$C$4)*(Projects!$L$5:$L$2410='MDOT FTA Detail'!$A37)*(Projects!$J$5:$J$2410<>'MDOT FTA Detail'!$A$171)*(Projects!$K$5:$K$2410)) -> 0 | K37: 0 | L37: =SUMPRODUCT((Projects!$A$5:$A$2410='MDOT FTA Detail'!$J$3)*(Projects!$C$5:$C$2410='MDOT FTA Detail'!$C$4)*(Projects!$L$5:$L$2410='MDOT FTA Detail'!$A37)*(Projects!$J$5:$J$2410<>'MDOT FTA Detail'!$A$171)*(Projects!$Q$5:$Q$2410)) -> 0 | M37: =SUMPRODUCT((Projects!$A$5:$A$2410='MDOT FTA Detail'!$M$3)*(Projects!$C$5:$C$2410='MDOT FTA Detail'!$C$4)*(Projects!$L$5:$L$2410='MDOT FTA Detail'!$A37)*(Projects!$J$5:$J$2410<>'MDOT FTA Detail'!$A$171)*(Projects!$K$5:$K$2410)) -> 0 | N37: 0 | O37: =SUMPRODUCT((Projects!$A$5:$A$2410='MDOT FTA Detail'!$M$3)*(Projects!$C$5:$C$2410='MDOT FTA Detail'!$C$4)*(Projects!$L$5:$L$2410='MDOT FTA Detail'!$A37)*(Projects!$J$5:$J$2410<>'MDOT FTA Detail'!$A$171)*(Projects!$Q$5:$Q$2410)) -> 0
A38: EDFF | B38: Economic Development - Category F with Federal Aid | C38: MDOT FA | D38: =SUMPRODUCT((Projects!$A$5:$A$2410='MDOT FTA Detail'!$D$3)*(Projects!$C$5:$C$2410='MDOT FTA Detail'!$C$4)*(Projects!$L$5:$L$2410='MDOT FTA Detail'!$A38)*(Projects!$J$5:$J$2410<>'MDOT FTA Detail'!$A$171)*(Projects!$K$5:K$2410)) -> 0 | E38: 0 | F38: =SUMPRODUCT((Projects!$A$5:$A$2410='MDOT FTA Detail'!$D$3)*(Projects!$C$5:$C$2410='MDOT FTA Detail'!$C$4)*(Projects!$L$5:$L$2410='MDOT FTA Detail'!$A38)*(Projects!$J$5:$J$2410<>'MDOT FTA Detail'!$A$171)*(Projects!$Q$5:Q$2410)) -> 0 | G38: =SUMPRODUCT((Projects!$A$5:$A$2410='MDOT FTA Detail'!$G$3)*(Projects!$C$5:$C$2410='MDOT FTA Detail'!$C$4)*(Projects!$L$5:$L$2410='MDOT FTA Detail'!$A38)*(Projects!$J$5:$J$2410<>'MDOT FTA Detail'!$A$171)*(Projects!$K$5:K$2410)) -> 0 | H38: 0 | I38: =SUMPRODUCT((Projects!$A$5:$A$2410='MDOT FTA Detail'!$G$3)*(Projects!$C$5:$C$2410='MDOT FTA Detail'!$C$4)*(Projects!$L$5:$L$2410='MDOT FTA Detail'!$A38)*(Projects!$J$5:$J$2410<>'MDOT FTA Detail'!$A$171)*(Projects!$Q$5:Q$2410)) -> 0 | J38: =SUMPRODUCT((Projects!$A$5:$A$2410='MDOT FTA Detail'!$J$3)*(Projects!$C$5:$C$2410='MDOT FTA Detail'!$C$4)*(Projects!$L$5:$L$2410='MDOT FTA Detail'!$A38)*(Projects!$J$5:$J$2410<>'MDOT FTA Detail'!$A$171)*(Projects!$K$5:$K$2410)) -> 0 | K38: 0 | L38: =SUMPRODUCT((Projects!$A$5:$A$2410='MDOT FTA Detail'!$J$3)*(Projects!$C$5:$C$2410='MDOT FTA Detail'!$C$4)*(Projects!$L$5:$L$2410='MDOT FTA Detail'!$A38)*(Projects!$J$5:$J$2410<>'MDOT FTA Detail'!$A$171)*(Projects!$Q$5:$Q$2410)) -> 0 | M38: =SUMPRODUCT((Projects!$A$5:$A$2410='MDOT FTA Detail'!$M$3)*(Projects!$C$5:$C$2410='MDOT FTA Detail'!$C$4)*(Projects!$L$5:$L$2410='MDOT FTA Detail'!$A38)*(Projects!$J$5:$J$2410<>'MDOT FTA Detail'!$A$171)*(Projects!$K$5:$K$2410)) -> 0 | N38: 0 | O38: =SUMPRODUCT((Projects!$A$5:$A$2410='MDOT FTA Detail'!$M$3)*(Projects!$C$5:$C$2410='MDOT FTA Detail'!$C$4)*(Projects!$L$5:$L$2410='MDOT FTA Detail'!$A38)*(Projects!$J$5:$J$2410<>'MDOT FTA Detail'!$A$171)*(Projects!$Q$5:$Q$2410)) -> 0
A39: ER | B39: Emergency Relief | C39: MDOT FA | D39: =SUMPRODUCT((Projects!$A$5:$A$2410='MDOT FTA Detail'!$D$3)*(Projects!$C$5:$C$2410='MDOT FTA Detail'!$C$4)*(Projects!$L$5:$L$2410='MDOT FTA Detail'!$A39)*(Projects!$J$5:$J$2410<>'MDOT FTA Detail'!$A$171)*(Projects!$K$5:K$2410)) -> 0 | E39: 0 | F39: =SUMPRODUCT((Projects!$A$5:$A$2410='MDOT FTA Detail'!$D$3)*(Projects!$C$5:$C$2410='MDOT FTA Detail'!$C$4)*(Projects!$L$5:$L$2410='MDOT FTA Detail'!$A39)*(Projects!$J$5:$J$2410<>'MDOT FTA Detail'!$A$171)*(Projects!$Q$5:Q$2410)) -> 0 | G39: =SUMPRODUCT((Projects!$A$5:$A$2410='MDOT FTA Detail'!$G$3)*(Projects!$C$5:$C$2410='MDOT FTA Detail'!$C$4)*(Projects!$L$5:$L$2410='MDOT FTA Detail'!$A39)*(Projects!$J$5:$J$2410<>'MDOT FTA Detail'!$A$171)*(Projects!$K$5:K$2410)) -> 0 | H39: 0 | I39: =SUMPRODUCT((Projects!$A$5:$A$2410='MDOT FTA Detail'!$G$3)*(Projects!$C$5:$C$2410='MDOT FTA Detail'!$C$4)*(Projects!$L$5:$L$2410='MDOT FTA Detail'!$A39)*(Projects!$J$5:$J$2410<>'MDOT FTA Detail'!$A$171)*(Projects!$Q$5:Q$2410)) -> 0 | J39: =SUMPRODUCT((Projects!$A$5:$A$2410='MDOT FTA Detail'!$J$3)*(Projects!$C$5:$C$2410='MDOT FTA Detail'!$C$4)*(Projects!$L$5:$L$2410='MDOT FTA Detail'!$A39)*(Projects!$J$5:$J$2410<>'MDOT FTA Detail'!$A$171)*(Projects!$K$5:$K$2410)) -> 0 | K39: 0 | L39: =SUMPRODUCT((Projects!$A$5:$A$2410='MDOT FTA Detail'!$J$3)*(Projects!$C$5:$C$2410='MDOT FTA Detail'!$C$4)*(Projects!$L$5:$L$2410='MDOT FTA Detail'!$A39)*(Projects!$J$5:$J$2410<>'MDOT FTA Detail'!$A$171)*(Projects!$Q$5:$Q$2410)) -> 0 | M39: =SUMPRODUCT((Projects!$A$5:$A$2410='MDOT FTA Detail'!$M$3)*(Projects!$C$5:$C$2410='MDOT FTA Detail'!$C$4)*(Projects!$L$5:$L$2410='MDOT FTA Detail'!$A39)*(Projects!$J$5:$J$2410<>'MDOT FTA Detail'!$A$171)*(Projects!$K$5:$K$2410)) -> 0 | N39: 0 | O39: =SUMPRODUCT((Projects!$A$5:$A$2410='MDOT FTA Detail'!$M$3)*(Projects!$C$5:$C$2410='MDOT FTA Detail'!$C$4)*(Projects!$L$5:$L$2410='MDOT FTA Detail'!$A39)*(Projects!$J$5:$J$2410<>'MDOT FTA Detail'!$A$171)*(Projects!$Q$5:$Q$2410)) -> 0
A40: FBD | B40: Ferry Boat & Terminal Discretionary | C40: MDOT FA | D40: =SUMPRODUCT((Projects!$A$5:$A$2410='MDOT FTA Detail'!$D$3)*(Projects!$C$5:$C$2410='MDOT FTA Detail'!$C$4)*(Projects!$L$5:$L$2410='MDOT FTA Detail'!$A40)*(Projects!$J$5:$J$2410<>'MDOT FTA Detail'!$A$171)*(Projects!$K$5:K$2410)) -> 0 | E40: 0 | F40: =SUMPRODUCT((Projects!$A$5:$A$2410='MDOT FTA Detail'!$D$3)*(Projects!$C$5:$C$2410='MDOT FTA Detail'!$C$4)*(Projects!$L$5:$L$2410='MDOT FTA Detail'!$A40)*(Projects!$J$5:$J$2410<>'MDOT FTA Detail'!$A$171)*(Projects!$Q$5:Q$2410)) -> 0 | G40: =SUMPRODUCT((Projects!$A$5:$A$2410='MDOT FTA Detail'!$G$3)*(Projects!$C$5:$C$2410='MDOT FTA Detail'!$C$4)*(Projects!$L$5:$L$2410='MDOT FTA Detail'!$A40)*(Projects!$J$5:$J$2410<>'MDOT FTA Detail'!$A$171)*(Projects!$K$5:K$2410)) -> 0 | H40: 0 | I40: =SUMPRODUCT((Projects!$A$5:$A$2410='MDOT FTA Detail'!$G$3)*(Projects!$C$5:$C$2410='MDOT FTA Detail'!$C$4)*(Projects!$L$5:$L$2410='MDOT FTA Detail'!$A40)*(Projects!$J$5:$J$2410<>'MDOT FTA Detail'!$A$171)*(Projects!$Q$5:Q$2410)) -> 0 | J40: =SUMPRODUCT((Projects!$A$5:$A$2410='MDOT FTA Detail'!$J$3)*(Projects!$C$5:$C$2410='MDOT FTA Detail'!$C$4)*(Projects!$L$5:$L$2410='MDOT FTA Detail'!$A40)*(Projects!$J$5:$J$2410<>'MDOT FTA Detail'!$A$171)*(Projects!$K$5:$K$2410)) -> 0 | K40: 0 | L40: =SUMPRODUCT((Projects!$A$5:$A$2410='MDOT FTA Detail'!$J$3)*(Projects!$C$5:$C$2410='MDOT FTA Detail'!$C$4)*(Projects!$L$5:$L$2410='MDOT FTA Detail'!$A40)*(Projects!$J$5:$J$2410<>'MDOT FTA Detail'!$A$171)*(Projects!$Q$5:$Q$2410)) -> 0 | M40: =SUMPRODUCT((Projects!$A$5:$A$2410='MDOT FTA Detail'!$M$3)*(Projects!$C$5:$C$2410='MDOT FTA Detail'!$C$4)*(Projects!$L$5:$L$2410='MDOT FTA Detail'!$A40)*(Projects!$J$5:$J$2410<>'MDOT FTA Detail'!$A$171)*(Projects!$K$5:$K$2410)) -> 0 | N40: 0 | O40: =SUMPRODUCT((Projects!$A$5:$A$2410='MDOT FTA Detail'!$M$3)*(Projects!$C$5:$C$2410='MDOT FTA Detail'!$C$4)*(Projects!$L$5:$L$2410='MDOT FTA Detail'!$A40)*(Projects!$J$5:$J$2410<>'MDOT FTA Detail'!$A$171)*(Projects!$Q$5:$Q$2410)) -> 0
A41: FFH | B41: Federal Forest Highway | C41: MDOT FA | D41: =SUMPRODUCT((Projects!$A$5:$A$2410='MDOT FTA Detail'!$D$3)*(Projects!$C$5:$C$2410='MDOT FTA Detail'!$C$4)*(Projects!$L$5:$L$2410='MDOT FTA Detail'!$A41)*(Projects!$J$5:$J$2410<>'MDOT FTA Detail'!$A$171)*(Projects!$K$5:K$2410)) -> 0 | E41: 0 | F41: =SUMPRODUCT((Projects!$A$5:$A$2410='MDOT FTA Detail'!$D$3)*(Projects!$C$5:$C$2410='MDOT FTA Detail'!$C$4)*(Projects!$L$5:$L$2410='MDOT FTA Detail'!$A41)*(Projects!$J$5:$J$2410<>'MDOT FTA Detail'!$A$171)*(Projects!$Q$5:Q$2410)) -> 0 | G41: =SUMPRODUCT((Projects!$A$5:$A$2410='MDOT FTA Detail'!$G$3)*(Projects!$C$5:$C$2410='MDOT FTA Detail'!$C$4)*(Projects!$L$5:$L$2410='MDOT FTA Detail'!$A41)*(Projects!$J$5:$J$2410<>'MDOT FTA Detail'!$A$171)*(Projects!$K$5:K$2410)) -> 0 | H41: 0 | I41: =SUMPRODUCT((Projects!$A$5:$A$2410='MDOT FTA Detail'!$G$3)*(Projects!$C$5:$C$2410='MDOT FTA Detail'!$C$4)*(Projects!$L$5:$L$2410='MDOT FTA Detail'!$A41)*(Projects!$J$5:$J$2410<>'MDOT FTA Detail'!$A$171)*(Projects!$Q$5:Q$2410)) -> 0 | J41: =SUMPRODUCT((Projects!$A$5:$A$2410='MDOT FTA Detail'!$J$3)*(Projects!$C$5:$C$2410='MDOT FTA Detail'!$C$4)*(Projects!$L$5:$L$2410='MDOT FTA Detail'!$A41)*(Projects!$J$5:$J$2410<>'MDOT FTA Detail'!$A$171)*(Projects!$K$5:$K$2410)) -> 0 | K41: 0 | L41: =SUMPRODUCT((Projects!$A$5:$A$2410='MDOT FTA Detail'!$J$3)*(Projects!$C$5:$C$2410='MDOT FTA Detail'!$C$4)*(Projects!$L$5:$L$2410='MDOT FTA Detail'!$A41)*(Projects!$J$5:$J$2410<>'MDOT FTA Detail'!$A$171)*(Projects!$Q$5:$Q$2410)) -> 0 | M41: =SUMPRODUCT((Projects!$A$5:$A$2410='MDOT FTA Detail'!$M$3)*(Projects!$C$5:$C$2410='MDOT FTA Detail'!$C$4)*(Projects!$L$5:$L$2410='MDOT FTA Detail'!$A41)*(Projects!$J$5:$J$2410<>'MDOT FTA Detail'!$A$171)*(Projects!$K$5:$K$2410)) -> 0 | N41: 0 | O41: =SUMPRODUCT((Projects!$A$5:$A$2410='MDOT FTA Detail'!$M$3)*(Projects!$C$5:$C$2410='MDOT FTA Detail'!$C$4)*(Projects!$L$5:$L$2410='MDOT FTA Detail'!$A41)*(Projects!$J$5:$J$2410<>'MDOT FTA Detail'!$A$171)*(Projects!$Q$5:$Q$2410)) -> 0
A42: FLH | B42: Federal Land Highways - Public Lands | C42: MDOT FA | D42: =SUMPRODUCT((Projects!$A$5:$A$2410='MDOT FTA Detail'!$D$3)*(Projects!$C$5:$C$2410='MDOT FTA Detail'!$C$4)*(Projects!$L$5:$L$2410='MDOT FTA Detail'!$A42)*(Projects!$J$5:$J$2410<>'MDOT FTA Detail'!$A$171)*(Projects!$K$5:K$2410)) -> 0 | E42: 0 | F42: =SUMPRODUCT((Projects!$A$5:$A$2410='MDOT FTA Detail'!$D$3)*(Projects!$C$5:$C$2410='MDOT FTA Detail'!$C$4)*(Projects!$L$5:$L$2410='MDOT FTA Detail'!$A42)*(Projects!$J$5:$J$2410<>'MDOT FTA Detail'!$A$171)*(Projects!$Q$5:Q$2410)) -> 0 | G42: =SUMPRODUCT((Projects!$A$5:$A$2410='MDOT FTA Detail'!$G$3)*(Projects!$C$5:$C$2410='MDOT FTA Detail'!$C$4)*(Projects!$L$5:$L$2410='MDOT FTA Detail'!$A42)*(Projects!$J$5:$J$2410<>'MDOT FTA Detail'!$A$171)*(Projects!$K$5:K$2410)) -> 0 | H42: 0 | I42: =SUMPRODUCT((Projects!$A$5:$A$2410='MDOT FTA Detail'!$G$3)*(Projects!$C$5:$C$2410='MDOT FTA Detail'!$C$4)*(Projects!$L$5:$L$2410='MDOT FTA Detail'!$A42)*(Projects!$J$5:$J$2410<>'MDOT FTA Detail'!$A$171)*(Projects!$Q$5:Q$2410)) -> 0 | J42: =SUMPRODUCT((Projects!$A$5:$A$2410='MDOT FTA Detail'!$J$3)*(Projects!$C$5:$C$2410='MDOT FTA Detail'!$C$4)*(Projects!$L$5:$L$2410='MDOT FTA Detail'!$A42)*(Projects!$J$5:$J$2410<>'MDOT FTA Detail'!$A$171)*(Projects!$K$5:$K$2410)) -> 0 | K42: 0 | L42: =SUMPRODUCT((Projects!$A$5:$A$2410='MDOT FTA Detail'!$J$3)*(Projects!$C$5:$C$2410='MDOT FTA Detail'!$C$4)*(Projects!$L$5:$L$2410='MDOT FTA Detail'!$A42)*(Projects!$J$5:$J$2410<>'MDOT FTA Detail'!$A$171)*(Projects!$Q$5:$Q$2410)) -> 0 | M42: =SUMPRODUCT((Projects!$A$5:$A$2410='MDOT FTA Detail'!$M$3)*(Projects!$C$5:$C$2410='MDOT FTA Detail'!$C$4)*(Projects!$L$5:$L$2410='MDOT FTA Detail'!$A42)*(Projects!$J$5:$J$2410<>'MDOT FTA Detail'!$A$171)*(Projects!$K$5:$K$2410)) -> 0 | N42: 0 | O42: =SUMPRODUCT((Projects!$A$5:$A$2410='MDOT FTA Detail'!$M$3)*(Projects!$C$5:$C$2410='MDOT FTA Detail'!$C$4)*(Projects!$L$5:$L$2410='MDOT FTA Detail'!$A42)*(Projects!$J$5:$J$2410<>'MDOT FTA Detail'!$A$171)*(Projects!$Q$5:$Q$2410)) -> 0
A43: HBOA | B43: Highway Bridge Obligation Authority | C43: MDOT FA | D43: =SUMPRODUCT((Projects!$A$5:$A$2410='MDOT FTA Detail'!$D$3)*(Projects!$C$5:$C$2410='MDOT FTA Detail'!$C$4)*(Projects!$L$5:$L$2410='MDOT FTA Detail'!$A43)*(Projects!$J$5:$J$2410<>'MDOT FTA Detail'!$A$171)*(Projects!$K$5:K$2410)) -> 0 | E43: 0 | F43: =SUMPRODUCT((Projects!$A$5:$A$2410='MDOT FTA Detail'!$D$3)*(Projects!$C$5:$C$2410='MDOT FTA Detail'!$C$4)*(Projects!$L$5:$L$2410='MDOT FTA Detail'!$A43)*(Projects!$J$5:$J$2410<>'MDOT FTA Detail'!$A$171)*(Projects!$Q$5:Q$2410)) -> 0 | G43: =SUMPRODUCT((Projects!$A$5:$A$2410='MDOT FTA Detail'!$G$3)*(Projects!$C$5:$C$2410='MDOT FTA Detail'!$C$4)*(Projects!$L$5:$L$2410='MDOT FTA Detail'!$A43)*(Projects!$J$5:$J$2410<>'MDOT FTA Detail'!$A$171)*(Projects!$K$5:K$2410)) -> 0 | H43: 0 | I43: =SUMPRODUCT((Projects!$A$5:$A$2410='MDOT FTA Detail'!$G$3)*(Projects!$C$5:$C$2410='MDOT FTA Detail'!$C$4)*(Projects!$L$5:$L$2410='MDOT FTA Detail'!$A43)*(Projects!$J$5:$J$2410<>'MDOT FTA Detail'!$A$171)*(Projects!$Q$5:Q$2410)) -> 0 | J43: =SUMPRODUCT((Projects!$A$5:$A$2410='MDOT FTA Detail'!$J$3)*(Projects!$C$5:$C$2410='MDOT FTA Detail'!$C$4)*(Projects!$L$5:$L$2410='MDOT FTA Detail'!$A43)*(Projects!$J$5:$J$2410<>'MDOT FTA Detail'!$A$171)*(Projects!$K$5:$K$2410)) -> 0 | K43: 0 | L43: =SUMPRODUCT((Projects!$A$5:$A$2410='MDOT FTA Detail'!$J$3)*(Projects!$C$5:$C$2410='MDOT FTA Detail'!$C$4)*(Projects!$L$5:$L$2410='MDOT FTA Detail'!$A43)*(Projects!$J$5:$J$2410<>'MDOT FTA Detail'!$A$171)*(Projects!$Q$5:$Q$2410)) -> 0 | M43: =SUMPRODUCT((Projects!$A$5:$A$2410='MDOT FTA Detail'!$M$3)*(Projects!$C$5:$C$2410='MDOT FTA Detail'!$C$4)*(Projects!$L$5:$L$2410='MDOT FTA Detail'!$A43)*(Projects!$J$5:$J$2410<>'MDOT FTA Detail'!$A$171)*(Projects!$K$5:$K$2410)) -> 0 | N43: 0 | O43: =SUMPRODUCT((Projects!$A$5:$A$2410='MDOT FTA Detail'!$M$3)*(Projects!$C$5:$C$2410='MDOT FTA Detail'!$C$4)*(Projects!$L$5:$L$2410='MDOT FTA Detail'!$A43)*(Projects!$J$5:$J$2410<>'MDOT FTA Detail'!$A$171)*(Projects!$Q$5:$Q$2410)) -> 0
A44: HPP | B44: High Priority Projects (Demo) | C44: MDOT FA | D44: =SUMPRODUCT((Projects!$A$5:$A$2410='MDOT FTA Detail'!$D$3)*(Projects!$C$5:$C$2410='MDOT FTA Detail'!$C$4)*(Projects!$L$5:$L$2410='MDOT FTA Detail'!$A44)*(Projects!$J$5:$J$2410<>'MDOT FTA Detail'!$A$171)*(Projects!$K$5:K$2410)) -> 0 | E44: 0 | F44: =SUMPRODUCT((Projects!$A$5:$A$2410='MDOT FTA Detail'!$D$3)*(Projects!$C$5:$C$2410='MDOT FTA Detail'!$C$4)*(Projects!$L$5:$L$2410='MDOT FTA Detail'!$A44)*(Projects!$J$5:$J$2410<>'MDOT FTA Detail'!$A$171)*(Projects!$Q$5:Q$2410)) -> 0 | G44: =SUMPRODUCT((Projects!$A$5:$A$2410='MDOT FTA Detail'!$G$3)*(Projects!$C$5:$C$2410='MDOT FTA Detail'!$C$4)*(Projects!$L$5:$L$2410='MDOT FTA Detail'!$A44)*(Projects!$J$5:$J$2410<>'MDOT FTA Detail'!$A$171)*(Projects!$K$5:K$2410)) -> 0 | H44: 0 | I44: =SUMPRODUCT((Projects!$A$5:$A$2410='MDOT FTA Detail'!$G$3)*(Projects!$C$5:$C$2410='MDOT FTA Detail'!$C$4)*(Projects!$L$5:$L$2410='MDOT FTA Detail'!$A44)*(Projects!$J$5:$J$2410<>'MDOT FTA Detail'!$A$171)*(Projects!$Q$5:Q$2410)) -> 0 | J44: =SUMPRODUCT((Projects!$A$5:$A$2410='MDOT FTA Detail'!$J$3)*(Projects!$C$5:$C$2410='MDOT FTA Detail'!$C$4)*(Projects!$L$5:$L$2410='MDOT FTA Detail'!$A44)*(Projects!$J$5:$J$2410<>'MDOT FTA Detail'!$A$171)*(Projects!$K$5:$K$2410)) -> 0 | K44: 0 | L44: =SUMPRODUCT((Projects!$A$5:$A$2410='MDOT FTA Detail'!$J$3)*(Projects!$C$5:$C$2410='MDOT FTA Detail'!$C$4)*(Projects!$L$5:$L$2410='MDOT FTA Detail'!$A44)*(Projects!$J$5:$J$2410<>'MDOT FTA Detail'!$A$171)*(Projects!$Q$5:$Q$2410)) -> 0 | M44: =SUMPRODUCT((Projects!$A$5:$A$2410='MDOT FTA Detail'!$M$3)*(Projects!$C$5:$C$2410='MDOT FTA Detail'!$C$4)*(Projects!$L$5:$L$2410='MDOT FTA Detail'!$A44)*(Projects!$J$5:$J$2410<>'MDOT FTA Detail'!$A$171)*(Projects!$K$5:$K$2410)) -> 0 | N44: 0 | O44: =SUMPRODUCT((Projects!$A$5:$A$2410='MDOT FTA Detail'!$M$3)*(Projects!$C$5:$C$2410='MDOT FTA Detail'!$C$4)*(Projects!$L$5:$L$2410='MDOT FTA Detail'!$A44)*(Projects!$J$5:$J$2410<>'MDOT FTA Detail'!$A$171)*(Projects!$Q$5:$Q$2410)) -> 0
A45: HPSL | B45: High Priority Projects - SAFETEA-LU | C45: MDOT FA | D45: =SUMPRODUCT((Projects!$A$5:$A$2410='MDOT FTA Detail'!$D$3)*(Projects!$C$5:$C$2410='MDOT FTA Detail'!$C$4)*(Projects!$L$5:$L$2410='MDOT FTA Detail'!$A45)*(Projects!$J$5:$J$2410<>'MDOT FTA Detail'!$A$171)*(Projects!$K$5:K$2410)) -> 0 | E45: 0 | F45: =SUMPRODUCT((Projects!$A$5:$A$2410='MDOT FTA Detail'!$D$3)*(Projects!$C$5:$C$2410='MDOT FTA Detail'!$C$4)*(Projects!$L$5:$L$2410='MDOT FTA Detail'!$A45)*(Projects!$J$5:$J$2410<>'MDOT FTA Detail'!$A$171)*(Projects!$Q$5:Q$2410)) -> 0 | G45: =SUMPRODUCT((Projects!$A$5:$A$2410='MDOT FTA Detail'!$G$3)*(Projects!$C$5:$C$2410='MDOT FTA Detail'!$C$4)*(Projects!$L$5:$L$2410='MDOT FTA Detail'!$A45)*(Projects!$J$5:$J$2410<>'MDOT FTA Detail'!$A$171)*(Projects!$K$5:K$2410)) -> 0 | H45: 0 | I45: =SUMPRODUCT((Projects!$A$5:$A$2410='MDOT FTA Detail'!$G$3)*(Projects!$C$5:$C$2410='MDOT FTA Detail'!$C$4)*(Projects!$L$5:$L$2410='MDOT FTA Detail'!$A45)*(Projects!$J$5:$J$2410<>'MDOT FTA Detail'!$A$171)*(Projects!$Q$5:Q$2410)) -> 0 | J45: =SUMPRODUCT((Projects!$A$5:$A$2410='MDOT FTA Detail'!$J$3)*(Projects!$C$5:$C$2410='MDOT FTA Detail'!$C$4)*(Projects!$L$5:$L$2410='MDOT FTA Detail'!$A45)*(Projects!$J$5:$J$2410<>'MDOT FTA Detail'!$A$171)*(Projects!$K$5:$K$2410)) -> 0 | K45: 0 | L45: =SUMPRODUCT((Projects!$A$5:$A$2410='MDOT FTA Detail'!$J$3)*(Projects!$C$5:$C$2410='MDOT FTA Detail'!$C$4)*(Projects!$L$5:$L$2410='MDOT FTA Detail'!$A45)*(Projects!$J$5:$J$2410<>'MDOT FTA Detail'!$A$171)*(Projects!$Q$5:$Q$2410)) -> 0 | M45: =SUMPRODUCT((Projects!$A$5:$A$2410='MDOT FTA Detail'!$M$3)*(Projects!$C$5:$C$2410='MDOT FTA Detail'!$C$4)*(Projects!$L$5:$L$2410='MDOT FTA Detail'!$A45)*(Projects!$J$5:$J$2410<>'MDOT FTA Detail'!$A$171)*(Projects!$K$5:$K$2410)) -> 0 | N45: 0 | O45: =SUMPRODUCT((Projects!$A$5:$A$2410='MDOT FTA Detail'!$M$3)*(Projects!$C$5:$C$2410='MDOT FTA Detail'!$C$4)*(Projects!$L$5:$L$2410='MDOT FTA Detail'!$A45)*(Projects!$J$5:$J$2410<>'MDOT FTA Detail'!$A$171)*(Projects!$Q$5:$Q$2410)) -> 0
A46: HRRR | B46: High Risk Rural Roads - SAFETEA-LU | C46: MDOT FA | D46: =SUMPRODUCT((Projects!$A$5:$A$2410='MDOT FTA Detail'!$D$3)*(Projects!$C$5:$C$2410='MDOT FTA Detail'!$C$4)*(Projects!$L$5:$L$2410='MDOT FTA Detail'!$A46)*(Projects!$J$5:$J$2410<>'MDOT FTA Detail'!$A$171)*(Projects!$K$5:K$2410)) -> 0 | E46: 0 | F46: =SUMPRODUCT((Projects!$A$5:$A$2410='MDOT FTA Detail'!$D$3)*(Projects!$C$5:$C$2410='MDOT FTA Detail'!$C$4)*(Projects!$L$5:$L$2410='MDOT FTA Detail'!$A46)*(Projects!$J$5:$J$2410<>'MDOT FTA Detail'!$A$171)*(Projects!$Q$5:Q$2410)) -> 0 | G46: =SUMPRODUCT((Projects!$A$5:$A$2410='MDOT FTA Detail'!$G$3)*(Projects!$C$5:$C$2410='MDOT FTA Detail'!$C$4)*(Projects!$L$5:$L$2410='MDOT FTA Detail'!$A46)*(Projects!$J$5:$J$2410<>'MDOT FTA Detail'!$A$171)*(Projects!$K$5:K$2410)) -> 0 | H46: 0 | I46: =SUMPRODUCT((Projects!$A$5:$A$2410='MDOT FTA Detail'!$G$3)*(Projects!$C$5:$C$2410='MDOT FTA Detail'!$C$4)*(Projects!$L$5:$L$2410='MDOT FTA Detail'!$A46)*(Projects!$J$5:$J$2410<>'MDOT FTA Detail'!$A$171)*(Projects!$Q$5:Q$2410)) -> 0 | J46: =SUMPRODUCT((Projects!$A$5:$A$2410='MDOT FTA Detail'!$J$3)*(Projects!$C$5:$C$2410='MDOT FTA Detail'!$C$4)*(Projects!$L$5:$L$2410='MDOT FTA Detail'!$A46)*(Projects!$J$5:$J$2410<>'MDOT FTA Detail'!$A$171)*(Projects!$K$5:$K$2410)) -> 0 | K46: 0 | L46: =SUMPRODUCT((Projects!$A$5:$A$2410='MDOT FTA Detail'!$J$3)*(Projects!$C$5:$C$2410='MDOT FTA Detail'!$C$4)*(Projects!$L$5:$L$2410='MDOT FTA Detail'!$A46)*(Projects!$J$5:$J$2410<>'MDOT FTA Detail'!$A$171)*(Projects!$Q$5:$Q$2410)) -> 0 | M46: =SUMPRODUCT((Projects!$A$5:$A$2410='MDOT FTA Detail'!$M$3)*(Projects!$C$5:$C$2410='MDOT FTA Detail'!$C$4)*(Projects!$L$5:$L$2410='MDOT FTA Detail'!$A46)*(Projects!$J$5:$J$2410<>'MDOT FTA Detail'!$A$171)*(Projects!$K$5:$K$2410)) -> 0 | N46: 0 | O46: =SUMPRODUCT((Projects!$A$5:$A$2410='MDOT FTA Detail'!$M$3)*(Projects!$C$5:$C$2410='MDOT FTA Detail'!$C$4)*(Projects!$L$5:$L$2410='MDOT FTA Detail'!$A46)*(Projects!$J$5:$J$2410<>'MDOT FTA Detail'!$A$171)*(Projects!$Q$5:$Q$2410)) -> 0
A47: HSG | B47: High Speed Raix Crossings - 100% Federal | C47: MDOT FA | D47: =SUMPRODUCT((Projects!$A$5:$A$2410='MDOT FTA Detail'!$D$3)*(Projects!$C$5:$C$2410='MDOT FTA Detail'!$C$4)*(Projects!$L$5:$L$2410='MDOT FTA Detail'!$A47)*(Projects!$J$5:$J$2410<>'MDOT FTA Detail'!$A$171)*(Projects!$K$5:K$2410)) -> 0 | E47: 0 | F47: =SUMPRODUCT((Projects!$A$5:$A$2410='MDOT FTA Detail'!$D$3)*(Projects!$C$5:$C$2410='MDOT FTA Detail'!$C$4)*(Projects!$L$5:$L$2410='MDOT FTA Detail'!$A47)*(Projects!$J$5:$J$2410<>'MDOT FTA Detail'!$A$171)*(Projects!$Q$5:Q$2410)) -> 0 | G47: =SUMPRODUCT((Projects!$A$5:$A$2410='MDOT FTA Detail'!$G$3)*(Projects!$C$5:$C$2410='MDOT FTA Detail'!$C$4)*(Projects!$L$5:$L$2410='MDOT FTA Detail'!$A47)*(Projects!$J$5:$J$2410<>'MDOT FTA Detail'!$A$171)*(Projects!$K$5:K$2410)) -> 0 | H47: 0 | I47: =SUMPRODUCT((Projects!$A$5:$A$2410='MDOT FTA Detail'!$G$3)*(Projects!$C$5:$C$2410='MDOT FTA Detail'!$C$4)*(Projects!$L$5:$L$2410='MDOT FTA Detail'!$A47)*(Projects!$J$5:$J$2410<>'MDOT FTA Detail'!$A$171)*(Projects!$Q$5:Q$2410)) -> 0 | J47: =SUMPRODUCT((Projects!$A$5:$A$2410='MDOT FTA Detail'!$J$3)*(Projects!$C$5:$C$2410='MDOT FTA Detail'!$C$4)*(Projects!$L$5:$L$2410='MDOT FTA Detail'!$A47)*(Projects!$J$5:$J$2410<>'MDOT FTA Detail'!$A$171)*(Projects!$K$5:$K$2410)) -> 0 | K47: 0 | L47: =SUMPRODUCT((Projects!$A$5:$A$2410='MDOT FTA Detail'!$J$3)*(Projects!$C$5:$C$2410='MDOT FTA Detail'!$C$4)*(Projects!$L$5:$L$2410='MDOT FTA Detail'!$A47)*(Projects!$J$5:$J$2410<>'MDOT FTA Detail'!$A$171)*(Projects!$Q$5:$Q$2410)) -> 0 | M47: =SUMPRODUCT((Projects!$A$5:$A$2410='MDOT FTA Detail'!$M$3)*(Projects!$C$5:$C$2410='MDOT FTA Detail'!$C$4)*(Projects!$L$5:$L$2410='MDOT FTA Detail'!$A47)*(Projects!$J$5:$J$2410<>'MDOT FTA Detail'!$A$171)*(Projects!$K$5:$K$2410)) -> 0 | N47: 0 | O47: =SUMPRODUCT((Projects!$A$5:$A$2410='MDOT FTA Detail'!$M$3)*(Projects!$C$5:$C$2410='MDOT FTA Detail'!$C$4)*(Projects!$L$5:$L$2410='MDOT FTA Detail'!$A47)*(Projects!$J$5:$J$2410<>'MDOT FTA Detail'!$A$171)*(Projects!$Q$5:$Q$2410)) -> 0
A48: HSIP | B48: Highway Safety Improvement Program - SAFETEA-LU | C48: MDOT FA | D48: =SUMPRODUCT((Projects!$A$5:$A$2410='MDOT FTA Detail'!$D$3)*(Projects!$C$5:$C$2410='MDOT FTA Detail'!$C$4)*(Projects!$L$5:$L$2410='MDOT FTA Detail'!$A48)*(Projects!$J$5:$J$2410<>'MDOT FTA Detail'!$A$171)*(Projects!$K$5:K$2410)) -> 0 | E48: 0 | F48: =SUMPRODUCT((Projects!$A$5:$A$2410='MDOT FTA Detail'!$D$3)*(Projects!$C$5:$C$2410='MDOT FTA Detail'!$C$4)*(Projects!$L$5:$L$2410='MDOT FTA Detail'!$A48)*(Projects!$J$5:$J$2410<>'MDOT FTA Detail'!$A$171)*(Projects!$Q$5:Q$2410)) -> 0 | G48: =SUMPRODUCT((Projects!$A$5:$A$2410='MDOT FTA Detail'!$G$3)*(Projects!$C$5:$C$2410='MDOT FTA Detail'!$C$4)*(Projects!$L$5:$L$2410='MDOT FTA Detail'!$A48)*(Projects!$J$5:$J$2410<>'MDOT FTA Detail'!$A$171)*(Projects!$K$5:K$2410)) -> 0 | H48: 0 | I48: =SUMPRODUCT((Projects!$A$5:$A$2410='MDOT FTA Detail'!$G$3)*(Projects!$C$5:$C$2410='MDOT FTA Detail'!$C$4)*(Projects!$L$5:$L$2410='MDOT FTA Detail'!$A48)*(Projects!$J$5:$J$2410<>'MDOT FTA Detail'!$A$171)*(Projects!$Q$5:Q$2410)) -> 0 | J48: =SUMPRODUCT((Projects!$A$5:$A$2410='MDOT FTA Detail'!$J$3)*(Projects!$C$5:$C$2410='MDOT FTA Detail'!$C$4)*(Projects!$L$5:$L$2410='MDOT FTA Detail'!$A48)*(Projects!$J$5:$J$2410<>'MDOT FTA Detail'!$A$171)*(Projects!$K$5:$K$2410)) -> 0 | K48: 0 | L48: =SUMPRODUCT((Projects!$A$5:$A$2410='MDOT FTA Detail'!$J$3)*(Projects!$C$5:$C$2410='MDOT FTA Detail'!$C$4)*(Projects!$L$5:$L$2410='MDOT FTA Detail'!$A48)*(Projects!$J$5:$J$2410<>'MDOT FTA Detail'!$A$171)*(Projects!$Q$5:$Q$2410)) -> 0 | M48: =SUMPRODUCT((Projects!$A$5:$A$2410='MDOT FTA Detail'!$M$3)*(Projects!$C$5:$C$2410='MDOT FTA Detail'!$C$4)*(Projects!$L$5:$L$2410='MDOT FTA Detail'!$A48)*(Projects!$J$5:$J$2410<>'MDOT FTA Detail'!$A$171)*(Projects!$K$5:$K$2410)) -> 0 | N48: 0 | O48: =SUMPRODUCT((Projects!$A$5:$A$2410='MDOT FTA Detail'!$M$3)*(Projects!$C$5:$C$2410='MDOT FTA Detail'!$C$4)*(Projects!$L$5:$L$2410='MDOT FTA Detail'!$A48)*(Projects!$J$5:$J$2410<>'MDOT FTA Detail'!$A$171)*(Projects!$Q$5:$Q$2410)) -> 0
A49: IM | B49: Interstate Maintenance - No Added Lanes | C49: MDOT FA | D49: =SUMPRODUCT((Projects!$A$5:$A$2410='MDOT FTA Detail'!$D$3)*(Projects!$C$5:$C$2410='MDOT FTA Detail'!$C$4)*(Projects!$L$5:$L$2410='MDOT FTA Detail'!$A49)*(Projects!$J$5:$J$2410<>'MDOT FTA Detail'!$A$171)*(Projects!$K$5:K$2410)) -> 1777634 | E49: 197514 | F49: =SUMPRODUCT((Projects!$A$5:$A$2410='MDOT FTA Detail'!$D$3)*(Projects!$C$5:$C$2410='MDOT FTA Detail'!$C$4)*(Projects!$L$5:$L$2410='MDOT FTA Detail'!$A49)*(Projects!$J$5:$J$2410<>'MDOT FTA Detail'!$A$171)*(Projects!$Q$5:Q$2410)) -> 1975148 | G49: =SUMPRODUCT((Projects!$A$5:$A$2410='MDOT FTA Detail'!$G$3)*(Projects!$C$5:$C$2410='MDOT FTA Detail'!$C$4)*(Projects!$L$5:$L$2410='MDOT FTA Detail'!$A49)*(Projects!$J$5:$J$2410<>'MDOT FTA Detail'!$A$171)*(Projects!$K$5:K$2410)) -> 67776939 | H49: 7530771 | I49: =SUMPRODUCT((Projects!$A$5:$A$2410='MDOT FTA Detail'!$G$3)*(Projects!$C$5:$C$2410='MDOT FTA Detail'!$C$4)*(Projects!$L$5:$L$2410='MDOT FTA Detail'!$A49)*(Projects!$J$5:$J$2410<>'MDOT FTA Detail'!$A$171)*(Projects!$Q$5:Q$2410)) -> 75307710 | J49: =SUMPRODUCT((Projects!$A$5:$A$2410='MDOT FTA Detail'!$J$3)*(Projects!$C$5:$C$2410='MDOT FTA Detail'!$C$4)*(Projects!$L$5:$L$2410='MDOT FTA Detail'!$A49)*(Projects!$J$5:$J$2410<>'MDOT FTA Detail'!$A$171)*(Projects!$K$5:$K$2410)) -> 0 | K49: 0 | L49: =SUMPRODUCT((Projects!$A$5:$A$2410='MDOT FTA Detail'!$J$3)*(Projects!$C$5:$C$2410='MDOT FTA Detail'!$C$4)*(Projects!$L$5:$L$2410='MDOT FTA Detail'!$A49)*(Projects!$J$5:$J$2410<>'MDOT FTA Detail'!$A$171)*(Projects!$Q$5:$Q$2410)) -> 0 | M49: =SUMPRODUCT((Projects!$A$5:$A$2410='MDOT FTA Detail'!$M$3)*(Projects!$C$5:$C$2410='MDOT FTA Detail'!$C$4)*(Projects!$L$5:$L$2410='MDOT FTA Detail'!$A49)*(Projects!$J$5:$J$2410<>'MDOT FTA Detail'!$A$171)*(Projects!$K$5:$K$2410)) -> 12948366 | N49: 1438707 | O49: =SUMPRODUCT((Projects!$A$5:$A$2410='MDOT FTA Detail'!$M$3)*(Projects!$C$5:$C$2410='MDOT FTA Detail'!$C$4)*(Projects!$L$5:$L$2410='MDOT FTA Detail'!$A49)*(Projects!$J$5:$J$2410<>'MDOT FTA Detail'!$A$171)*(Projects!$Q$5:$Q$2410)) -> 14387073
A50: IMD | B50: Interstate Maintenance Discretionary | C50: MDOT FA | D50: =SUMPRODUCT((Projects!$A$5:$A$2410='MDOT FTA Detail'!$D$3)*(Projects!$C$5:$C$2410='MDOT FTA Detail'!$C$4)*(Projects!$L$5:$L$2410='MDOT FTA Detail'!$A50)*(Projects!$J$5:$J$2410<>'MDOT FTA Detail'!$A$171)*(Projects!$K$5:K$2410)) -> 0 | E50: 0 | F50: =SUMPRODUCT((Projects!$A$5:$A$2410='MDOT FTA Detail'!$D$3)*(Projects!$C$5:$C$2410='MDOT FTA Detail'!$C$4)*(Projects!$L$5:$L$2410='MDOT FTA Detail'!$A50)*(Projects!$J$5:$J$2410<>'MDOT FTA Detail'!$A$171)*(Projects!$Q$5:Q$2410)) -> 0 | G50: =SUMPRODUCT((Projects!$A$5:$A$2410='MDOT FTA Detail'!$G$3)*(Projects!$C$5:$C$2410='MDOT FTA Detail'!$C$4)*(Projects!$L$5:$L$2410='MDOT FTA Detail'!$A50)*(Projects!$J$5:$J$2410<>'MDOT FTA Detail'!$A$171)*(Projects!$K$5:K$2410)) -> 0 | H50: 0 | I50: =SUMPRODUCT((Projects!$A$5:$A$2410='MDOT FTA Detail'!$G$3)*(Projects!$C$5:$C$2410='MDOT FTA Detail'!$C$4)*(Projects!$L$5:$L$2410='MDOT FTA Detail'!$A50)*(Projects!$J$5:$J$2410<>'MDOT FTA Detail'!$A$171)*(Projects!$Q$5:Q$2410)) -> 0 | J50: =SUMPRODUCT((Projects!$A$5:$A$2410='MDOT FTA Detail'!$J$3)*(Projects!$C$5:$C$2410='MDOT FTA Detail'!$C$4)*(Projects!$L$5:$L$2410='MDOT FTA Detail'!$A50)*(Projects!$J$5:$J$2410<>'MDOT FTA Detail'!$A$171)*(Projects!$K$5:$K$2410)) -> 0 | K50: 0 | L50: =SUMPRODUCT((Projects!$A$5:$A$2410='MDOT FTA Detail'!$J$3)*(Projects!$C$5:$C$2410='MDOT FTA Detail'!$C$4)*(Projects!$L$5:$L$2410='MDOT FTA Detail'!$A50)*(Projects!$J$5:$J$2410<>'MDOT FTA Detail'!$A$171)*(Projects!$Q$5:$Q$2410)) -> 0 | M50: =SUMPRODUCT((Projects!$A$5:$A$2410='MDOT FTA Detail'!$M$3)*(Projects!$C$5:$C$2410='MDOT FTA Detail'!$C$4)*(Projects!$L$5:$L$2410='MDOT FTA Detail'!$A50)*(Projects!$J$5:$J$2410<>'MDOT FTA Detail'!$A$171)*(Projects!$K$5:$K$2410)) -> 0 | N50: 0 | O50: =SUMPRODUCT((Projects!$A$5:$A$2410='MDOT FTA Detail'!$M$3)*(Projects!$C$5:$C$2410='MDOT FTA Detail'!$C$4)*(Projects!$L$5:$L$2410='MDOT FTA Detail'!$A50)*(Projects!$J$5:$J$2410<>'MDOT FTA Detail'!$A$171)*(Projects!$Q$5:$Q$2410)) -> 0
A51: IMG | B51: Interstate Maintenance - Safety - 100% Federal | C51: MDOT FA | D51: =SUMPRODUCT((Projects!$A$5:$A$2410='MDOT FTA Detail'!$D$3)*(Projects!$C$5:$C$2410='MDOT FTA Detail'!$C$4)*(Projects!$L$5:$L$2410='MDOT FTA Detail'!$A51)*(Projects!$J$5:$J$2410<>'MDOT FTA Detail'!$A$171)*(Projects!$K$5:K$2410)) -> 0 | E51: 0 | F51: =SUMPRODUCT((Projects!$A$5:$A$2410='MDOT FTA Detail'!$D$3)*(Projects!$C$5:$C$2410='MDOT FTA Detail'!$C$4)*(Projects!$L$5:$L$2410='MDOT FTA Detail'!$A51)*(Projects!$J$5:$J$2410<>'MDOT FTA Detail'!$A$171)*(Projects!$Q$5:Q$2410)) -> 0 | G51: =SUMPRODUCT((Projects!$A$5:$A$2410='MDOT FTA Detail'!$G$3)*(Projects!$C$5:$C$2410='MDOT FTA Detail'!$C$4)*(Projects!$L$5:$L$2410='MDOT FTA Detail'!$A51)*(Projects!$J$5:$J$2410<>'MDOT FTA Detail'!$A$171)*(Projects!$K$5:K$2410)) -> 0 | H51: 0 | I51: =SUMPRODUCT((Projects!$A$5:$A$2410='MDOT FTA Detail'!$G$3)*(Projects!$C$5:$C$2410='MDOT FTA Detail'!$C$4)*(Projects!$L$5:$L$2410='MDOT FTA Detail'!$A51)*(Projects!$J$5:$J$2410<>'MDOT FTA Detail'!$A$171)*(Projects!$Q$5:Q$2410)) -> 0 | J51: =SUMPRODUCT((Projects!$A$5:$A$2410='MDOT FTA Detail'!$J$3)*(Projects!$C$5:$C$2410='MDOT FTA Detail'!$C$4)*(Projects!$L$5:$L$2410='MDOT FTA Detail'!$A51)*(Projects!$J$5:$J$2410<>'MDOT FTA Detail'!$A$171)*(Projects!$K$5:$K$2410)) -> 0 | K51: 0 | L51: =SUMPRODUCT((Projects!$A$5:$A$2410='MDOT FTA Detail'!$J$3)*(Projects!$C$5:$C$2410='MDOT FTA Detail'!$C$4)*(Projects!$L$5:$L$2410='MDOT FTA Detail'!$A51)*(Projects!$J$5:$J$2410<>'MDOT FTA Detail'!$A$171)*(Projects!$Q$5:$Q$2410)) -> 0 | M51: =SUMPRODUCT((Projects!$A$5:$A$2410='MDOT FTA Detail'!$M$3)*(Projects!$C$5:$C$2410='MDOT FTA Detail'!$C$4)*(Projects!$L$5:$L$2410='MDOT FTA Detail'!$A51)*(Projects!$J$5:$J$2410<>'MDOT FTA Detail'!$A$171)*(Projects!$K$5:$K$2410)) -> 0 | N51: 0 | O51: =SUMPRODUCT((Projects!$A$5:$A$2410='MDOT FTA Detail'!$M$3)*(Projects!$C$5:$C$2410='MDOT FTA Detail'!$C$4)*(Projects!$L$5:$L$2410='MDOT FTA Detail'!$A51)*(Projects!$J$5:$J$2410<>'MDOT FTA Detail'!$A$171)*(Projects!$Q$5:$Q$2410)) -> 0
A52: ITS | B52: Intelligent Transportation Systems | C52: MDOT FA | D52: =SUMPRODUCT((Projects!$A$5:$A$2410='MDOT FTA Detail'!$D$3)*(Projects!$C$5:$C$2410='MDOT FTA Detail'!$C$4)*(Projects!$L$5:$L$2410='MDOT FTA Detail'!$A52)*(Projects!$J$5:$J$2410<>'MDOT FTA Detail'!$A$171)*(Projects!$K$5:K$2410)) -> 0 | E52: 0 | F52: =SUMPRODUCT((Projects!$A$5:$A$2410='MDOT FTA Detail'!$D$3)*(Projects!$C$5:$C$2410='MDOT FTA Detail'!$C$4)*(Projects!$L$5:$L$2410='MDOT FTA Detail'!$A52)*(Projects!$J$5:$J$2410<>'MDOT FTA Detail'!$A$171)*(Projects!$Q$5:Q$2410)) -> 0 | G52: =SUMPRODUCT((Projects!$A$5:$A$2410='MDOT FTA Detail'!$G$3)*(Projects!$C$5:$C$2410='MDOT FTA Detail'!$C$4)*(Projects!$L$5:$L$2410='MDOT FTA Detail'!$A52)*(Projects!$J$5:$J$2410<>'MDOT FTA Detail'!$A$171)*(Projects!$K$5:K$2410)) -> 0 | H52: 0 | I52: =SUMPRODUCT((Projects!$A$5:$A$2410='MDOT FTA Detail'!$G$3)*(Projects!$C$5:$C$2410='MDOT FTA Detail'!$C$4)*(Projects!$L$5:$L$2410='MDOT FTA Detail'!$A52)*(Projects!$J$5:$J$2410<>'MDOT FTA Detail'!$A$171)*(Projects!$Q$5:Q$2410)) -> 0 | J52: =SUMPRODUCT((Projects!$A$5:$A$2410='MDOT FTA Detail'!$J$3)*(Projects!$C$5:$C$2410='MDOT FTA Detail'!$C$4)*(Projects!$L$5:$L$2410='MDOT FTA Detail'!$A52)*(Projects!$J$5:$J$2410<>'MDOT FTA Detail'!$A$171)*(Projects!$K$5:$K$2410)) -> 0 | K52: 0 | L52: =SUMPRODUCT((Projects!$A$5:$A$2410='MDOT FTA Detail'!$J$3)*(Projects!$C$5:$C$2410='MDOT FTA Detail'!$C$4)*(Projects!$L$5:$L$2410='MDOT FTA Detail'!$A52)*(Projects!$J$5:$J$2410<>'MDOT FTA Detail'!$A$171)*(Projects!$Q$5:$Q$2410)) -> 0 | M52: =SUMPRODUCT((Projects!$A$5:$A$2410='MDOT FTA Detail'!$M$3)*(Projects!$C$5:$C$2410='MDOT FTA Detail'!$C$4)*(Projects!$L$5:$L$2410='MDOT FTA Detail'!$A52)*(Projects!$J$5:$J$2410<>'MDOT FTA Detail'!$A$171)*(Projects!$K$5:$K$2410)) -> 0 | N52: 0 | O52: =SUMPRODUCT((Projects!$A$5:$A$2410='MDOT FTA Detail'!$M$3)*(Projects!$C$5:$C$2410='MDOT FTA Detail'!$C$4)*(Projects!$L$5:$L$2410='MDOT FTA Detail'!$A52)*(Projects!$J$5:$J$2410<>'MDOT FTA Detail'!$A$171)*(Projects!$Q$5:$Q$2410)) -> 0
A53: JST | B53: 85% Minimum Floor Surface Transportation | C53: MDOT FA | D53: =SUMPRODUCT((Projects!$A$5:$A$2410='MDOT FTA Detail'!$D$3)*(Projects!$C$5:$C$2410='MDOT FTA Detail'!$C$4)*(Projects!$L$5:$L$2410='MDOT FTA Detail'!$A53)*(Projects!$J$5:$J$2410<>'MDOT FTA Detail'!$A$171)*(Projects!$K$5:K$2410)) -> 0 | E53: 0 | F53: =SUMPRODUCT((Projects!$A$5:$A$2410='MDOT FTA Detail'!$D$3)*(Projects!$C$5:$C$2410='MDOT FTA Detail'!$C$4)*(Projects!$L$5:$L$2410='MDOT FTA Detail'!$A53)*(Projects!$J$5:$J$2410<>'MDOT FTA Detail'!$A$171)*(Projects!$Q$5:Q$2410)) -> 0 | G53: =SUMPRODUCT((Projects!$A$5:$A$2410='MDOT FTA Detail'!$G$3)*(Projects!$C$5:$C$2410='MDOT FTA Detail'!$C$4)*(Projects!$L$5:$L$2410='MDOT FTA Detail'!$A53)*(Projects!$J$5:$J$2410<>'MDOT FTA Detail'!$A$171)*(Projects!$K$5:K$2410)) -> 0 | H53: 0 | I53: =SUMPRODUCT((Projects!$A$5:$A$2410='MDOT FTA Detail'!$G$3)*(Projects!$C$5:$C$2410='MDOT FTA Detail'!$C$4)*(Projects!$L$5:$L$2410='MDOT FTA Detail'!$A53)*(Projects!$J$5:$J$2410<>'MDOT FTA Detail'!$A$171)*(Projects!$Q$5:Q$2410)) -> 0 | J53: =SUMPRODUCT((Projects!$A$5:$A$2410='MDOT FTA Detail'!$J$3)*(Projects!$C$5:$C$2410='MDOT FTA Detail'!$C$4)*(Projects!$L$5:$L$2410='MDOT FTA Detail'!$A53)*(Projects!$J$5:$J$2410<>'MDOT FTA Detail'!$A$171)*(Projects!$K$5:$K$2410)) -> 0 | K53: 0 | L53: =SUMPRODUCT((Projects!$A$5:$A$2410='MDOT FTA Detail'!$J$3)*(Projects!$C$5:$C$2410='MDOT FTA Detail'!$C$4)*(Projects!$L$5:$L$2410='MDOT FTA Detail'!$A53)*(Projects!$J$5:$J$2410<>'MDOT FTA Detail'!$A$171)*(Projects!$Q$5:$Q$2410)) -> 0 | M53: =SUMPRODUCT((Projects!$A$5:$A$2410='MDOT FTA Detail'!$M$3)*(Projects!$C$5:$C$2410='MDOT FTA Detail'!$C$4)*(Projects!$L$5:$L$2410='MDOT FTA Detail'!$A53)*(Projects!$J$5:$J$2410<>'MDOT FTA Detail'!$A$171)*(Projects!$K$5:$K$2410)) -> 0 | N53: 0 | O53: =SUMPRODUCT((Projects!$A$5:$A$2410='MDOT FTA Detail'!$M$3)*(Projects!$C$5:$C$2410='MDOT FTA Detail'!$C$4)*(Projects!$L$5:$L$2410='MDOT FTA Detail'!$A53)*(Projects!$J$5:$J$2410<>'MDOT FTA Detail'!$A$171)*(Projects!$Q$5:$Q$2410)) -> 0
A54: JSTU | B54: 85% Minimum Floor Surface Transportation (Urban Area > 2499,000) | C54: MDOT FA | D54: =SUMPRODUCT((Projects!$A$5:$A$2410='MDOT FTA Detail'!$D$3)*(Projects!$C$5:$C$2410='MDOT FTA Detail'!$C$4)*(Projects!$L$5:$L$2410='MDOT FTA Detail'!$A54)*(Projects!$J$5:$J$2410<>'MDOT FTA Detail'!$A$171)*(Projects!$K$5:K$2410)) -> 0 | E54: 0 | F54: =SUMPRODUCT((Projects!$A$5:$A$2410='MDOT FTA Detail'!$D$3)*(Projects!$C$5:$C$2410='MDOT FTA Detail'!$C$4)*(Projects!$L$5:$L$2410='MDOT FTA Detail'!$A54)*(Projects!$J$5:$J$2410<>'MDOT FTA Detail'!$A$171)*(Projects!$Q$5:Q$2410)) -> 0 | G54: =SUMPRODUCT((Projects!$A$5:$A$2410='MDOT FTA Detail'!$G$3)*(Projects!$C$5:$C$2410='MDOT FTA Detail'!$C$4)*(Projects!$L$5:$L$2410='MDOT FTA Detail'!$A54)*(Projects!$J$5:$J$2410<>'MDOT FTA Detail'!$A$171)*(Projects!$K$5:K$2410)) -> 0 | H54: 0 | I54: =SUMPRODUCT((Projects!$A$5:$A$2410='MDOT FTA Detail'!$G$3)*(Projects!$C$5:$C$2410='MDOT FTA Detail'!$C$4)*(Projects!$L$5:$L$2410='MDOT FTA Detail'!$A54)*(Projects!$J$5:$J$2410<>'MDOT FTA Detail'!$A$171)*(Projects!$Q$5:Q$2410)) -> 0 | J54: =SUMPRODUCT((Projects!$A$5:$A$2410='MDOT FTA Detail'!$J$3)*(Projects!$C$5:$C$2410='MDOT FTA Detail'!$C$4)*(Projects!$L$5:$L$2410='MDOT FTA Detail'!$A54)*(Projects!$J$5:$J$2410<>'MDOT FTA Detail'!$A$171)*(Projects!$K$5:$K$2410)) -> 0 | K54: 0 | L54: =SUMPRODUCT((Projects!$A$5:$A$2410='MDOT FTA Detail'!$J$3)*(Projects!$C$5:$C$2410='MDOT FTA Detail'!$C$4)*(Projects!$L$5:$L$2410='MDOT FTA Detail'!$A54)*(Projects!$J$5:$J$2410<>'MDOT FTA Detail'!$A$171)*(Projects!$Q$5:$Q$2410)) -> 0 | M54: =SUMPRODUCT((Projects!$A$5:$A$2410='MDOT FTA Detail'!$M$3)*(Projects!$C$5:$C$2410='MDOT FTA Detail'!$C$4)*(Projects!$L$5:$L$2410='MDOT FTA Detail'!$A54)*(Projects!$J$5:$J$2410<>'MDOT FTA Detail'!$A$171)*(Projects!$K$5:$K$2410)) -> 0 | N54: 0 | O54: =SUMPRODUCT((Projects!$A$5:$A$2410='MDOT FTA Detail'!$M$3)*(Projects!$C$5:$C$2410='MDOT FTA Detail'!$C$4)*(Projects!$L$5:$L$2410='MDOT FTA Detail'!$A54)*(Projects!$J$5:$J$2410<>'MDOT FTA Detail'!$A$171)*(Projects!$Q$5:$Q$2410)) -> 0
A55: LTA | B55: Local Technical Assistance Program | C55: MDOT FA | D55: =SUMPRODUCT((Projects!$A$5:$A$2410='MDOT FTA Detail'!$D$3)*(Projects!$C$5:$C$2410='MDOT FTA Detail'!$C$4)*(Projects!$L$5:$L$2410='MDOT FTA Detail'!$A55)*(Projects!$J$5:$J$2410<>'MDOT FTA Detail'!$A$171)*(Projects!$K$5:K$2410)) -> 0 | E55: 0 | F55: =SUMPRODUCT((Projects!$A$5:$A$2410='MDOT FTA Detail'!$D$3)*(Projects!$C$5:$C$2410='MDOT FTA Detail'!$C$4)*(Projects!$L$5:$L$2410='MDOT FTA Detail'!$A55)*(Projects!$J$5:$J$2410<>'MDOT FTA Detail'!$A$171)*(Projects!$Q$5:Q$2410)) -> 0 | G55: =SUMPRODUCT((Projects!$A$5:$A$2410='MDOT FTA Detail'!$G$3)*(Projects!$C$5:$C$2410='MDOT FTA Detail'!$C$4)*(Projects!$L$5:$L$2410='MDOT FTA Detail'!$A55)*(Projects!$J$5:$J$2410<>'MDOT FTA Detail'!$A$171)*(Projects!$K$5:K$2410)) -> 0 | H55: 0 | I55: =SUMPRODUCT((Projects!$A$5:$A$2410='MDOT FTA Detail'!$G$3)*(Projects!$C$5:$C$2410='MDOT FTA Detail'!$C$4)*(Projects!$L$5:$L$2410='MDOT FTA Detail'!$A55)*(Projects!$J$5:$J$2410<>'MDOT FTA Detail'!$A$171)*(Projects!$Q$5:Q$2410)) -> 0 | J55: =SUMPRODUCT((Projects!$A$5:$A$2410='MDOT FTA Detail'!$J$3)*(Projects!$C$5:$C$2410='MDOT FTA Detail'!$C$4)*(Projects!$L$5:$L$2410='MDOT FTA Detail'!$A55)*(Projects!$J$5:$J$2410<>'MDOT FTA Detail'!$A$171)*(Projects!$K$5:$K$2410)) -> 0 | K55: 0 | L55: =SUMPRODUCT((Projects!$A$5:$A$2410='MDOT FTA Detail'!$J$3)*(Projects!$C$5:$C$2410='MDOT FTA Detail'!$C$4)*(Projects!$L$5:$L$2410='MDOT FTA Detail'!$A55)*(Projects!$J$5:$J$2410<>'MDOT FTA Detail'!$A$171)*(Projects!$Q$5:$Q$2410)) -> 0 | M55: =SUMPRODUCT((Projects!$A$5:$A$2410='MDOT FTA Detail'!$M$3)*(Projects!$C$5:$C$2410='MDOT FTA Detail'!$C$4)*(Projects!$L$5:$L$2410='MDOT FTA Detail'!$A55)*(Projects!$J$5:$J$2410<>'MDOT FTA Detail'!$A$171)*(Projects!$K$5:$K$2410)) -> 0 | N55: 0 | O55: =SUMPRODUCT((Projects!$A$5:$A$2410='MDOT FTA Detail'!$M$3)*(Projects!$C$5:$C$2410='MDOT FTA Detail'!$C$4)*(Projects!$L$5:$L$2410='MDOT FTA Detail'!$A55)*(Projects!$J$5:$J$2410<>'MDOT FTA Detail'!$A$171)*(Projects!$Q$5:$Q$2410)) -> 0
A56: MG | B56: Minimum Guarantee | C56: MDOT FA | D56: =SUMPRODUCT((Projects!$A$5:$A$2410='MDOT FTA Detail'!$D$3)*(Projects!$C$5:$C$2410='MDOT FTA Detail'!$C$4)*(Projects!$L$5:$L$2410='MDOT FTA Detail'!$A56)*(Projects!$J$5:$J$2410<>'MDOT FTA Detail'!$A$171)*(Projects!$K$5:K$2410)) -> 0 | E56: 0 | F56: =SUMPRODUCT((Projects!$A$5:$A$2410='MDOT FTA Detail'!$D$3)*(Projects!$C$5:$C$2410='MDOT FTA Detail'!$C$4)*(Projects!$L$5:$L$2410='MDOT FTA Detail'!$A56)*(Projects!$J$5:$J$2410<>'MDOT FTA Detail'!$A$171)*(Projects!$Q$5:Q$2410)) -> 0 | G56: =SUMPRODUCT((Projects!$A$5:$A$2410='MDOT FTA Detail'!$G$3)*(Projects!$C$5:$C$2410='MDOT FTA Detail'!$C$4)*(Projects!$L$5:$L$2410='MDOT FTA Detail'!$A56)*(Projects!$J$5:$J$2410<>'MDOT FTA Detail'!$A$171)*(Projects!$K$5:K$2410)) -> 0 | H56: 0 | I56: =SUMPRODUCT((Projects!$A$5:$A$2410='MDOT FTA Detail'!$G$3)*(Projects!$C$5:$C$2410='MDOT FTA Detail'!$C$4)*(Projects!$L$5:$L$2410='MDOT FTA Detail'!$A56)*(Projects!$J$5:$J$2410<>'MDOT FTA Detail'!$A$171)*(Projects!$Q$5:Q$2410)) -> 0 | J56: =SUMPRODUCT((Projects!$A$5:$A$2410='MDOT FTA Detail'!$J$3)*(Projects!$C$5:$C$2410='MDOT FTA Detail'!$C$4)*(Projects!$L$5:$L$2410='MDOT FTA Detail'!$A56)*(Projects!$J$5:$J$2410<>'MDOT FTA Detail'!$A$171)*(Projects!$K$5:$K$2410)) -> 0 | K56: 0 | L56: =SUMPRODUCT((Projects!$A$5:$A$2410='MDOT FTA Detail'!$J$3)*(Projects!$C$5:$C$2410='MDOT FTA Detail'!$C$4)*(Projects!$L$5:$L$2410='MDOT FTA Detail'!$A56)*(Projects!$J$5:$J$2410<>'MDOT FTA Detail'!$A$171)*(Projects!$Q$5:$Q$2410)) -> 0 | M56: =SUMPRODUCT((Projects!$A$5:$A$2410='MDOT FTA Detail'!$M$3)*(Projects!$C$5:$C$2410='MDOT FTA Detail'!$C$4)*(Projects!$L$5:$L$2410='MDOT FTA Detail'!$A56)*(Projects!$J$5:$J$2410<>'MDOT FTA Detail'!$A$171)*(Projects!$K$5:$K$2410)) -> 0 | N56: 0 | O56: =SUMPRODUCT((Projects!$A$5:$A$2410='MDOT FTA Detail'!$M$3)*(Projects!$C$5:$C$2410='MDOT FTA Detail'!$C$4)*(Projects!$L$5:$L$2410='MDOT FTA Detail'!$A56)*(Projects!$J$5:$J$2410<>'MDOT FTA Detail'!$A$171)*(Projects!$Q$5:$Q$2410)) -> 0
A57: NCII | B57: National Corridor Infrastructure Improvement - SAFETEA-LU | C57: MDOT FA | D57: =SUMPRODUCT((Projects!$A$5:$A$2410='MDOT FTA Detail'!$D$3)*(Projects!$C$5:$C$2410='MDOT FTA Detail'!$C$4)*(Projects!$L$5:$L$2410='MDOT FTA Detail'!$A57)*(Projects!$J$5:$J$2410<>'MDOT FTA Detail'!$A$171)*(Projects!$K$5:K$2410)) -> 0 | E57: 0 | F57: =SUMPRODUCT((Projects!$A$5:$A$2410='MDOT FTA Detail'!$D$3)*(Projects!$C$5:$C$2410='MDOT FTA Detail'!$C$4)*(Projects!$L$5:$L$2410='MDOT FTA Detail'!$A57)*(Projects!$J$5:$J$2410<>'MDOT FTA Detail'!$A$171)*(Projects!$Q$5:Q$2410)) -> 0 | G57: =SUMPRODUCT((Projects!$A$5:$A$2410='MDOT FTA Detail'!$G$3)*(Projects!$C$5:$C$2410='MDOT FTA Detail'!$C$4)*(Projects!$L$5:$L$2410='MDOT FTA Detail'!$A57)*(Projects!$J$5:$J$2410<>'MDOT FTA Detail'!$A$171)*(Projects!$K$5:K$2410)) -> 0 | H57: 0 | I57: =SUMPRODUCT((Projects!$A$5:$A$2410='MDOT FTA Detail'!$G$3)*(Projects!$C$5:$C$2410='MDOT FTA Detail'!$C$4)*(Projects!$L$5:$L$2410='MDOT FTA Detail'!$A57)*(Projects!$J$5:$J$2410<>'MDOT FTA Detail'!$A$171)*(Projects!$Q$5:Q$2410)) -> 0 | J57: =SUMPRODUCT((Projects!$A$5:$A$2410='MDOT FTA Detail'!$J$3)*(Projects!$C$5:$C$2410='MDOT FTA Detail'!$C$4)*(Projects!$L$5:$L$2410='MDOT FTA Detail'!$A57)*(Projects!$J$5:$J$2410<>'MDOT FTA Detail'!$A$171)*(Projects!$K$5:$K$2410)) -> 0 | K57: 0 | L57: =SUMPRODUCT((Projects!$A$5:$A$2410='MDOT FTA Detail'!$J$3)*(Projects!$C$5:$C$2410='MDOT FTA Detail'!$C$4)*(Projects!$L$5:$L$2410='MDOT FTA Detail'!$A57)*(Projects!$J$5:$J$2410<>'MDOT FTA Detail'!$A$171)*(Projects!$Q$5:$Q$2410)) -> 0 | M57: =SUMPRODUCT((Projects!$A$5:$A$2410='MDOT FTA Detail'!$M$3)*(Projects!$C$5:$C$2410='MDOT FTA Detail'!$C$4)*(Projects!$L$5:$L$2410='MDOT FTA Detail'!$A57)*(Projects!$J$5:$J$2410<>'MDOT FTA Detail'!$A$171)*(Projects!$K$5:$K$2410)) -> 0 | N57: 0 | O57: =SUMPRODUCT((Projects!$A$5:$A$2410='MDOT FTA Detail'!$M$3)*(Projects!$C$5:$C$2410='MDOT FTA Detail'!$C$4)*(Projects!$L$5:$L$2410='MDOT FTA Detail'!$A57)*(Projects!$J$5:$J$2410<>'MDOT FTA Detail'!$A$171)*(Projects!$Q$5:$Q$2410)) -> 0
A58: NH | B58: National Highway System | C58: MDOT FA | D58: =SUMPRODUCT((Projects!$A$5:$A$2410='MDOT FTA Detail'!$D$3)*(Projects!$C$5:$C$2410='MDOT FTA Detail'!$C$4)*(Projects!$L$5:$L$2410='MDOT FTA Detail'!$A58)*(Projects!$J$5:$J$2410<>'MDOT FTA Detail'!$A$171)*(Projects!$K$5:K$2410)) -> 7975004 | E58: 2103643 | F58: =SUMPRODUCT((Projects!$A$5:$A$2410='MDOT FTA Detail'!$D$3)*(Projects!$C$5:$C$2410='MDOT FTA Detail'!$C$4)*(Projects!$L$5:$L$2410='MDOT FTA Detail'!$A58)*(Projects!$J$5:$J$2410<>'MDOT FTA Detail'!$A$171)*(Projects!$Q$5:Q$2410)) -> 10078647 | G58: =SUMPRODUCT((Projects!$A$5:$A$2410='MDOT FTA Detail'!$G$3)*(Projects!$C$5:$C$2410='MDOT FTA Detail'!$C$4)*(Projects!$L$5:$L$2410='MDOT FTA Detail'!$A58)*(Projects!$J$5:$J$2410<>'MDOT FTA Detail'!$A$171)*(Projects!$K$5:K$2410)) -> 547557 | H58: 121419 | I58: =SUMPRODUCT((Projects!$A$5:$A$2410='MDOT FTA Detail'!$G$3)*(Projects!$C$5:$C$2410='MDOT FTA Detail'!$C$4)*(Projects!$L$5:$L$2410='MDOT FTA Detail'!$A58)*(Projects!$J$5:$J$2410<>'MDOT FTA Detail'!$A$171)*(Projects!$Q$5:Q$2410)) -> 668976 | J58: =SUMPRODUCT((Projects!$A$5:$A$2410='MDOT FTA Detail'!$J$3)*(Projects!$C$5:$C$2410='MDOT FTA Detail'!$C$4)*(Projects!$L$5:$L$2410='MDOT FTA Detail'!$A58)*(Projects!$J$5:$J$2410<>'MDOT FTA Detail'!$A$171)*(Projects!$K$5:$K$2410)) -> 0 | K58: 0 | L58: =SUMPRODUCT((Projects!$A$5:$A$2410='MDOT FTA Detail'!$J$3)*(Projects!$C$5:$C$2410='MDOT FTA Detail'!$C$4)*(Projects!$L$5:$L$2410='MDOT FTA Detail'!$A58)*(Projects!$J$5:$J$2410<>'MDOT FTA Detail'!$A$171)*(Projects!$Q$5:$Q$2410)) -> 0 | M58: =SUMPRODUCT((Projects!$A$5:$A$2410='MDOT FTA Detail'!$M$3)*(Projects!$C$5:$C$2410='MDOT FTA Detail'!$C$4)*(Projects!$L$5:$L$2410='MDOT FTA Detail'!$A58)*(Projects!$J$5:$J$2410<>'MDOT FTA Detail'!$A$171)*(Projects!$K$5:$K$2410)) -> 0 | N58: 0 | O58: =SUMPRODUCT((Projects!$A$5:$A$2410='MDOT FTA Detail'!$M$3)*(Projects!$C$5:$C$2410='MDOT FTA Detail'!$C$4)*(Projects!$L$5:$L$2410='MDOT FTA Detail'!$A58)*(Projects!$J$5:$J$2410<>'MDOT FTA Detail'!$A$171)*(Projects!$Q$5:$Q$2410)) -> 0
A59: NHG | B59: National Highway System - Safety - 100% Federal | C59: MDOT FA | D59: =SUMPRODUCT((Projects!$A$5:$A$2410='MDOT FTA Detail'!$D$3)*(Projects!$C$5:$C$2410='MDOT FTA Detail'!$C$4)*(Projects!$L$5:$L$2410='MDOT FTA Detail'!$A59)*(Projects!$J$5:$J$2410<>'MDOT FTA Detail'!$A$171)*(Projects!$K$5:K$2410)) -> 0 | E59: 0 | F59: =SUMPRODUCT((Projects!$A$5:$A$2410='MDOT FTA Detail'!$D$3)*(Projects!$C$5:$C$2410='MDOT FTA Detail'!$C$4)*(Projects!$L$5:$L$2410='MDOT FTA Detail'!$A59)*(Projects!$J$5:$J$2410<>'MDOT FTA Detail'!$A$171)*(Projects!$Q$5:Q$2410)) -> 0 | G59: =SUMPRODUCT((Projects!$A$5:$A$2410='MDOT FTA Detail'!$G$3)*(Projects!$C$5:$C$2410='MDOT FTA Detail'!$C$4)*(Projects!$L$5:$L$2410='MDOT FTA Detail'!$A59)*(Projects!$J$5:$J$2410<>'MDOT FTA Detail'!$A$171)*(Projects!$K$5:K$2410)) -> 0 | H59: 0 | I59: =SUMPRODUCT((Projects!$A$5:$A$2410='MDOT FTA Detail'!$G$3)*(Projects!$C$5:$C$2410='MDOT FTA Detail'!$C$4)*(Projects!$L$5:$L$2410='MDOT FTA Detail'!$A59)*(Projects!$J$5:$J$2410<>'MDOT FTA Detail'!$A$171)*(Projects!$Q$5:Q$2410)) -> 0 | J59: =SUMPRODUCT((Projects!$A$5:$A$2410='MDOT FTA Detail'!$J$3)*(Projects!$C$5:$C$2410='MDOT FTA Detail'!$C$4)*(Projects!$L$5:$L$2410='MDOT FTA Detail'!$A59)*(Projects!$J$5:$J$2410<>'MDOT FTA Detail'!$A$171)*(Projects!$K$5:$K$2410)) -> 0 | K59: 0 | L59: =SUMPRODUCT((Projects!$A$5:$A$2410='MDOT FTA Detail'!$J$3)*(Projects!$C$5:$C$2410='MDOT FTA Detail'!$C$4)*(Projects!$L$5:$L$2410='MDOT FTA Detail'!$A59)*(Projects!$J$5:$J$2410<>'MDOT FTA Detail'!$A$171)*(Projects!$Q$5:$Q$2410)) -> 0 | M59: =SUMPRODUCT((Projects!$A$5:$A$2410='MDOT FTA Detail'!$M$3)*(Projects!$C$5:$C$2410='MDOT FTA Detail'!$C$4)*(Projects!$L$5:$L$2410='MDOT FTA Detail'!$A59)*(Projects!$J$5:$J$2410<>'MDOT FTA Detail'!$A$171)*(Projects!$K$5:$K$2410)) -> 0 | N59: 0 | O59: =SUMPRODUCT((Projects!$A$5:$A$2410='MDOT FTA Detail'!$M$3)*(Projects!$C$5:$C$2410='MDOT FTA Detail'!$C$4)*(Projects!$L$5:$L$2410='MDOT FTA Detail'!$A59)*(Projects!$J$5:$J$2410<>'MDOT FTA Detail'!$A$171)*(Projects!$Q$5:$Q$2410)) -> 0
A60: NHI | B60: National Highway Funds on I (Does not Qualify for I) | C60: MDOT FA | D60: =SUMPRODUCT((Projects!$A$5:$A$2410='MDOT FTA Detail'!$D$3)*(Projects!$C$5:$C$2410='MDOT FTA Detail'!$C$4)*(Projects!$L$5:$L$2410='MDOT FTA Detail'!$A60)*(Projects!$J$5:$J$2410<>'MDOT FTA Detail'!$A$171)*(Projects!$K$5:K$2410)) -> 0 | E60: 0 | F60: =SUMPRODUCT((Projects!$A$5:$A$2410='MDOT FTA Detail'!$D$3)*(Projects!$C$5:$C$2410='MDOT FTA Detail'!$C$4)*(Projects!$L$5:$L$2410='MDOT FTA Detail'!$A60)*(Projects!$J$5:$J$2410<>'MDOT FTA Detail'!$A$171)*(Projects!$Q$5:Q$2410)) -> 0 | G60: =SUMPRODUCT((Projects!$A$5:$A$2410='MDOT FTA Detail'!$G$3)*(Projects!$C$5:$C$2410='MDOT FTA Detail'!$C$4)*(Projects!$L$5:$L$2410='MDOT FTA Detail'!$A60)*(Projects!$J$5:$J$2410<>'MDOT FTA Detail'!$A$171)*(Projects!$K$5:K$2410)) -> 0 | H60: 0 | I60: =SUMPRODUCT((Projects!$A$5:$A$2410='MDOT FTA Detail'!$G$3)*(Projects!$C$5:$C$2410='MDOT FTA Detail'!$C$4)*(Projects!$L$5:$L$2410='MDOT FTA Detail'!$A60)*(Projects!$J$5:$J$2410<>'MDOT FTA Detail'!$A$171)*(Projects!$Q$5:Q$2410)) -> 0 | J60: =SUMPRODUCT((Projects!$A$5:$A$2410='MDOT FTA Detail'!$J$3)*(Projects!$C$5:$C$2410='MDOT FTA Detail'!$C$4)*(Projects!$L$5:$L$2410='MDOT FTA Detail'!$A60)*(Projects!$J$5:$J$2410<>'MDOT FTA Detail'!$A$171)*(Projects!$K$5:$K$2410)) -> 0 | K60: 0 | L60: =SUMPRODUCT((Projects!$A$5:$A$2410='MDOT FTA Detail'!$J$3)*(Projects!$C$5:$C$2410='MDOT FTA Detail'!$C$4)*(Projects!$L$5:$L$2410='MDOT FTA Detail'!$A60)*(Projects!$J$5:$J$2410<>'MDOT FTA Detail'!$A$171)*(Projects!$Q$5:$Q$2410)) -> 0 | M60: =SUMPRODUCT((Projects!$A$5:$A$2410='MDOT FTA Detail'!$M$3)*(Projects!$C$5:$C$2410='MDOT FTA Detail'!$C$4)*(Projects!$L$5:$L$2410='MDOT FTA Detail'!$A60)*(Projects!$J$5:$J$2410<>'MDOT FTA Detail'!$A$171)*(Projects!$K$5:$K$2410)) -> 0 | N60: 0 | O60: =SUMPRODUCT((Projects!$A$5:$A$2410='MDOT FTA Detail'!$M$3)*(Projects!$C$5:$C$2410='MDOT FTA Detail'!$C$4)*(Projects!$L$5:$L$2410='MDOT FTA Detail'!$A60)*(Projects!$J$5:$J$2410<>'MDOT FTA Detail'!$A$171)*(Projects!$Q$5:$Q$2410)) -> 0
A61: NHIM | B61: National Highway Funds on I (Qualifies for IM) | C61: MDOT FA | D61: =SUMPRODUCT((Projects!$A$5:$A$2410='MDOT FTA Detail'!$D$3)*(Projects!$C$5:$C$2410='MDOT FTA Detail'!$C$4)*(Projects!$L$5:$L$2410='MDOT FTA Detail'!$A61)*(Projects!$J$5:$J$2410<>'MDOT FTA Detail'!$A$171)*(Projects!$K$5:K$2410)) -> 0 | E61: 0 | F61: =SUMPRODUCT((Projects!$A$5:$A$2410='MDOT FTA Detail'!$D$3)*(Projects!$C$5:$C$2410='MDOT FTA Detail'!$C$4)*(Projects!$L$5:$L$2410='MDOT FTA Detail'!$A61)*(Projects!$J$5:$J$2410<>'MDOT FTA Detail'!$A$171)*(Projects!$Q$5:Q$2410)) -> 0 | G61: =SUMPRODUCT((Projects!$A$5:$A$2410='MDOT FTA Detail'!$G$3)*(Projects!$C$5:$C$2410='MDOT FTA Detail'!$C$4)*(Projects!$L$5:$L$2410='MDOT FTA Detail'!$A61)*(Projects!$J$5:$J$2410<>'MDOT FTA Detail'!$A$171)*(Projects!$K$5:K$2410)) -> 0 | H61: 0 | I61: =SUMPRODUCT((Projects!$A$5:$A$2410='MDOT FTA Detail'!$G$3)*(Projects!$C$5:$C$2410='MDOT FTA Detail'!$C$4)*(Projects!$L$5:$L$2410='MDOT FTA Detail'!$A61)*(Projects!$J$5:$J$2410<>'MDOT FTA Detail'!$A$171)*(Projects!$Q$5:Q$2410)) -> 0 | J61: =SUMPRODUCT((Projects!$A$5:$A$2410='MDOT FTA Detail'!$J$3)*(Projects!$C$5:$C$2410='MDOT FTA Detail'!$C$4)*(Projects!$L$5:$L$2410='MDOT FTA Detail'!$A61)*(Projects!$J$5:$J$2410<>'MDOT FTA Detail'!$A$171)*(Projects!$K$5:$K$2410)) -> 0 | K61: 0 | L61: =SUMPRODUCT((Projects!$A$5:$A$2410='MDOT FTA Detail'!$J$3)*(Projects!$C$5:$C$2410='MDOT FTA Detail'!$C$4)*(Projects!$L$5:$L$2410='MDOT FTA Detail'!$A61)*(Projects!$J$5:$J$2410<>'MDOT FTA Detail'!$A$171)*(Projects!$Q$5:$Q$2410)) -> 0 | M61: =SUMPRODUCT((Projects!$A$5:$A$2410='MDOT FTA Detail'!$M$3)*(Projects!$C$5:$C$2410='MDOT FTA Detail'!$C$4)*(Projects!$L$5:$L$2410='MDOT FTA Detail'!$A61)*(Projects!$J$5:$J$2410<>'MDOT FTA Detail'!$A$171)*(Projects!$K$5:$K$2410)) -> 0 | N61: 0 | O61: =SUMPRODUCT((Projects!$A$5:$A$2410='MDOT FTA Detail'!$M$3)*(Projects!$C$5:$C$2410='MDOT FTA Detail'!$C$4)*(Projects!$L$5:$L$2410='MDOT FTA Detail'!$A61)*(Projects!$J$5:$J$2410<>'MDOT FTA Detail'!$A$171)*(Projects!$Q$5:$Q$2410)) -> 0
A62: NHS | B62: National Highway System - MDOT Safety Program | C62: MDOT FA | D62: =SUMPRODUCT((Projects!$A$5:$A$2410='MDOT FTA Detail'!$D$3)*(Projects!$C$5:$C$2410='MDOT FTA Detail'!$C$4)*(Projects!$L$5:$L$2410='MDOT FTA Detail'!$A62)*(Projects!$J$5:$J$2410<>'MDOT FTA Detail'!$A$171)*(Projects!$K$5:K$2410)) -> 0 | E62: 0 | F62: =SUMPRODUCT((Projects!$A$5:$A$2410='MDOT FTA Detail'!$D$3)*(Projects!$C$5:$C$2410='MDOT FTA Detail'!$C$4)*(Projects!$L$5:$L$2410='MDOT FTA Detail'!$A62)*(Projects!$J$5:$J$2410<>'MDOT FTA Detail'!$A$171)*(Projects!$Q$5:Q$2410)) -> 0 | G62: =SUMPRODUCT((Projects!$A$5:$A$2410='MDOT FTA Detail'!$G$3)*(Projects!$C$5:$C$2410='MDOT FTA Detail'!$C$4)*(Projects!$L$5:$L$2410='MDOT FTA Detail'!$A62)*(Projects!$J$5:$J$2410<>'MDOT FTA Detail'!$A$171)*(Projects!$K$5:K$2410)) -> 0 | H62: 0 | I62: =SUMPRODUCT((Projects!$A$5:$A$2410='MDOT FTA Detail'!$G$3)*(Projects!$C$5:$C$2410='MDOT FTA Detail'!$C$4)*(Projects!$L$5:$L$2410='MDOT FTA Detail'!$A62)*(Projects!$J$5:$J$2410<>'MDOT FTA Detail'!$A$171)*(Projects!$Q$5:Q$2410)) -> 0 | J62: =SUMPRODUCT((Projects!$A$5:$A$2410='MDOT FTA Detail'!$J$3)*(Projects!$C$5:$C$2410='MDOT FTA Detail'!$C$4)*(Projects!$L$5:$L$2410='MDOT FTA Detail'!$A62)*(Projects!$J$5:$J$2410<>'MDOT FTA Detail'!$A$171)*(Projects!$K$5:$K$2410)) -> 0 | K62: 0 | L62: =SUMPRODUCT((Projects!$A$5:$A$2410='MDOT FTA Detail'!$J$3)*(Projects!$C$5:$C$2410='MDOT FTA Detail'!$C$4)*(Projects!$L$5:$L$2410='MDOT FTA Detail'!$A62)*(Projects!$J$5:$J$2410<>'MDOT FTA Detail'!$A$171)*(Projects!$Q$5:$Q$2410)) -> 0 | M62: =SUMPRODUCT((Projects!$A$5:$A$2410='MDOT FTA Detail'!$M$3)*(Projects!$C$5:$C$2410='MDOT FTA Detail'!$C$4)*(Projects!$L$5:$L$2410='MDOT FTA Detail'!$A62)*(Projects!$J$5:$J$2410<>'MDOT FTA Detail'!$A$171)*(Projects!$K$5:$K$2410)) -> 0 | N62: 0 | O62: =SUMPRODUCT((Projects!$A$5:$A$2410='MDOT FTA Detail'!$M$3)*(Projects!$C$5:$C$2410='MDOT FTA Detail'!$C$4)*(Projects!$L$5:$L$2410='MDOT FTA Detail'!$A62)*(Projects!$J$5:$J$2410<>'MDOT FTA Detail'!$A$171)*(Projects!$Q$5:$Q$2410)) -> 0
A63: NRT | B63: National Recreational Trails | C63: MDOT FA | D63: =SUMPRODUCT((Projects!$A$5:$A$2410='MDOT FTA Detail'!$D$3)*(Projects!$C$5:$C$2410='MDOT FTA Detail'!$C$4)*(Projects!$L$5:$L$2410='MDOT FTA Detail'!$A63)*(Projects!$J$5:$J$2410<>'MDOT FTA Detail'!$A$171)*(Projects!$K$5:K$2410)) -> 0 | E63: 0 | F63: =SUMPRODUCT((Projects!$A$5:$A$2410='MDOT FTA Detail'!$D$3)*(Projects!$C$5:$C$2410='MDOT FTA Detail'!$C$4)*(Projects!$L$5:$L$2410='MDOT FTA Detail'!$A63)*(Projects!$J$5:$J$2410<>'MDOT FTA Detail'!$A$171)*(Projects!$Q$5:Q$2410)) -> 0 | G63: =SUMPRODUCT((Projects!$A$5:$A$2410='MDOT FTA Detail'!$G$3)*(Projects!$C$5:$C$2410='MDOT FTA Detail'!$C$4)*(Projects!$L$5:$L$2410='MDOT FTA Detail'!$A63)*(Projects!$J$5:$J$2410<>'MDOT FTA Detail'!$A$171)*(Projects!$K$5:K$2410)) -> 0 | H63: 0 | I63: =SUMPRODUCT((Projects!$A$5:$A$2410='MDOT FTA Detail'!$G$3)*(Projects!$C$5:$C$2410='MDOT FTA Detail'!$C$4)*(Projects!$L$5:$L$2410='MDOT FTA Detail'!$A63)*(Projects!$J$5:$J$2410<>'MDOT FTA Detail'!$A$171)*(Projects!$Q$5:Q$2410)) -> 0 | J63: =SUMPRODUCT((Projects!$A$5:$A$2410='MDOT FTA Detail'!$J$3)*(Projects!$C$5:$C$2410='MDOT FTA Detail'!$C$4)*(Projects!$L$5:$L$2410='MDOT FTA Detail'!$A63)*(Projects!$J$5:$J$2410<>'MDOT FTA Detail'!$A$171)*(Projects!$K$5:$K$2410)) -> 0 | K63: 0 | L63: =SUMPRODUCT((Projects!$A$5:$A$2410='MDOT FTA Detail'!$J$3)*(Projects!$C$5:$C$2410='MDOT FTA Detail'!$C$4)*(Projects!$L$5:$L$2410='MDOT FTA Detail'!$A63)*(Projects!$J$5:$J$2410<>'MDOT FTA Detail'!$A$171)*(Projects!$Q$5:$Q$2410)) -> 0 | M63: =SUMPRODUCT((Projects!$A$5:$A$2410='MDOT FTA Detail'!$M$3)*(Projects!$C$5:$C$2410='MDOT FTA Detail'!$C$4)*(Projects!$L$5:$L$2410='MDOT FTA Detail'!$A63)*(Projects!$J$5:$J$2410<>'MDOT FTA Detail'!$A$171)*(Projects!$K$5:$K$2410)) -> 0 | N63: 0 | O63: =SUMPRODUCT((Projects!$A$5:$A$2410='MDOT FTA Detail'!$M$3)*(Projects!$C$5:$C$2410='MDOT FTA Detail'!$C$4)*(Projects!$L$5:$L$2410='MDOT FTA Detail'!$A63)*(Projects!$J$5:$J$2410<>'MDOT FTA Detail'!$A$171)*(Projects!$Q$5:$Q$2410)) -> 0
A64: OFHWA | B64: Other FHWA Funds (Specify source in Comments) | C64: MDOT FA | D64: =SUMPRODUCT((Projects!$A$5:$A$2410='MDOT FTA Detail'!$D$3)*(Projects!$C$5:$C$2410='MDOT FTA Detail'!$C$4)*(Projects!$L$5:$L$2410='MDOT FTA Detail'!$A64)*(Projects!$J$5:$J$2410<>'MDOT FTA Detail'!$A$171)*(Projects!$K$5:K$2410)) -> 0 | E64: 0 | F64: =SUMPRODUCT((Projects!$A$5:$A$2410='MDOT FTA Detail'!$D$3)*(Projects!$C$5:$C$2410='MDOT FTA Detail'!$C$4)*(Projects!$L$5:$L$2410='MDOT FTA Detail'!$A64)*(Projects!$J$5:$J$2410<>'MDOT FTA Detail'!$A$171)*(Projects!$Q$5:Q$2410)) -> 0 | G64: =SUMPRODUCT((Projects!$A$5:$A$2410='MDOT FTA Detail'!$G$3)*(Projects!$C$5:$C$2410='MDOT FTA Detail'!$C$4)*(Projects!$L$5:$L$2410='MDOT FTA Detail'!$A64)*(Projects!$J$5:$J$2410<>'MDOT FTA Detail'!$A$171)*(Projects!$K$5:K$2410)) -> 0 | H64: 0 | I64: =SUMPRODUCT((Projects!$A$5:$A$2410='MDOT FTA Detail'!$G$3)*(Projects!$C$5:$C$2410='MDOT FTA Detail'!$C$4)*(Projects!$L$5:$L$2410='MDOT FTA Detail'!$A64)*(Projects!$J$5:$J$2410<>'MDOT FTA Detail'!$A$171)*(Projects!$Q$5:Q$2410)) -> 0 | J64: =SUMPRODUCT((Projects!$A$5:$A$2410='MDOT FTA Detail'!$J$3)*(Projects!$C$5:$C$2410='MDOT FTA Detail'!$C$4)*(Projects!$L$5:$L$2410='MDOT FTA Detail'!$A64)*(Projects!$J$5:$J$2410<>'MDOT FTA Detail'!$A$171)*(Projects!$K$5:$K$2410)) -> 0 | K64: 0 | L64: =SUMPRODUCT((Projects!$A$5:$A$2410='MDOT FTA Detail'!$J$3)*(Projects!$C$5:$C$2410='MDOT FTA Detail'!$C$4)*(Projects!$L$5:$L$2410='MDOT FTA Detail'!$A64)*(Projects!$J$5:$J$2410<>'MDOT FTA Detail'!$A$171)*(Projects!$Q$5:$Q$2410)) -> 0 | M64: =SUMPRODUCT((Projects!$A$5:$A$2410='MDOT FTA Detail'!$M$3)*(Projects!$C$5:$C$2410='MDOT FTA Detail'!$C$4)*(Projects!$L$5:$L$2410='MDOT FTA Detail'!$A64)*(Projects!$J$5:$J$2410<>'MDOT FTA Detail'!$A$171)*(Projects!$K$5:$K$2410)) -> 0 | N64: 0 | O64: =SUMPRODUCT((Projects!$A$5:$A$2410='MDOT FTA Detail'!$M$3)*(Projects!$C$5:$C$2410='MDOT FTA Detail'!$C$4)*(Projects!$L$5:$L$2410='MDOT FTA Detail'!$A64)*(Projects!$J$5:$J$2410<>'MDOT FTA Detail'!$A$171)*(Projects!$Q$5:$Q$2410)) -> 0
A65: PNRS | B65: Projects of National and Regional Significance | C65: MDOT FA | D65: =SUMPRODUCT((Projects!$A$5:$A$2410='MDOT FTA Detail'!$D$3)*(Projects!$C$5:$C$2410='MDOT FTA Detail'!$C$4)*(Projects!$L$5:$L$2410='MDOT FTA Detail'!$A65)*(Projects!$J$5:$J$2410<>'MDOT FTA Detail'!$A$171)*(Projects!$K$5:K$2410)) -> 0 | E65: 0 | F65: =SUMPRODUCT((Projects!$A$5:$A$2410='MDOT FTA Detail'!$D$3)*(Projects!$C$5:$C$2410='MDOT FTA Detail'!$C$4)*(Projects!$L$5:$L$2410='MDOT FTA Detail'!$A65)*(Projects!$J$5:$J$2410<>'MDOT FTA Detail'!$A$171)*(Projects!$Q$5:Q$2410)) -> 0 | G65: =SUMPRODUCT((Projects!$A$5:$A$2410='MDOT FTA Detail'!$G$3)*(Projects!$C$5:$C$2410='MDOT FTA Detail'!$C$4)*(Projects!$L$5:$L$2410='MDOT FTA Detail'!$A65)*(Projects!$J$5:$J$2410<>'MDOT FTA Detail'!$A$171)*(Projects!$K$5:K$2410)) -> 0 | H65: 0 | I65: =SUMPRODUCT((Projects!$A$5:$A$2410='MDOT FTA Detail'!$G$3)*(Projects!$C$5:$C$2410='MDOT FTA Detail'!$C$4)*(Projects!$L$5:$L$2410='MDOT FTA Detail'!$A65)*(Projects!$J$5:$J$2410<>'MDOT FTA Detail'!$A$171)*(Projects!$Q$5:Q$2410)) -> 0 | J65: =SUMPRODUCT((Projects!$A$5:$A$2410='MDOT FTA Detail'!$J$3)*(Projects!$C$5:$C$2410='MDOT FTA Detail'!$C$4)*(Projects!$L$5:$L$2410='MDOT FTA Detail'!$A65)*(Projects!$J$5:$J$2410<>'MDOT FTA Detail'!$A$171)*(Projects!$K$5:$K$2410)) -> 0 | K65: 0 | L65: =SUMPRODUCT((Projects!$A$5:$A$2410='MDOT FTA Detail'!$J$3)*(Projects!$C$5:$C$2410='MDOT FTA Detail'!$C$4)*(Projects!$L$5:$L$2410='MDOT FTA Detail'!$A65)*(Projects!$J$5:$J$2410<>'MDOT FTA Detail'!$A$171)*(Projects!$Q$5:$Q$2410)) -> 0 | M65: =SUMPRODUCT((Projects!$A$5:$A$2410='MDOT FTA Detail'!$M$3)*(Projects!$C$5:$C$2410='MDOT FTA Detail'!$C$4)*(Projects!$L$5:$L$2410='MDOT FTA Detail'!$A65)*(Projects!$J$5:$J$2410<>'MDOT FTA Detail'!$A$171)*(Projects!$K$5:$K$2410)) -> 0 | N65: 0 | O65: =SUMPRODUCT((Projects!$A$5:$A$2410='MDOT FTA Detail'!$M$3)*(Projects!$C$5:$C$2410='MDOT FTA Detail'!$C$4)*(Projects!$L$5:$L$2410='MDOT FTA Detail'!$A65)*(Projects!$J$5:$J$2410<>'MDOT FTA Detail'!$A$171)*(Projects!$Q$5:$Q$2410)) -> 0
A66: PRIP | B66: Priority Roads Investment Program | C66: MDOT FA | D66: =SUMPRODUCT((Projects!$A$5:$A$2410='MDOT FTA Detail'!$D$3)*(Projects!$C$5:$C$2410='MDOT FTA Detail'!$C$4)*(Projects!$L$5:$L$2410='MDOT FTA Detail'!$A66)*(Projects!$J$5:$J$2410<>'MDOT FTA Detail'!$A$171)*(Projects!$K$5:K$2410)) -> 0 | E66: =F66-D66 -> 0 | F66: =SUMPRODUCT((Projects!$A$5:$A$2410='MDOT FTA Detail'!$D$3)*(Projects!$C$5:$C$2410='MDOT FTA Detail'!$C$4)*(Projects!$L$5:$L$2410='MDOT FTA Detail'!$A66)*(Projects!$J$5:$J$2410<>'MDOT FTA Detail'!$A$171)*(Projects!$Q$5:Q$2410)) -> 0 | G66: =SUMPRODUCT((Projects!$A$5:$A$2410='MDOT FTA Detail'!$G$3)*(Projects!$C$5:$C$2410='MDOT FTA Detail'!$C$4)*(Projects!$L$5:$L$2410='MDOT FTA Detail'!$A66)*(Projects!$J$5:$J$2410<>'MDOT FTA Detail'!$A$171)*(Projects!$K$5:K$2410)) -> 0 | H66: =I66-G66 -> 0 | I66: =SUMPRODUCT((Projects!$A$5:$A$2410='MDOT FTA Detail'!$G$3)*(Projects!$C$5:$C$2410='MDOT FTA Detail'!$C$4)*(Projects!$L$5:$L$2410='MDOT FTA Detail'!$A66)*(Projects!$J$5:$J$2410<>'MDOT FTA Detail'!$A$171)*(Projects!$Q$5:Q$2410)) -> 0 | J66: =SUMPRODUCT((Projects!$A$5:$A$2410='MDOT FTA Detail'!$J$3)*(Projects!$C$5:$C$2410='MDOT FTA Detail'!$C$4)*(Projects!$L$5:$L$2410='MDOT FTA Detail'!$A66)*(Projects!$J$5:$J$2410<>'MDOT FTA Detail'!$A$171)*(Projects!$K$5:$K$2410)) -> 0 | K66: =L66-J66 -> 0 | L66: =SUMPRODUCT((Projects!$A$5:$A$2410='MDOT FTA Detail'!$J$3)*(Projects!$C$5:$C$2410='MDOT FTA Detail'!$C$4)*(Projects!$L$5:$L$2410='MDOT FTA Detail'!$A66)*(Projects!$J$5:$J$2410<>'MDOT FTA Detail'!$A$171)*(Projects!$Q$5:$Q$2410)) -> 0 | M66: =SUMPRODUCT((Projects!$A$5:$A$2410='MDOT FTA Detail'!$M$3)*(Projects!$C$5:$C$2410='MDOT FTA Detail'!$C$4)*(Projects!$L$5:$L$2410='MDOT FTA Detail'!$A66)*(Projects!$J$5:$J$2410<>'MDOT FTA Detail'!$A$171)*(Projects!$K$5:$K$2410)) -> 0 | N66: =O66-M66 -> 0 | O66: =SUMPRODUCT((Projects!$A$5:$A$2410='MDOT FTA Detail'!$M$3)*(Projects!$C$5:$C$2410='MDOT FTA Detail'!$C$4)*(Projects!$L$5:$L$2410='MDOT FTA Detail'!$A66)*(Projects!$J$5:$J$2410<>'MDOT FTA Detail'!$A$171)*(Projects!$Q$5:$Q$2410)) -> 0
A67: RP | B67: Research Project | C67: MDOT FA | D67: =SUMPRODUCT((Projects!$A$5:$A$2410='MDOT FTA Detail'!$D$3)*(Projects!$C$5:$C$2410='MDOT FTA Detail'!$C$4)*(Projects!$L$5:$L$2410='MDOT FTA Detail'!$A67)*(Projects!$J$5:$J$2410<>'MDOT FTA Detail'!$A$171)*(Projects!$K$5:K$2410)) -> 0 | E67: 0 | F67: =SUMPRODUCT((Projects!$A$5:$A$2410='MDOT FTA Detail'!$D$3)*(Projects!$C$5:$C$2410='MDOT FTA Detail'!$C$4)*(Projects!$L$5:$L$2410='MDOT FTA Detail'!$A67)*(Projects!$J$5:$J$2410<>'MDOT FTA Detail'!$A$171)*(Projects!$Q$5:Q$2410)) -> 0 | G67: =SUMPRODUCT((Projects!$A$5:$A$2410='MDOT FTA Detail'!$G$3)*(Projects!$C$5:$C$2410='MDOT FTA Detail'!$C$4)*(Projects!$L$5:$L$2410='MDOT FTA Detail'!$A67)*(Projects!$J$5:$J$2410<>'MDOT FTA Detail'!$A$171)*(Projects!$K$5:K$2410)) -> 0 | H67: 0 | I67: =SUMPRODUCT((Projects!$A$5:$A$2410='MDOT FTA Detail'!$G$3)*(Projects!$C$5:$C$2410='MDOT FTA Detail'!$C$4)*(Projects!$L$5:$L$2410='MDOT FTA Detail'!$A67)*(Projects!$J$5:$J$2410<>'MDOT FTA Detail'!$A$171)*(Projects!$Q$5:Q$2410)) -> 0 | J67: =SUMPRODUCT((Projects!$A$5:$A$2410='MDOT FTA Detail'!$J$3)*(Projects!$C$5:$C$2410='MDOT FTA Detail'!$C$4)*(Projects!$L$5:$L$2410='MDOT FTA Detail'!$A67)*(Projects!$J$5:$J$2410<>'MDOT FTA Detail'!$A$171)*(Projects!$K$5:$K$2410)) -> 0 | K67: 0 | L67: =SUMPRODUCT((Projects!$A$5:$A$2410='MDOT FTA Detail'!$J$3)*(Projects!$C$5:$C$2410='MDOT FTA Detail'!$C$4)*(Projects!$L$5:$L$2410='MDOT FTA Detail'!$A67)*(Projects!$J$5:$J$2410<>'MDOT FTA Detail'!$A$171)*(Projects!$Q$5:$Q$2410)) -> 0 | M67: =SUMPRODUCT((Projects!$A$5:$A$2410='MDOT FTA Detail'!$M$3)*(Projects!$C$5:$C$2410='MDOT FTA Detail'!$C$4)*(Projects!$L$5:$L$2410='MDOT FTA Detail'!$A67)*(Projects!$J$5:$J$2410<>'MDOT FTA Detail'!$A$171)*(Projects!$K$5:$K$2410)) -> 0 | N67: 0 | O67: =SUMPRODUCT((Projects!$A$5:$A$2410='MDOT FTA Detail'!$M$3)*(Projects!$C$5:$C$2410='MDOT FTA Detail'!$C$4)*(Projects!$L$5:$L$2410='MDOT FTA Detail'!$A67)*(Projects!$J$5:$J$2410<>'MDOT FTA Detail'!$A$171)*(Projects!$Q$5:$Q$2410)) -> 0
A68: RPH | B68: American Recovery and Reinvestment Act | C68: MDOT FA | D68: =SUMPRODUCT((Projects!$A$5:$A$2410='MDOT FTA Detail'!$D$3)*(Projects!$C$5:$C$2410='MDOT FTA Detail'!$C$4)*(Projects!$L$5:$L$2410='MDOT FTA Detail'!$A68)*(Projects!$J$5:$J$2410<>'MDOT FTA Detail'!$A$171)*(Projects!$K$5:K$2410)) -> 0 | E68: 0 | F68: =SUMPRODUCT((Projects!$A$5:$A$2410='MDOT FTA Detail'!$D$3)*(Projects!$C$5:$C$2410='MDOT FTA Detail'!$C$4)*(Projects!$L$5:$L$2410='MDOT FTA Detail'!$A68)*(Projects!$J$5:$J$2410<>'MDOT FTA Detail'!$A$171)*(Projects!$Q$5:Q$2410)) -> 0 | G68: =SUMPRODUCT((Projects!$A$5:$A$2410='MDOT FTA Detail'!$G$3)*(Projects!$C$5:$C$2410='MDOT FTA Detail'!$C$4)*(Projects!$L$5:$L$2410='MDOT FTA Detail'!$A68)*(Projects!$J$5:$J$2410<>'MDOT FTA Detail'!$A$171)*(Projects!$K$5:K$2410)) -> 0 | H68: 0 | I68: =SUMPRODUCT((Projects!$A$5:$A$2410='MDOT FTA Detail'!$G$3)*(Projects!$C$5:$C$2410='MDOT FTA Detail'!$C$4)*(Projects!$L$5:$L$2410='MDOT FTA Detail'!$A68)*(Projects!$J$5:$J$2410<>'MDOT FTA Detail'!$A$171)*(Projects!$Q$5:Q$2410)) -> 0 | J68: =SUMPRODUCT((Projects!$A$5:$A$2410='MDOT FTA Detail'!$J$3)*(Projects!$C$5:$C$2410='MDOT FTA Detail'!$C$4)*(Projects!$L$5:$L$2410='MDOT FTA Detail'!$A68)*(Projects!$J$5:$J$2410<>'MDOT FTA Detail'!$A$171)*(Projects!$K$5:$K$2410)) -> 0 | K68: 0 | L68: =SUMPRODUCT((Projects!$A$5:$A$2410='MDOT FTA Detail'!$J$3)*(Projects!$C$5:$C$2410='MDOT FTA Detail'!$C$4)*(Projects!$L$5:$L$2410='MDOT FTA Detail'!$A68)*(Projects!$J$5:$J$2410<>'MDOT FTA Detail'!$A$171)*(Projects!$Q$5:$Q$2410)) -> 0 | M68: =SUMPRODUCT((Projects!$A$5:$A$2410='MDOT FTA Detail'!$M$3)*(Projects!$C$5:$C$2410='MDOT FTA Detail'!$C$4)*(Projects!$L$5:$L$2410='MDOT FTA Detail'!$A68)*(Projects!$J$5:$J$2410<>'MDOT FTA Detail'!$A$171)*(Projects!$K$5:$K$2410)) -> 0 | N68: 0 | O68: =SUMPRODUCT((Projects!$A$5:$A$2410='MDOT FTA Detail'!$M$3)*(Projects!$C$5:$C$2410='MDOT FTA Detail'!$C$4)*(Projects!$L$5:$L$2410='MDOT FTA Detail'!$A68)*(Projects!$J$5:$J$2410<>'MDOT FTA Detail'!$A$171)*(Projects!$Q$5:$Q$2410)) -> 0
A69: SBD | B69: Scenic Byways - Discretionary | C69: MDOT FA | D69: =SUMPRODUCT((Projects!$A$5:$A$2410='MDOT FTA Detail'!$D$3)*(Projects!$C$5:$C$2410='MDOT FTA Detail'!$C$4)*(Projects!$L$5:$L$2410='MDOT FTA Detail'!$A69)*(Projects!$J$5:$J$2410<>'MDOT FTA Detail'!$A$171)*(Projects!$K$5:K$2410)) -> 0 | E69: 0 | F69: =SUMPRODUCT((Projects!$A$5:$A$2410='MDOT FTA Detail'!$D$3)*(Projects!$C$5:$C$2410='MDOT FTA Detail'!$C$4)*(Projects!$L$5:$L$2410='MDOT FTA Detail'!$A69)*(Projects!$J$5:$J$2410<>'MDOT FTA Detail'!$A$171)*(Projects!$Q$5:Q$2410)) -> 0 | G69: =SUMPRODUCT((Projects!$A$5:$A$2410='MDOT FTA Detail'!$G$3)*(Projects!$C$5:$C$2410='MDOT FTA Detail'!$C$4)*(Projects!$L$5:$L$2410='MDOT FTA Detail'!$A69)*(Projects!$J$5:$J$2410<>'MDOT FTA Detail'!$A$171)*(Projects!$K$5:K$2410)) -> 0 | H69: 0 | I69: =SUMPRODUCT((Projects!$A$5:$A$2410='MDOT FTA Detail'!$G$3)*(Projects!$C$5:$C$2410='MDOT FTA Detail'!$C$4)*(Projects!$L$5:$L$2410='MDOT FTA Detail'!$A69)*(Projects!$J$5:$J$2410<>'MDOT FTA Detail'!$A$171)*(Projects!$Q$5:Q$2410)) -> 0 | J69: =SUMPRODUCT((Projects!$A$5:$A$2410='MDOT FTA Detail'!$J$3)*(Projects!$C$5:$C$2410='MDOT FTA Detail'!$C$4)*(Projects!$L$5:$L$2410='MDOT FTA Detail'!$A69)*(Projects!$J$5:$J$2410<>'MDOT FTA Detail'!$A$171)*(Projects!$K$5:$K$2410)) -> 0 | K69: 0 | L69: =SUMPRODUCT((Projects!$A$5:$A$2410='MDOT FTA Detail'!$J$3)*(Projects!$C$5:$C$2410='MDOT FTA Detail'!$C$4)*(Projects!$L$5:$L$2410='MDOT FTA Detail'!$A69)*(Projects!$J$5:$J$2410<>'MDOT FTA Detail'!$A$171)*(Projects!$Q$5:$Q$2410)) -> 0 | M69: =SUMPRODUCT((Projects!$A$5:$A$2410='MDOT FTA Detail'!$M$3)*(Projects!$C$5:$C$2410='MDOT FTA Detail'!$C$4)*(Projects!$L$5:$L$2410='MDOT FTA Detail'!$A69)*(Projects!$J$5:$J$2410<>'MDOT FTA Detail'!$A$171)*(Projects!$K$5:$K$2410)) -> 0 | N69: 0 | O69: =SUMPRODUCT((Projects!$A$5:$A$2410='MDOT FTA Detail'!$M$3)*(Projects!$C$5:$C$2410='MDOT FTA Detail'!$C$4)*(Projects!$L$5:$L$2410='MDOT FTA Detail'!$A69)*(Projects!$J$5:$J$2410<>'MDOT FTA Detail'!$A$171)*(Projects!$Q$5:$Q$2410)) -> 0
A70: SIB | B70: State Infrastructure Bank | C70: MDOT FA | D70: =SUMPRODUCT((Projects!$A$5:$A$2410='MDOT FTA Detail'!$D$3)*(Projects!$C$5:$C$2410='MDOT FTA Detail'!$C$4)*(Projects!$L$5:$L$2410='MDOT FTA Detail'!$A70)*(Projects!$J$5:$J$2410<>'MDOT FTA Detail'!$A$171)*(Projects!$K$5:K$2410)) -> 0 | E70: 0 | F70: =SUMPRODUCT((Projects!$A$5:$A$2410='MDOT FTA Detail'!$D$3)*(Projects!$C$5:$C$2410='MDOT FTA Detail'!$C$4)*(Projects!$L$5:$L$2410='MDOT FTA Detail'!$A70)*(Projects!$J$5:$J$2410<>'MDOT FTA Detail'!$A$171)*(Projects!$Q$5:Q$2410)) -> 0 | G70: =SUMPRODUCT((Projects!$A$5:$A$2410='MDOT FTA Detail'!$G$3)*(Projects!$C$5:$C$2410='MDOT FTA Detail'!$C$4)*(Projects!$L$5:$L$2410='MDOT FTA Detail'!$A70)*(Projects!$J$5:$J$2410<>'MDOT FTA Detail'!$A$171)*(Projects!$K$5:K$2410)) -> 0 | H70: 0 | I70: =SUMPRODUCT((Projects!$A$5:$A$2410='MDOT FTA Detail'!$G$3)*(Projects!$C$5:$C$2410='MDOT FTA Detail'!$C$4)*(Projects!$L$5:$L$2410='MDOT FTA Detail'!$A70)*(Projects!$J$5:$J$2410<>'MDOT FTA Detail'!$A$171)*(Projects!$Q$5:Q$2410)) -> 0 | J70: =SUMPRODUCT((Projects!$A$5:$A$2410='MDOT FTA Detail'!$J$3)*(Projects!$C$5:$C$2410='MDOT FTA Detail'!$C$4)*(Projects!$L$5:$L$2410='MDOT FTA Detail'!$A70)*(Projects!$J$5:$J$2410<>'MDOT FTA Detail'!$A$171)*(Projects!$K$5:$K$2410)) -> 0 | K70: 0 | L70: =SUMPRODUCT((Projects!$A$5:$A$2410='MDOT FTA Detail'!$J$3)*(Projects!$C$5:$C$2410='MDOT FTA Detail'!$C$4)*(Projects!$L$5:$L$2410='MDOT FTA Detail'!$A70)*(Projects!$J$5:$J$2410<>'MDOT FTA Detail'!$A$171)*(Projects!$Q$5:$Q$2410)) -> 0 | M70: =SUMPRODUCT((Projects!$A$5:$A$2410='MDOT FTA Detail'!$M$3)*(Projects!$C$5:$C$2410='MDOT FTA Detail'!$C$4)*(Projects!$L$5:$L$2410='MDOT FTA Detail'!$A70)*(Projects!$J$5:$J$2410<>'MDOT FTA Detail'!$A$171)*(Projects!$K$5:$K$2410)) -> 0 | N70: 0 | O70: =SUMPRODUCT((Projects!$A$5:$A$2410='MDOT FTA Detail'!$M$3)*(Projects!$C$5:$C$2410='MDOT FTA Detail'!$C$4)*(Projects!$L$5:$L$2410='MDOT FTA Detail'!$A70)*(Projects!$J$5:$J$2410<>'MDOT FTA Detail'!$A$171)*(Projects!$Q$5:$Q$2410)) -> 0
A71: SLG | B71: Surface Transportation Safety | C71: MDOT FA | D71: =SUMPRODUCT((Projects!$A$5:$A$2410='MDOT FTA Detail'!$D$3)*(Projects!$C$5:$C$2410='MDOT FTA Detail'!$C$4)*(Projects!$L$5:$L$2410='MDOT FTA Detail'!$A71)*(Projects!$J$5:$J$2410<>'MDOT FTA Detail'!$A$171)*(Projects!$K$5:K$2410)) -> 0 | E71: 0 | F71: =SUMPRODUCT((Projects!$A$5:$A$2410='MDOT FTA Detail'!$D$3)*(Projects!$C$5:$C$2410='MDOT FTA Detail'!$C$4)*(Projects!$L$5:$L$2410='MDOT FTA Detail'!$A71)*(Projects!$J$5:$J$2410<>'MDOT FTA Detail'!$A$171)*(Projects!$Q$5:Q$2410)) -> 0 | G71: =SUMPRODUCT((Projects!$A$5:$A$2410='MDOT FTA Detail'!$G$3)*(Projects!$C$5:$C$2410='MDOT FTA Detail'!$C$4)*(Projects!$L$5:$L$2410='MDOT FTA Detail'!$A71)*(Projects!$J$5:$J$2410<>'MDOT FTA Detail'!$A$171)*(Projects!$K$5:K$2410)) -> 0 | H71: 0 | I71: =SUMPRODUCT((Projects!$A$5:$A$2410='MDOT FTA Detail'!$G$3)*(Projects!$C$5:$C$2410='MDOT FTA Detail'!$C$4)*(Projects!$L$5:$L$2410='MDOT FTA Detail'!$A71)*(Projects!$J$5:$J$2410<>'MDOT FTA Detail'!$A$171)*(Projects!$Q$5:Q$2410)) -> 0 | J71: =SUMPRODUCT((Projects!$A$5:$A$2410='MDOT FTA Detail'!$J$3)*(Projects!$C$5:$C$2410='MDOT FTA Detail'!$C$4)*(Projects!$L$5:$L$2410='MDOT FTA Detail'!$A71)*(Projects!$J$5:$J$2410<>'MDOT FTA Detail'!$A$171)*(Projects!$K$5:$K$2410)) -> 0 | K71: 0 | L71: =SUMPRODUCT((Projects!$A$5:$A$2410='MDOT FTA Detail'!$J$3)*(Projects!$C$5:$C$2410='MDOT FTA Detail'!$C$4)*(Projects!$L$5:$L$2410='MDOT FTA Detail'!$A71)*(Projects!$J$5:$J$2410<>'MDOT FTA Detail'!$A$171)*(Projects!$Q$5:$Q$2410)) -> 0 | M71: =SUMPRODUCT((Projects!$A$5:$A$2410='MDOT FTA Detail'!$M$3)*(Projects!$C$5:$C$2410='MDOT FTA Detail'!$C$4)*(Projects!$L$5:$L$2410='MDOT FTA Detail'!$A71)*(Projects!$J$5:$J$2410<>'MDOT FTA Detail'!$A$171)*(Projects!$K$5:$K$2410)) -> 0 | N71: 0 | O71: =SUMPRODUCT((Projects!$A$5:$A$2410='MDOT FTA Detail'!$M$3)*(Projects!$C$5:$C$2410='MDOT FTA Detail'!$C$4)*(Projects!$L$5:$L$2410='MDOT FTA Detail'!$A71)*(Projects!$J$5:$J$2410<>'MDOT FTA Detail'!$A$171)*(Projects!$Q$5:$Q$2410)) -> 0
A72: SRSE | B72: Surface Transportation Safety Highway Crossing Hazard Elimination | C72: MDOT FA | D72: =SUMPRODUCT((Projects!$A$5:$A$2410='MDOT FTA Detail'!$D$3)*(Projects!$C$5:$C$2410='MDOT FTA Detail'!$C$4)*(Projects!$L$5:$L$2410='MDOT FTA Detail'!$A72)*(Projects!$J$5:$J$2410<>'MDOT FTA Detail'!$A$171)*(Projects!$K$5:K$2410)) -> 0 | E72: 0 | F72: =SUMPRODUCT((Projects!$A$5:$A$2410='MDOT FTA Detail'!$D$3)*(Projects!$C$5:$C$2410='MDOT FTA Detail'!$C$4)*(Projects!$L$5:$L$2410='MDOT FTA Detail'!$A72)*(Projects!$J$5:$J$2410<>'MDOT FTA Detail'!$A$171)*(Projects!$Q$5:Q$2410)) -> 0 | G72: =SUMPRODUCT((Projects!$A$5:$A$2410='MDOT FTA Detail'!$G$3)*(Projects!$C$5:$C$2410='MDOT FTA Detail'!$C$4)*(Projects!$L$5:$L$2410='MDOT FTA Detail'!$A72)*(Projects!$J$5:$J$2410<>'MDOT FTA Detail'!$A$171)*(Projects!$K$5:K$2410)) -> 0 | H72: 0 | I72: =SUMPRODUCT((Projects!$A$5:$A$2410='MDOT FTA Detail'!$G$3)*(Projects!$C$5:$C$2410='MDOT FTA Detail'!$C$4)*(Projects!$L$5:$L$2410='MDOT FTA Detail'!$A72)*(Projects!$J$5:$J$2410<>'MDOT FTA Detail'!$A$171)*(Projects!$Q$5:Q$2410)) -> 0 | J72: =SUMPRODUCT((Projects!$A$5:$A$2410='MDOT FTA Detail'!$J$3)*(Projects!$C$5:$C$2410='MDOT FTA Detail'!$C$4)*(Projects!$L$5:$L$2410='MDOT FTA Detail'!$A72)*(Projects!$J$5:$J$2410<>'MDOT FTA Detail'!$A$171)*(Projects!$K$5:$K$2410)) -> 0 | K72: 0 | L72: =SUMPRODUCT((Projects!$A$5:$A$2410='MDOT FTA Detail'!$J$3)*(Projects!$C$5:$C$2410='MDOT FTA Detail'!$C$4)*(Projects!$L$5:$L$2410='MDOT FTA Detail'!$A72)*(Projects!$J$5:$J$2410<>'MDOT FTA Detail'!$A$171)*(Projects!$Q$5:$Q$2410)) -> 0 | M72: =SUMPRODUCT((Projects!$A$5:$A$2410='MDOT FTA Detail'!$M$3)*(Projects!$C$5:$C$2410='MDOT FTA Detail'!$C$4)*(Projects!$L$5:$L$2410='MDOT FTA Detail'!$A72)*(Projects!$J$5:$J$2410<>'MDOT FTA Detail'!$A$171)*(Projects!$K$5:$K$2410)) -> 0 | N72: 0 | O72: =SUMPRODUCT((Projects!$A$5:$A$2410='MDOT FTA Detail'!$M$3)*(Projects!$C$5:$C$2410='MDOT FTA Detail'!$C$4)*(Projects!$L$5:$L$2410='MDOT FTA Detail'!$A72)*(Projects!$J$5:$J$2410<>'MDOT FTA Detail'!$A$171)*(Projects!$Q$5:$Q$2410)) -> 0
A73: SRHG | B73: Surface Transportation Safety Highway Crossing Protection Devices 100% | C73: MDOT FA | D73: =SUMPRODUCT((Projects!$A$5:$A$2410='MDOT FTA Detail'!$D$3)*(Projects!$C$5:$C$2410='MDOT FTA Detail'!$C$4)*(Projects!$L$5:$L$2410='MDOT FTA Detail'!$A73)*(Projects!$J$5:$J$2410<>'MDOT FTA Detail'!$A$171)*(Projects!$K$5:K$2410)) -> 0 | E73: =F73-D73 -> 0 | F73: =SUMPRODUCT((Projects!$A$5:$A$2410='MDOT FTA Detail'!$D$3)*(Projects!$C$5:$C$2410='MDOT FTA Detail'!$C$4)*(Projects!$L$5:$L$2410='MDOT FTA Detail'!$A73)*(Projects!$J$5:$J$2410<>'MDOT FTA Detail'!$A$171)*(Projects!$Q$5:Q$2410)) -> 0 | G73: =SUMPRODUCT((Projects!$A$5:$A$2410='MDOT FTA Detail'!$G$3)*(Projects!$C$5:$C$2410='MDOT FTA Detail'!$C$4)*(Projects!$L$5:$L$2410='MDOT FTA Detail'!$A73)*(Projects!$J$5:$J$2410<>'MDOT FTA Detail'!$A$171)*(Projects!$K$5:K$2410)) -> 0 | H73: =I73-G73 -> 0 | I73: =SUMPRODUCT((Projects!$A$5:$A$2410='MDOT FTA Detail'!$G$3)*(Projects!$C$5:$C$2410='MDOT FTA Detail'!$C$4)*(Projects!$L$5:$L$2410='MDOT FTA Detail'!$A73)*(Projects!$J$5:$J$2410<>'MDOT FTA Detail'!$A$171)*(Projects!$Q$5:Q$2410)) -> 0 | J73: =SUMPRODUCT((Projects!$A$5:$A$2410='MDOT FTA Detail'!$J$3)*(Projects!$C$5:$C$2410='MDOT FTA Detail'!$C$4)*(Projects!$L$5:$L$2410='MDOT FTA Detail'!$A73)*(Projects!$J$5:$J$2410<>'MDOT FTA Detail'!$A$171)*(Projects!$K$5:$K$2410)) -> 0 | K73: =L73-J73 -> 0 | L73: =SUMPRODUCT((Projects!$A$5:$A$2410='MDOT FTA Detail'!$J$3)*(Projects!$C$5:$C$2410='MDOT FTA Detail'!$C$4)*(Projects!$L$5:$L$2410='MDOT FTA Detail'!$A73)*(Projects!$J$5:$J$2410<>'MDOT FTA Detail'!$A$171)*(Projects!$Q$5:$Q$2410)) -> 0 | M73: =SUMPRODUCT((Projects!$A$5:$A$2410='MDOT FTA Detail'!$M$3)*(Projects!$C$5:$C$2410='MDOT FTA Detail'!$C$4)*(Projects!$L$5:$L$2410='MDOT FTA Detail'!$A73)*(Projects!$J$5:$J$2410<>'MDOT FTA Detail'!$A$171)*(Projects!$K$5:$K$2410)) -> 0 | N73: =O73-M73 -> 0 | O73: =SUMPRODUCT((Projects!$A$5:$A$2410='MDOT FTA Detail'!$M$3)*(Projects!$C$5:$C$2410='MDOT FTA Detail'!$C$4)*(Projects!$L$5:$L$2410='MDOT FTA Detail'!$A73)*(Projects!$J$5:$J$2410<>'MDOT FTA Detail'!$A$171)*(Projects!$Q$5:$Q$2410)) -> 0
A74: SRPG | B74: Safe Routes to School - Either - SAFETEA-LU | C74: MDOT FA | D74: =SUMPRODUCT((Projects!$A$5:$A$2410='MDOT FTA Detail'!$D$3)*(Projects!$C$5:$C$2410='MDOT FTA Detail'!$C$4)*(Projects!$L$5:$L$2410='MDOT FTA Detail'!$A74)*(Projects!$J$5:$J$2410<>'MDOT FTA Detail'!$A$171)*(Projects!$K$5:K$2410)) -> 0 | E74: =F74-D74 -> 0 | F74: =SUMPRODUCT((Projects!$A$5:$A$2410='MDOT FTA Detail'!$D$3)*(Projects!$C$5:$C$2410='MDOT FTA Detail'!$C$4)*(Projects!$L$5:$L$2410='MDOT FTA Detail'!$A74)*(Projects!$J$5:$J$2410<>'MDOT FTA Detail'!$A$171)*(Projects!$Q$5:Q$2410)) -> 0 | G74: =SUMPRODUCT((Projects!$A$5:$A$2410='MDOT FTA Detail'!$G$3)*(Projects!$C$5:$C$2410='MDOT FTA Detail'!$C$4)*(Projects!$L$5:$L$2410='MDOT FTA Detail'!$A74)*(Projects!$J$5:$J$2410<>'MDOT FTA Detail'!$A$171)*(Projects!$K$5:K$2410)) -> 0 | H74: =I74-G74 -> 0 | I74: =SUMPRODUCT((Projects!$A$5:$A$2410='MDOT FTA Detail'!$G$3)*(Projects!$C$5:$C$2410='MDOT FTA Detail'!$C$4)*(Projects!$L$5:$L$2410='MDOT FTA Detail'!$A74)*(Projects!$J$5:$J$2410<>'MDOT FTA Detail'!$A$171)*(Projects!$Q$5:Q$2410)) -> 0 | J74: =SUMPRODUCT((Projects!$A$5:$A$2410='MDOT FTA Detail'!$J$3)*(Projects!$C$5:$C$2410='MDOT FTA Detail'!$C$4)*(Projects!$L$5:$L$2410='MDOT FTA Detail'!$A74)*(Projects!$J$5:$J$2410<>'MDOT FTA Detail'!$A$171)*(Projects!$K$5:$K$2410)) -> 0 | K74: =L74-J74 -> 0 | L74: =SUMPRODUCT((Projects!$A$5:$A$2410='MDOT FTA Detail'!$J$3)*(Projects!$C$5:$C$2410='MDOT FTA Detail'!$C$4)*(Projects!$L$5:$L$2410='MDOT FTA Detail'!$A74)*(Projects!$J$5:$J$2410<>'MDOT FTA Detail'!$A$171)*(Projects!$Q$5:$Q$2410)) -> 0 | M74: =SUMPRODUCT((Projects!$A$5:$A$2410='MDOT FTA Detail'!$M$3)*(Projects!$C$5:$C$2410='MDOT FTA Detail'!$C$4)*(Projects!$L$5:$L$2410='MDOT FTA Detail'!$A74)*(Projects!$J$5:$J$2410<>'MDOT FTA Detail'!$A$171)*(Projects!$K$5:$K$2410)) -> 0 | N74: =O74-M74 -> 0 | O74: =SUMPRODUCT((Projects!$A$5:$A$2410='MDOT FTA Detail'!$M$3)*(Projects!$C$5:$C$2410='MDOT FTA Detail'!$C$4)*(Projects!$L$5:$L$2410='MDOT FTA Detail'!$A74)*(Projects!$J$5:$J$2410<>'MDOT FTA Detail'!$A$171)*(Projects!$Q$5:$Q$2410)) -> 0
A75: SRSI | B75: Safe Routes to School - Infrastructure - SAFETEA-LU | C75: MDOT FA | D75: =SUMPRODUCT((Projects!$A$5:$A$2410='MDOT FTA Detail'!$D$3)*(Projects!$C$5:$C$2410='MDOT FTA Detail'!$C$4)*(Projects!$L$5:$L$2410='MDOT FTA Detail'!$A75)*(Projects!$J$5:$J$2410<>'MDOT FTA Detail'!$A$171)*(Projects!$K$5:K$2410)) -> 0 | E75: =F75-D75 -> 0 | F75: =SUMPRODUCT((Projects!$A$5:$A$2410='MDOT FTA Detail'!$D$3)*(Projects!$C$5:$C$2410='MDOT FTA Detail'!$C$4)*(Projects!$L$5:$L$2410='MDOT FTA Detail'!$A75)*(Projects!$J$5:$J$2410<>'MDOT FTA Detail'!$A$171)*(Projects!$Q$5:Q$2410)) -> 0 | G75: =SUMPRODUCT((Projects!$A$5:$A$2410='MDOT FTA Detail'!$G$3)*(Projects!$C$5:$C$2410='MDOT FTA Detail'!$C$4)*(Projects!$L$5:$L$2410='MDOT FTA Detail'!$A75)*(Projects!$J$5:$J$2410<>'MDOT FTA Detail'!$A$171)*(Projects!$K$5:K$2410)) -> 0 | H75: =I75-G75 -> 0 | I75: =SUMPRODUCT((Projects!$A$5:$A$2410='MDOT FTA Detail'!$G$3)*(Projects!$C$5:$C$2410='MDOT FTA Detail'!$C$4)*(Projects!$L$5:$L$2410='MDOT FTA Detail'!$A75)*(Projects!$J$5:$J$2410<>'MDOT FTA Detail'!$A$171)*(Projects!$Q$5:Q$2410)) -> 0 | J75: =SUMPRODUCT((Projects!$A$5:$A$2410='MDOT FTA Detail'!$J$3)*(Projects!$C$5:$C$2410='MDOT FTA Detail'!$C$4)*(Projects!$L$5:$L$2410='MDOT FTA Detail'!$A75)*(Projects!$J$5:$J$2410<>'MDOT FTA Detail'!$A$171)*(Projects!$K$5:$K$2410)) -> 0 | K75: =L75-J75 -> 0 | L75: =SUMPRODUCT((Projects!$A$5:$A$2410='MDOT FTA Detail'!$J$3)*(Projects!$C$5:$C$2410='MDOT FTA Detail'!$C$4)*(Projects!$L$5:$L$2410='MDOT FTA Detail'!$A75)*(Projects!$J$5:$J$2410<>'MDOT FTA Detail'!$A$171)*(Projects!$Q$5:$Q$2410)) -> 0 | M75: =SUMPRODUCT((Projects!$A$5:$A$2410='MDOT FTA Detail'!$M$3)*(Projects!$C$5:$C$2410='MDOT FTA Detail'!$C$4)*(Projects!$L$5:$L$2410='MDOT FTA Detail'!$A75)*(Projects!$J$5:$J$2410<>'MDOT FTA Detail'!$A$171)*(Projects!$K$5:$K$2410)) -> 0 | N75: =O75-M75 -> 0 | O75: =SUMPRODUCT((Projects!$A$5:$A$2410='MDOT FTA Detail'!$M$3)*(Projects!$C$5:$C$2410='MDOT FTA Detail'!$C$4)*(Projects!$L$5:$L$2410='MDOT FTA Detail'!$A75)*(Projects!$J$5:$J$2410<>'MDOT FTA Detail'!$A$171)*(Projects!$Q$5:$Q$2410)) -> 0
A76: SRSN | B76: Safe Routes to School - Non-infrastructure - SAFETEA-LU | C76: MDOT FA | D76: =SUMPRODUCT((Projects!$A$5:$A$2410='MDOT FTA Detail'!$D$3)*(Projects!$C$5:$C$2410='MDOT FTA Detail'!$C$4)*(Projects!$L$5:$L$2410='MDOT FTA Detail'!$A76)*(Projects!$J$5:$J$2410<>'MDOT FTA Detail'!$A$171)*(Projects!$K$5:K$2410)) -> 0 | E76: 0 | F76: =SUMPRODUCT((Projects!$A$5:$A$2410='MDOT FTA Detail'!$D$3)*(Projects!$C$5:$C$2410='MDOT FTA Detail'!$C$4)*(Projects!$L$5:$L$2410='MDOT FTA Detail'!$A76)*(Projects!$J$5:$J$2410<>'MDOT FTA Detail'!$A$171)*(Projects!$Q$5:Q$2410)) -> 0 | G76: =SUMPRODUCT((Projects!$A$5:$A$2410='MDOT FTA Detail'!$G$3)*(Projects!$C$5:$C$2410='MDOT FTA Detail'!$C$4)*(Projects!$L$5:$L$2410='MDOT FTA Detail'!$A76)*(Projects!$J$5:$J$2410<>'MDOT FTA Detail'!$A$171)*(Projects!$K$5:K$2410)) -> 0 | H76: 0 | I76: =SUMPRODUCT((Projects!$A$5:$A$2410='MDOT FTA Detail'!$G$3)*(Projects!$C$5:$C$2410='MDOT FTA Detail'!$C$4)*(Projects!$L$5:$L$2410='MDOT FTA Detail'!$A76)*(Projects!$J$5:$J$2410<>'MDOT FTA Detail'!$A$171)*(Projects!$Q$5:Q$2410)) -> 0 | J76: =SUMPRODUCT((Projects!$A$5:$A$2410='MDOT FTA Detail'!$J$3)*(Projects!$C$5:$C$2410='MDOT FTA Detail'!$C$4)*(Projects!$L$5:$L$2410='MDOT FTA Detail'!$A76)*(Projects!$J$5:$J$2410<>'MDOT FTA Detail'!$A$171)*(Projects!$K$5:$K$2410)) -> 0 | K76: 0 | L76: =SUMPRODUCT((Projects!$A$5:$A$2410='MDOT FTA Detail'!$J$3)*(Projects!$C$5:$C$2410='MDOT FTA Detail'!$C$4)*(Projects!$L$5:$L$2410='MDOT FTA Detail'!$A76)*(Projects!$J$5:$J$2410<>'MDOT FTA Detail'!$A$171)*(Projects!$Q$5:$Q$2410)) -> 0 | M76: =SUMPRODUCT((Projects!$A$5:$A$2410='MDOT FTA Detail'!$M$3)*(Projects!$C$5:$C$2410='MDOT FTA Detail'!$C$4)*(Projects!$L$5:$L$2410='MDOT FTA Detail'!$A76)*(Projects!$J$5:$J$2410<>'MDOT FTA Detail'!$A$171)*(Projects!$K$5:$K$2410)) -> 0 | N76: 0 | O76: =SUMPRODUCT((Projects!$A$5:$A$2410='MDOT FTA Detail'!$M$3)*(Projects!$C$5:$C$2410='MDOT FTA Detail'!$C$4)*(Projects!$L$5:$L$2410='MDOT FTA Detail'!$A76)*(Projects!$J$5:$J$2410<>'MDOT FTA Detail'!$A$171)*(Projects!$Q$5:$Q$2410)) -> 0
A77: SST | B77: Supportive Services Training | C77: MDOT FA | D77: =SUMPRODUCT((Projects!$A$5:$A$2410='MDOT FTA Detail'!$D$3)*(Projects!$C$5:$C$2410='MDOT FTA Detail'!$C$4)*(Projects!$L$5:$L$2410='MDOT FTA Detail'!$A77)*(Projects!$J$5:$J$2410<>'MDOT FTA Detail'!$A$171)*(Projects!$K$5:K$2410)) -> 0 | E77: 0 | F77: =SUMPRODUCT((Projects!$A$5:$A$2410='MDOT FTA Detail'!$D$3)*(Projects!$C$5:$C$2410='MDOT FTA Detail'!$C$4)*(Projects!$L$5:$L$2410='MDOT FTA Detail'!$A77)*(Projects!$J$5:$J$2410<>'MDOT FTA Detail'!$A$171)*(Projects!$Q$5:Q$2410)) -> 0 | G77: =SUMPRODUCT((Projects!$A$5:$A$2410='MDOT FTA Detail'!$G$3)*(Projects!$C$5:$C$2410='MDOT FTA Detail'!$C$4)*(Projects!$L$5:$L$2410='MDOT FTA Detail'!$A77)*(Projects!$J$5:$J$2410<>'MDOT FTA Detail'!$A$171)*(Projects!$K$5:K$2410)) -> 0 | H77: 0 | I77: =SUMPRODUCT((Projects!$A$5:$A$2410='MDOT FTA Detail'!$G$3)*(Projects!$C$5:$C$2410='MDOT FTA Detail'!$C$4)*(Projects!$L$5:$L$2410='MDOT FTA Detail'!$A77)*(Projects!$J$5:$J$2410<>'MDOT FTA Detail'!$A$171)*(Projects!$Q$5:Q$2410)) -> 0 | J77: =SUMPRODUCT((Projects!$A$5:$A$2410='MDOT FTA Detail'!$J$3)*(Projects!$C$5:$C$2410='MDOT FTA Detail'!$C$4)*(Projects!$L$5:$L$2410='MDOT FTA Detail'!$A77)*(Projects!$J$5:$J$2410<>'MDOT FTA Detail'!$A$171)*(Projects!$K$5:$K$2410)) -> 0 | K77: 0 | L77: =SUMPRODUCT((Projects!$A$5:$A$2410='MDOT FTA Detail'!$J$3)*(Projects!$C$5:$C$2410='MDOT FTA Detail'!$C$4)*(Projects!$L$5:$L$2410='MDOT FTA Detail'!$A77)*(Projects!$J$5:$J$2410<>'MDOT FTA Detail'!$A$171)*(Projects!$Q$5:$Q$2410)) -> 0 | M77: =SUMPRODUCT((Projects!$A$5:$A$2410='MDOT FTA Detail'!$M$3)*(Projects!$C$5:$C$2410='MDOT FTA Detail'!$C$4)*(Projects!$L$5:$L$2410='MDOT FTA Detail'!$A77)*(Projects!$J$5:$J$2410<>'MDOT FTA Detail'!$A$171)*(Projects!$K$5:$K$2410)) -> 0 | N77: 0 | O77: =SUMPRODUCT((Projects!$A$5:$A$2410='MDOT FTA Detail'!$M$3)*(Projects!$C$5:$C$2410='MDOT FTA Detail'!$C$4)*(Projects!$L$5:$L$2410='MDOT FTA Detail'!$A77)*(Projects!$J$5:$J$2410<>'MDOT FTA Detail'!$A$171)*(Projects!$Q$5:$Q$2410)) -> 0
A78: ST | B78: Surface Transportation Program (STP) - Any Area | C78: MDOT FA | D78: =SUMPRODUCT((Projects!$A$5:$A$2410='MDOT FTA Detail'!$D$3)*(Projects!$C$5:$C$2410='MDOT FTA Detail'!$C$4)*(Projects!$L$5:$L$2410='MDOT FTA Detail'!$A78)*(Projects!$J$5:$J$2410<>'MDOT FTA Detail'!$A$171)*(Projects!$K$5:K$2410)) -> 10855124 | E78: 2407091 | F78: =SUMPRODUCT((Projects!$A$5:$A$2410='MDOT FTA Detail'!$D$3)*(Projects!$C$5:$C$2410='MDOT FTA Detail'!$C$4)*(Projects!$L$5:$L$2410='MDOT FTA Detail'!$A78)*(Projects!$J$5:$J$2410<>'MDOT FTA Detail'!$A$171)*(Projects!$Q$5:Q$2410)) -> 13262215 | G78: =SUMPRODUCT((Projects!$A$5:$A$2410='MDOT FTA Detail'!$G$3)*(Projects!$C$5:$C$2410='MDOT FTA Detail'!$C$4)*(Projects!$L$5:$L$2410='MDOT FTA Detail'!$A78)*(Projects!$J$5:$J$2410<>'MDOT FTA Detail'!$A$171)*(Projects!$K$5:K$2410)) -> 0 | H78: 0 | I78: =SUMPRODUCT((Projects!$A$5:$A$2410='MDOT FTA Detail'!$G$3)*(Projects!$C$5:$C$2410='MDOT FTA Detail'!$C$4)*(Projects!$L$5:$L$2410='MDOT FTA Detail'!$A78)*(Projects!$J$5:$J$2410<>'MDOT FTA Detail'!$A$171)*(Projects!$Q$5:Q$2410)) -> 0 | J78: =SUMPRODUCT((Projects!$A$5:$A$2410='MDOT FTA Detail'!$J$3)*(Projects!$C$5:$C$2410='MDOT FTA Detail'!$C$4)*(Projects!$L$5:$L$2410='MDOT FTA Detail'!$A78)*(Projects!$J$5:$J$2410<>'MDOT FTA Detail'!$A$171)*(Projects!$K$5:$K$2410)) -> 0 | K78: 0 | L78: =SUMPRODUCT((Projects!$A$5:$A$2410='MDOT FTA Detail'!$J$3)*(Projects!$C$5:$C$2410='MDOT FTA Detail'!$C$4)*(Projects!$L$5:$L$2410='MDOT FTA Detail'!$A78)*(Projects!$J$5:$J$2410<>'MDOT FTA Detail'!$A$171)*(Projects!$Q$5:$Q$2410)) -> 0 | M78: =SUMPRODUCT((Projects!$A$5:$A$2410='MDOT FTA Detail'!$M$3)*(Projects!$C$5:$C$2410='MDOT FTA Detail'!$C$4)*(Projects!$L$5:$L$2410='MDOT FTA Detail'!$A78)*(Projects!$J$5:$J$2410<>'MDOT FTA Detail'!$A$171)*(Projects!$K$5:$K$2410)) -> 0 | N78: 0 | O78: =SUMPRODUCT((Projects!$A$5:$A$2410='MDOT FTA Detail'!$M$3)*(Projects!$C$5:$C$2410='MDOT FTA Detail'!$C$4)*(Projects!$L$5:$L$2410='MDOT FTA Detail'!$A78)*(Projects!$J$5:$J$2410<>'MDOT FTA Detail'!$A$171)*(Projects!$Q$5:$Q$2410)) -> 0
A79: STE | B79: STP - Enhancement | C79: MDOT FA | D79: =SUMPRODUCT((Projects!$A$5:$A$2410='MDOT FTA Detail'!$D$3)*(Projects!$C$5:$C$2410='MDOT FTA Detail'!$C$4)*(Projects!$L$5:$L$2410='MDOT FTA Detail'!$A79)*(Projects!$J$5:$J$2410<>'MDOT FTA Detail'!$A$171)*(Projects!$K$5:K$2410)) -> 0 | E79: 0 | F79: =SUMPRODUCT((Projects!$A$5:$A$2410='MDOT FTA Detail'!$D$3)*(Projects!$C$5:$C$2410='MDOT FTA Detail'!$C$4)*(Projects!$L$5:$L$2410='MDOT FTA Detail'!$A79)*(Projects!$J$5:$J$2410<>'MDOT FTA Detail'!$A$171)*(Projects!$Q$5:Q$2410)) -> 0 | G79: =SUMPRODUCT((Projects!$A$5:$A$2410='MDOT FTA Detail'!$G$3)*(Projects!$C$5:$C$2410='MDOT FTA Detail'!$C$4)*(Projects!$L$5:$L$2410='MDOT FTA Detail'!$A79)*(Projects!$J$5:$J$2410<>'MDOT FTA Detail'!$A$171)*(Projects!$K$5:K$2410)) -> 0 | H79: 0 | I79: =SUMPRODUCT((Projects!$A$5:$A$2410='MDOT FTA Detail'!$G$3)*(Projects!$C$5:$C$2410='MDOT FTA Detail'!$C$4)*(Projects!$L$5:$L$2410='MDOT FTA Detail'!$A79)*(Projects!$J$5:$J$2410<>'MDOT FTA Detail'!$A$171)*(Projects!$Q$5:Q$2410)) -> 0 | J79: =SUMPRODUCT((Projects!$A$5:$A$2410='MDOT FTA Detail'!$J$3)*(Projects!$C$5:$C$2410='MDOT FTA Detail'!$C$4)*(Projects!$L$5:$L$2410='MDOT FTA Detail'!$A79)*(Projects!$J$5:$J$2410<>'MDOT FTA Detail'!$A$171)*(Projects!$K$5:$K$2410)) -> 0 | K79: 0 | L79: =SUMPRODUCT((Projects!$A$5:$A$2410='MDOT FTA Detail'!$J$3)*(Projects!$C$5:$C$2410='MDOT FTA Detail'!$C$4)*(Projects!$L$5:$L$2410='MDOT FTA Detail'!$A79)*(Projects!$J$5:$J$2410<>'MDOT FTA Detail'!$A$171)*(Projects!$Q$5:$Q$2410)) -> 0 | M79: =SUMPRODUCT((Projects!$A$5:$A$2410='MDOT FTA Detail'!$M$3)*(Projects!$C$5:$C$2410='MDOT FTA Detail'!$C$4)*(Projects!$L$5:$L$2410='MDOT FTA Detail'!$A79)*(Projects!$J$5:$J$2410<>'MDOT FTA Detail'!$A$171)*(Projects!$K$5:$K$2410)) -> 0 | N79: 0 | O79: =SUMPRODUCT((Projects!$A$5:$A$2410='MDOT FTA Detail'!$M$3)*(Projects!$C$5:$C$2410='MDOT FTA Detail'!$C$4)*(Projects!$L$5:$L$2410='MDOT FTA Detail'!$A79)*(Projects!$J$5:$J$2410<>'MDOT FTA Detail'!$A$171)*(Projects!$Q$5:$Q$2410)) -> 0
A80: STG | B80: STP - Safety - 100% Federal for ST | C80: MDOT FA | D80: =SUMPRODUCT((Projects!$A$5:$A$2410='MDOT FTA Detail'!$D$3)*(Projects!$C$5:$C$2410='MDOT FTA Detail'!$C$4)*(Projects!$L$5:$L$2410='MDOT FTA Detail'!$A80)*(Projects!$J$5:$J$2410<>'MDOT FTA Detail'!$A$171)*(Projects!$K$5:K$2410)) -> 0 | E80: 0 | F80: =SUMPRODUCT((Projects!$A$5:$A$2410='MDOT FTA Detail'!$D$3)*(Projects!$C$5:$C$2410='MDOT FTA Detail'!$C$4)*(Projects!$L$5:$L$2410='MDOT FTA Detail'!$A80)*(Projects!$J$5:$J$2410<>'MDOT FTA Detail'!$A$171)*(Projects!$Q$5:Q$2410)) -> 0 | G80: =SUMPRODUCT((Projects!$A$5:$A$2410='MDOT FTA Detail'!$G$3)*(Projects!$C$5:$C$2410='MDOT FTA Detail'!$C$4)*(Projects!$L$5:$L$2410='MDOT FTA Detail'!$A80)*(Projects!$J$5:$J$2410<>'MDOT FTA Detail'!$A$171)*(Projects!$K$5:K$2410)) -> 0 | H80: 0 | I80: =SUMPRODUCT((Projects!$A$5:$A$2410='MDOT FTA Detail'!$G$3)*(Projects!$C$5:$C$2410='MDOT FTA Detail'!$C$4)*(Projects!$L$5:$L$2410='MDOT FTA Detail'!$A80)*(Projects!$J$5:$J$2410<>'MDOT FTA Detail'!$A$171)*(Projects!$Q$5:Q$2410)) -> 0 | J80: =SUMPRODUCT((Projects!$A$5:$A$2410='MDOT FTA Detail'!$J$3)*(Projects!$C$5:$C$2410='MDOT FTA Detail'!$C$4)*(Projects!$L$5:$L$2410='MDOT FTA Detail'!$A80)*(Projects!$J$5:$J$2410<>'MDOT FTA Detail'!$A$171)*(Projects!$K$5:$K$2410)) -> 0 | K80: 0 | L80: =SUMPRODUCT((Projects!$A$5:$A$2410='MDOT FTA Detail'!$J$3)*(Projects!$C$5:$C$2410='MDOT FTA Detail'!$C$4)*(Projects!$L$5:$L$2410='MDOT FTA Detail'!$A80)*(Projects!$J$5:$J$2410<>'MDOT FTA Detail'!$A$171)*(Projects!$Q$5:$Q$2410)) -> 0 | M80: =SUMPRODUCT((Projects!$A$5:$A$2410='MDOT FTA Detail'!$M$3)*(Projects!$C$5:$C$2410='MDOT FTA Detail'!$C$4)*(Projects!$L$5:$L$2410='MDOT FTA Detail'!$A80)*(Projects!$J$5:$J$2410<>'MDOT FTA Detail'!$A$171)*(Projects!$K$5:$K$2410)) -> 0 | N80: 0 | O80: =SUMPRODUCT((Projects!$A$5:$A$2410='MDOT FTA Detail'!$M$3)*(Projects!$C$5:$C$2410='MDOT FTA Detail'!$C$4)*(Projects!$L$5:$L$2410='MDOT FTA Detail'!$A80)*(Projects!$J$5:$J$2410<>'MDOT FTA Detail'!$A$171)*(Projects!$Q$5:$Q$2410)) -> 0
A81: STH | B81: STP - Safety - Hazard Elimination | C81: MDOT FA | D81: =SUMPRODUCT((Projects!$A$5:$A$2410='MDOT FTA Detail'!$D$3)*(Projects!$C$5:$C$2410='MDOT FTA Detail'!$C$4)*(Projects!$L$5:$L$2410='MDOT FTA Detail'!$A81)*(Projects!$J$5:$J$2410<>'MDOT FTA Detail'!$A$171)*(Projects!$K$5:K$2410)) -> 0 | E81: 0 | F81: =SUMPRODUCT((Projects!$A$5:$A$2410='MDOT FTA Detail'!$D$3)*(Projects!$C$5:$C$2410='MDOT FTA Detail'!$C$4)*(Projects!$L$5:$L$2410='MDOT FTA Detail'!$A81)*(Projects!$J$5:$J$2410<>'MDOT FTA Detail'!$A$171)*(Projects!$Q$5:Q$2410)) -> 0 | G81: =SUMPRODUCT((Projects!$A$5:$A$2410='MDOT FTA Detail'!$G$3)*(Projects!$C$5:$C$2410='MDOT FTA Detail'!$C$4)*(Projects!$L$5:$L$2410='MDOT FTA Detail'!$A81)*(Projects!$J$5:$J$2410<>'MDOT FTA Detail'!$A$171)*(Projects!$K$5:K$2410)) -> 0 | H81: 0 | I81: =SUMPRODUCT((Projects!$A$5:$A$2410='MDOT FTA Detail'!$G$3)*(Projects!$C$5:$C$2410='MDOT FTA Detail'!$C$4)*(Projects!$L$5:$L$2410='MDOT FTA Detail'!$A81)*(Projects!$J$5:$J$2410<>'MDOT FTA Detail'!$A$171)*(Projects!$Q$5:Q$2410)) -> 0 | J81: =SUMPRODUCT((Projects!$A$5:$A$2410='MDOT FTA Detail'!$J$3)*(Projects!$C$5:$C$2410='MDOT FTA Detail'!$C$4)*(Projects!$L$5:$L$2410='MDOT FTA Detail'!$A81)*(Projects!$J$5:$J$2410<>'MDOT FTA Detail'!$A$171)*(Projects!$K$5:$K$2410)) -> 0 | K81: 0 | L81: =SUMPRODUCT((Projects!$A$5:$A$2410='MDOT FTA Detail'!$J$3)*(Projects!$C$5:$C$2410='MDOT FTA Detail'!$C$4)*(Projects!$L$5:$L$2410='MDOT FTA Detail'!$A81)*(Projects!$J$5:$J$2410<>'MDOT FTA Detail'!$A$171)*(Projects!$Q$5:$Q$2410)) -> 0 | M81: =SUMPRODUCT((Projects!$A$5:$A$2410='MDOT FTA Detail'!$M$3)*(Projects!$C$5:$C$2410='MDOT FTA Detail'!$C$4)*(Projects!$L$5:$L$2410='MDOT FTA Detail'!$A81)*(Projects!$J$5:$J$2410<>'MDOT FTA Detail'!$A$171)*(Projects!$K$5:$K$2410)) -> 0 | N81: 0 | O81: =SUMPRODUCT((Projects!$A$5:$A$2410='MDOT FTA Detail'!$M$3)*(Projects!$C$5:$C$2410='MDOT FTA Detail'!$C$4)*(Projects!$L$5:$L$2410='MDOT FTA Detail'!$A81)*(Projects!$J$5:$J$2410<>'MDOT FTA Detail'!$A$171)*(Projects!$Q$5:$Q$2410)) -> 0
A82: STI | B82: STP - Interstate (90%) | C82: MDOT FA | D82: =SUMPRODUCT((Projects!$A$5:$A$2410='MDOT FTA Detail'!$D$3)*(Projects!$C$5:$C$2410='MDOT FTA Detail'!$C$4)*(Projects!$L$5:$L$2410='MDOT FTA Detail'!$A82)*(Projects!$J$5:$J$2410<>'MDOT FTA Detail'!$A$171)*(Projects!$K$5:K$2410)) -> 0 | E82: 0 | F82: =SUMPRODUCT((Projects!$A$5:$A$2410='MDOT FTA Detail'!$D$3)*(Projects!$C$5:$C$2410='MDOT FTA Detail'!$C$4)*(Projects!$L$5:$L$2410='MDOT FTA Detail'!$A82)*(Projects!$J$5:$J$2410<>'MDOT FTA Detail'!$A$171)*(Projects!$Q$5:Q$2410)) -> 0 | G82: =SUMPRODUCT((Projects!$A$5:$A$2410='MDOT FTA Detail'!$G$3)*(Projects!$C$5:$C$2410='MDOT FTA Detail'!$C$4)*(Projects!$L$5:$L$2410='MDOT FTA Detail'!$A82)*(Projects!$J$5:$J$2410<>'MDOT FTA Detail'!$A$171)*(Projects!$K$5:K$2410)) -> 0 | H82: 0 | I82: =SUMPRODUCT((Projects!$A$5:$A$2410='MDOT FTA Detail'!$G$3)*(Projects!$C$5:$C$2410='MDOT FTA Detail'!$C$4)*(Projects!$L$5:$L$2410='MDOT FTA Detail'!$A82)*(Projects!$J$5:$J$2410<>'MDOT FTA Detail'!$A$171)*(Projects!$Q$5:Q$2410)) -> 0 | J82: =SUMPRODUCT((Projects!$A$5:$A$2410='MDOT FTA Detail'!$J$3)*(Projects!$C$5:$C$2410='MDOT FTA Detail'!$C$4)*(Projects!$L$5:$L$2410='MDOT FTA Detail'!$A82)*(Projects!$J$5:$J$2410<>'MDOT FTA Detail'!$A$171)*(Projects!$K$5:$K$2410)) -> 0 | K82: 0 | L82: =SUMPRODUCT((Projects!$A$5:$A$2410='MDOT FTA Detail'!$J$3)*(Projects!$C$5:$C$2410='MDOT FTA Detail'!$C$4)*(Projects!$L$5:$L$2410='MDOT FTA Detail'!$A82)*(Projects!$J$5:$J$2410<>'MDOT FTA Detail'!$A$171)*(Projects!$Q$5:$Q$2410)) -> 0 | M82: =SUMPRODUCT((Projects!$A$5:$A$2410='MDOT FTA Detail'!$M$3)*(Projects!$C$5:$C$2410='MDOT FTA Detail'!$C$4)*(Projects!$L$5:$L$2410='MDOT FTA Detail'!$A82)*(Projects!$J$5:$J$2410<>'MDOT FTA Detail'!$A$171)*(Projects!$K$5:$K$2410)) -> 0 | N82: 0 | O82: =SUMPRODUCT((Projects!$A$5:$A$2410='MDOT FTA Detail'!$M$3)*(Projects!$C$5:$C$2410='MDOT FTA Detail'!$C$4)*(Projects!$L$5:$L$2410='MDOT FTA Detail'!$A82)*(Projects!$J$5:$J$2410<>'MDOT FTA Detail'!$A$171)*(Projects!$Q$5:$Q$2410)) -> 0
A83: STL | B83: STP - Local | C83: MDOT FA | D83: =SUMPRODUCT((Projects!$A$5:$A$2410='MDOT FTA Detail'!$D$3)*(Projects!$C$5:$C$2410='MDOT FTA Detail'!$C$4)*(Projects!$L$5:$L$2410='MDOT FTA Detail'!$A83)*(Projects!$J$5:$J$2410<>'MDOT FTA Detail'!$A$171)*(Projects!$K$5:K$2410)) -> 0 | E83: 0 | F83: =SUMPRODUCT((Projects!$A$5:$A$2410='MDOT FTA Detail'!$D$3)*(Projects!$C$5:$C$2410='MDOT FTA Detail'!$C$4)*(Projects!$L$5:$L$2410='MDOT FTA Detail'!$A83)*(Projects!$J$5:$J$2410<>'MDOT FTA Detail'!$A$171)*(Projects!$Q$5:Q$2410)) -> 0 | G83: =SUMPRODUCT((Projects!$A$5:$A$2410='MDOT FTA Detail'!$G$3)*(Projects!$C$5:$C$2410='MDOT FTA Detail'!$C$4)*(Projects!$L$5:$L$2410='MDOT FTA Detail'!$A83)*(Projects!$J$5:$J$2410<>'MDOT FTA Detail'!$A$171)*(Projects!$K$5:K$2410)) -> 0 | H83: 0 | I83: =SUMPRODUCT((Projects!$A$5:$A$2410='MDOT FTA Detail'!$G$3)*(Projects!$C$5:$C$2410='MDOT FTA Detail'!$C$4)*(Projects!$L$5:$L$2410='MDOT FTA Detail'!$A83)*(Projects!$J$5:$J$2410<>'MDOT FTA Detail'!$A$171)*(Projects!$Q$5:Q$2410)) -> 0 | J83: =SUMPRODUCT((Projects!$A$5:$A$2410='MDOT FTA Detail'!$J$3)*(Projects!$C$5:$C$2410='MDOT FTA Detail'!$C$4)*(Projects!$L$5:$L$2410='MDOT FTA Detail'!$A83)*(Projects!$J$5:$J$2410<>'MDOT FTA Detail'!$A$171)*(Projects!$K$5:$K$2410)) -> 0 | K83: 0 | L83: =SUMPRODUCT((Projects!$A$5:$A$2410='MDOT FTA Detail'!$J$3)*(Projects!$C$5:$C$2410='MDOT FTA Detail'!$C$4)*(Projects!$L$5:$L$2410='MDOT FTA Detail'!$A83)*(Projects!$J$5:$J$2410<>'MDOT FTA Detail'!$A$171)*(Projects!$Q$5:$Q$2410)) -> 0 | M83: =SUMPRODUCT((Projects!$A$5:$A$2410='MDOT FTA Detail'!$M$3)*(Projects!$C$5:$C$2410='MDOT FTA Detail'!$C$4)*(Projects!$L$5:$L$2410='MDOT FTA Detail'!$A83)*(Projects!$J$5:$J$2410<>'MDOT FTA Detail'!$A$171)*(Projects!$K$5:$K$2410)) -> 0 | N83: 0 | O83: =SUMPRODUCT((Projects!$A$5:$A$2410='MDOT FTA Detail'!$M$3)*(Projects!$C$5:$C$2410='MDOT FTA Detail'!$C$4)*(Projects!$L$5:$L$2410='MDOT FTA Detail'!$A83)*(Projects!$J$5:$J$2410<>'MDOT FTA Detail'!$A$171)*(Projects!$Q$5:$Q$2410)) -> 0
A84: STLG | B84: Surface Transportation Safety 100% Federal for STL Items | C84: MDOT FA | D84: =SUMPRODUCT((Projects!$A$5:$A$2410='MDOT FTA Detail'!$D$3)*(Projects!$C$5:$C$2410='MDOT FTA Detail'!$C$4)*(Projects!$L$5:$L$2410='MDOT FTA Detail'!$A84)*(Projects!$J$5:$J$2410<>'MDOT FTA Detail'!$A$171)*(Projects!$K$5:K$2410)) -> 0 | E84: =F84-D84 -> 0 | F84: =SUMPRODUCT((Projects!$A$5:$A$2410='MDOT FTA Detail'!$D$3)*(Projects!$C$5:$C$2410='MDOT FTA Detail'!$C$4)*(Projects!$L$5:$L$2410='MDOT FTA Detail'!$A84)*(Projects!$J$5:$J$2410<>'MDOT FTA Detail'!$A$171)*(Projects!$Q$5:Q$2410)) -> 0 | G84: =SUMPRODUCT((Projects!$A$5:$A$2410='MDOT FTA Detail'!$G$3)*(Projects!$C$5:$C$2410='MDOT FTA Detail'!$C$4)*(Projects!$L$5:$L$2410='MDOT FTA Detail'!$A84)*(Projects!$J$5:$J$2410<>'MDOT FTA Detail'!$A$171)*(Projects!$K$5:K$2410)) -> 0 | H84: =I84-G84 -> 0 | I84: =SUMPRODUCT((Projects!$A$5:$A$2410='MDOT FTA Detail'!$G$3)*(Projects!$C$5:$C$2410='MDOT FTA Detail'!$C$4)*(Projects!$L$5:$L$2410='MDOT FTA Detail'!$A84)*(Projects!$J$5:$J$2410<>'MDOT FTA Detail'!$A$171)*(Projects!$Q$5:Q$2410)) -> 0 | J84: =SUMPRODUCT((Projects!$A$5:$A$2410='MDOT FTA Detail'!$J$3)*(Projects!$C$5:$C$2410='MDOT FTA Detail'!$C$4)*(Projects!$L$5:$L$2410='MDOT FTA Detail'!$A84)*(Projects!$J$5:$J$2410<>'MDOT FTA Detail'!$A$171)*(Projects!$K$5:$K$2410)) -> 0 | K84: =L84-J84 -> 0 | L84: =SUMPRODUCT((Projects!$A$5:$A$2410='MDOT FTA Detail'!$J$3)*(Projects!$C$5:$C$2410='MDOT FTA Detail'!$C$4)*(Projects!$L$5:$L$2410='MDOT FTA Detail'!$A84)*(Projects!$J$5:$J$2410<>'MDOT FTA Detail'!$A$171)*(Projects!$Q$5:$Q$2410)) -> 0 | M84: =SUMPRODUCT((Projects!$A$5:$A$2410='MDOT FTA Detail'!$M$3)*(Projects!$C$5:$C$2410='MDOT FTA Detail'!$C$4)*(Projects!$L$5:$L$2410='MDOT FTA Detail'!$A84)*(Projects!$J$5:$J$2410<>'MDOT FTA Detail'!$A$171)*(Projects!$K$5:$K$2410)) -> 0 | N84: =O84-M84 -> 0 | O84: =SUMPRODUCT((Projects!$A$5:$A$2410='MDOT FTA Detail'!$M$3)*(Projects!$C$5:$C$2410='MDOT FTA Detail'!$C$4)*(Projects!$L$5:$L$2410='MDOT FTA Detail'!$A84)*(Projects!$J$5:$J$2410<>'MDOT FTA Detail'!$A$171)*(Projects!$Q$5:$Q$2410)) -> 0
A85: STR | B85: STP - Safety - Rail-Highway Crossing Protection | C85: MDOT FA | D85: =SUMPRODUCT((Projects!$A$5:$A$2410='MDOT FTA Detail'!$D$3)*(Projects!$C$5:$C$2410='MDOT FTA Detail'!$C$4)*(Projects!$L$5:$L$2410='MDOT FTA Detail'!$A85)*(Projects!$J$5:$J$2410<>'MDOT FTA Detail'!$A$171)*(Projects!$K$5:K$2410)) -> 0 | E85: 0 | F85: =SUMPRODUCT((Projects!$A$5:$A$2410='MDOT FTA Detail'!$D$3)*(Projects!$C$5:$C$2410='MDOT FTA Detail'!$C$4)*(Projects!$L$5:$L$2410='MDOT FTA Detail'!$A85)*(Projects!$J$5:$J$2410<>'MDOT FTA Detail'!$A$171)*(Projects!$Q$5:Q$2410)) -> 0 | G85: =SUMPRODUCT((Projects!$A$5:$A$2410='MDOT FTA Detail'!$G$3)*(Projects!$C$5:$C$2410='MDOT FTA Detail'!$C$4)*(Projects!$L$5:$L$2410='MDOT FTA Detail'!$A85)*(Projects!$J$5:$J$2410<>'MDOT FTA Detail'!$A$171)*(Projects!$K$5:K$2410)) -> 0 | H85: 0 | I85: =SUMPRODUCT((Projects!$A$5:$A$2410='MDOT FTA Detail'!$G$3)*(Projects!$C$5:$C$2410='MDOT FTA Detail'!$C$4)*(Projects!$L$5:$L$2410='MDOT FTA Detail'!$A85)*(Projects!$J$5:$J$2410<>'MDOT FTA Detail'!$A$171)*(Projects!$Q$5:Q$2410)) -> 0 | J85: =SUMPRODUCT((Projects!$A$5:$A$2410='MDOT FTA Detail'!$J$3)*(Projects!$C$5:$C$2410='MDOT FTA Detail'!$C$4)*(Projects!$L$5:$L$2410='MDOT FTA Detail'!$A85)*(Projects!$J$5:$J$2410<>'MDOT FTA Detail'!$A$171)*(Projects!$K$5:$K$2410)) -> 0 | K85: 0 | L85: =SUMPRODUCT((Projects!$A$5:$A$2410='MDOT FTA Detail'!$J$3)*(Projects!$C$5:$C$2410='MDOT FTA Detail'!$C$4)*(Projects!$L$5:$L$2410='MDOT FTA Detail'!$A85)*(Projects!$J$5:$J$2410<>'MDOT FTA Detail'!$A$171)*(Projects!$Q$5:$Q$2410)) -> 0 | M85: =SUMPRODUCT((Projects!$A$5:$A$2410='MDOT FTA Detail'!$M$3)*(Projects!$C$5:$C$2410='MDOT FTA Detail'!$C$4)*(Projects!$L$5:$L$2410='MDOT FTA Detail'!$A85)*(Projects!$J$5:$J$2410<>'MDOT FTA Detail'!$A$171)*(Projects!$K$5:$K$2410)) -> 0 | N85: 0 | O85: =SUMPRODUCT((Projects!$A$5:$A$2410='MDOT FTA Detail'!$M$3)*(Projects!$C$5:$C$2410='MDOT FTA Detail'!$C$4)*(Projects!$L$5:$L$2410='MDOT FTA Detail'!$A85)*(Projects!$J$5:$J$2410<>'MDOT FTA Detail'!$A$171)*(Projects!$Q$5:$Q$2410)) -> 0
A86: STRG | B86: STP - Safety Rail-Highway & Incentive Payment - 100% Federal | C86: MDOT FA | D86: =SUMPRODUCT((Projects!$A$5:$A$2410='MDOT FTA Detail'!$D$3)*(Projects!$C$5:$C$2410='MDOT FTA Detail'!$C$4)*(Projects!$L$5:$L$2410='MDOT FTA Detail'!$A86)*(Projects!$J$5:$J$2410<>'MDOT FTA Detail'!$A$171)*(Projects!$K$5:K$2410)) -> 0 | E86: 0 | F86: =SUMPRODUCT((Projects!$A$5:$A$2410='MDOT FTA Detail'!$D$3)*(Projects!$C$5:$C$2410='MDOT FTA Detail'!$C$4)*(Projects!$L$5:$L$2410='MDOT FTA Detail'!$A86)*(Projects!$J$5:$J$2410<>'MDOT FTA Detail'!$A$171)*(Projects!$Q$5:Q$2410)) -> 0 | G86: =SUMPRODUCT((Projects!$A$5:$A$2410='MDOT FTA Detail'!$G$3)*(Projects!$C$5:$C$2410='MDOT FTA Detail'!$C$4)*(Projects!$L$5:$L$2410='MDOT FTA Detail'!$A86)*(Projects!$J$5:$J$2410<>'MDOT FTA Detail'!$A$171)*(Projects!$K$5:K$2410)) -> 0 | H86: 0 | I86: =SUMPRODUCT((Projects!$A$5:$A$2410='MDOT FTA Detail'!$G$3)*(Projects!$C$5:$C$2410='MDOT FTA Detail'!$C$4)*(Projects!$L$5:$L$2410='MDOT FTA Detail'!$A86)*(Projects!$J$5:$J$2410<>'MDOT FTA Detail'!$A$171)*(Projects!$Q$5:Q$2410)) -> 0 | J86: =SUMPRODUCT((Projects!$A$5:$A$2410='MDOT FTA Detail'!$J$3)*(Projects!$C$5:$C$2410='MDOT FTA Detail'!$C$4)*(Projects!$L$5:$L$2410='MDOT FTA Detail'!$A86)*(Projects!$J$5:$J$2410<>'MDOT FTA Detail'!$A$171)*(Projects!$K$5:$K$2410)) -> 0 | K86: 0 | L86: =SUMPRODUCT((Projects!$A$5:$A$2410='MDOT FTA Detail'!$J$3)*(Projects!$C$5:$C$2410='MDOT FTA Detail'!$C$4)*(Projects!$L$5:$L$2410='MDOT FTA Detail'!$A86)*(Projects!$J$5:$J$2410<>'MDOT FTA Detail'!$A$171)*(Projects!$Q$5:$Q$2410)) -> 0 | M86: =SUMPRODUCT((Projects!$A$5:$A$2410='MDOT FTA Detail'!$M$3)*(Projects!$C$5:$C$2410='MDOT FTA Detail'!$C$4)*(Projects!$L$5:$L$2410='MDOT FTA Detail'!$A86)*(Projects!$J$5:$J$2410<>'MDOT FTA Detail'!$A$171)*(Projects!$K$5:$K$2410)) -> 0 | N86: 0 | O86: =SUMPRODUCT((Projects!$A$5:$A$2410='MDOT FTA Detail'!$M$3)*(Projects!$C$5:$C$2410='MDOT FTA Detail'!$C$4)*(Projects!$L$5:$L$2410='MDOT FTA Detail'!$A86)*(Projects!$J$5:$J$2410<>'MDOT FTA Detail'!$A$171)*(Projects!$Q$5:$Q$2410)) -> 0
A87: STRH | B87: Surface Transportation Safety Highway Crossing Hazard Elimination | C87: MDOT FA | D87: =SUMPRODUCT((Projects!$A$5:$A$2410='MDOT FTA Detail'!$D$3)*(Projects!$C$5:$C$2410='MDOT FTA Detail'!$C$4)*(Projects!$L$5:$L$2410='MDOT FTA Detail'!$A87)*(Projects!$J$5:$J$2410<>'MDOT FTA Detail'!$A$171)*(Projects!$K$5:K$2410)) -> 0 | E87: =F87-D87 -> 0 | F87: =SUMPRODUCT((Projects!$A$5:$A$2410='MDOT FTA Detail'!$D$3)*(Projects!$C$5:$C$2410='MDOT FTA Detail'!$C$4)*(Projects!$L$5:$L$2410='MDOT FTA Detail'!$A87)*(Projects!$J$5:$J$2410<>'MDOT FTA Detail'!$A$171)*(Projects!$Q$5:Q$2410)) -> 0 | G87: =SUMPRODUCT((Projects!$A$5:$A$2410='MDOT FTA Detail'!$G$3)*(Projects!$C$5:$C$2410='MDOT FTA Detail'!$C$4)*(Projects!$L$5:$L$2410='MDOT FTA Detail'!$A87)*(Projects!$J$5:$J$2410<>'MDOT FTA Detail'!$A$171)*(Projects!$K$5:K$2410)) -> 0 | H87: =I87-G87 -> 0 | I87: =SUMPRODUCT((Projects!$A$5:$A$2410='MDOT FTA Detail'!$G$3)*(Projects!$C$5:$C$2410='MDOT FTA Detail'!$C$4)*(Projects!$L$5:$L$2410='MDOT FTA Detail'!$A87)*(Projects!$J$5:$J$2410<>'MDOT FTA Detail'!$A$171)*(Projects!$Q$5:Q$2410)) -> 0 | J87: =SUMPRODUCT((Projects!$A$5:$A$2410='MDOT FTA Detail'!$J$3)*(Projects!$C$5:$C$2410='MDOT FTA Detail'!$C$4)*(Projects!$L$5:$L$2410='MDOT FTA Detail'!$A87)*(Projects!$J$5:$J$2410<>'MDOT FTA Detail'!$A$171)*(Projects!$K$5:$K$2410)) -> 0 | K87: =L87-J87 -> 0 | L87: =SUMPRODUCT((Projects!$A$5:$A$2410='MDOT FTA Detail'!$J$3)*(Projects!$C$5:$C$2410='MDOT FTA Detail'!$C$4)*(Projects!$L$5:$L$2410='MDOT FTA Detail'!$A87)*(Projects!$J$5:$J$2410<>'MDOT FTA Detail'!$A$171)*(Projects!$Q$5:$Q$2410)) -> 0 | M87: =SUMPRODUCT((Projects!$A$5:$A$2410='MDOT FTA Detail'!$M$3)*(Projects!$C$5:$C$2410='MDOT FTA Detail'!$C$4)*(Projects!$L$5:$L$2410='MDOT FTA Detail'!$A87)*(Projects!$J$5:$J$2410<>'MDOT FTA Detail'!$A$171)*(Projects!$K$5:$K$2410)) -> 0 | N87: =O87-M87 -> 0 | O87: =SUMPRODUCT((Projects!$A$5:$A$2410='MDOT FTA Detail'!$M$3)*(Projects!$C$5:$C$2410='MDOT FTA Detail'!$C$4)*(Projects!$L$5:$L$2410='MDOT FTA Detail'!$A87)*(Projects!$J$5:$J$2410<>'MDOT FTA Detail'!$A$171)*(Projects!$Q$5:$Q$2410)) -> 0
A88: STRP | B88: Surface Transportation Safety Highway Crossing Protection Devices | C88: MDOT FA | D88: =SUMPRODUCT((Projects!$A$5:$A$2410='MDOT FTA Detail'!$D$3)*(Projects!$C$5:$C$2410='MDOT FTA Detail'!$C$4)*(Projects!$L$5:$L$2410='MDOT FTA Detail'!$A88)*(Projects!$J$5:$J$2410<>'MDOT FTA Detail'!$A$171)*(Projects!$K$5:K$2410)) -> 0 | E88: =F88-D88 -> 0 | F88: =SUMPRODUCT((Projects!$A$5:$A$2410='MDOT FTA Detail'!$D$3)*(Projects!$C$5:$C$2410='MDOT FTA Detail'!$C$4)*(Projects!$L$5:$L$2410='MDOT FTA Detail'!$A88)*(Projects!$J$5:$J$2410<>'MDOT FTA Detail'!$A$171)*(Projects!$Q$5:Q$2410)) -> 0 | G88: =SUMPRODUCT((Projects!$A$5:$A$2410='MDOT FTA Detail'!$G$3)*(Projects!$C$5:$C$2410='MDOT FTA Detail'!$C$4)*(Projects!$L$5:$L$2410='MDOT FTA Detail'!$A88)*(Projects!$J$5:$J$2410<>'MDOT FTA Detail'!$A$171)*(Projects!$K$5:K$2410)) -> 0 | H88: =I88-G88 -> 0 | I88: =SUMPRODUCT((Projects!$A$5:$A$2410='MDOT FTA Detail'!$G$3)*(Projects!$C$5:$C$2410='MDOT FTA Detail'!$C$4)*(Projects!$L$5:$L$2410='MDOT FTA Detail'!$A88)*(Projects!$J$5:$J$2410<>'MDOT FTA Detail'!$A$171)*(Projects!$Q$5:Q$2410)) -> 0 | J88: =SUMPRODUCT((Projects!$A$5:$A$2410='MDOT FTA Detail'!$J$3)*(Projects!$C$5:$C$2410='MDOT FTA Detail'!$C$4)*(Projects!$L$5:$L$2410='MDOT FTA Detail'!$A88)*(Projects!$J$5:$J$2410<>'MDOT FTA Detail'!$A$171)*(Projects!$K$5:$K$2410)) -> 0 | K88: =L88-J88 -> 0 | L88: =SUMPRODUCT((Projects!$A$5:$A$2410='MDOT FTA Detail'!$J$3)*(Projects!$C$5:$C$2410='MDOT FTA Detail'!$C$4)*(Projects!$L$5:$L$2410='MDOT FTA Detail'!$A88)*(Projects!$J$5:$J$2410<>'MDOT FTA Detail'!$A$171)*(Projects!$Q$5:$Q$2410)) -> 0 | M88: =SUMPRODUCT((Projects!$A$5:$A$2410='MDOT FTA Detail'!$M$3)*(Projects!$C$5:$C$2410='MDOT FTA Detail'!$C$4)*(Projects!$L$5:$L$2410='MDOT FTA Detail'!$A88)*(Projects!$J$5:$J$2410<>'MDOT FTA Detail'!$A$171)*(Projects!$K$5:$K$2410)) -> 0 | N88: =O88-M88 -> 0 | O88: =SUMPRODUCT((Projects!$A$5:$A$2410='MDOT FTA Detail'!$M$3)*(Projects!$C$5:$C$2410='MDOT FTA Detail'!$C$4)*(Projects!$L$5:$L$2410='MDOT FTA Detail'!$A88)*(Projects!$J$5:$J$2410<>'MDOT FTA Detail'!$A$171)*(Projects!$Q$5:$Q$2410)) -> 0
A89: STS | B89: STP - Any Area- MDOT Safety Program | C89: MDOT FA | D89: =SUMPRODUCT((Projects!$A$5:$A$2410='MDOT FTA Detail'!$D$3)*(Projects!$C$5:$C$2410='MDOT FTA Detail'!$C$4)*(Projects!$L$5:$L$2410='MDOT FTA Detail'!$A89)*(Projects!$J$5:$J$2410<>'MDOT FTA Detail'!$A$171)*(Projects!$K$5:K$2410)) -> 0 | E89: 0 | F89: =SUMPRODUCT((Projects!$A$5:$A$2410='MDOT FTA Detail'!$D$3)*(Projects!$C$5:$C$2410='MDOT FTA Detail'!$C$4)*(Projects!$L$5:$L$2410='MDOT FTA Detail'!$A89)*(Projects!$J$5:$J$2410<>'MDOT FTA Detail'!$A$171)*(Projects!$Q$5:Q$2410)) -> 0 | G89: =SUMPRODUCT((Projects!$A$5:$A$2410='MDOT FTA Detail'!$G$3)*(Projects!$C$5:$C$2410='MDOT FTA Detail'!$C$4)*(Projects!$L$5:$L$2410='MDOT FTA Detail'!$A89)*(Projects!$J$5:$J$2410<>'MDOT FTA Detail'!$A$171)*(Projects!$K$5:K$2410)) -> 0 | H89: 0 | I89: =SUMPRODUCT((Projects!$A$5:$A$2410='MDOT FTA Detail'!$G$3)*(Projects!$C$5:$C$2410='MDOT FTA Detail'!$C$4)*(Projects!$L$5:$L$2410='MDOT FTA Detail'!$A89)*(Projects!$J$5:$J$2410<>'MDOT FTA Detail'!$A$171)*(Projects!$Q$5:Q$2410)) -> 0 | J89: =SUMPRODUCT((Projects!$A$5:$A$2410='MDOT FTA Detail'!$J$3)*(Projects!$C$5:$C$2410='MDOT FTA Detail'!$C$4)*(Projects!$L$5:$L$2410='MDOT FTA Detail'!$A89)*(Projects!$J$5:$J$2410<>'MDOT FTA Detail'!$A$171)*(Projects!$K$5:$K$2410)) -> 0 | K89: 0 | L89: =SUMPRODUCT((Projects!$A$5:$A$2410='MDOT FTA Detail'!$J$3)*(Projects!$C$5:$C$2410='MDOT FTA Detail'!$C$4)*(Projects!$L$5:$L$2410='MDOT FTA Detail'!$A89)*(Projects!$J$5:$J$2410<>'MDOT FTA Detail'!$A$171)*(Projects!$Q$5:$Q$2410)) -> 0 | M89: =SUMPRODUCT((Projects!$A$5:$A$2410='MDOT FTA Detail'!$M$3)*(Projects!$C$5:$C$2410='MDOT FTA Detail'!$C$4)*(Projects!$L$5:$L$2410='MDOT FTA Detail'!$A89)*(Projects!$J$5:$J$2410<>'MDOT FTA Detail'!$A$171)*(Projects!$K$5:$K$2410)) -> 0 | N89: 0 | O89: =SUMPRODUCT((Projects!$A$5:$A$2410='MDOT FTA Detail'!$M$3)*(Projects!$C$5:$C$2410='MDOT FTA Detail'!$C$4)*(Projects!$L$5:$L$2410='MDOT FTA Detail'!$A89)*(Projects!$J$5:$J$2410<>'MDOT FTA Detail'!$A$171)*(Projects!$Q$5:$Q$2410)) -> 0
A90: STT | B90: STP - Trunkline | C90: MDOT FA | D90: =SUMPRODUCT((Projects!$A$5:$A$2410='MDOT FTA Detail'!$D$3)*(Projects!$C$5:$C$2410='MDOT FTA Detail'!$C$4)*(Projects!$L$5:$L$2410='MDOT FTA Detail'!$A90)*(Projects!$J$5:$J$2410<>'MDOT FTA Detail'!$A$171)*(Projects!$K$5:K$2410)) -> 0 | E90: 0 | F90: =SUMPRODUCT((Projects!$A$5:$A$2410='MDOT FTA Detail'!$D$3)*(Projects!$C$5:$C$2410='MDOT FTA Detail'!$C$4)*(Projects!$L$5:$L$2410='MDOT FTA Detail'!$A90)*(Projects!$J$5:$J$2410<>'MDOT FTA Detail'!$A$171)*(Projects!$Q$5:Q$2410)) -> 0 | G90: =SUMPRODUCT((Projects!$A$5:$A$2410='MDOT FTA Detail'!$G$3)*(Projects!$C$5:$C$2410='MDOT FTA Detail'!$C$4)*(Projects!$L$5:$L$2410='MDOT FTA Detail'!$A90)*(Projects!$J$5:$J$2410<>'MDOT FTA Detail'!$A$171)*(Projects!$K$5:K$2410)) -> 0 | H90: 0 | I90: =SUMPRODUCT((Projects!$A$5:$A$2410='MDOT FTA Detail'!$G$3)*(Projects!$C$5:$C$2410='MDOT FTA Detail'!$C$4)*(Projects!$L$5:$L$2410='MDOT FTA Detail'!$A90)*(Projects!$J$5:$J$2410<>'MDOT FTA Detail'!$A$171)*(Projects!$Q$5:Q$2410)) -> 0 | J90: =SUMPRODUCT((Projects!$A$5:$A$2410='MDOT FTA Detail'!$J$3)*(Projects!$C$5:$C$2410='MDOT FTA Detail'!$C$4)*(Projects!$L$5:$L$2410='MDOT FTA Detail'!$A90)*(Projects!$J$5:$J$2410<>'MDOT FTA Detail'!$A$171)*(Projects!$K$5:$K$2410)) -> 0 | K90: 0 | L90: =SUMPRODUCT((Projects!$A$5:$A$2410='MDOT FTA Detail'!$J$3)*(Projects!$C$5:$C$2410='MDOT FTA Detail'!$C$4)*(Projects!$L$5:$L$2410='MDOT FTA Detail'!$A90)*(Projects!$J$5:$J$2410<>'MDOT FTA Detail'!$A$171)*(Projects!$Q$5:$Q$2410)) -> 0 | M90: =SUMPRODUCT((Projects!$A$5:$A$2410='MDOT FTA Detail'!$M$3)*(Projects!$C$5:$C$2410='MDOT FTA Detail'!$C$4)*(Projects!$L$5:$L$2410='MDOT FTA Detail'!$A90)*(Projects!$J$5:$J$2410<>'MDOT FTA Detail'!$A$171)*(Projects!$K$5:$K$2410)) -> 0 | N90: 0 | O90: =SUMPRODUCT((Projects!$A$5:$A$2410='MDOT FTA Detail'!$M$3)*(Projects!$C$5:$C$2410='MDOT FTA Detail'!$C$4)*(Projects!$L$5:$L$2410='MDOT FTA Detail'!$A90)*(Projects!$J$5:$J$2410<>'MDOT FTA Detail'!$A$171)*(Projects!$Q$5:$Q$2410)) -> 0
A91: STU | B91: STP - Urban Areas > 200,000 Population | C91: MDOT FA | D91: =SUMPRODUCT((Projects!$A$5:$A$2410='MDOT FTA Detail'!$D$3)*(Projects!$C$5:$C$2410='MDOT FTA Detail'!$C$4)*(Projects!$L$5:$L$2410='MDOT FTA Detail'!$A91)*(Projects!$J$5:$J$2410<>'MDOT FTA Detail'!$A$171)*(Projects!$K$5:K$2410)) -> 0 | E91: 0 | F91: =SUMPRODUCT((Projects!$A$5:$A$2410='MDOT FTA Detail'!$D$3)*(Projects!$C$5:$C$2410='MDOT FTA Detail'!$C$4)*(Projects!$L$5:$L$2410='MDOT FTA Detail'!$A91)*(Projects!$J$5:$J$2410<>'MDOT FTA Detail'!$A$171)*(Projects!$Q$5:Q$2410)) -> 0 | G91: =SUMPRODUCT((Projects!$A$5:$A$2410='MDOT FTA Detail'!$G$3)*(Projects!$C$5:$C$2410='MDOT FTA Detail'!$C$4)*(Projects!$L$5:$L$2410='MDOT FTA Detail'!$A91)*(Projects!$J$5:$J$2410<>'MDOT FTA Detail'!$A$171)*(Projects!$K$5:K$2410)) -> 0 | H91: 0 | I91: =SUMPRODUCT((Projects!$A$5:$A$2410='MDOT FTA Detail'!$G$3)*(Projects!$C$5:$C$2410='MDOT FTA Detail'!$C$4)*(Projects!$L$5:$L$2410='MDOT FTA Detail'!$A91)*(Projects!$J$5:$J$2410<>'MDOT FTA Detail'!$A$171)*(Projects!$Q$5:Q$2410)) -> 0 | J91: =SUMPRODUCT((Projects!$A$5:$A$2410='MDOT FTA Detail'!$J$3)*(Projects!$C$5:$C$2410='MDOT FTA Detail'!$C$4)*(Projects!$L$5:$L$2410='MDOT FTA Detail'!$A91)*(Projects!$J$5:$J$2410<>'MDOT FTA Detail'!$A$171)*(Projects!$K$5:$K$2410)) -> 0 | K91: 0 | L91: =SUMPRODUCT((Projects!$A$5:$A$2410='MDOT FTA Detail'!$J$3)*(Projects!$C$5:$C$2410='MDOT FTA Detail'!$C$4)*(Projects!$L$5:$L$2410='MDOT FTA Detail'!$A91)*(Projects!$J$5:$J$2410<>'MDOT FTA Detail'!$A$171)*(Projects!$Q$5:$Q$2410)) -> 0 | M91: =SUMPRODUCT((Projects!$A$5:$A$2410='MDOT FTA Detail'!$M$3)*(Projects!$C$5:$C$2410='MDOT FTA Detail'!$C$4)*(Projects!$L$5:$L$2410='MDOT FTA Detail'!$A91)*(Projects!$J$5:$J$2410<>'MDOT FTA Detail'!$A$171)*(Projects!$K$5:$K$2410)) -> 0 | N91: 0 | O91: =SUMPRODUCT((Projects!$A$5:$A$2410='MDOT FTA Detail'!$M$3)*(Projects!$C$5:$C$2410='MDOT FTA Detail'!$C$4)*(Projects!$L$5:$L$2410='MDOT FTA Detail'!$A91)*(Projects!$J$5:$J$2410<>'MDOT FTA Detail'!$A$171)*(Projects!$Q$5:$Q$2410)) -> 0
A92: STUG | B92: STP - Urban Areas < 200,000 Population 100% | C92: MDOT FA | D92: =SUMPRODUCT((Projects!$A$5:$A$2410='MDOT FTA Detail'!$D$3)*(Projects!$C$5:$C$2410='MDOT FTA Detail'!$C$4)*(Projects!$L$5:$L$2410='MDOT FTA Detail'!$A92)*(Projects!$J$5:$J$2410<>'MDOT FTA Detail'!$A$171)*(Projects!$K$5:K$2410)) -> 0 | E92: =F92-D92 -> 0 | F92: =SUMPRODUCT((Projects!$A$5:$A$2410='MDOT FTA Detail'!$D$3)*(Projects!$C$5:$C$2410='MDOT FTA Detail'!$C$4)*(Projects!$L$5:$L$2410='MDOT FTA Detail'!$A92)*(Projects!$J$5:$J$2410<>'MDOT FTA Detail'!$A$171)*(Projects!$Q$5:Q$2410)) -> 0 | G92: =SUMPRODUCT((Projects!$A$5:$A$2410='MDOT FTA Detail'!$G$3)*(Projects!$C$5:$C$2410='MDOT FTA Detail'!$C$4)*(Projects!$L$5:$L$2410='MDOT FTA Detail'!$A92)*(Projects!$J$5:$J$2410<>'MDOT FTA Detail'!$A$171)*(Projects!$K$5:K$2410)) -> 0 | H92: =I92-G92 -> 0 | I92: =SUMPRODUCT((Projects!$A$5:$A$2410='MDOT FTA Detail'!$G$3)*(Projects!$C$5:$C$2410='MDOT FTA Detail'!$C$4)*(Projects!$L$5:$L$2410='MDOT FTA Detail'!$A92)*(Projects!$J$5:$J$2410<>'MDOT FTA Detail'!$A$171)*(Projects!$Q$5:Q$2410)) -> 0 | J92: =SUMPRODUCT((Projects!$A$5:$A$2410='MDOT FTA Detail'!$J$3)*(Projects!$C$5:$C$2410='MDOT FTA Detail'!$C$4)*(Projects!$L$5:$L$2410='MDOT FTA Detail'!$A92)*(Projects!$J$5:$J$2410<>'MDOT FTA Detail'!$A$171)*(Projects!$K$5:$K$2410)) -> 0 | K92: =L92-J92 -> 0 | L92: =SUMPRODUCT((Projects!$A$5:$A$2410='MDOT FTA Detail'!$J$3)*(Projects!$C$5:$C$2410='MDOT FTA Detail'!$C$4)*(Projects!$L$5:$L$2410='MDOT FTA Detail'!$A92)*(Projects!$J$5:$J$2410<>'MDOT FTA Detail'!$A$171)*(Projects!$Q$5:$Q$2410)) -> 0 | M92: =SUMPRODUCT((Projects!$A$5:$A$2410='MDOT FTA Detail'!$M$3)*(Projects!$C$5:$C$2410='MDOT FTA Detail'!$C$4)*(Projects!$L$5:$L$2410='MDOT FTA Detail'!$A92)*(Projects!$J$5:$J$2410<>'MDOT FTA Detail'!$A$171)*(Projects!$K$5:$K$2410)) -> 0 | N92: =O92-M92 -> 0 | O92: =SUMPRODUCT((Projects!$A$5:$A$2410='MDOT FTA Detail'!$M$3)*(Projects!$C$5:$C$2410='MDOT FTA Detail'!$C$4)*(Projects!$L$5:$L$2410='MDOT FTA Detail'!$A92)*(Projects!$J$5:$J$2410<>'MDOT FTA Detail'!$A$171)*(Projects!$Q$5:$Q$2410)) -> 0
A93: STUL | B93: STP - Urban Areas < 200,000 Population | C93: MDOT FA | D93: =SUMPRODUCT((Projects!$A$5:$A$2410='MDOT FTA Detail'!$D$3)*(Projects!$C$5:$C$2410='MDOT FTA Detail'!$C$4)*(Projects!$L$5:$L$2410='MDOT FTA Detail'!$A93)*(Projects!$J$5:$J$2410<>'MDOT FTA Detail'!$A$171)*(Projects!$K$5:K$2410)) -> 0 | E93: 0 | F93: =SUMPRODUCT((Projects!$A$5:$A$2410='MDOT FTA Detail'!$D$3)*(Projects!$C$5:$C$2410='MDOT FTA Detail'!$C$4)*(Projects!$L$5:$L$2410='MDOT FTA Detail'!$A93)*(Projects!$J$5:$J$2410<>'MDOT FTA Detail'!$A$171)*(Projects!$Q$5:Q$2410)) -> 0 | G93: =SUMPRODUCT((Projects!$A$5:$A$2410='MDOT FTA Detail'!$G$3)*(Projects!$C$5:$C$2410='MDOT FTA Detail'!$C$4)*(Projects!$L$5:$L$2410='MDOT FTA Detail'!$A93)*(Projects!$J$5:$J$2410<>'MDOT FTA Detail'!$A$171)*(Projects!$K$5:K$2410)) -> 0 | H93: 0 | I93: =SUMPRODUCT((Projects!$A$5:$A$2410='MDOT FTA Detail'!$G$3)*(Projects!$C$5:$C$2410='MDOT FTA Detail'!$C$4)*(Projects!$L$5:$L$2410='MDOT FTA Detail'!$A93)*(Projects!$J$5:$J$2410<>'MDOT FTA Detail'!$A$171)*(Projects!$Q$5:Q$2410)) -> 0 | J93: =SUMPRODUCT((Projects!$A$5:$A$2410='MDOT FTA Detail'!$J$3)*(Projects!$C$5:$C$2410='MDOT FTA Detail'!$C$4)*(Projects!$L$5:$L$2410='MDOT FTA Detail'!$A93)*(Projects!$J$5:$J$2410<>'MDOT FTA Detail'!$A$171)*(Projects!$K$5:$K$2410)) -> 0 | K93: 0 | L93: =SUMPRODUCT((Projects!$A$5:$A$2410='MDOT FTA Detail'!$J$3)*(Projects!$C$5:$C$2410='MDOT FTA Detail'!$C$4)*(Projects!$L$5:$L$2410='MDOT FTA Detail'!$A93)*(Projects!$J$5:$J$2410<>'MDOT FTA Detail'!$A$171)*(Projects!$Q$5:$Q$2410)) -> 0 | M93: =SUMPRODUCT((Projects!$A$5:$A$2410='MDOT FTA Detail'!$M$3)*(Projects!$C$5:$C$2410='MDOT FTA Detail'!$C$4)*(Projects!$L$5:$L$2410='MDOT FTA Detail'!$A93)*(Projects!$J$5:$J$2410<>'MDOT FTA Detail'!$A$171)*(Projects!$K$5:$K$2410)) -> 0 | N93: 0 | O93: =SUMPRODUCT((Projects!$A$5:$A$2410='MDOT FTA Detail'!$M$3)*(Projects!$C$5:$C$2410='MDOT FTA Detail'!$C$4)*(Projects!$L$5:$L$2410='MDOT FTA Detail'!$A93)*(Projects!$J$5:$J$2410<>'MDOT FTA Detail'!$A$171)*(Projects!$Q$5:$Q$2410)) -> 0
A94: STUT | B94: STP - Urban Areas < 200,000 Population - Trunkline | C94: MDOT FA | D94: =SUMPRODUCT((Projects!$A$5:$A$2410='MDOT FTA Detail'!$D$3)*(Projects!$C$5:$C$2410='MDOT FTA Detail'!$C$4)*(Projects!$L$5:$L$2410='MDOT FTA Detail'!$A94)*(Projects!$J$5:$J$2410<>'MDOT FTA Detail'!$A$171)*(Projects!$K$5:K$2410)) -> 0 | E94: 0 | F94: =SUMPRODUCT((Projects!$A$5:$A$2410='MDOT FTA Detail'!$D$3)*(Projects!$C$5:$C$2410='MDOT FTA Detail'!$C$4)*(Projects!$L$5:$L$2410='MDOT FTA Detail'!$A94)*(Projects!$J$5:$J$2410<>'MDOT FTA Detail'!$A$171)*(Projects!$Q$5:Q$2410)) -> 0 | G94: =SUMPRODUCT((Projects!$A$5:$A$2410='MDOT FTA Detail'!$G$3)*(Projects!$C$5:$C$2410='MDOT FTA Detail'!$C$4)*(Projects!$L$5:$L$2410='MDOT FTA Detail'!$A94)*(Projects!$J$5:$J$2410<>'MDOT FTA Detail'!$A$171)*(Projects!$K$5:K$2410)) -> 0 | H94: 0 | I94: =SUMPRODUCT((Projects!$A$5:$A$2410='MDOT FTA Detail'!$G$3)*(Projects!$C$5:$C$2410='MDOT FTA Detail'!$C$4)*(Projects!$L$5:$L$2410='MDOT FTA Detail'!$A94)*(Projects!$J$5:$J$2410<>'MDOT FTA Detail'!$A$171)*(Projects!$Q$5:Q$2410)) -> 0 | J94: =SUMPRODUCT((Projects!$A$5:$A$2410='MDOT FTA Detail'!$J$3)*(Projects!$C$5:$C$2410='MDOT FTA Detail'!$C$4)*(Projects!$L$5:$L$2410='MDOT FTA Detail'!$A94)*(Projects!$J$5:$J$2410<>'MDOT FTA Detail'!$A$171)*(Projects!$K$5:$K$2410)) -> 0 | K94: 0 | L94: =SUMPRODUCT((Projects!$A$5:$A$2410='MDOT FTA Detail'!$J$3)*(Projects!$C$5:$C$2410='MDOT FTA Detail'!$C$4)*(Projects!$L$5:$L$2410='MDOT FTA Detail'!$A94)*(Projects!$J$5:$J$2410<>'MDOT FTA Detail'!$A$171)*(Projects!$Q$5:$Q$2410)) -> 0 | M94: =SUMPRODUCT((Projects!$A$5:$A$2410='MDOT FTA Detail'!$M$3)*(Projects!$C$5:$C$2410='MDOT FTA Detail'!$C$4)*(Projects!$L$5:$L$2410='MDOT FTA Detail'!$A94)*(Projects!$J$5:$J$2410<>'MDOT FTA Detail'!$A$171)*(Projects!$K$5:$K$2410)) -> 0 | N94: 0 | O94: =SUMPRODUCT((Projects!$A$5:$A$2410='MDOT FTA Detail'!$M$3)*(Projects!$C$5:$C$2410='MDOT FTA Detail'!$C$4)*(Projects!$L$5:$L$2410='MDOT FTA Detail'!$A94)*(Projects!$J$5:$J$2410<>'MDOT FTA Detail'!$A$171)*(Projects!$Q$5:$Q$2410)) -> 0
A95: SUG | B95: STP - Safety - 100% Federal for STU | C95: MDOT FA | D95: =SUMPRODUCT((Projects!$A$5:$A$2410='MDOT FTA Detail'!$D$3)*(Projects!$C$5:$C$2410='MDOT FTA Detail'!$C$4)*(Projects!$L$5:$L$2410='MDOT FTA Detail'!$A95)*(Projects!$J$5:$J$2410<>'MDOT FTA Detail'!$A$171)*(Projects!$K$5:K$2410)) -> 0 | E95: 0 | F95: =SUMPRODUCT((Projects!$A$5:$A$2410='MDOT FTA Detail'!$D$3)*(Projects!$C$5:$C$2410='MDOT FTA Detail'!$C$4)*(Projects!$L$5:$L$2410='MDOT FTA Detail'!$A95)*(Projects!$J$5:$J$2410<>'MDOT FTA Detail'!$A$171)*(Projects!$Q$5:Q$2410)) -> 0 | G95: =SUMPRODUCT((Projects!$A$5:$A$2410='MDOT FTA Detail'!$G$3)*(Projects!$C$5:$C$2410='MDOT FTA Detail'!$C$4)*(Projects!$L$5:$L$2410='MDOT FTA Detail'!$A95)*(Projects!$J$5:$J$2410<>'MDOT FTA Detail'!$A$171)*(Projects!$K$5:K$2410)) -> 0 | H95: 0 | I95: =SUMPRODUCT((Projects!$A$5:$A$2410='MDOT FTA Detail'!$G$3)*(Projects!$C$5:$C$2410='MDOT FTA Detail'!$C$4)*(Projects!$L$5:$L$2410='MDOT FTA Detail'!$A95)*(Projects!$J$5:$J$2410<>'MDOT FTA Detail'!$A$171)*(Projects!$Q$5:Q$2410)) -> 0 | J95: =SUMPRODUCT((Projects!$A$5:$A$2410='MDOT FTA Detail'!$J$3)*(Projects!$C$5:$C$2410='MDOT FTA Detail'!$C$4)*(Projects!$L$5:$L$2410='MDOT FTA Detail'!$A95)*(Projects!$J$5:$J$2410<>'MDOT FTA Detail'!$A$171)*(Projects!$K$5:$K$2410)) -> 0 | K95: 0 | L95: =SUMPRODUCT((Projects!$A$5:$A$2410='MDOT FTA Detail'!$J$3)*(Projects!$C$5:$C$2410='MDOT FTA Detail'!$C$4)*(Projects!$L$5:$L$2410='MDOT FTA Detail'!$A95)*(Projects!$J$5:$J$2410<>'MDOT FTA Detail'!$A$171)*(Projects!$Q$5:$Q$2410)) -> 0 | M95: =SUMPRODUCT((Projects!$A$5:$A$2410='MDOT FTA Detail'!$M$3)*(Projects!$C$5:$C$2410='MDOT FTA Detail'!$C$4)*(Projects!$L$5:$L$2410='MDOT FTA Detail'!$A95)*(Projects!$J$5:$J$2410<>'MDOT FTA Detail'!$A$171)*(Projects!$K$5:$K$2410)) -> 0 | N95: 0 | O95: =SUMPRODUCT((Projects!$A$5:$A$2410='MDOT FTA Detail'!$M$3)*(Projects!$C$5:$C$2410='MDOT FTA Detail'!$C$4)*(Projects!$L$5:$L$2410='MDOT FTA Detail'!$A95)*(Projects!$J$5:$J$2410<>'MDOT FTA Detail'!$A$171)*(Projects!$Q$5:$Q$2410)) -> 0
A96: SUL | B96: Surface Transportation Urban Areas <200,000 Population | C96: MDOT FA | D96: =SUMPRODUCT((Projects!$A$5:$A$2410='MDOT FTA Detail'!$D$3)*(Projects!$C$5:$C$2410='MDOT FTA Detail'!$C$4)*(Projects!$L$5:$L$2410='MDOT FTA Detail'!$A96)*(Projects!$J$5:$J$2410<>'MDOT FTA Detail'!$A$171)*(Projects!$K$5:K$2410)) -> 0 | E96: 0 | F96: =SUMPRODUCT((Projects!$A$5:$A$2410='MDOT FTA Detail'!$D$3)*(Projects!$C$5:$C$2410='MDOT FTA Detail'!$C$4)*(Projects!$L$5:$L$2410='MDOT FTA Detail'!$A96)*(Projects!$J$5:$J$2410<>'MDOT FTA Detail'!$A$171)*(Projects!$Q$5:Q$2410)) -> 0 | G96: =SUMPRODUCT((Projects!$A$5:$A$2410='MDOT FTA Detail'!$G$3)*(Projects!$C$5:$C$2410='MDOT FTA Detail'!$C$4)*(Projects!$L$5:$L$2410='MDOT FTA Detail'!$A96)*(Projects!$J$5:$J$2410<>'MDOT FTA Detail'!$A$171)*(Projects!$K$5:K$2410)) -> 0 | H96: 0 | I96: =SUMPRODUCT((Projects!$A$5:$A$2410='MDOT FTA Detail'!$G$3)*(Projects!$C$5:$C$2410='MDOT FTA Detail'!$C$4)*(Projects!$L$5:$L$2410='MDOT FTA Detail'!$A96)*(Projects!$J$5:$J$2410<>'MDOT FTA Detail'!$A$171)*(Projects!$Q$5:Q$2410)) -> 0 | J96: =SUMPRODUCT((Projects!$A$5:$A$2410='MDOT FTA Detail'!$J$3)*(Projects!$C$5:$C$2410='MDOT FTA Detail'!$C$4)*(Projects!$L$5:$L$2410='MDOT FTA Detail'!$A96)*(Projects!$J$5:$J$2410<>'MDOT FTA Detail'!$A$171)*(Projects!$K$5:$K$2410)) -> 0 | K96: 0 | L96: =SUMPRODUCT((Projects!$A$5:$A$2410='MDOT FTA Detail'!$J$3)*(Projects!$C$5:$C$2410='MDOT FTA Detail'!$C$4)*(Projects!$L$5:$L$2410='MDOT FTA Detail'!$A96)*(Projects!$J$5:$J$2410<>'MDOT FTA Detail'!$A$171)*(Projects!$Q$5:$Q$2410)) -> 0 | M96: =SUMPRODUCT((Projects!$A$5:$A$2410='MDOT FTA Detail'!$M$3)*(Projects!$C$5:$C$2410='MDOT FTA Detail'!$C$4)*(Projects!$L$5:$L$2410='MDOT FTA Detail'!$A96)*(Projects!$J$5:$J$2410<>'MDOT FTA Detail'!$A$171)*(Projects!$K$5:$K$2410)) -> 0 | N96: 0 | O96: =SUMPRODUCT((Projects!$A$5:$A$2410='MDOT FTA Detail'!$M$3)*(Projects!$C$5:$C$2410='MDOT FTA Detail'!$C$4)*(Projects!$L$5:$L$2410='MDOT FTA Detail'!$A96)*(Projects!$J$5:$J$2410<>'MDOT FTA Detail'!$A$171)*(Projects!$Q$5:$Q$2410)) -> 0
A97: SULG | B97: Surfcace Transportation Urban Areas <200,000 Population 100% | C97: MDOT FA | D97: =SUMPRODUCT((Projects!$A$5:$A$2410='MDOT FTA Detail'!$D$3)*(Projects!$C$5:$C$2410='MDOT FTA Detail'!$C$4)*(Projects!$L$5:$L$2410='MDOT FTA Detail'!$A97)*(Projects!$J$5:$J$2410<>'MDOT FTA Detail'!$A$171)*(Projects!$K$5:K$2410)) -> 0 | E97: 0 | F97: =SUMPRODUCT((Projects!$A$5:$A$2410='MDOT FTA Detail'!$D$3)*(Projects!$C$5:$C$2410='MDOT FTA Detail'!$C$4)*(Projects!$L$5:$L$2410='MDOT FTA Detail'!$A97)*(Projects!$J$5:$J$2410<>'MDOT FTA Detail'!$A$171)*(Projects!$Q$5:Q$2410)) -> 0 | G97: =SUMPRODUCT((Projects!$A$5:$A$2410='MDOT FTA Detail'!$G$3)*(Projects!$C$5:$C$2410='MDOT FTA Detail'!$C$4)*(Projects!$L$5:$L$2410='MDOT FTA Detail'!$A97)*(Projects!$J$5:$J$2410<>'MDOT FTA Detail'!$A$171)*(Projects!$K$5:K$2410)) -> 0 | H97: 0 | I97: =SUMPRODUCT((Projects!$A$5:$A$2410='MDOT FTA Detail'!$G$3)*(Projects!$C$5:$C$2410='MDOT FTA Detail'!$C$4)*(Projects!$L$5:$L$2410='MDOT FTA Detail'!$A97)*(Projects!$J$5:$J$2410<>'MDOT FTA Detail'!$A$171)*(Projects!$Q$5:Q$2410)) -> 0 | J97: =SUMPRODUCT((Projects!$A$5:$A$2410='MDOT FTA Detail'!$J$3)*(Projects!$C$5:$C$2410='MDOT FTA Detail'!$C$4)*(Projects!$L$5:$L$2410='MDOT FTA Detail'!$A97)*(Projects!$J$5:$J$2410<>'MDOT FTA Detail'!$A$171)*(Projects!$K$5:$K$2410)) -> 0 | K97: 0 | L97: =SUMPRODUCT((Projects!$A$5:$A$2410='MDOT FTA Detail'!$J$3)*(Projects!$C$5:$C$2410='MDOT FTA Detail'!$C$4)*(Projects!$L$5:$L$2410='MDOT FTA Detail'!$A97)*(Projects!$J$5:$J$2410<>'MDOT FTA Detail'!$A$171)*(Projects!$Q$5:$Q$2410)) -> 0 | M97: =SUMPRODUCT((Projects!$A$5:$A$2410='MDOT FTA Detail'!$M$3)*(Projects!$C$5:$C$2410='MDOT FTA Detail'!$C$4)*(Projects!$L$5:$L$2410='MDOT FTA Detail'!$A97)*(Projects!$J$5:$J$2410<>'MDOT FTA Detail'!$A$171)*(Projects!$K$5:$K$2410)) -> 0 | N97: 0 | O97: =SUMPRODUCT((Projects!$A$5:$A$2410='MDOT FTA Detail'!$M$3)*(Projects!$C$5:$C$2410='MDOT FTA Detail'!$C$4)*(Projects!$L$5:$L$2410='MDOT FTA Detail'!$A97)*(Projects!$J$5:$J$2410<>'MDOT FTA Detail'!$A$171)*(Projects!$Q$5:$Q$2410)) -> 0
A98: TA | B98: Transportation Alternatives Program Flex | C98: MDOT FA | D98: =SUMPRODUCT((Projects!$A$5:$A$2410='MDOT FTA Detail'!$D$3)*(Projects!$C$5:$C$2410='MDOT FTA Detail'!$C$4)*(Projects!$L$5:$L$2410='MDOT FTA Detail'!$A98)*(Projects!$J$5:$J$2410<>'MDOT FTA Detail'!$A$171)*(Projects!$K$5:K$2410)) -> 0 | E98: 0 | F98: =SUMPRODUCT((Projects!$A$5:$A$2410='MDOT FTA Detail'!$D$3)*(Projects!$C$5:$C$2410='MDOT FTA Detail'!$C$4)*(Projects!$L$5:$L$2410='MDOT FTA Detail'!$A98)*(Projects!$J$5:$J$2410<>'MDOT FTA Detail'!$A$171)*(Projects!$Q$5:Q$2410)) -> 0 | G98: =SUMPRODUCT((Projects!$A$5:$A$2410='MDOT FTA Detail'!$G$3)*(Projects!$C$5:$C$2410='MDOT FTA Detail'!$C$4)*(Projects!$L$5:$L$2410='MDOT FTA Detail'!$A98)*(Projects!$J$5:$J$2410<>'MDOT FTA Detail'!$A$171)*(Projects!$K$5:K$2410)) -> 0 | H98: 0 | I98: =SUMPRODUCT((Projects!$A$5:$A$2410='MDOT FTA Detail'!$G$3)*(Projects!$C$5:$C$2410='MDOT FTA Detail'!$C$4)*(Projects!$L$5:$L$2410='MDOT FTA Detail'!$A98)*(Projects!$J$5:$J$2410<>'MDOT FTA Detail'!$A$171)*(Projects!$Q$5:Q$2410)) -> 0 | J98: =SUMPRODUCT((Projects!$A$5:$A$2410='MDOT FTA Detail'!$J$3)*(Projects!$C$5:$C$2410='MDOT FTA Detail'!$C$4)*(Projects!$L$5:$L$2410='MDOT FTA Detail'!$A98)*(Projects!$J$5:$J$2410<>'MDOT FTA Detail'!$A$171)*(Projects!$K$5:$K$2410)) -> 0 | K98: 0 | L98: =SUMPRODUCT((Projects!$A$5:$A$2410='MDOT FTA Detail'!$J$3)*(Projects!$C$5:$C$2410='MDOT FTA Detail'!$C$4)*(Projects!$L$5:$L$2410='MDOT FTA Detail'!$A98)*(Projects!$J$5:$J$2410<>'MDOT FTA Detail'!$A$171)*(Projects!$Q$5:$Q$2410)) -> 0 | M98: =SUMPRODUCT((Projects!$A$5:$A$2410='MDOT FTA Detail'!$M$3)*(Projects!$C$5:$C$2410='MDOT FTA Detail'!$C$4)*(Projects!$L$5:$L$2410='MDOT FTA Detail'!$A98)*(Projects!$J$5:$J$2410<>'MDOT FTA Detail'!$A$171)*(Projects!$K$5:$K$2410)) -> 0 | N98: 0 | O98: =SUMPRODUCT((Projects!$A$5:$A$2410='MDOT FTA Detail'!$M$3)*(Projects!$C$5:$C$2410='MDOT FTA Detail'!$C$4)*(Projects!$L$5:$L$2410='MDOT FTA Detail'!$A98)*(Projects!$J$5:$J$2410<>'MDOT FTA Detail'!$A$171)*(Projects!$Q$5:$Q$2410)) -> 0
A99: TAL | B99: Transportation Alternatives Rural | C99: MDOT FA | D99: =SUMPRODUCT((Projects!$A$5:$A$2410='MDOT FTA Detail'!$D$3)*(Projects!$C$5:$C$2410='MDOT FTA Detail'!$C$4)*(Projects!$L$5:$L$2410='MDOT FTA Detail'!$A99)*(Projects!$J$5:$J$2410<>'MDOT FTA Detail'!$A$171)*(Projects!$K$5:K$2410)) -> 0 | E99: 0 | F99: =SUMPRODUCT((Projects!$A$5:$A$2410='MDOT FTA Detail'!$D$3)*(Projects!$C$5:$C$2410='MDOT FTA Detail'!$C$4)*(Projects!$L$5:$L$2410='MDOT FTA Detail'!$A99)*(Projects!$J$5:$J$2410<>'MDOT FTA Detail'!$A$171)*(Projects!$Q$5:Q$2410)) -> 0 | G99: =SUMPRODUCT((Projects!$A$5:$A$2410='MDOT FTA Detail'!$G$3)*(Projects!$C$5:$C$2410='MDOT FTA Detail'!$C$4)*(Projects!$L$5:$L$2410='MDOT FTA Detail'!$A99)*(Projects!$J$5:$J$2410<>'MDOT FTA Detail'!$A$171)*(Projects!$K$5:K$2410)) -> 0 | H99: 0 | I99: =SUMPRODUCT((Projects!$A$5:$A$2410='MDOT FTA Detail'!$G$3)*(Projects!$C$5:$C$2410='MDOT FTA Detail'!$C$4)*(Projects!$L$5:$L$2410='MDOT FTA Detail'!$A99)*(Projects!$J$5:$J$2410<>'MDOT FTA Detail'!$A$171)*(Projects!$Q$5:Q$2410)) -> 0 | J99: =SUMPRODUCT((Projects!$A$5:$A$2410='MDOT FTA Detail'!$J$3)*(Projects!$C$5:$C$2410='MDOT FTA Detail'!$C$4)*(Projects!$L$5:$L$2410='MDOT FTA Detail'!$A99)*(Projects!$J$5:$J$2410<>'MDOT FTA Detail'!$A$171)*(Projects!$K$5:$K$2410)) -> 0 | K99: 0 | L99: =SUMPRODUCT((Projects!$A$5:$A$2410='MDOT FTA Detail'!$J$3)*(Projects!$C$5:$C$2410='MDOT FTA Detail'!$C$4)*(Projects!$L$5:$L$2410='MDOT FTA Detail'!$A99)*(Projects!$J$5:$J$2410<>'MDOT FTA Detail'!$A$171)*(Projects!$Q$5:$Q$2410)) -> 0 | M99: =SUMPRODUCT((Projects!$A$5:$A$2410='MDOT FTA Detail'!$M$3)*(Projects!$C$5:$C$2410='MDOT FTA Detail'!$C$4)*(Projects!$L$5:$L$2410='MDOT FTA Detail'!$A99)*(Projects!$J$5:$J$2410<>'MDOT FTA Detail'!$A$171)*(Projects!$K$5:$K$2410)) -> 0 | N99: 0 | O99: =SUMPRODUCT((Projects!$A$5:$A$2410='MDOT FTA Detail'!$M$3)*(Projects!$C$5:$C$2410='MDOT FTA Detail'!$C$4)*(Projects!$L$5:$L$2410='MDOT FTA Detail'!$A99)*(Projects!$J$5:$J$2410<>'MDOT FTA Detail'!$A$171)*(Projects!$Q$5:$Q$2410)) -> 0
A100: TAU | B100: Transportation Alternatives Urban Areas > 200,000 Population | C100: MDOT FA | D100: =SUMPRODUCT((Projects!$A$5:$A$2410='MDOT FTA Detail'!$D$3)*(Projects!$C$5:$C$2410='MDOT FTA Detail'!$C$4)*(Projects!$L$5:$L$2410='MDOT FTA Detail'!$A100)*(Projects!$J$5:$J$2410<>'MDOT FTA Detail'!$A$171)*(Projects!$K$5:K$2410)) -> 0 | E100: 0 | F100: =SUMPRODUCT((Projects!$A$5:$A$2410='MDOT FTA Detail'!$D$3)*(Projects!$C$5:$C$2410='MDOT FTA Detail'!$C$4)*(Projects!$L$5:$L$2410='MDOT FTA Detail'!$A100)*(Projects!$J$5:$J$2410<>'MDOT FTA Detail'!$A$171)*(Projects!$Q$5:Q$2410)) -> 0 | G100: =SUMPRODUCT((Projects!$A$5:$A$2410='MDOT FTA Detail'!$G$3)*(Projects!$C$5:$C$2410='MDOT FTA Detail'!$C$4)*(Projects!$L$5:$L$2410='MDOT FTA Detail'!$A100)*(Projects!$J$5:$J$2410<>'MDOT FTA Detail'!$A$171)*(Projects!$K$5:K$2410)) -> 0 | H100: 0 | I100: =SUMPRODUCT((Projects!$A$5:$A$2410='MDOT FTA Detail'!$G$3)*(Projects!$C$5:$C$2410='MDOT FTA Detail'!$C$4)*(Projects!$L$5:$L$2410='MDOT FTA Detail'!$A100)*(Projects!$J$5:$J$2410<>'MDOT FTA Detail'!$A$171)*(Projects!$Q$5:Q$2410)) -> 0 | J100: =SUMPRODUCT((Projects!$A$5:$A$2410='MDOT FTA Detail'!$J$3)*(Projects!$C$5:$C$2410='MDOT FTA Detail'!$C$4)*(Projects!$L$5:$L$2410='MDOT FTA Detail'!$A100)*(Projects!$J$5:$J$2410<>'MDOT FTA Detail'!$A$171)*(Projects!$K$5:$K$2410)) -> 0 | K100: 0 | L100: =SUMPRODUCT((Projects!$A$5:$A$2410='MDOT FTA Detail'!$J$3)*(Projects!$C$5:$C$2410='MDOT FTA Detail'!$C$4)*(Projects!$L$5:$L$2410='MDOT FTA Detail'!$A100)*(Projects!$J$5:$J$2410<>'MDOT FTA Detail'!$A$171)*(Projects!$Q$5:$Q$2410)) -> 0 | M100: =SUMPRODUCT((Projects!$A$5:$A$2410='MDOT FTA Detail'!$M$3)*(Projects!$C$5:$C$2410='MDOT FTA Detail'!$C$4)*(Projects!$L$5:$L$2410='MDOT FTA Detail'!$A100)*(Projects!$J$5:$J$2410<>'MDOT FTA Detail'!$A$171)*(Projects!$K$5:$K$2410)) -> 0 | N100: 0 | O100: =SUMPRODUCT((Projects!$A$5:$A$2410='MDOT FTA Detail'!$M$3)*(Projects!$C$5:$C$2410='MDOT FTA Detail'!$C$4)*(Projects!$L$5:$L$2410='MDOT FTA Detail'!$A100)*(Projects!$J$5:$J$2410<>'MDOT FTA Detail'!$A$171)*(Projects!$Q$5:$Q$2410)) -> 0
A101: TAUL | B101: Transporation Alternatives Urban Areas < 200,000 Population | C101: MDOT FA | D101: =SUMPRODUCT((Projects!$A$5:$A$2410='MDOT FTA Detail'!$D$3)*(Projects!$C$5:$C$2410='MDOT FTA Detail'!$C$4)*(Projects!$L$5:$L$2410='MDOT FTA Detail'!$A101)*(Projects!$J$5:$J$2410<>'MDOT FTA Detail'!$A$171)*(Projects!$K$5:K$2410)) -> 0 | E101: 0 | F101: =SUMPRODUCT((Projects!$A$5:$A$2410='MDOT FTA Detail'!$D$3)*(Projects!$C$5:$C$2410='MDOT FTA Detail'!$C$4)*(Projects!$L$5:$L$2410='MDOT FTA Detail'!$A101)*(Projects!$J$5:$J$2410<>'MDOT FTA Detail'!$A$171)*(Projects!$Q$5:Q$2410)) -> 0 | G101: =SUMPRODUCT((Projects!$A$5:$A$2410='MDOT FTA Detail'!$G$3)*(Projects!$C$5:$C$2410='MDOT FTA Detail'!$C$4)*(Projects!$L$5:$L$2410='MDOT FTA Detail'!$A101)*(Projects!$J$5:$J$2410<>'MDOT FTA Detail'!$A$171)*(Projects!$K$5:K$2410)) -> 0 | H101: 0 | I101: =SUMPRODUCT((Projects!$A$5:$A$2410='MDOT FTA Detail'!$G$3)*(Projects!$C$5:$C$2410='MDOT FTA Detail'!$C$4)*(Projects!$L$5:$L$2410='MDOT FTA Detail'!$A101)*(Projects!$J$5:$J$2410<>'MDOT FTA Detail'!$A$171)*(Projects!$Q$5:Q$2410)) -> 0 | J101: =SUMPRODUCT((Projects!$A$5:$A$2410='MDOT FTA Detail'!$J$3)*(Projects!$C$5:$C$2410='MDOT FTA Detail'!$C$4)*(Projects!$L$5:$L$2410='MDOT FTA Detail'!$A101)*(Projects!$J$5:$J$2410<>'MDOT FTA Detail'!$A$171)*(Projects!$K$5:$K$2410)) -> 0 | K101: 0 | L101: =SUMPRODUCT((Projects!$A$5:$A$2410='MDOT FTA Detail'!$J$3)*(Projects!$C$5:$C$2410='MDOT FTA Detail'!$C$4)*(Projects!$L$5:$L$2410='MDOT FTA Detail'!$A101)*(Projects!$J$5:$J$2410<>'MDOT FTA Detail'!$A$171)*(Projects!$Q$5:$Q$2410)) -> 0 | M101: =SUMPRODUCT((Projects!$A$5:$A$2410='MDOT FTA Detail'!$M$3)*(Projects!$C$5:$C$2410='MDOT FTA Detail'!$C$4)*(Projects!$L$5:$L$2410='MDOT FTA Detail'!$A101)*(Projects!$J$5:$J$2410<>'MDOT FTA Detail'!$A$171)*(Projects!$K$5:$K$2410)) -> 0 | N101: 0 | O101: =SUMPRODUCT((Projects!$A$5:$A$2410='MDOT FTA Detail'!$M$3)*(Projects!$C$5:$C$2410='MDOT FTA Detail'!$C$4)*(Projects!$L$5:$L$2410='MDOT FTA Detail'!$A101)*(Projects!$J$5:$J$2410<>'MDOT FTA Detail'!$A$171)*(Projects!$Q$5:$Q$2410)) -> 0
A102: TBR | B102: Timber Bridge Fund | C102: MDOT FA | D102: =SUMPRODUCT((Projects!$A$5:$A$2410='MDOT FTA Detail'!$D$3)*(Projects!$C$5:$C$2410='MDOT FTA Detail'!$C$4)*(Projects!$L$5:$L$2410='MDOT FTA Detail'!$A102)*(Projects!$J$5:$J$2410<>'MDOT FTA Detail'!$A$171)*(Projects!$K$5:K$2410)) -> 0 | E102: 0 | F102: =SUMPRODUCT((Projects!$A$5:$A$2410='MDOT FTA Detail'!$D$3)*(Projects!$C$5:$C$2410='MDOT FTA Detail'!$C$4)*(Projects!$L$5:$L$2410='MDOT FTA Detail'!$A102)*(Projects!$J$5:$J$2410<>'MDOT FTA Detail'!$A$171)*(Projects!$Q$5:Q$2410)) -> 0 | G102: =SUMPRODUCT((Projects!$A$5:$A$2410='MDOT FTA Detail'!$G$3)*(Projects!$C$5:$C$2410='MDOT FTA Detail'!$C$4)*(Projects!$L$5:$L$2410='MDOT FTA Detail'!$A102)*(Projects!$J$5:$J$2410<>'MDOT FTA Detail'!$A$171)*(Projects!$K$5:K$2410)) -> 0 | H102: 0 | I102: =SUMPRODUCT((Projects!$A$5:$A$2410='MDOT FTA Detail'!$G$3)*(Projects!$C$5:$C$2410='MDOT FTA Detail'!$C$4)*(Projects!$L$5:$L$2410='MDOT FTA Detail'!$A102)*(Projects!$J$5:$J$2410<>'MDOT FTA Detail'!$A$171)*(Projects!$Q$5:Q$2410)) -> 0 | J102: =SUMPRODUCT((Projects!$A$5:$A$2410='MDOT FTA Detail'!$J$3)*(Projects!$C$5:$C$2410='MDOT FTA Detail'!$C$4)*(Projects!$L$5:$L$2410='MDOT FTA Detail'!$A102)*(Projects!$J$5:$J$2410<>'MDOT FTA Detail'!$A$171)*(Projects!$K$5:$K$2410)) -> 0 | K102: 0 | L102: =SUMPRODUCT((Projects!$A$5:$A$2410='MDOT FTA Detail'!$J$3)*(Projects!$C$5:$C$2410='MDOT FTA Detail'!$C$4)*(Projects!$L$5:$L$2410='MDOT FTA Detail'!$A102)*(Projects!$J$5:$J$2410<>'MDOT FTA Detail'!$A$171)*(Projects!$Q$5:$Q$2410)) -> 0 | M102: =SUMPRODUCT((Projects!$A$5:$A$2410='MDOT FTA Detail'!$M$3)*(Projects!$C$5:$C$2410='MDOT FTA Detail'!$C$4)*(Projects!$L$5:$L$2410='MDOT FTA Detail'!$A102)*(Projects!$J$5:$J$2410<>'MDOT FTA Detail'!$A$171)*(Projects!$K$5:$K$2410)) -> 0 | N102: 0 | O102: =SUMPRODUCT((Projects!$A$5:$A$2410='MDOT FTA Detail'!$M$3)*(Projects!$C$5:$C$2410='MDOT FTA Detail'!$C$4)*(Projects!$L$5:$L$2410='MDOT FTA Detail'!$A102)*(Projects!$J$5:$J$2410<>'MDOT FTA Detail'!$A$171)*(Projects!$Q$5:$Q$2410)) -> 0
A103: TCP | B103: Tax Compliance Program | C103: MDOT FA | D103: =SUMPRODUCT((Projects!$A$5:$A$2410='MDOT FTA Detail'!$D$3)*(Projects!$C$5:$C$2410='MDOT FTA Detail'!$C$4)*(Projects!$L$5:$L$2410='MDOT FTA Detail'!$A103)*(Projects!$J$5:$J$2410<>'MDOT FTA Detail'!$A$171)*(Projects!$K$5:K$2410)) -> 0 | E103: 0 | F103: =SUMPRODUCT((Projects!$A$5:$A$2410='MDOT FTA Detail'!$D$3)*(Projects!$C$5:$C$2410='MDOT FTA Detail'!$C$4)*(Projects!$L$5:$L$2410='MDOT FTA Detail'!$A103)*(Projects!$J$5:$J$2410<>'MDOT FTA Detail'!$A$171)*(Projects!$Q$5:Q$2410)) -> 0 | G103: =SUMPRODUCT((Projects!$A$5:$A$2410='MDOT FTA Detail'!$G$3)*(Projects!$C$5:$C$2410='MDOT FTA Detail'!$C$4)*(Projects!$L$5:$L$2410='MDOT FTA Detail'!$A103)*(Projects!$J$5:$J$2410<>'MDOT FTA Detail'!$A$171)*(Projects!$K$5:K$2410)) -> 0 | H103: 0 | I103: =SUMPRODUCT((Projects!$A$5:$A$2410='MDOT FTA Detail'!$G$3)*(Projects!$C$5:$C$2410='MDOT FTA Detail'!$C$4)*(Projects!$L$5:$L$2410='MDOT FTA Detail'!$A103)*(Projects!$J$5:$J$2410<>'MDOT FTA Detail'!$A$171)*(Projects!$Q$5:Q$2410)) -> 0 | J103: =SUMPRODUCT((Projects!$A$5:$A$2410='MDOT FTA Detail'!$J$3)*(Projects!$C$5:$C$2410='MDOT FTA Detail'!$C$4)*(Projects!$L$5:$L$2410='MDOT FTA Detail'!$A103)*(Projects!$J$5:$J$2410<>'MDOT FTA Detail'!$A$171)*(Projects!$K$5:$K$2410)) -> 0 | K103: 0 | L103: =SUMPRODUCT((Projects!$A$5:$A$2410='MDOT FTA Detail'!$J$3)*(Projects!$C$5:$C$2410='MDOT FTA Detail'!$C$4)*(Projects!$L$5:$L$2410='MDOT FTA Detail'!$A103)*(Projects!$J$5:$J$2410<>'MDOT FTA Detail'!$A$171)*(Projects!$Q$5:$Q$2410)) -> 0 | M103: =SUMPRODUCT((Projects!$A$5:$A$2410='MDOT FTA Detail'!$M$3)*(Projects!$C$5:$C$2410='MDOT FTA Detail'!$C$4)*(Projects!$L$5:$L$2410='MDOT FTA Detail'!$A103)*(Projects!$J$5:$J$2410<>'MDOT FTA Detail'!$A$171)*(Projects!$K$5:$K$2410)) -> 0 | N103: 0 | O103: =SUMPRODUCT((Projects!$A$5:$A$2410='MDOT FTA Detail'!$M$3)*(Projects!$C$5:$C$2410='MDOT FTA Detail'!$C$4)*(Projects!$L$5:$L$2410='MDOT FTA Detail'!$A103)*(Projects!$J$5:$J$2410<>'MDOT FTA Detail'!$A$171)*(Projects!$Q$5:$Q$2410)) -> 0
A104: TCSP | B104: Transportation, Community and System Preservation | C104: MDOT FA | D104: =SUMPRODUCT((Projects!$A$5:$A$2410='MDOT FTA Detail'!$D$3)*(Projects!$C$5:$C$2410='MDOT FTA Detail'!$C$4)*(Projects!$L$5:$L$2410='MDOT FTA Detail'!$A104)*(Projects!$J$5:$J$2410<>'MDOT FTA Detail'!$A$171)*(Projects!$K$5:K$2410)) -> 0 | E104: 0 | F104: =SUMPRODUCT((Projects!$A$5:$A$2410='MDOT FTA Detail'!$D$3)*(Projects!$C$5:$C$2410='MDOT FTA Detail'!$C$4)*(Projects!$L$5:$L$2410='MDOT FTA Detail'!$A104)*(Projects!$J$5:$J$2410<>'MDOT FTA Detail'!$A$171)*(Projects!$Q$5:Q$2410)) -> 0 | G104: =SUMPRODUCT((Projects!$A$5:$A$2410='MDOT FTA Detail'!$G$3)*(Projects!$C$5:$C$2410='MDOT FTA Detail'!$C$4)*(Projects!$L$5:$L$2410='MDOT FTA Detail'!$A104)*(Projects!$J$5:$J$2410<>'MDOT FTA Detail'!$A$171)*(Projects!$K$5:K$2410)) -> 0 | H104: 0 | I104: =SUMPRODUCT((Projects!$A$5:$A$2410='MDOT FTA Detail'!$G$3)*(Projects!$C$5:$C$2410='MDOT FTA Detail'!$C$4)*(Projects!$L$5:$L$2410='MDOT FTA Detail'!$A104)*(Projects!$J$5:$J$2410<>'MDOT FTA Detail'!$A$171)*(Projects!$Q$5:Q$2410)) -> 0 | J104: =SUMPRODUCT((Projects!$A$5:$A$2410='MDOT FTA Detail'!$J$3)*(Projects!$C$5:$C$2410='MDOT FTA Detail'!$C$4)*(Projects!$L$5:$L$2410='MDOT FTA Detail'!$A104)*(Projects!$J$5:$J$2410<>'MDOT FTA Detail'!$A$171)*(Projects!$K$5:$K$2410)) -> 0 | K104: 0 | L104: =SUMPRODUCT((Projects!$A$5:$A$2410='MDOT FTA Detail'!$J$3)*(Projects!$C$5:$C$2410='MDOT FTA Detail'!$C$4)*(Projects!$L$5:$L$2410='MDOT FTA Detail'!$A104)*(Projects!$J$5:$J$2410<>'MDOT FTA Detail'!$A$171)*(Projects!$Q$5:$Q$2410)) -> 0 | M104: =SUMPRODUCT((Projects!$A$5:$A$2410='MDOT FTA Detail'!$M$3)*(Projects!$C$5:$C$2410='MDOT FTA Detail'!$C$4)*(Projects!$L$5:$L$2410='MDOT FTA Detail'!$A104)*(Projects!$J$5:$J$2410<>'MDOT FTA Detail'!$A$171)*(Projects!$K$5:$K$2410)) -> 0 | N104: 0 | O104: =SUMPRODUCT((Projects!$A$5:$A$2410='MDOT FTA Detail'!$M$3)*(Projects!$C$5:$C$2410='MDOT FTA Detail'!$C$4)*(Projects!$L$5:$L$2410='MDOT FTA Detail'!$A104)*(Projects!$J$5:$J$2410<>'MDOT FTA Detail'!$A$171)*(Projects!$Q$5:$Q$2410)) -> 0
A105: TG | B105: Transportation Grant (100% Fed) | C105: MDOT FA | D105: =SUMPRODUCT((Projects!$A$5:$A$2410='MDOT FTA Detail'!$D$3)*(Projects!$C$5:$C$2410='MDOT FTA Detail'!$C$4)*(Projects!$L$5:$L$2410='MDOT FTA Detail'!$A105)*(Projects!$J$5:$J$2410<>'MDOT FTA Detail'!$A$171)*(Projects!$K$5:K$2410)) -> 0 | E105: 0 | F105: =SUMPRODUCT((Projects!$A$5:$A$2410='MDOT FTA Detail'!$D$3)*(Projects!$C$5:$C$2410='MDOT FTA Detail'!$C$4)*(Projects!$L$5:$L$2410='MDOT FTA Detail'!$A105)*(Projects!$J$5:$J$2410<>'MDOT FTA Detail'!$A$171)*(Projects!$Q$5:Q$2410)) -> 0 | G105: =SUMPRODUCT((Projects!$A$5:$A$2410='MDOT FTA Detail'!$G$3)*(Projects!$C$5:$C$2410='MDOT FTA Detail'!$C$4)*(Projects!$L$5:$L$2410='MDOT FTA Detail'!$A105)*(Projects!$J$5:$J$2410<>'MDOT FTA Detail'!$A$171)*(Projects!$K$5:K$2410)) -> 0 | H105: 0 | I105: =SUMPRODUCT((Projects!$A$5:$A$2410='MDOT FTA Detail'!$G$3)*(Projects!$C$5:$C$2410='MDOT FTA Detail'!$C$4)*(Projects!$L$5:$L$2410='MDOT FTA Detail'!$A105)*(Projects!$J$5:$J$2410<>'MDOT FTA Detail'!$A$171)*(Projects!$Q$5:Q$2410)) -> 0 | J105: =SUMPRODUCT((Projects!$A$5:$A$2410='MDOT FTA Detail'!$J$3)*(Projects!$C$5:$C$2410='MDOT FTA Detail'!$C$4)*(Projects!$L$5:$L$2410='MDOT FTA Detail'!$A105)*(Projects!$J$5:$J$2410<>'MDOT FTA Detail'!$A$171)*(Projects!$K$5:$K$2410)) -> 0 | K105: 0 | L105: =SUMPRODUCT((Projects!$A$5:$A$2410='MDOT FTA Detail'!$J$3)*(Projects!$C$5:$C$2410='MDOT FTA Detail'!$C$4)*(Projects!$L$5:$L$2410='MDOT FTA Detail'!$A105)*(Projects!$J$5:$J$2410<>'MDOT FTA Detail'!$A$171)*(Projects!$Q$5:$Q$2410)) -> 0 | M105: =SUMPRODUCT((Projects!$A$5:$A$2410='MDOT FTA Detail'!$M$3)*(Projects!$C$5:$C$2410='MDOT FTA Detail'!$C$4)*(Projects!$L$5:$L$2410='MDOT FTA Detail'!$A105)*(Projects!$J$5:$J$2410<>'MDOT FTA Detail'!$A$171)*(Projects!$K$5:$K$2410)) -> 0 | N105: 0 | O105: =SUMPRODUCT((Projects!$A$5:$A$2410='MDOT FTA Detail'!$M$3)*(Projects!$C$5:$C$2410='MDOT FTA Detail'!$C$4)*(Projects!$L$5:$L$2410='MDOT FTA Detail'!$A105)*(Projects!$J$5:$J$2410<>'MDOT FTA Detail'!$A$171)*(Projects!$Q$5:$Q$2410)) -> 0
A106: TGR2 | B106: TIGER II Discretionary Grant | C106: MDOT FA | D106: =SUMPRODUCT((Projects!$A$5:$A$2410='MDOT FTA Detail'!$D$3)*(Projects!$C$5:$C$2410='MDOT FTA Detail'!$C$4)*(Projects!$L$5:$L$2410='MDOT FTA Detail'!$A106)*(Projects!$J$5:$J$2410<>'MDOT FTA Detail'!$A$171)*(Projects!$K$5:K$2410)) -> 0 | E106: =F106-D106 -> 0 | F106: =SUMPRODUCT((Projects!$A$5:$A$2410='MDOT FTA Detail'!$D$3)*(Projects!$C$5:$C$2410='MDOT FTA Detail'!$C$4)*(Projects!$L$5:$L$2410='MDOT FTA Detail'!$A106)*(Projects!$J$5:$J$2410<>'MDOT FTA Detail'!$A$171)*(Projects!$Q$5:Q$2410)) -> 0 | G106: =SUMPRODUCT((Projects!$A$5:$A$2410='MDOT FTA Detail'!$G$3)*(Projects!$C$5:$C$2410='MDOT FTA Detail'!$C$4)*(Projects!$L$5:$L$2410='MDOT FTA Detail'!$A106)*(Projects!$J$5:$J$2410<>'MDOT FTA Detail'!$A$171)*(Projects!$K$5:K$2410)) -> 0 | H106: =I106-G106 -> 0 | I106: =SUMPRODUCT((Projects!$A$5:$A$2410='MDOT FTA Detail'!$G$3)*(Projects!$C$5:$C$2410='MDOT FTA Detail'!$C$4)*(Projects!$L$5:$L$2410='MDOT FTA Detail'!$A106)*(Projects!$J$5:$J$2410<>'MDOT FTA Detail'!$A$171)*(Projects!$Q$5:Q$2410)) -> 0 | J106: =SUMPRODUCT((Projects!$A$5:$A$2410='MDOT FTA Detail'!$J$3)*(Projects!$C$5:$C$2410='MDOT FTA Detail'!$C$4)*(Projects!$L$5:$L$2410='MDOT FTA Detail'!$A106)*(Projects!$J$5:$J$2410<>'MDOT FTA Detail'!$A$171)*(Projects!$K$5:$K$2410)) -> 0 | K106: =L106-J106 -> 0 | L106: =SUMPRODUCT((Projects!$A$5:$A$2410='MDOT FTA Detail'!$J$3)*(Projects!$C$5:$C$2410='MDOT FTA Detail'!$C$4)*(Projects!$L$5:$L$2410='MDOT FTA Detail'!$A106)*(Projects!$J$5:$J$2410<>'MDOT FTA Detail'!$A$171)*(Projects!$Q$5:$Q$2410)) -> 0 | M106: =SUMPRODUCT((Projects!$A$5:$A$2410='MDOT FTA Detail'!$M$3)*(Projects!$C$5:$C$2410='MDOT FTA Detail'!$C$4)*(Projects!$L$5:$L$2410='MDOT FTA Detail'!$A106)*(Projects!$J$5:$J$2410<>'MDOT FTA Detail'!$A$171)*(Projects!$K$5:$K$2410)) -> 0 | N106: =O106-M106 -> 0 | O106: =SUMPRODUCT((Projects!$A$5:$A$2410='MDOT FTA Detail'!$M$3)*(Projects!$C$5:$C$2410='MDOT FTA Detail'!$C$4)*(Projects!$L$5:$L$2410='MDOT FTA Detail'!$A106)*(Projects!$J$5:$J$2410<>'MDOT FTA Detail'!$A$171)*(Projects!$Q$5:$Q$2410)) -> 0
A107: TGR3 | B107: TIGER III Discretionary Grant | C107: MDOT FA | D107: =SUMPRODUCT((Projects!$A$5:$A$2410='MDOT FTA Detail'!$D$3)*(Projects!$C$5:$C$2410='MDOT FTA Detail'!$C$4)*(Projects!$L$5:$L$2410='MDOT FTA Detail'!$A107)*(Projects!$J$5:$J$2410<>'MDOT FTA Detail'!$A$171)*(Projects!$K$5:K$2410)) -> 0 | E107: =F107-D107 -> 0 | F107: =SUMPRODUCT((Projects!$A$5:$A$2410='MDOT FTA Detail'!$D$3)*(Projects!$C$5:$C$2410='MDOT FTA Detail'!$C$4)*(Projects!$L$5:$L$2410='MDOT FTA Detail'!$A107)*(Projects!$J$5:$J$2410<>'MDOT FTA Detail'!$A$171)*(Projects!$Q$5:Q$2410)) -> 0 | G107: =SUMPRODUCT((Projects!$A$5:$A$2410='MDOT FTA Detail'!$G$3)*(Projects!$C$5:$C$2410='MDOT FTA Detail'!$C$4)*(Projects!$L$5:$L$2410='MDOT FTA Detail'!$A107)*(Projects!$J$5:$J$2410<>'MDOT FTA Detail'!$A$171)*(Projects!$K$5:K$2410)) -> 0 | H107: =I107-G107 -> 0 | I107: =SUMPRODUCT((Projects!$A$5:$A$2410='MDOT FTA Detail'!$G$3)*(Projects!$C$5:$C$2410='MDOT FTA Detail'!$C$4)*(Projects!$L$5:$L$2410='MDOT FTA Detail'!$A107)*(Projects!$J$5:$J$2410<>'MDOT FTA Detail'!$A$171)*(Projects!$Q$5:Q$2410)) -> 0 | J107: =SUMPRODUCT((Projects!$A$5:$A$2410='MDOT FTA Detail'!$J$3)*(Projects!$C$5:$C$2410='MDOT FTA Detail'!$C$4)*(Projects!$L$5:$L$2410='MDOT FTA Detail'!$A107)*(Projects!$J$5:$J$2410<>'MDOT FTA Detail'!$A$171)*(Projects!$K$5:$K$2410)) -> 0 | K107: =L107-J107 -> 0 | L107: =SUMPRODUCT((Projects!$A$5:$A$2410='MDOT FTA Detail'!$J$3)*(Projects!$C$5:$C$2410='MDOT FTA Detail'!$C$4)*(Projects!$L$5:$L$2410='MDOT FTA Detail'!$A107)*(Projects!$J$5:$J$2410<>'MDOT FTA Detail'!$A$171)*(Projects!$Q$5:$Q$2410)) -> 0 | M107: =SUMPRODUCT((Projects!$A$5:$A$2410='MDOT FTA Detail'!$M$3)*(Projects!$C$5:$C$2410='MDOT FTA Detail'!$C$4)*(Projects!$L$5:$L$2410='MDOT FTA Detail'!$A107)*(Projects!$J$5:$J$2410<>'MDOT FTA Detail'!$A$171)*(Projects!$K$5:$K$2410)) -> 0 | N107: =O107-M107 -> 0 | O107: =SUMPRODUCT((Projects!$A$5:$A$2410='MDOT FTA Detail'!$M$3)*(Projects!$C$5:$C$2410='MDOT FTA Detail'!$C$4)*(Projects!$L$5:$L$2410='MDOT FTA Detail'!$A107)*(Projects!$J$5:$J$2410<>'MDOT FTA Detail'!$A$171)*(Projects!$Q$5:$Q$2410)) -> 0
A108: TIP | B108: Transportation Improvements Projects SAFETEA-LU | C108: MDOT FA | D108: =SUMPRODUCT((Projects!$A$5:$A$2410='MDOT FTA Detail'!$D$3)*(Projects!$C$5:$C$2410='MDOT FTA Detail'!$C$4)*(Projects!$L$5:$L$2410='MDOT FTA Detail'!$A108)*(Projects!$J$5:$J$2410<>'MDOT FTA Detail'!$A$171)*(Projects!$K$5:K$2410)) -> 0 | E108: =F108-D108 -> 0 | F108: =SUMPRODUCT((Projects!$A$5:$A$2410='MDOT FTA Detail'!$D$3)*(Projects!$C$5:$C$2410='MDOT FTA Detail'!$C$4)*(Projects!$L$5:$L$2410='MDOT FTA Detail'!$A108)*(Projects!$J$5:$J$2410<>'MDOT FTA Detail'!$A$171)*(Projects!$Q$5:Q$2410)) -> 0 | G108: =SUMPRODUCT((Projects!$A$5:$A$2410='MDOT FTA Detail'!$G$3)*(Projects!$C$5:$C$2410='MDOT FTA Detail'!$C$4)*(Projects!$L$5:$L$2410='MDOT FTA Detail'!$A108)*(Projects!$J$5:$J$2410<>'MDOT FTA Detail'!$A$171)*(Projects!$K$5:K$2410)) -> 0 | H108: =I108-G108 -> 0 | I108: =SUMPRODUCT((Projects!$A$5:$A$2410='MDOT FTA Detail'!$G$3)*(Projects!$C$5:$C$2410='MDOT FTA Detail'!$C$4)*(Projects!$L$5:$L$2410='MDOT FTA Detail'!$A108)*(Projects!$J$5:$J$2410<>'MDOT FTA Detail'!$A$171)*(Projects!$Q$5:Q$2410)) -> 0 | J108: =SUMPRODUCT((Projects!$A$5:$A$2410='MDOT FTA Detail'!$J$3)*(Projects!$C$5:$C$2410='MDOT FTA Detail'!$C$4)*(Projects!$L$5:$L$2410='MDOT FTA Detail'!$A108)*(Projects!$J$5:$J$2410<>'MDOT FTA Detail'!$A$171)*(Projects!$K$5:$K$2410)) -> 0 | K108: =L108-J108 -> 0 | L108: =SUMPRODUCT((Projects!$A$5:$A$2410='MDOT FTA Detail'!$J$3)*(Projects!$C$5:$C$2410='MDOT FTA Detail'!$C$4)*(Projects!$L$5:$L$2410='MDOT FTA Detail'!$A108)*(Projects!$J$5:$J$2410<>'MDOT FTA Detail'!$A$171)*(Projects!$Q$5:$Q$2410)) -> 0 | M108: =SUMPRODUCT((Projects!$A$5:$A$2410='MDOT FTA Detail'!$M$3)*(Projects!$C$5:$C$2410='MDOT FTA Detail'!$C$4)*(Projects!$L$5:$L$2410='MDOT FTA Detail'!$A108)*(Projects!$J$5:$J$2410<>'MDOT FTA Detail'!$A$171)*(Projects!$K$5:$K$2410)) -> 0 | N108: =O108-M108 -> 0 | O108: =SUMPRODUCT((Projects!$A$5:$A$2410='MDOT FTA Detail'!$M$3)*(Projects!$C$5:$C$2410='MDOT FTA Detail'!$C$4)*(Projects!$L$5:$L$2410='MDOT FTA Detail'!$A108)*(Projects!$J$5:$J$2410<>'MDOT FTA Detail'!$A$171)*(Projects!$Q$5:$Q$2410)) -> 0
A109: TPFD | B109: Truck Parking Faciilities Discretionary | C109: MDOT FA | D109: =SUMPRODUCT((Projects!$A$5:$A$2410='MDOT FTA Detail'!$D$3)*(Projects!$C$5:$C$2410='MDOT FTA Detail'!$C$4)*(Projects!$L$5:$L$2410='MDOT FTA Detail'!$A109)*(Projects!$J$5:$J$2410<>'MDOT FTA Detail'!$A$171)*(Projects!$K$5:K$2410)) -> 0 | E109: 0 | F109: =SUMPRODUCT((Projects!$A$5:$A$2410='MDOT FTA Detail'!$D$3)*(Projects!$C$5:$C$2410='MDOT FTA Detail'!$C$4)*(Projects!$L$5:$L$2410='MDOT FTA Detail'!$A109)*(Projects!$J$5:$J$2410<>'MDOT FTA Detail'!$A$171)*(Projects!$Q$5:Q$2410)) -> 0 | G109: =SUMPRODUCT((Projects!$A$5:$A$2410='MDOT FTA Detail'!$G$3)*(Projects!$C$5:$C$2410='MDOT FTA Detail'!$C$4)*(Projects!$L$5:$L$2410='MDOT FTA Detail'!$A109)*(Projects!$J$5:$J$2410<>'MDOT FTA Detail'!$A$171)*(Projects!$K$5:K$2410)) -> 0 | H109: 0 | I109: =SUMPRODUCT((Projects!$A$5:$A$2410='MDOT FTA Detail'!$G$3)*(Projects!$C$5:$C$2410='MDOT FTA Detail'!$C$4)*(Projects!$L$5:$L$2410='MDOT FTA Detail'!$A109)*(Projects!$J$5:$J$2410<>'MDOT FTA Detail'!$A$171)*(Projects!$Q$5:Q$2410)) -> 0 | J109: =SUMPRODUCT((Projects!$A$5:$A$2410='MDOT FTA Detail'!$J$3)*(Projects!$C$5:$C$2410='MDOT FTA Detail'!$C$4)*(Projects!$L$5:$L$2410='MDOT FTA Detail'!$A109)*(Projects!$J$5:$J$2410<>'MDOT FTA Detail'!$A$171)*(Projects!$K$5:$K$2410)) -> 0 | K109: 0 | L109: =SUMPRODUCT((Projects!$A$5:$A$2410='MDOT FTA Detail'!$J$3)*(Projects!$C$5:$C$2410='MDOT FTA Detail'!$C$4)*(Projects!$L$5:$L$2410='MDOT FTA Detail'!$A109)*(Projects!$J$5:$J$2410<>'MDOT FTA Detail'!$A$171)*(Projects!$Q$5:$Q$2410)) -> 0 | M109: =SUMPRODUCT((Projects!$A$5:$A$2410='MDOT FTA Detail'!$M$3)*(Projects!$C$5:$C$2410='MDOT FTA Detail'!$C$4)*(Projects!$L$5:$L$2410='MDOT FTA Detail'!$A109)*(Projects!$J$5:$J$2410<>'MDOT FTA Detail'!$A$171)*(Projects!$K$5:$K$2410)) -> 0 | N109: 0 | O109: =SUMPRODUCT((Projects!$A$5:$A$2410='MDOT FTA Detail'!$M$3)*(Projects!$C$5:$C$2410='MDOT FTA Detail'!$C$4)*(Projects!$L$5:$L$2410='MDOT FTA Detail'!$A109)*(Projects!$J$5:$J$2410<>'MDOT FTA Detail'!$A$171)*(Projects!$Q$5:$Q$2410)) -> 0
A110: CTF | B110: CTF - Comprehensive Transportation Fund | C110: Transit | D110: =SUMPRODUCT((Projects!$A$5:$A$2410='MDOT FTA Detail'!$D$3)*(Projects!$L$5:$L$2410='MDOT FTA Detail'!$A110)*(Projects!$K$5:$K$2410)) -> 0 | E110: =F110-D110 -> 0 | F110: =SUMPRODUCT((Projects!$A$5:$A$2410='MDOT FTA Detail'!$D$3)*(Projects!$L$5:$L$2410='MDOT FTA Detail'!$A110)*(Projects!$Q$5:$Q$2410)) -> 0 | G110: =SUMPRODUCT((Projects!$A$5:$A$2410='MDOT FTA Detail'!$G$3)*(Projects!$L$5:$L$2410='MDOT FTA Detail'!$A110)*(Projects!$K$5:$K$2410)) -> 0 | H110: =I110-G110 -> 0 | I110: =SUMPRODUCT((Projects!$A$5:$A$2410='MDOT FTA Detail'!$G$3)*(Projects!$L$5:$L$2410='MDOT FTA Detail'!$A110)*(Projects!$Q$5:$Q$2410)) -> 0 | J110: =SUMPRODUCT((Projects!$A$5:$A$2410='MDOT FTA Detail'!$J$3)*(Projects!$L$5:$L$2410='MDOT FTA Detail'!$A110)*(Projects!$K$5:$K$2410)) -> 0 | K110: =L110-J110 -> 0 | L110: =SUMPRODUCT((Projects!$A$5:$A$2410='MDOT FTA Detail'!$J$3)*(Projects!$L$5:$L$2410='MDOT FTA Detail'!$A110)*(Projects!$Q$5:$Q$2410)) -> 0 | M110: =SUMPRODUCT((Projects!$A$5:$A$2410='MDOT FTA Detail'!$M$3)*(Projects!$L$5:$L$2410='MDOT FTA Detail'!$A110)*(Projects!$K$5:$K$2410)) -> 0 | N110: =O110-M110 -> 0 | O110: =SUMPRODUCT((Projects!$A$5:$A$2410='MDOT FTA Detail'!$M$3)*(Projects!$L$5:$L$2410='MDOT FTA Detail'!$A110)*(Projects!$Q$5:$Q$2410)) -> 0
A111: 3038 | B111: Section 3038 - Over the Road Bus Program | C111: Transit | D111: =SUMPRODUCT((Projects!$A$5:$A$2410='MDOT FTA Detail'!$D$3)*(Projects!$L$5:$L$2410='MDOT FTA Detail'!$A111)*(Projects!$K$5:$K$2410)) -> 0 | E111: =F111-D111 -> 0 | F111: =SUMPRODUCT((Projects!$A$5:$A$2410='MDOT FTA Detail'!$D$3)*(Projects!$L$5:$L$2410='MDOT FTA Detail'!$A111)*(Projects!$Q$5:$Q$2410)) -> 0 | G111: =SUMPRODUCT((Projects!$A$5:$A$2410='MDOT FTA Detail'!$G$3)*(Projects!$L$5:$L$2410='MDOT FTA Detail'!$A111)*(Projects!$K$5:$K$2410)) -> 0 | H111: =I111-G111 -> 0 | I111: =SUMPRODUCT((Projects!$A$5:$A$2410='MDOT FTA Detail'!$G$3)*(Projects!$L$5:$L$2410='MDOT FTA Detail'!$A111)*(Projects!$Q$5:$Q$2410)) -> 0 | J111: =SUMPRODUCT((Projects!$A$5:$A$2410='MDOT FTA Detail'!$J$3)*(Projects!$L$5:$L$2410='MDOT FTA Detail'!$A111)*(Projects!$K$5:$K$2410)) -> 0 | K111: =L111-J111 -> 0 | L111: =SUMPRODUCT((Projects!$A$5:$A$2410='MDOT FTA Detail'!$J$3)*(Projects!$L$5:$L$2410='MDOT FTA Detail'!$A111)*(Projects!$Q$5:$Q$2410)) -> 0 | M111: =SUMPRODUCT((Projects!$A$5:$A$2410='MDOT FTA Detail'!$M$3)*(Projects!$L$5:$L$2410='MDOT FTA Detail'!$A111)*(Projects!$K$5:$K$2410)) -> 0 | N111: =O111-M111 -> 0 | O111: =SUMPRODUCT((Projects!$A$5:$A$2410='MDOT FTA Detail'!$M$3)*(Projects!$L$5:$L$2410='MDOT FTA Detail'!$A111)*(Projects!$Q$5:$Q$2410)) -> 0
A112: 3045 | B112: Section 3045 - National Fuel Cell Technology Development Program | C112: Transit | D112: =SUMPRODUCT((Projects!$A$5:$A$2410='MDOT FTA Detail'!$D$3)*(Projects!$L$5:$L$2410='MDOT FTA Detail'!$A112)*(Projects!$K$5:$K$2410)) -> 0 | E112: =F112-D112 -> 0 | F112: =SUMPRODUCT((Projects!$A$5:$A$2410='MDOT FTA Detail'!$D$3)*(Projects!$L$5:$L$2410='MDOT FTA Detail'!$A112)*(Projects!$Q$5:$Q$2410)) -> 0 | G112: =SUMPRODUCT((Projects!$A$5:$A$2410='MDOT FTA Detail'!$G$3)*(Projects!$L$5:$L$2410='MDOT FTA Detail'!$A112)*(Projects!$K$5:$K$2410)) -> 0 | H112: =I112-G112 -> 0 | I112: =SUMPRODUCT((Projects!$A$5:$A$2410='MDOT FTA Detail'!$G$3)*(Projects!$L$5:$L$2410='MDOT FTA Detail'!$A112)*(Projects!$Q$5:$Q$2410)) -> 0 | J112: =SUMPRODUCT((Projects!$A$5:$A$2410='MDOT FTA Detail'!$J$3)*(Projects!$L$5:$L$2410='MDOT FTA Detail'!$A112)*(Projects!$K$5:$K$2410)) -> 0 | K112: =L112-J112 -> 0 | L112: =SUMPRODUCT((Projects!$A$5:$A$2410='MDOT FTA Detail'!$J$3)*(Projects!$L$5:$L$2410='MDOT FTA Detail'!$A112)*(Projects!$Q$5:$Q$2410)) -> 0 | M112: =SUMPRODUCT((Projects!$A$5:$A$2410='MDOT FTA Detail'!$M$3)*(Projects!$L$5:$L$2410='MDOT FTA Detail'!$A112)*(Projects!$K$5:$K$2410)) -> 0 | N112: =O112-M112 -> 0 | O112: =SUMPRODUCT((Projects!$A$5:$A$2410='MDOT FTA Detail'!$M$3)*(Projects!$L$5:$L$2410='MDOT FTA Detail'!$A112)*(Projects!$Q$5:$Q$2410)) -> 0
A113: 5303 | B113: Section 5303 - Metropolitan Transportation Planning | C113: Transit | D113: =SUMPRODUCT((Projects!$A$5:$A$2410='MDOT FTA Detail'!$D$3)*(Projects!$L$5:$L$2410='MDOT FTA Detail'!$A113)*(Projects!$K$5:$K$2410)) -> 0 | E113: =F113-D113 -> 0 | F113: =SUMPRODUCT((Projects!$A$5:$A$2410='MDOT FTA Detail'!$D$3)*(Projects!$L$5:$L$2410='MDOT FTA Detail'!$A113)*(Projects!$Q$5:$Q$2410)) -> 0 | G113: =SUMPRODUCT((Projects!$A$5:$A$2410='MDOT FTA Detail'!$G$3)*(Projects!$L$5:$L$2410='MDOT FTA Detail'!$A113)*(Projects!$K$5:$K$2410)) -> 0 | H113: 0 | I113: =SUMPRODUCT((Projects!$A$5:$A$2410='MDOT FTA Detail'!$G$3)*(Projects!$L$5:$L$2410='MDOT FTA Detail'!$A113)*(Projects!$Q$5:$Q$2410)) -> 0 | J113: =SUMPRODUCT((Projects!$A$5:$A$2410='MDOT FTA Detail'!$J$3)*(Projects!$L$5:$L$2410='MDOT FTA Detail'!$A113)*(Projects!$K$5:$K$2410)) -> 0 | K113: 0 | L113: =SUMPRODUCT((Projects!$A$5:$A$2410='MDOT FTA Detail'!$J$3)*(Projects!$L$5:$L$2410='MDOT FTA Detail'!$A113)*(Projects!$Q$5:$Q$2410)) -> 0 | M113: =SUMPRODUCT((Projects!$A$5:$A$2410='MDOT FTA Detail'!$M$3)*(Projects!$L$5:$L$2410='MDOT FTA Detail'!$A113)*(Projects!$K$5:$K$2410)) -> 0 | N113: 0 | O113: =SUMPRODUCT((Projects!$A$5:$A$2410='MDOT FTA Detail'!$M$3)*(Projects!$L$5:$L$2410='MDOT FTA Detail'!$A113)*(Projects!$Q$5:$Q$2410)) -> 0
A114: 5304 | B114: Section 5304 - Statewide Transportation Planning | C114: Transit | D114: =SUMPRODUCT((Projects!$A$5:$A$2410='MDOT FTA Detail'!$D$3)*(Projects!$L$5:$L$2410='MDOT FTA Detail'!$A114)*(Projects!$K$5:$K$2410)) -> 0 | E114: 0 | F114: =SUMPRODUCT((Projects!$A$5:$A$2410='MDOT FTA Detail'!$D$3)*(Projects!$L$5:$L$2410='MDOT FTA Detail'!$A114)*(Projects!$Q$5:$Q$2410)) -> 0 | G114: =SUMPRODUCT((Projects!$A$5:$A$2410='MDOT FTA Detail'!$G$3)*(Projects!$L$5:$L$2410='MDOT FTA Detail'!$A114)*(Projects!$K$5:$K$2410)) -> 0 | H114: 0 | I114: =SUMPRODUCT((Projects!$A$5:$A$2410='MDOT FTA Detail'!$G$3)*(Projects!$L$5:$L$2410='MDOT FTA Detail'!$A114)*(Projects!$Q$5:$Q$2410)) -> 0 | J114: =SUMPRODUCT((Projects!$A$5:$A$2410='MDOT FTA Detail'!$J$3)*(Projects!$L$5:$L$2410='MDOT FTA Detail'!$A114)*(Projects!$K$5:$K$2410)) -> 0 | K114: 0 | L114: =SUMPRODUCT((Projects!$A$5:$A$2410='MDOT FTA Detail'!$J$3)*(Projects!$L$5:$L$2410='MDOT FTA Detail'!$A114)*(Projects!$Q$5:$Q$2410)) -> 0 | M114: =SUMPRODUCT((Projects!$A$5:$A$2410='MDOT FTA Detail'!$M$3)*(Projects!$L$5:$L$2410='MDOT FTA Detail'!$A114)*(Projects!$K$5:$K$2410)) -> 0 | N114: 0 | O114: =SUMPRODUCT((Projects!$A$5:$A$2410='MDOT FTA Detail'!$M$3)*(Projects!$L$5:$L$2410='MDOT FTA Detail'!$A114)*(Projects!$Q$5:$Q$2410)) -> 0
A115: 5305 | B115: Section 5305 - Metropolitan and Statewide Planning | C115: Transit | D115: =SUMPRODUCT((Projects!$A$5:$A$2410='MDOT FTA Detail'!$D$3)*(Projects!$L$5:$L$2410='MDOT FTA Detail'!$A115)*(Projects!$K$5:$K$2410)) -> 0 | E115: 0 | F115: =SUMPRODUCT((Projects!$A$5:$A$2410='MDOT FTA Detail'!$D$3)*(Projects!$L$5:$L$2410='MDOT FTA Detail'!$A115)*(Projects!$Q$5:$Q$2410)) -> 0 | G115: =SUMPRODUCT((Projects!$A$5:$A$2410='MDOT FTA Detail'!$G$3)*(Projects!$L$5:$L$2410='MDOT FTA Detail'!$A115)*(Projects!$K$5:$K$2410)) -> 0 | H115: 0 | I115: =SUMPRODUCT((Projects!$A$5:$A$2410='MDOT FTA Detail'!$G$3)*(Projects!$L$5:$L$2410='MDOT FTA Detail'!$A115)*(Projects!$Q$5:$Q$2410)) -> 0 | J115: =SUMPRODUCT((Projects!$A$5:$A$2410='MDOT FTA Detail'!$J$3)*(Projects!$L$5:$L$2410='MDOT FTA Detail'!$A115)*(Projects!$K$5:$K$2410)) -> 0 | K115: 0 | L115: =SUMPRODUCT((Projects!$A$5:$A$2410='MDOT FTA Detail'!$J$3)*(Projects!$L$5:$L$2410='MDOT FTA Detail'!$A115)*(Projects!$Q$5:$Q$2410)) -> 0 | M115: =SUMPRODUCT((Projects!$A$5:$A$2410='MDOT FTA Detail'!$M$3)*(Projects!$L$5:$L$2410='MDOT FTA Detail'!$A115)*(Projects!$K$5:$K$2410)) -> 0 | N115: 0 | O115: =SUMPRODUCT((Projects!$A$5:$A$2410='MDOT FTA Detail'!$M$3)*(Projects!$L$5:$L$2410='MDOT FTA Detail'!$A115)*(Projects!$Q$5:$Q$2410)) -> 0
A116: 5307 | B116: Section 5307 - UZA Formula | C116: Transit | D116: =SUMPRODUCT((Projects!$A$5:$A$2410='MDOT FTA Detail'!$D$3)*(Projects!$L$5:$L$2410='MDOT FTA Detail'!$A116)*(Projects!$K$5:$K$2410)) -> 1213000 | E116: 3393000 | F116: =SUMPRODUCT((Projects!$A$5:$A$2410='MDOT FTA Detail'!$D$3)*(Projects!$L$5:$L$2410='MDOT FTA Detail'!$A116)*(Projects!$Q$5:$Q$2410)) -> 4606000 | G116: =SUMPRODUCT((Projects!$A$5:$A$2410='MDOT FTA Detail'!$G$3)*(Projects!$L$5:$L$2410='MDOT FTA Detail'!$A116)*(Projects!$K$5:$K$2410)) -> 1249000 | H116: 3494000 | I116: =SUMPRODUCT((Projects!$A$5:$A$2410='MDOT FTA Detail'!$G$3)*(Projects!$L$5:$L$2410='MDOT FTA Detail'!$A116)*(Projects!$Q$5:$Q$2410)) -> 4743000 | J116: =SUMPRODUCT((Projects!$A$5:$A$2410='MDOT FTA Detail'!$J$3)*(Projects!$L$5:$L$2410='MDOT FTA Detail'!$A116)*(Projects!$K$5:$K$2410)) -> 1286000 | K116: 3599000 | L116: =SUMPRODUCT((Projects!$A$5:$A$2410='MDOT FTA Detail'!$J$3)*(Projects!$L$5:$L$2410='MDOT FTA Detail'!$A116)*(Projects!$Q$5:$Q$2410)) -> 4885000 | M116: =SUMPRODUCT((Projects!$A$5:$A$2410='MDOT FTA Detail'!$M$3)*(Projects!$L$5:$L$2410='MDOT FTA Detail'!$A116)*(Projects!$K$5:$K$2410)) -> 1325000 | N116: 3707000 | O116: =SUMPRODUCT((Projects!$A$5:$A$2410='MDOT FTA Detail'!$M$3)*(Projects!$L$5:$L$2410='MDOT FTA Detail'!$A116)*(Projects!$Q$5:$Q$2410)) -> 5032000
A117: 5308 | B117: Section 5308 - Clean Fuels Program | C117: Transit | D117: =SUMPRODUCT((Projects!$A$5:$A$2410='MDOT FTA Detail'!$D$3)*(Projects!$L$5:$L$2410='MDOT FTA Detail'!$A117)*(Projects!$K$5:$K$2410)) -> 0 | E117: 0 | F117: =SUMPRODUCT((Projects!$A$5:$A$2410='MDOT FTA Detail'!$D$3)*(Projects!$L$5:$L$2410='MDOT FTA Detail'!$A117)*(Projects!$Q$5:$Q$2410)) -> 0 | G117: =SUMPRODUCT((Projects!$A$5:$A$2410='MDOT FTA Detail'!$G$3)*(Projects!$L$5:$L$2410='MDOT FTA Detail'!$A117)*(Projects!$K$5:$K$2410)) -> 0 | H117: 0 | I117: =SUMPRODUCT((Projects!$A$5:$A$2410='MDOT FTA Detail'!$G$3)*(Projects!$L$5:$L$2410='MDOT FTA Detail'!$A117)*(Projects!$Q$5:$Q$2410)) -> 0 | J117: =SUMPRODUCT((Projects!$A$5:$A$2410='MDOT FTA Detail'!$J$3)*(Projects!$L$5:$L$2410='MDOT FTA Detail'!$A117)*(Projects!$K$5:$K$2410)) -> 0 | K117: 0 | L117: =SUMPRODUCT((Projects!$A$5:$A$2410='MDOT FTA Detail'!$J$3)*(Projects!$L$5:$L$2410='MDOT FTA Detail'!$A117)*(Projects!$Q$5:$Q$2410)) -> 0 | M117: =SUMPRODUCT((Projects!$A$5:$A$2410='MDOT FTA Detail'!$M$3)*(Projects!$L$5:$L$2410='MDOT FTA Detail'!$A117)*(Projects!$K$5:$K$2410)) -> 0 | N117: 0 | O117: =SUMPRODUCT((Projects!$A$5:$A$2410='MDOT FTA Detail'!$M$3)*(Projects!$L$5:$L$2410='MDOT FTA Detail'!$A117)*(Projects!$Q$5:$Q$2410)) -> 0
A118: 5309 | B118: Section 5309 - Fixed Guideway Capital Investment Grant | C118: Transit | D118: =SUMPRODUCT((Projects!$A$5:$A$2410='MDOT FTA Detail'!$D$3)*(Projects!$L$5:$L$2410='MDOT FTA Detail'!$A118)*(Projects!$K$5:$K$2410)) -> 0 | E118: 0 | F118: =SUMPRODUCT((Projects!$A$5:$A$2410='MDOT FTA Detail'!$D$3)*(Projects!$L$5:$L$2410='MDOT FTA Detail'!$A118)*(Projects!$Q$5:$Q$2410)) -> 0 | G118: =SUMPRODUCT((Projects!$A$5:$A$2410='MDOT FTA Detail'!$G$3)*(Projects!$L$5:$L$2410='MDOT FTA Detail'!$A118)*(Projects!$K$5:$K$2410)) -> 0 | H118: 0 | I118: =SUMPRODUCT((Projects!$A$5:$A$2410='MDOT FTA Detail'!$G$3)*(Projects!$L$5:$L$2410='MDOT FTA Detail'!$A118)*(Projects!$Q$5:$Q$2410)) -> 0 | J118: =SUMPRODUCT((Projects!$A$5:$A$2410='MDOT FTA Detail'!$J$3)*(Projects!$L$5:$L$2410='MDOT FTA Detail'!$A118)*(Projects!$K$5:$K$2410)) -> 0 | K118: 0 | L118: =SUMPRODUCT((Projects!$A$5:$A$2410='MDOT FTA Detail'!$J$3)*(Projects!$L$5:$L$2410='MDOT FTA Detail'!$A118)*(Projects!$Q$5:$Q$2410)) -> 0 | M118: =SUMPRODUCT((Projects!$A$5:$A$2410='MDOT FTA Detail'!$M$3)*(Projects!$L$5:$L$2410='MDOT FTA Detail'!$A118)*(Projects!$K$5:$K$2410)) -> 0 | N118: 0 | O118: =SUMPRODUCT((Projects!$A$5:$A$2410='MDOT FTA Detail'!$M$3)*(Projects!$L$5:$L$2410='MDOT FTA Detail'!$A118)*(Projects!$Q$5:$Q$2410)) -> 0
A119: 5310 | B119: Section 5310 - Enhanced Mobility of Seniors and Individuals with Disabilities | C119: Transit | D119: =SUMPRODUCT((Projects!$A$5:$A$2410='MDOT FTA Detail'!$D$3)*(Projects!$L$5:$L$2410='MDOT FTA Detail'!$A119)*(Projects!$K$5:$K$2410)) -> 0 | E119: 0 | F119: =SUMPRODUCT((Projects!$A$5:$A$2410='MDOT FTA Detail'!$D$3)*(Projects!$L$5:$L$2410='MDOT FTA Detail'!$A119)*(Projects!$Q$5:$Q$2410)) -> 0 | G119: =SUMPRODUCT((Projects!$A$5:$A$2410='MDOT FTA Detail'!$G$3)*(Projects!$L$5:$L$2410='MDOT FTA Detail'!$A119)*(Projects!$K$5:$K$2410)) -> 0 | H119: 0 | I119: =SUMPRODUCT((Projects!$A$5:$A$2410='MDOT FTA Detail'!$G$3)*(Projects!$L$5:$L$2410='MDOT FTA Detail'!$A119)*(Projects!$Q$5:$Q$2410)) -> 0 | J119: =SUMPRODUCT((Projects!$A$5:$A$2410='MDOT FTA Detail'!$J$3)*(Projects!$L$5:$L$2410='MDOT FTA Detail'!$A119)*(Projects!$K$5:$K$2410)) -> 0 | K119: 0 | L119: =SUMPRODUCT((Projects!$A$5:$A$2410='MDOT FTA Detail'!$J$3)*(Projects!$L$5:$L$2410='MDOT FTA Detail'!$A119)*(Projects!$Q$5:$Q$2410)) -> 0 | M119: =SUMPRODUCT((Projects!$A$5:$A$2410='MDOT FTA Detail'!$M$3)*(Projects!$L$5:$L$2410='MDOT FTA Detail'!$A119)*(Projects!$K$5:$K$2410)) -> 0 | N119: 0 | O119: =SUMPRODUCT((Projects!$A$5:$A$2410='MDOT FTA Detail'!$M$3)*(Projects!$L$5:$L$2410='MDOT FTA Detail'!$A119)*(Projects!$Q$5:$Q$2410)) -> 0
A120: 5311 | B120: Section 5311 - Non-UZA | C120: Transit | D120: =SUMPRODUCT((Projects!$A$5:$A$2410='MDOT FTA Detail'!$D$3)*(Projects!$L$5:$L$2410='MDOT FTA Detail'!$A120)*(Projects!$K$5:$K$2410)) -> 99000 | E120: 596000 | F120: =SUMPRODUCT((Projects!$A$5:$A$2410='MDOT FTA Detail'!$D$3)*(Projects!$L$5:$L$2410='MDOT FTA Detail'!$A120)*(Projects!$Q$5:$Q$2410)) -> 695000 | G120: =SUMPRODUCT((Projects!$A$5:$A$2410='MDOT FTA Detail'!$G$3)*(Projects!$L$5:$L$2410='MDOT FTA Detail'!$A120)*(Projects!$K$5:$K$2410)) -> 102000 | H120: 614000 | I120: =SUMPRODUCT((Projects!$A$5:$A$2410='MDOT FTA Detail'!$G$3)*(Projects!$L$5:$L$2410='MDOT FTA Detail'!$A120)*(Projects!$Q$5:$Q$2410)) -> 716000 | J120: =SUMPRODUCT((Projects!$A$5:$A$2410='MDOT FTA Detail'!$J$3)*(Projects!$L$5:$L$2410='MDOT FTA Detail'!$A120)*(Projects!$K$5:$K$2410)) -> 105000 | K120: 633000 | L120: =SUMPRODUCT((Projects!$A$5:$A$2410='MDOT FTA Detail'!$J$3)*(Projects!$L$5:$L$2410='MDOT FTA Detail'!$A120)*(Projects!$Q$5:$Q$2410)) -> 738000 | M120: =SUMPRODUCT((Projects!$A$5:$A$2410='MDOT FTA Detail'!$M$3)*(Projects!$L$5:$L$2410='MDOT FTA Detail'!$A120)*(Projects!$K$5:$K$2410)) -> 108000 | N120: 652000 | O120: =SUMPRODUCT((Projects!$A$5:$A$2410='MDOT FTA Detail'!$M$3)*(Projects!$L$5:$L$2410='MDOT FTA Detail'!$A120)*(Projects!$Q$5:$Q$2410)) -> 760000
A121: 5312 | B121: Section 5312 - Research, Development, Demonstration, and Deployment | C121: Transit | D121: =SUMPRODUCT((Projects!$A$5:$A$2410='MDOT FTA Detail'!$D$3)*(Projects!$L$5:$L$2410='MDOT FTA Detail'!$A121)*(Projects!$K$5:$K$2410)) -> 0 | E121: =F121-D121 -> 0 | F121: =SUMPRODUCT((Projects!$A$5:$A$2410='MDOT FTA Detail'!$D$3)*(Projects!$L$5:$L$2410='MDOT FTA Detail'!$A121)*(Projects!$Q$5:$Q$2410)) -> 0 | G121: =SUMPRODUCT((Projects!$A$5:$A$2410='MDOT FTA Detail'!$G$3)*(Projects!$L$5:$L$2410='MDOT FTA Detail'!$A121)*(Projects!$K$5:$K$2410)) -> 0 | H121: =I121-G121 -> 0 | I121: =SUMPRODUCT((Projects!$A$5:$A$2410='MDOT FTA Detail'!$G$3)*(Projects!$L$5:$L$2410='MDOT FTA Detail'!$A121)*(Projects!$Q$5:$Q$2410)) -> 0 | J121: =SUMPRODUCT((Projects!$A$5:$A$2410='MDOT FTA Detail'!$J$3)*(Projects!$L$5:$L$2410='MDOT FTA Detail'!$A121)*(Projects!$K$5:$K$2410)) -> 0 | K121: =L121-J121 -> 0 | L121: =SUMPRODUCT((Projects!$A$5:$A$2410='MDOT FTA Detail'!$J$3)*(Projects!$L$5:$L$2410='MDOT FTA Detail'!$A121)*(Projects!$Q$5:$Q$2410)) -> 0 | M121: =SUMPRODUCT((Projects!$A$5:$A$2410='MDOT FTA Detail'!$M$3)*(Projects!$L$5:$L$2410='MDOT FTA Detail'!$A121)*(Projects!$K$5:$K$2410)) -> 0 | N121: =O121-M121 -> 0 | O121: =SUMPRODUCT((Projects!$A$5:$A$2410='MDOT FTA Detail'!$M$3)*(Projects!$L$5:$L$2410='MDOT FTA Detail'!$A121)*(Projects!$Q$5:$Q$2410)) -> 0
A122: 5313 | B122: Section 5313 - Transit Cooperative Research Program | C122: Transit | D122: =SUMPRODUCT((Projects!$A$5:$A$2410='MDOT FTA Detail'!$D$3)*(Projects!$L$5:$L$2410='MDOT FTA Detail'!$A122)*(Projects!$K$5:$K$2410)) -> 0 | E122: 0 | F122: =SUMPRODUCT((Projects!$A$5:$A$2410='MDOT FTA Detail'!$D$3)*(Projects!$L$5:$L$2410='MDOT FTA Detail'!$A122)*(Projects!$Q$5:$Q$2410)) -> 0 | G122: =SUMPRODUCT((Projects!$A$5:$A$2410='MDOT FTA Detail'!$G$3)*(Projects!$L$5:$L$2410='MDOT FTA Detail'!$A122)*(Projects!$K$5:$K$2410)) -> 0 | H122: 0 | I122: =SUMPRODUCT((Projects!$A$5:$A$2410='MDOT FTA Detail'!$G$3)*(Projects!$L$5:$L$2410='MDOT FTA Detail'!$A122)*(Projects!$Q$5:$Q$2410)) -> 0 | J122: =SUMPRODUCT((Projects!$A$5:$A$2410='MDOT FTA Detail'!$J$3)*(Projects!$L$5:$L$2410='MDOT FTA Detail'!$A122)*(Projects!$K$5:$K$2410)) -> 0 | K122: 0 | L122: =SUMPRODUCT((Projects!$A$5:$A$2410='MDOT FTA Detail'!$J$3)*(Projects!$L$5:$L$2410='MDOT FTA Detail'!$A122)*(Projects!$Q$5:$Q$2410)) -> 0 | M122: =SUMPRODUCT((Projects!$A$5:$A$2410='MDOT FTA Detail'!$M$3)*(Projects!$L$5:$L$2410='MDOT FTA Detail'!$A122)*(Projects!$K$5:$K$2410)) -> 0 | N122: 0 | O122: =SUMPRODUCT((Projects!$A$5:$A$2410='MDOT FTA Detail'!$M$3)*(Projects!$L$5:$L$2410='MDOT FTA Detail'!$A122)*(Projects!$Q$5:$Q$2410)) -> 0
A123: 5314 | B123: Section 5314 - Technical Assistance and Standards | C123: Transit | D123: =SUMPRODUCT((Projects!$A$5:$A$2410='MDOT FTA Detail'!$D$3)*(Projects!$L$5:$L$2410='MDOT FTA Detail'!$A123)*(Projects!$K$5:$K$2410)) -> 0 | E123: 0 | F123: =SUMPRODUCT((Projects!$A$5:$A$2410='MDOT FTA Detail'!$D$3)*(Projects!$L$5:$L$2410='MDOT FTA Detail'!$A123)*(Projects!$Q$5:$Q$2410)) -> 0 | G123: =SUMPRODUCT((Projects!$A$5:$A$2410='MDOT FTA Detail'!$G$3)*(Projects!$L$5:$L$2410='MDOT FTA Detail'!$A123)*(Projects!$K$5:$K$2410)) -> 0 | H123: 0 | I123: =SUMPRODUCT((Projects!$A$5:$A$2410='MDOT FTA Detail'!$G$3)*(Projects!$L$5:$L$2410='MDOT FTA Detail'!$A123)*(Projects!$Q$5:$Q$2410)) -> 0 | J123: =SUMPRODUCT((Projects!$A$5:$A$2410='MDOT FTA Detail'!$J$3)*(Projects!$L$5:$L$2410='MDOT FTA Detail'!$A123)*(Projects!$K$5:$K$2410)) -> 0 | K123: 0 | L123: =SUMPRODUCT((Projects!$A$5:$A$2410='MDOT FTA Detail'!$J$3)*(Projects!$L$5:$L$2410='MDOT FTA Detail'!$A123)*(Projects!$Q$5:$Q$2410)) -> 0 | M123: =SUMPRODUCT((Projects!$A$5:$A$2410='MDOT FTA Detail'!$M$3)*(Projects!$L$5:$L$2410='MDOT FTA Detail'!$A123)*(Projects!$K$5:$K$2410)) -> 0 | N123: 0 | O123: =SUMPRODUCT((Projects!$A$5:$A$2410='MDOT FTA Detail'!$M$3)*(Projects!$L$5:$L$2410='MDOT FTA Detail'!$A123)*(Projects!$Q$5:$Q$2410)) -> 0
A124: 5316 | B124: Section 5316 - Transit - Section 5316 - Job Access/Reverse Commute | C124: Transit | D124: =SUMPRODUCT((Projects!$A$5:$A$2410='MDOT FTA Detail'!$D$3)*(Projects!$L$5:$L$2410='MDOT FTA Detail'!$A124)*(Projects!$K$5:$K$2410)) -> 0 | E124: 0 | F124: =SUMPRODUCT((Projects!$A$5:$A$2410='MDOT FTA Detail'!$D$3)*(Projects!$L$5:$L$2410='MDOT FTA Detail'!$A124)*(Projects!$Q$5:$Q$2410)) -> 0 | G124: =SUMPRODUCT((Projects!$A$5:$A$2410='MDOT FTA Detail'!$G$3)*(Projects!$L$5:$L$2410='MDOT FTA Detail'!$A124)*(Projects!$K$5:$K$2410)) -> 0 | H124: 0 | I124: =SUMPRODUCT((Projects!$A$5:$A$2410='MDOT FTA Detail'!$G$3)*(Projects!$L$5:$L$2410='MDOT FTA Detail'!$A124)*(Projects!$Q$5:$Q$2410)) -> 0 | J124: =SUMPRODUCT((Projects!$A$5:$A$2410='MDOT FTA Detail'!$J$3)*(Projects!$L$5:$L$2410='MDOT FTA Detail'!$A124)*(Projects!$K$5:$K$2410)) -> 0 | K124: 0 | L124: =SUMPRODUCT((Projects!$A$5:$A$2410='MDOT FTA Detail'!$J$3)*(Projects!$L$5:$L$2410='MDOT FTA Detail'!$A124)*(Projects!$Q$5:$Q$2410)) -> 0 | M124: =SUMPRODUCT((Projects!$A$5:$A$2410='MDOT FTA Detail'!$M$3)*(Projects!$L$5:$L$2410='MDOT FTA Detail'!$A124)*(Projects!$K$5:$K$2410)) -> 0 | N124: 0 | O124: =SUMPRODUCT((Projects!$A$5:$A$2410='MDOT FTA Detail'!$M$3)*(Projects!$L$5:$L$2410='MDOT FTA Detail'!$A124)*(Projects!$Q$5:$Q$2410)) -> 0
A125: 5317 | B125: Section 5317 - Transit - Section 5317 - New Freedom Initiative | C125: Transit | D125: =SUMPRODUCT((Projects!$A$5:$A$2410='MDOT FTA Detail'!$D$3)*(Projects!$L$5:$L$2410='MDOT FTA Detail'!$A125)*(Projects!$K$5:$K$2410)) -> 0 | E125: 0 | F125: =SUMPRODUCT((Projects!$A$5:$A$2410='MDOT FTA Detail'!$D$3)*(Projects!$L$5:$L$2410='MDOT FTA Detail'!$A125)*(Projects!$Q$5:$Q$2410)) -> 0 | G125: =SUMPRODUCT((Projects!$A$5:$A$2410='MDOT FTA Detail'!$G$3)*(Projects!$L$5:$L$2410='MDOT FTA Detail'!$A125)*(Projects!$K$5:$K$2410)) -> 0 | H125: 0 | I125: =SUMPRODUCT((Projects!$A$5:$A$2410='MDOT FTA Detail'!$G$3)*(Projects!$L$5:$L$2410='MDOT FTA Detail'!$A125)*(Projects!$Q$5:$Q$2410)) -> 0 | J125: =SUMPRODUCT((Projects!$A$5:$A$2410='MDOT FTA Detail'!$J$3)*(Projects!$L$5:$L$2410='MDOT FTA Detail'!$A125)*(Projects!$K$5:$K$2410)) -> 0 | K125: 0 | L125: =SUMPRODUCT((Projects!$A$5:$A$2410='MDOT FTA Detail'!$J$3)*(Projects!$L$5:$L$2410='MDOT FTA Detail'!$A125)*(Projects!$Q$5:$Q$2410)) -> 0 | M125: =SUMPRODUCT((Projects!$A$5:$A$2410='MDOT FTA Detail'!$M$3)*(Projects!$L$5:$L$2410='MDOT FTA Detail'!$A125)*(Projects!$K$5:$K$2410)) -> 0 | N125: 0 | O125: =SUMPRODUCT((Projects!$A$5:$A$2410='MDOT FTA Detail'!$M$3)*(Projects!$L$5:$L$2410='MDOT FTA Detail'!$A125)*(Projects!$Q$5:$Q$2410)) -> 0
A126: 5320 | B126: Section 5320 - Alternative Transportation in Parks and Public Lands | C126: Transit | D126: =SUMPRODUCT((Projects!$A$5:$A$2410='MDOT FTA Detail'!$D$3)*(Projects!$L$5:$L$2410='MDOT FTA Detail'!$A126)*(Projects!$K$5:$K$2410)) -> 0 | E126: 0 | F126: =SUMPRODUCT((Projects!$A$5:$A$2410='MDOT FTA Detail'!$D$3)*(Projects!$L$5:$L$2410='MDOT FTA Detail'!$A126)*(Projects!$Q$5:$Q$2410)) -> 0 | G126: =SUMPRODUCT((Projects!$A$5:$A$2410='MDOT FTA Detail'!$G$3)*(Projects!$L$5:$L$2410='MDOT FTA Detail'!$A126)*(Projects!$K$5:$K$2410)) -> 0 | H126: 0 | I126: =SUMPRODUCT((Projects!$A$5:$A$2410='MDOT FTA Detail'!$G$3)*(Projects!$L$5:$L$2410='MDOT FTA Detail'!$A126)*(Projects!$Q$5:$Q$2410)) -> 0 | J126: =SUMPRODUCT((Projects!$A$5:$A$2410='MDOT FTA Detail'!$J$3)*(Projects!$L$5:$L$2410='MDOT FTA Detail'!$A126)*(Projects!$K$5:$K$2410)) -> 0 | K126: 0 | L126: =SUMPRODUCT((Projects!$A$5:$A$2410='MDOT FTA Detail'!$J$3)*(Projects!$L$5:$L$2410='MDOT FTA Detail'!$A126)*(Projects!$Q$5:$Q$2410)) -> 0 | M126: =SUMPRODUCT((Projects!$A$5:$A$2410='MDOT FTA Detail'!$M$3)*(Projects!$L$5:$L$2410='MDOT FTA Detail'!$A126)*(Projects!$K$5:$K$2410)) -> 0 | N126: 0 | O126: =SUMPRODUCT((Projects!$A$5:$A$2410='MDOT FTA Detail'!$M$3)*(Projects!$L$5:$L$2410='MDOT FTA Detail'!$A126)*(Projects!$Q$5:$Q$2410)) -> 0
A127: 5322 | B127: Section 5322 - Human Resources and Training | C127: Transit | D127: =SUMPRODUCT((Projects!$A$5:$A$2410='MDOT FTA Detail'!$D$3)*(Projects!$L$5:$L$2410='MDOT FTA Detail'!$A127)*(Projects!$K$5:$K$2410)) -> 0 | E127: =F127-D127 -> 0 | F127: =SUMPRODUCT((Projects!$A$5:$A$2410='MDOT FTA Detail'!$D$3)*(Projects!$L$5:$L$2410='MDOT FTA Detail'!$A127)*(Projects!$Q$5:$Q$2410)) -> 0 | G127: =SUMPRODUCT((Projects!$A$5:$A$2410='MDOT FTA Detail'!$G$3)*(Projects!$L$5:$L$2410='MDOT FTA Detail'!$A127)*(Projects!$K$5:$K$2410)) -> 0 | H127: =I127-G127 -> 0 | I127: =SUMPRODUCT((Projects!$A$5:$A$2410='MDOT FTA Detail'!$G$3)*(Projects!$L$5:$L$2410='MDOT FTA Detail'!$A127)*(Projects!$Q$5:$Q$2410)) -> 0 | J127: =SUMPRODUCT((Projects!$A$5:$A$2410='MDOT FTA Detail'!$J$3)*(Projects!$L$5:$L$2410='MDOT FTA Detail'!$A127)*(Projects!$K$5:$K$2410)) -> 0 | K127: =L127-J127 -> 0 | L127: =SUMPRODUCT((Projects!$A$5:$A$2410='MDOT FTA Detail'!$J$3)*(Projects!$L$5:$L$2410='MDOT FTA Detail'!$A127)*(Projects!$Q$5:$Q$2410)) -> 0 | M127: =SUMPRODUCT((Projects!$A$5:$A$2410='MDOT FTA Detail'!$M$3)*(Projects!$L$5:$L$2410='MDOT FTA Detail'!$A127)*(Projects!$K$5:$K$2410)) -> 0 | N127: =O127-M127 -> 0 | O127: =SUMPRODUCT((Projects!$A$5:$A$2410='MDOT FTA Detail'!$M$3)*(Projects!$L$5:$L$2410='MDOT FTA Detail'!$A127)*(Projects!$Q$5:$Q$2410)) -> 0
A128: 5324 | B128: Section 5324 - Emergency Relief | C128: Transit | D128: =SUMPRODUCT((Projects!$A$5:$A$2410='MDOT FTA Detail'!$D$3)*(Projects!$L$5:$L$2410='MDOT FTA Detail'!$A128)*(Projects!$K$5:$K$2410)) -> 0 | E128: 0 | F128: =SUMPRODUCT((Projects!$A$5:$A$2410='MDOT FTA Detail'!$D$3)*(Projects!$L$5:$L$2410='MDOT FTA Detail'!$A128)*(Projects!$Q$5:$Q$2410)) -> 0 | G128: =SUMPRODUCT((Projects!$A$5:$A$2410='MDOT FTA Detail'!$G$3)*(Projects!$L$5:$L$2410='MDOT FTA Detail'!$A128)*(Projects!$K$5:$K$2410)) -> 0 | H128: 0 | I128: =SUMPRODUCT((Projects!$A$5:$A$2410='MDOT FTA Detail'!$G$3)*(Projects!$L$5:$L$2410='MDOT FTA Detail'!$A128)*(Projects!$Q$5:$Q$2410)) -> 0 | J128: =SUMPRODUCT((Projects!$A$5:$A$2410='MDOT FTA Detail'!$J$3)*(Projects!$L$5:$L$2410='MDOT FTA Detail'!$A128)*(Projects!$K$5:$K$2410)) -> 0 | K128: 0 | L128: =SUMPRODUCT((Projects!$A$5:$A$2410='MDOT FTA Detail'!$J$3)*(Projects!$L$5:$L$2410='MDOT FTA Detail'!$A128)*(Projects!$Q$5:$Q$2410)) -> 0 | M128: =SUMPRODUCT((Projects!$A$5:$A$2410='MDOT FTA Detail'!$M$3)*(Projects!$L$5:$L$2410='MDOT FTA Detail'!$A128)*(Projects!$K$5:$K$2410)) -> 0 | N128: 0 | O128: =SUMPRODUCT((Projects!$A$5:$A$2410='MDOT FTA Detail'!$M$3)*(Projects!$L$5:$L$2410='MDOT FTA Detail'!$A128)*(Projects!$Q$5:$Q$2410)) -> 0
A129: 5326 | B129: Section 5326 - Asset Management Provisions | C129: Transit | D129: =SUMPRODUCT((Projects!$A$5:$A$2410='MDOT FTA Detail'!$D$3)*(Projects!$L$5:$L$2410='MDOT FTA Detail'!$A129)*(Projects!$K$5:$K$2410)) -> 0 | E129: 0 | F129: =SUMPRODUCT((Projects!$A$5:$A$2410='MDOT FTA Detail'!$D$3)*(Projects!$L$5:$L$2410='MDOT FTA Detail'!$A129)*(Projects!$Q$5:$Q$2410)) -> 0 | G129: =SUMPRODUCT((Projects!$A$5:$A$2410='MDOT FTA Detail'!$G$3)*(Projects!$L$5:$L$2410='MDOT FTA Detail'!$A129)*(Projects!$K$5:$K$2410)) -> 0 | H129: 0 | I129: =SUMPRODUCT((Projects!$A$5:$A$2410='MDOT FTA Detail'!$G$3)*(Projects!$L$5:$L$2410='MDOT FTA Detail'!$A129)*(Projects!$Q$5:$Q$2410)) -> 0 | J129: =SUMPRODUCT((Projects!$A$5:$A$2410='MDOT FTA Detail'!$J$3)*(Projects!$L$5:$L$2410='MDOT FTA Detail'!$A129)*(Projects!$K$5:$K$2410)) -> 0 | K129: 0 | L129: =SUMPRODUCT((Projects!$A$5:$A$2410='MDOT FTA Detail'!$J$3)*(Projects!$L$5:$L$2410='MDOT FTA Detail'!$A129)*(Projects!$Q$5:$Q$2410)) -> 0 | M129: =SUMPRODUCT((Projects!$A$5:$A$2410='MDOT FTA Detail'!$M$3)*(Projects!$L$5:$L$2410='MDOT FTA Detail'!$A129)*(Projects!$K$5:$K$2410)) -> 0 | N129: 0 | O129: =SUMPRODUCT((Projects!$A$5:$A$2410='MDOT FTA Detail'!$M$3)*(Projects!$L$5:$L$2410='MDOT FTA Detail'!$A129)*(Projects!$Q$5:$Q$2410)) -> 0
